Workbook

Sheet الرئيسية
A1: بسم الله الرحمن الرحيم إدارة بني مزار التعليميــــة مدرسة أحمد أنور عبدالعزيز كنتــــــرول المدرســـــــــة
I16: User Name :
I17: User Name :
I19: Time Login :
I20: Time Login :

Sheet ن ع 1-2-3
B1: مديرية التربية والتعليم بالمنيا
B2: إدارة بني مزار التعليمية
B3: مدرسة أحمد أنور عبد العزيز
M5: اسم الطالب : | P5: =VLOOKUP($X$5,A17:BW409,2,FALSE) -> آيات عمرو محمد طه | T5: الصف : | V5: =VLOOKUP($X$5,A17:BW409,3,FALSE) -> الأول | W5: رقم الجلوس | X5: 7
M6: البيـــــان | P6: عربي | Q6: رياضيات | R6: انجليزي | S6: رياضي | T6: متعدد | U6: قيــم | V6: توكاتسو | W6: دين
M7: النسبة المئوية | P7: =VLOOKUP($X$5,$A$17:$BW409,17,FALSE) -> 0 | Q7: =VLOOKUP($X$5,$A$17:$BW409,24,FALSE) -> 0 | R7: =VLOOKUP($X$5,$A$17:$BW409,31,FALSE) -> 0 | S7: =VLOOKUP($X$5,$A$17:$BW409,40,FALSE) -> 0 | T7: =VLOOKUP($X$5,$A$17:$BW409,47,FALSE) -> 0 | U7: =VLOOKUP($X$5,$A$17:$BW410,56,FALSE) -> 0 | V7: =VLOOKUP($X$5,$A$17:$BW410,65,FALSE) -> 0 | W7: =VLOOKUP($X$5,$A$17:$BW410,73,FALSE) -> 0
M8: التقدير | P8: =VLOOKUP($X$5,$A$17:$BW409,18,FALSE) -> 0 | Q8: =VLOOKUP($X$5,$A$17:$BW409,25,FALSE) -> 0 | R8: =VLOOKUP($X$5,$A$17:$BW409,32,FALSE) -> 0 | S8: =VLOOKUP($X$5,$A$17:$BW409,41,FALSE) -> 0 | T8: =VLOOKUP($X$5,$A$17:$BW409,48,FALSE) -> 0 | U8: =VLOOKUP($X$5,$A$17:$BW411,57,FALSE) -> 0 | V8: =VLOOKUP($X$5,$A$17:$BW411,66,FALSE) -> 0 | W8: =VLOOKUP($X$5,$A$17:$BW411,74,FALSE) -> 0
M9: النتيجـــــة | P9: =VLOOKUP($X$5,A17:BW409,67,2) -> 0
A11: رقم الجلــــــوس | B11: اسم التلميذ | C11: الصف | D11: الحالة | E11: الديانة | F11: تــاريخ الميــلاد | I11: 2024-10-01 | L11: اللغة العربية والخط | S11: الرياضيات | Z11: اللغة الأجنبية | AG11: التربيــــة الرياضيــــة | AP11: متعدد | AW11: القيـــــــــــم | BF11: التـــــــــوكاتســــــــــــو | BO11: النتيجة | BP11: التربية الدينية | BW11: العام الدراسي
L13: فصل دراسي أول | N13: فصل دراسي ثان | P13: مجموع | Q13: نسبة | R13: تقدير | S13: فصل دراسي أول | U13: فصل دراسي ثان | W13: مجموع | X13: نسبة | Y13: تقدير | Z13: فصل دراسي أول | AB13: فصل دراسي ثان | AD13: مجموع | AE13: نسبة | AF13: تقدير | AG13: فصل دراسي أول | AJ13: فصل دراسي ثان | AM13: مجموع | AN13: نسبة | AO13: تقدير | AP13: فصل دراسي أول | AR13: فصل دراسي ثان | AT13: مجموع | AU13: نسبة | AV13: تقدير | AW13: فصل دراسي أول | AZ13: فصل دراسي ثان | BC13: مجموع | BD13: نسبة | BE13: تقدير | BF13: فصل دراسي أول | BI13: فصل دراسي ثان | BL13: مجموع | BM13: نسبة | BN13: تقدير | BP13: فصل دراسي أول | BR13: فصل دراسي ثان | BT13: مجموع | BU13: نسبة | BV13: تقدير
F15: يوم | G15: شهر | H15: سنة | I15: يوم | J15: شهر | K15: سنة | L15: مهام فردية وجماعية أنشطة وتقويمات | M15: نتيجة الفصل الأول | N15: مهام فردية وجماعية أنشطة وتقويمات | O15: نتيجة الفصل الثاني | S15: مهام فردية وجماعية أنشطة وتقويمات | T15: نتيجة الفصل الأول | U15: مهام فردية وجماعية أنشطة وتقويمات | V15: نتيجة الفصل الثاني | Z15: مهام فردية وجماعية أنشطة وتقويمات | AA15: نتيجة الفصل الأول | AB15: مهام فردية وجماعية أنشطة وتقويمات | AC15: نتيجة الفصل الثاني | AG15: مهام جماعية حضور وسلوك | AH15: عملي | AI15: المجموع | AJ15: مهام جماعية حضور وسلوك | AK15: عملي | AL15: المجموع | AP15: مهام فردية وجماعية أنشطة وتقويمات | AQ15: نتيجة الفصل الأول | AR15: مهام فردية وجماعية أنشطة وتقويمات | AS15: نتيجة الفصل الثاني | AW15: مهام فردية وجماعية أنشطة وتقويمات | AX15: نهاية الفصل | AY15: المجموع | AZ15: مهام فردية وجماعية أنشطة وتقويمات | BA15: نهاية الفصل | BB15: المجموع | BF15: مهام فردية وجماعية أنشطة وتقويمات | BG15: نهاية الفصل | BH15: المجموع | BI15: مهام فردية وجماعية أنشطة وتقويمات | BJ15: نهاية الفصل | BK15: المجموع | BP15: مهام فردية وجماعية أنشطة وتقويمات | BQ15: نتيجة الفصل الأول | BR15: مهام فردية وجماعية أنشطة وتقويمات | BS15: نتيجة الفصل الثاني
L16: 4 | N16: 4 | P16: 4 | S16: 4 | U16: 4 | W16: 4 | Z16: 4 | AA16: 100 | AB16: 4 | AC16: 100 | AD16: 4 | AG16: 50 | AH16: 50 | AI16: 100 | AJ16: 50 | AK16: 50 | AL16: 100 | AM16: 20 | AP16: 4 | AR16: 4 | AT16: 4 | AW16: 75 | AX16: 25 | AY16: 100 | AZ16: 75 | BA16: 25 | BB16: 100 | BC16: 20 | BF16: 75 | BG16: 25 | BH16: 100 | BI16: 75 | BJ16: 25 | BK16: 100 | BL16: 20 | BP16: 4 | BR16: 4 | BT16: 4
A17: 1 | B17: أروى أحمد عبدالحميد محمد | C17: الأول | D17: مستجدة | E17: مسلمة | F17: 14 | G17: 5 | H17: 2017 | I17: =DATEDIF(DATE(H17,G17,F17),$I$11,"MD") -> 17 | J17: =DATEDIF(DATE(H17,G17,F17),$I$11,"ym") -> 4 | K17: =DATEDIF(DATE(H17,G17,F17),$I$11,"y") -> 7
A18: 2 | B18: أسيل فالح خليفة حسن | C18: الأول | D18: مستجدة | E18: مسلمة | F18: 5 | G18: 1 | H18: 2017 | I18: =DATEDIF(DATE(H18,G18,F18),$I$11,"MD") -> 26 | J18: =DATEDIF(DATE(H18,G18,F18),$I$11,"ym") -> 8 | K18: =DATEDIF(DATE(H18,G18,F18),$I$11,"y") -> 7
A19: 3 | B19: أسيل محمد أحمد عبدالعزيز | C19: الأول | D19: مستجدة | E19: مسلمة | F19: 14 | G19: 2 | H19: 2017 | I19: =DATEDIF(DATE(H19,G19,F19),$I$11,"MD") -> 17 | J19: =DATEDIF(DATE(H19,G19,F19),$I$11,"ym") -> 7 | K19: =DATEDIF(DATE(H19,G19,F19),$I$11,"y") -> 7
A20: 4 | B20: أسينات علي حسن أبو زيد | C20: الأول | D20: مستجدة | E20: مسلمة | F20: 12 | G20: 12 | H20: 2016 | I20: 19 | J20: 9 | K20: 7
A21: 5 | B21: أشرقت علي أبوزيد حافظ | C21: الأول | D21: مستجدة | E21: مسلمة | F21: 22 | G21: 6 | H21: 2017 | I21: 9 | J21: 3 | K21: 7
A22: 6 | B22: أميرة طه عبدالرحمن محمد | C22: الأول | D22: مستجدة | E22: مسلمة | F22: 14 | G22: 1 | H22: 2017 | I22: 17 | J22: 8 | K22: 7
A23: 7 | B23: آيات عمرو محمد طه | C23: الأول | D23: مستجدة | E23: مسلمة | F23: 19 | G23: 11 | H23: 2016 | I23: 12 | J23: 10 | K23: 7
A24: 8 | B24: بسملة محمد خليفة يحي | C24: الأول | D24: مستجدة | E24: مسلمة | F24: 22 | G24: 3 | H24: 2017 | I24: 9 | J24: 6 | K24: 7
A25: 9 | B25: بسنت عامر محمود راضي | C25: الأول | D25: مستجدة | E25: مسلمة | F25: 30 | G25: 6 | H25: 2017 | I25: 1 | J25: 3 | K25: 7
A26: 10 | B26: ترتيل عويس عبدالقادر إبراهيم | C26: الأول | D26: مستجدة | E26: مسلمة | F26: 19 | G26: 4 | H26: 2017 | I26: 12 | J26: 5 | K26: 7
A27: 11 | B27: تسنيم تامر فتحي عبدالعزيز | C27: الأول | D27: مستجدة | E27: مسلمة | F27: 18 | G27: 8 | H27: 2017 | I27: 13 | J27: 1 | K27: 7
A28: 12 | B28: تمارا محمد عبدالقادر محمد | C28: الأول | D28: مستجدة | E28: مسلمة | F28: 22 | G28: 6 | H28: 2017 | I28: 9 | J28: 3 | K28: 7
A29: 13 | B29: جنى جمعة سيد عبدالرازق | C29: الأول | D29: مستجدة | E29: مسلمة | F29: 14 | G29: 11 | H29: 2016 | I29: 17 | J29: 10 | K29: 7
A30: 14 | B30: جنى حسين السيد محمد | C30: الأول | D30: مستجدة | E30: مسلمة | F30: 15 | G30: 6 | H30: 2017 | I30: 16 | J30: 3 | K30: 7
A31: 15 | B31: جنى صالح محمد محمد | C31: الأول | D31: مستجدة | E31: مسلمة | F31: 1 | G31: 11 | H31: 2016 | I31: 0 | J31: 11 | K31: 7
A32: 16 | B32: جنى عبدالرحمن صديق محمد | C32: الأول | D32: مستجدة | E32: مسلمة | F32: 1 | G32: 2 | H32: 2017 | I32: 0 | J32: 8 | K32: 7
A33: 17 | B33: جنى محمد قياتي عبدالفتاح | C33: الأول | D33: مستجدة | E33: مسلمة | F33: 19 | G33: 1 | H33: 2017 | I33: 12 | J33: 8 | K33: 7
A34: 18 | B34: جوري محمود محمد عبدالعظيم | C34: الأول | D34: مستجدة | E34: مسلمة | F34: 12 | G34: 12 | H34: 2016 | I34: 19 | J34: 9 | K34: 7
A35: 19 | B35: جويرية شعبان جابر شعبان | C35: الأول | D35: مستجدة | E35: مسلمة | F35: 6 | G35: 1 | H35: 2017 | I35: 25 | J35: 8 | K35: 7
A36: 20 | B36: حبيبة أحمد بردهوني خلف | C36: الأول | D36: مستجدة | E36: مسلمة | F36: 26 | G36: 1 | H36: 2017 | I36: 5 | J36: 8 | K36: 7
A37: 21 | B37: حبيبة فتحي مرتضى عبدالغفار | C37: الأول | D37: مستجدة | E37: مسلمة | F37: 1 | G37: 6 | H37: 2017 | I37: 0 | J37: 4 | K37: 7
A38: 22 | B38: حفصة أحمد راضي الجنيدي | C38: الأول | D38: مستجدة | E38: مسلمة | F38: 8 | G38: 4 | H38: 2017 | I38: 23 | J38: 5 | K38: 7
A39: 23 | B39: حنين رمضان عبدالله عبدالسميع | C39: الأول | D39: مستجدة | E39: مسلمة | F39: 19 | G39: 7 | H39: 2017 | I39: 12 | J39: 2 | K39: 7
A40: 24 | B40: حنين محمود أحمد حسن | C40: الأول | D40: مستجدة | E40: مسلمة | F40: 6 | G40: 8 | H40: 2017 | I40: 25 | J40: 1 | K40: 7
A41: 25 | B41: حور الحسن عبدالله عبدالعزيز | C41: الأول | D41: مستجدة | E41: مسلمة | F41: 3 | G41: 6 | H41: 2017 | I41: 28 | J41: 3 | K41: 7
A42: 26 | B42: خديجة أحمد سيد عبدالرازق | C42: الأول | D42: مستجدة | E42: مسلمة | F42: 10 | G42: 5 | H42: 2017 | I42: 21 | J42: 4 | K42: 7
A43: 27 | B43: خديجة أحمد عبدالباقي عبدالفتاح | C43: الأول | D43: مستجدة | E43: مسلمة | F43: 30 | G43: 3 | H43: 2017 | I43: 1 | J43: 6 | K43: 7
A44: 28 | B44: خديجة أحمد كريم أحمد | C44: الأول | D44: مستجدة | E44: مسلمة | F44: 8 | G44: 12 | H44: 2016 | I44: 23 | J44: 9 | K44: 7
A45: 29 | B45: خديجة محمد عبدالهادي بهجات | C45: الأول | D45: مستجدة | E45: مسلمة | F45: 1 | G45: 10 | H45: 2017 | I45: 0 | J45: 0 | K45: 7
A46: 30 | B46: خديجة محمد محمد رفعت | C46: الأول | D46: مستجدة | E46: مسلمة | F46: 6 | G46: 9 | H46: 2017 | I46: 25 | J46: 0 | K46: 7
A47: 31 | B47: خلود عبدالقادر محمد محمد | C47: الأول | D47: مستجدة | E47: مسلمة | F47: 22 | G47: 1 | H47: 2017 | I47: 9 | J47: 8 | K47: 7
A48: 32 | B48: دعاء أسامة محمد صادق | C48: الأول | D48: مستجدة | E48: مسلمة | F48: 13 | G48: 8 | H48: 2017 | I48: 18 | J48: 1 | K48: 7
A49: 33 | B49: دعاء عبدالعزيز يحي يوسف | C49: الأول | D49: مستجدة | E49: مسلمة | F49: 8 | G49: 2 | H49: 2017 | I49: 23 | J49: 7 | K49: 7
A50: 34 | B50: رجوان جنيدي فنجري عبدالواحد | C50: الأول | D50: مستجدة | E50: مسلمة | F50: 2 | G50: 12 | H50: 2016 | I50: 29 | J50: 9 | K50: 7
A51: 35 | B51: رنا عبدالرحمن أحمد عبدالحليم | C51: الأول | D51: مستجدة | E51: مسلمة | F51: 21 | G51: 5 | H51: 2017 | I51: 10 | J51: 4 | K51: 7
A52: 36 | B52: رنا عبدالعزيز أحمد محمود | C52: الأول | D52: مستجدة | E52: مسلمة | F52: 7 | G52: 9 | H52: 2017 | I52: 24 | J52: 0 | K52: 7
A53: 37 | B53: رودينة أحمد محمد عبدالعزيز | C53: الأول | D53: مستجدة | E53: مسلمة | F53: 14 | G53: 5 | H53: 2017 | I53: 17 | J53: 4 | K53: 7
A54: 38 | B54: روفان محمد شعبان شحاتة | C54: الأول | D54: مستجدة | E54: مسلمة | F54: 3 | G54: 4 | H54: 2017 | I54: 28 | J54: 5 | K54: 7
A55: 39 | B55: رؤى محمد شعبان علي | C55: الأول | D55: مستجدة | E55: مسلمة | F55: 10 | G55: 6 | H55: 2017 | I55: 21 | J55: 3 | K55: 7
A56: 40 | B56: ريتاج حمدي جمعة زكي | C56: الأول | D56: مستجدة | E56: مسلمة | F56: 14 | G56: 12 | H56: 2016 | I56: 17 | J56: 9 | K56: 7
A57: 41 | B57: ريتاج ربيع محمد حافظ | C57: الأول | D57: مستجدة | E57: مسلمة | F57: 3 | G57: 4 | H57: 2017 | I57: 28 | J57: 5 | K57: 7
A58: 42 | B58: ريناد علي محمد عثمان | C58: الأول | D58: مستجدة | E58: مسلمة | F58: 21 | G58: 6 | H58: 2017 | I58: 10 | J58: 3 | K58: 7
A59: 43 | B59: ريهام أحمد ناجي محمد علي | C59: الأول | D59: مستجدة | E59: مسلمة | F59: 1 | G59: 8 | H59: 2017 | I59: 0 | J59: 2 | K59: 7
A60: 44 | B60: زينب سامح عيد كامل | C60: الأول | D60: مستجدة | E60: مسلمة | F60: 31 | G60: 12 | H60: 2016 | I60: 0 | J60: 9 | K60: 7
A61: 45 | B61: زينب صالح سمير محمود | C61: الأول | D61: مستجدة | E61: مسلمة | F61: 12 | G61: 7 | H61: 2017 | I61: 19 | J61: 2 | K61: 7
A62: 46 | B62: سما عبدالقادر محمد يونس | C62: الأول | D62: مستجدة | E62: مسلمة | F62: 18 | G62: 3 | H62: 2017 | I62: 13 | J62: 6 | K62: 7
A63: 47 | B63: سما محمود عبدالعزيز علي | C63: الأول | D63: مستجدة | E63: مسلمة | F63: 19 | G63: 3 | H63: 2017 | I63: 12 | J63: 6 | K63: 7
A64: 48 | B64: شيماء عامر أبوبكر صديق | C64: الأول | D64: مستجدة | E64: مسلمة | F64: 12 | G64: 6 | H64: 2017 | I64: 19 | J64: 3 | K64: 7
A65: 49 | B65: علياء أحمد حسن زكي | C65: الأول | D65: مستجدة | E65: مسلمة | F65: 27 | G65: 1 | H65: 2017 | I65: 4 | J65: 8 | K65: 7
A66: 50 | B66: فاطمة مؤمن عيد محمد | C66: الأول | D66: مستجدة | E66: مسلمة | F66: 18 | G66: 6 | H66: 2017 | I66: 13 | J66: 3 | K66: 7
A67: 51 | B67: فرحة صبري يحي يوسف | C67: الأول | D67: مستجدة | E67: مسلمة | F67: 20 | G67: 4 | H67: 2017 | I67: 11 | J67: 5 | K67: 7
A68: 52 | B68: لمياء سعيد سيد عبدالرازق | C68: الأول | D68: مستجدة | E68: مسلمة | F68: 18 | G68: 12 | H68: 2016 | I68: 13 | J68: 9 | K68: 7
A69: 53 | B69: مريم إبراهيم محمد شلقامي | C69: الأول | D69: مستجدة | E69: مسلمة | F69: 16 | G69: 6 | H69: 2017 | I69: 15 | J69: 3 | K69: 7
A70: 54 | B70: مريم ربيع خيري زكي | C70: الأول | D70: مستجدة | E70: مسلمة | F70: 7 | G70: 8 | H70: 2017 | I70: 24 | J70: 1 | K70: 7
A71: 55 | B71: مريم ربيع علي محمد | C71: الأول | D71: مستجدة | E71: مسلمة | F71: 17 | G71: 9 | H71: 2017 | I71: 14 | J71: 0 | K71: 7
A72: 56 | B72: مريم محمد خميس أحمد | C72: الأول | D72: مستجدة | E72: مسلمة | F72: 1 | G72: 10 | H72: 2017 | I72: 0 | J72: 0 | K72: 7
A73: 57 | B73: مكة ربيع سمير محمود | C73: الأول | D73: مستجدة | E73: مسلمة | F73: 8 | G73: 8 | H73: 2017 | I73: 23 | J73: 1 | K73: 7
A74: 58 | B74: ملك تامر خميس أحمد | C74: الأول | D74: مستجدة | E74: مسلمة | F74: 7 | G74: 12 | H74: 2016 | I74: 24 | J74: 9 | K74: 7
A75: 59 | B75: منار مصطفى محمد أنور | C75: الأول | D75: مستجدة | E75: مسلمة | F75: 12 | G75: 1 | H75: 2017 | I75: 19 | J75: 8 | K75: 7
A76: 60 | B76: منة محمد رمضان أحمد | C76: الأول | D76: مستجدة | E76: مسلمة | F76: 1 | G76: 10 | H76: 2017 | I76: 0 | J76: 0 | K76: 7
A77: 61 | B77: مي أحمد حسين محمد | C77: الأول | D77: مستجدة | E77: مسلمة | F77: 21 | G77: 3 | H77: 2017 | I77: 10 | J77: 6 | K77: 7
A78: 62 | B78: مي رمضان محمد كامل | C78: الأول | D78: مستجدة | E78: مسلم | F78: 24 | G78: 9 | H78: 2017 | I78: 7 | J78: 0 | K78: 7
A79: 63 | B79: مي عصام عزالدين عبدالرحيم | C79: الأول | D79: مستجدة | E79: مسلم | F79: 15 | G79: 5 | H79: 2017 | I79: 16 | J79: 4 | K79: 7
A80: 64 | B80: ندى عبدالعزيز أحمد عبدالعزيز | C80: الأول | D80: مستجدة | E80: مسلم | F80: 17 | G80: 12 | H80: 2016 | I80: 14 | J80: 9 | K80: 7
A81: 65 | B81: هاجر عبدالرحمن السيد محمد | C81: الأول | D81: مستجدة | E81: مسلم | F81: 9 | G81: 1 | H81: 2017 | I81: 22 | J81: 8 | K81: 7
A82: 66 | B82: همس هشام عبدالمعز محمود | C82: الأول | D82: مستجدة | E82: مسلم | F82: 28 | G82: 11 | H82: 2016 | I82: =DATEDIF(DATE(H82,G82,F82),$I$11,"MD") -> 3 | J82: =DATEDIF(DATE(H82,G82,F82),$I$11,"ym") -> 10 | K82: =DATEDIF(DATE(H82,G82,F82),$I$11,"y") -> 7
A83: 67 | B83: هنا عبدالعزيز أحمد محمود | C83: الأول | D83: مستجدة | E83: مسلم | F83: 7 | G83: 9 | H83: 2017 | I83: 24 | J83: 0 | K83: 7
A84: 68 | B84: ياسمين عمر عبدالعزيز عبدالرازق | C84: الأول | D84: مستجدة | E84: مسلم | F84: 21 | G84: 11 | H84: 2016 | I84: 10 | J84: 10 | K84: 7
A85: 69 | B85: ياسمين مصطفى سمير إبراهيم | C85: الأول | D85: مستجدة | E85: مسلم | F85: 18 | G85: 7 | H85: 2017 | I85: 13 | J85: 2 | K85: 7
A86: 70 | B86: إبراهيم حسن ناجح محمود | C86: الأول | D86: مستجد | E86: مسلم | F86: 5 | G86: 2 | H86: 2017 | I86: 26 | J86: 7 | K86: 7
A87: 71 | B87: إبراهيم سعيد محمد صلاح | C87: الأول | D87: مستجد | E87: مسلم | F87: 16 | G87: 12 | H87: 2016 | I87: 15 | J87: 9 | K87: 7
A88: 72 | B88: إياد عبدالحليم أحمد عبدالحليم | C88: الأول | D88: مستجد | E88: مسلم | F88: 25 | G88: 2 | H88: 2017 | I88: 6 | J88: 7 | K88: 7
A89: 73 | B89: أحمد رجب وحيد أبوبكر | C89: الأول | D89: مستجد | E89: مسلم | F89: 1 | G89: 8 | H89: 2017 | I89: 0 | J89: 2 | K89: 7
A90: 74 | B90: أحمد عبدالرحمن محمود كامل | C90: الأول | D90: مستجد | E90: مسلم | F90: 21 | G90: 7 | H90: 2017 | I90: 10 | J90: 2 | K90: 7
A91: 75 | B91: أحمد عبدالعزيز حماد عبدالرازق | C91: الأول | D91: مستجد | E91: مسلم | F91: 16 | G91: 4 | H91: 2017 | I91: 15 | J91: 5 | K91: 7
A92: 76 | B92: أحمد عبدالعزيز ممدوح عبدالغني | C92: الأول | D92: مستجد | E92: مسلم | F92: 12 | G92: 12 | H92: 2016 | I92: 19 | J92: 9 | K92: 7
A93: 77 | B93: أحمد علاء عمر محمود | C93: الأول | D93: مستجد | E93: مسلم | F93: 19 | G93: 5 | H93: 2017 | I93: 12 | J93: 4 | K93: 7
A94: 78 | B94: أحمد عيد حسن محمد | C94: الأول | D94: مستجد | E94: مسلم | F94: 27 | G94: 7 | H94: 2017 | I94: 4 | J94: 2 | K94: 7
A95: 79 | B95: أحمد محمد عبدالحميد محمد | C95: الأول | D95: مستجد | E95: مسلم | F95: 14 | G95: 11 | H95: 2016 | I95: 17 | J95: 10 | K95: 7
A96: 80 | B96: أحمد هاني عبدالقادر حسن | C96: الأول | D96: مستجد | E96: مسلم | F96: 13 | G96: 7 | H96: 2017 | I96: 18 | J96: 2 | K96: 7
A97: 81 | B97: أشرف رضا صبحي محمد | C97: الأول | D97: مستجد | E97: مسلم | F97: 26 | G97: 1 | H97: 2017 | I97: 5 | J97: 8 | K97: 7
A98: 82 | B98: أنس أبوزيد حسن أبوزيد | C98: الأول | D98: مستجد | E98: مسلم | F98: 21 | G98: 10 | H98: 2016 | I98: 10 | J98: 11 | K98: 7
A99: 83 | B99: آدم أسامة سمير محمد | C99: الأول | D99: مستجد | E99: مسلم | F99: 29 | G99: 4 | H99: 2017 | I99: 2 | J99: 5 | K99: 7
A100: 84 | B100: آدم عمران حامد عبدالدايم | C100: الأول | D100: مستجد | E100: مسلم | F100: 16 | G100: 7 | H100: 2017 | I100: 15 | J100: 2 | K100: 7
A101: 85 | B101: آدم محمد رشاد أمين | C101: الأول | D101: مستجد | E101: مسلم | F101: 4 | G101: 3 | H101: 2017 | I101: 27 | J101: 6 | K101: 7
A102: 86 | B102: آدم محمد عبدالقادر حسن | C102: الأول | D102: مستجد | E102: مسلم | F102: 16 | G102: 3 | H102: 2017 | I102: 15 | J102: 6 | K102: 7
A103: 87 | B103: آدم مؤمن عبدالقادر محمد ربيع | C103: الأول | D103: مستجد | E103: مسلم | F103: 15 | G103: 7 | H103: 2017 | I103: 16 | J103: 2 | K103: 7
A104: 88 | B104: حسام عبدالعزيز محمد علي | C104: الأول | D104: مستجد | E104: مسلم | F104: 6 | G104: 3 | H104: 2017 | I104: 25 | J104: 6 | K104: 7
A105: 89 | B105: حسام مصطفى رجب أحمد | C105: الأول | D105: مستجد | E105: مسلم | F105: 23 | G105: 1 | H105: 2017 | I105: 8 | J105: 8 | K105: 7
A106: 90 | B106: حمدي قياتي محمد شاكر | C106: الأول | D106: مستجد | E106: مسلم | F106: 10 | G106: 1 | H106: 2017 | I106: 21 | J106: 8 | K106: 7
A107: 91 | B107: حمزة رجب عبدالغفار محمد | C107: الأول | D107: مستجد | E107: مسلم | F107: 30 | G107: 8 | H107: 2017 | I107: 1 | J107: 1 | K107: 7
A108: 92 | B108: حمزة محمد فتحي عبدالرازق | C108: الأول | D108: مستجد | E108: مسلم | F108: 18 | G108: 2 | H108: 2017 | I108: 13 | J108: 7 | K108: 7
A109: 93 | B109: حمزة مصطفى عطية عبدالرازق | C109: الأول | D109: مستجد | E109: مسلم | F109: 6 | G109: 1 | H109: 2017 | I109: 25 | J109: 8 | K109: 7
A110: 94 | B110: ريان محمود عبدالقادر محمد | C110: الأول | D110: مستجد | E110: مسلم | F110: 23 | G110: 2 | H110: 2017 | I110: 8 | J110: 7 | K110: 7
A111: 95 | B111: زياد حمادة ربيع أحمد | C111: الأول | D111: مستجد | E111: مسلم | F111: 11 | G111: 7 | H111: 2017 | I111: 20 | J111: 2 | K111: 7
A112: 96 | B112: سعيد عبدالباسط عيسى محمد | C112: الأول | D112: مستجد | E112: مسلم | F112: 6 | G112: 10 | H112: 2016 | I112: 25 | J112: 11 | K112: 7
A113: 97 | B113: سلطان محمد سلطان عثمان | C113: الأول | D113: مستجد | E113: مسلم | F113: 16 | G113: 10 | H113: 2016 | I113: 15 | J113: 11 | K113: 7
A114: 98 | B114: سيف محمد ماضي أحمد | C114: الأول | D114: مستجد | E114: مسلم | F114: 18 | G114: 12 | H114: 2016 | I114: 13 | J114: 9 | K114: 7
A115: 99 | B115: عبدالرحمن فاروق عويس فاروق | C115: الأول | D115: مستجد | E115: مسلم | F115: 28 | G115: 10 | H115: 2016 | I115: 3 | J115: 11 | K115: 7
A116: 100 | B116: عبدالعزيز محمود عبدالعزيز أحمد | C116: الأول | D116: مستجد | E116: مسلم | F116: 16 | G116: 12 | H116: 2016 | I116: 15 | J116: 9 | K116: 7
A117: 101 | B117: عبدالقادر شعبان عبدالقادر إبراهيم | C117: الأول | D117: مستجد | E117: مسلم | F117: 28 | G117: 7 | H117: 2017 | I117: 3 | J117: 2 | K117: 7
A118: 102 | B118: عبدالله عربي عادل شعبان | C118: الأول | D118: مستجد | E118: مسلم | F118: 26 | G118: 8 | H118: 2017 | I118: 5 | J118: 1 | K118: 7
A119: 103 | B119: عمر عصام عطا لملوم | C119: الأول | D119: مستجد | E119: مسلم | F119: 14 | G119: 3 | H119: 2017 | I119: 17 | J119: 6 | K119: 7
A120: 104 | B120: عمر محمد أحمد يحى | C120: الأول | D120: مستجد | E120: مسلم | F120: 19 | G120: 4 | H120: 2017 | I120: 12 | J120: 5 | K120: 7
A121: 105 | B121: عمر محمد حسن علي | C121: الأول | D121: مستجد | E121: مسلم | F121: 30 | G121: 8 | H121: 2017 | I121: 1 | J121: 1 | K121: 7
A122: 106 | B122: عمر مصطفى جمال محمد | C122: الأول | D122: مستجد | E122: مسلم | F122: 18 | G122: 1 | H122: 2017 | I122: 13 | J122: 8 | K122: 7
A123: 107 | B123: عمرو خالد محمد محمد | C123: الأول | D123: مستجد | E123: مسلم | F123: 14 | G123: 12 | H123: 2016 | I123: 17 | J123: 9 | K123: 7
A124: 108 | B124: مازن عربي محمود شحاتة | C124: الأول | D124: مستجد | E124: مسلم | F124: 29 | G124: 9 | H124: 2017 | I124: 2 | J124: 0 | K124: 7
A125: 109 | B125: محمد المحمودي عبدالغني محمد | C125: الأول | D125: مستجد | E125: مسلم | F125: 5 | G125: 5 | H125: 2017 | I125: 26 | J125: 4 | K125: 7
A126: 110 | B126: محمد أحمد محمد مختار | C126: الأول | D126: مستجد | E126: مسلم | F126: 27 | G126: 7 | H126: 2017 | I126: 4 | J126: 2 | K126: 7
A127: 111 | B127: محمد أسامة محمد مسعد | C127: الأول | D127: مستجد | E127: مسلم | F127: 4 | G127: 9 | H127: 2017 | I127: 27 | J127: 0 | K127: 7
A128: 112 | B128: محمد حسين عبدالعزيز عبدالرازق | C128: الأول | D128: مستجد | E128: مسلم | F128: 29 | G128: 6 | H128: 2017 | I128: 2 | J128: 3 | K128: 7
A129: 113 | B129: محمد خالد عبدالقادر أمين | C129: الأول | D129: مستجد | E129: مسلم | F129: 22 | G129: 1 | H129: 2017 | I129: 9 | J129: 8 | K129: 7
A130: 114 | B130: محمد شريف خيري زكي | C130: الأول | D130: مستجد | E130: مسلم | F130: 19 | G130: 1 | H130: 2017 | I130: 12 | J130: 8 | K130: 7
A131: 115 | B131: محمد عبدالرازق عبدالعزيز عبدالرازق | C131: الأول | D131: مستجد | E131: مسلم | F131: 23 | G131: 7 | H131: 2017 | I131: 8 | J131: 2 | K131: 7
A132: 116 | B132: محمد عبدالرحمن أحمد محمد | C132: الأول | D132: مستجد | E132: مسلم | F132: 11 | G132: 7 | H132: 2017 | I132: 20 | J132: 2 | K132: 7
A133: 117 | B133: محمد عبدالرحمن محمد عبدالصابر | C133: الأول | D133: مستجد | E133: مسلم | F133: 9 | G133: 9 | H133: 2017 | I133: 22 | J133: 0 | K133: 7
A134: 118 | B134: محمد علي محمد عبدالفتاح | C134: الأول | D134: مستجد | E134: مسلم | F134: 10 | G134: 5 | H134: 2017 | I134: 21 | J134: 4 | K134: 7
A135: 119 | B135: محمد محمود عبدالرحمن محمد | C135: الأول | D135: مستجد | E135: مسلم | F135: 29 | G135: 12 | H135: 2016 | I135: 2 | J135: 9 | K135: 7
A136: 120 | B136: محمد مصطفى عطا خلف | C136: الأول | D136: مستجد | E136: مسلم | F136: 9 | G136: 5 | H136: 2017 | I136: 22 | J136: 4 | K136: 7
A137: 121 | B137: محمد هاشم محمد عبداللطيف | C137: الأول | D137: مستجد | E137: مسلم | F137: 27 | G137: 4 | H137: 2017 | I137: 4 | J137: 5 | K137: 7
A138: 122 | B138: محمود أسامة معتمد محمود | C138: الأول | D138: مستجد | E138: مسلم | F138: 16 | G138: 5 | H138: 2017 | I138: 15 | J138: 4 | K138: 7
A139: 123 | B139: محمود سعيد قياتي عبدالفتاح | C139: الأول | D139: مستجد | E139: مسلم | F139: 5 | G139: 12 | H139: 2016 | I139: 26 | J139: 9 | K139: 7
A140: 124 | B140: محمود علاء إسماعيل حسن | C140: الأول | D140: مستجد | E140: مسلم | F140: 12 | G140: 1 | H140: 2017 | I140: 19 | J140: 8 | K140: 7
A141: 125 | B141: محمود محمد رجب عبدالعزيز | C141: الأول | D141: مستجد | E141: مسلم | F141: 9 | G141: 7 | H141: 2017 | I141: 22 | J141: 2 | K141: 7
A142: 126 | B142: مروان أسامة محمد أحمد | C142: الأول | D142: مستجد | E142: مسلم | F142: 26 | G142: 6 | H142: 2017 | I142: 5 | J142: 3 | K142: 7
A143: 127 | B143: مروان رضا سلطان عثمان | C143: الأول | D143: مستجد | E143: مسلم | F143: 5 | G143: 6 | H143: 2017 | I143: 26 | J143: 3 | K143: 7
A144: 128 | B144: مروان عبدالرحمن عواد شعبان | C144: الأول | D144: مستجد | E144: مسلم | F144: 26 | G144: 1 | H144: 2017 | I144: 5 | J144: 8 | K144: 7
A145: 129 | B145: مروان محمد ماضي أحمد | C145: الأول | D145: مستجد | E145: مسلم | F145: 18 | G145: 12 | H145: 2016 | I145: 13 | J145: 9 | K145: 7
A146: 130 | B146: مصطفى أحمد مصطفى عبدالحكيم | C146: الأول | D146: مستجد | E146: مسلم | F146: 25 | G146: 11 | H146: 2016 | I146: =DATEDIF(DATE(H146,G146,F146),$I$11,"MD") -> 6 | J146: =DATEDIF(DATE(H146,G146,F146),$I$11,"ym") -> 10 | K146: =DATEDIF(DATE(H146,G146,F146),$I$11,"y") -> 7
A147: 131 | B147: مصطفى عاطف علي عباس | C147: الأول | D147: مستجد | E147: مسلم | F147: 17 | G147: 5 | H147: 2017 | I147: 14 | J147: 4 | K147: 7
A148: 132 | B148: مصطفى عبدالحفيظ عبدالعزيز عبدالرازق | C148: الأول | D148: مستجد | E148: مسلم | F148: 1 | G148: 10 | H148: 2017 | I148: 0 | J148: 0 | K148: 7
A149: 133 | B149: معتز أحمد شعبان شحاتة | C149: الأول | D149: مستجد | E149: مسلم | F149: 6 | G149: 4 | H149: 2017 | I149: 25 | J149: 5 | K149: 7
A150: 134 | B150: مكاري إبراهيم حبيب إبراهيم | C150: الأول | D150: مستجد | E150: مسيحي | F150: 27 | G150: 4 | H150: 2017 | I150: 4 | J150: 5 | K150: 7
A151: 135 | B151: ياسين طه عبدالرحمن محمد | C151: الأول | D151: مستجد | E151: مسلم | F151: 14 | G151: 1 | H151: 2017 | I151: 17 | J151: 8 | K151: 7
A152: 136 | B152: يحي مصطفى زكي كامل | C152: الأول | D152: مستجد | E152: مسلم | F152: 11 | G152: 10 | H152: 2016 | I152: 20 | J152: 11 | K152: 7
A153: 137 | B153: يوسف محمود جمال أمين | C153: الأول | D153: مستجد | E153: مسلم | F153: 25 | G153: 9 | H153: 2017 | I153: 6 | J153: 0 | K153: 7
A154: 138 | B154: إيمان طه فتحى محمود على | C154: الثاني | D154: مستجدة | E154: مسلمة | F154: 25 | G154: 4 | H154: 2016 | I154: 6 | J154: 5 | K154: 8
A155: 139 | B155: أروى ربيع عيد أبو بكر | C155: الثاني | D155: مستجدة | E155: مسلمة | F155: 22 | G155: 10 | H155: 2015 | I155: =DATEDIF(DATE(H155,G155,F155),$I$11,"MD") -> 9 | J155: =DATEDIF(DATE(H155,G155,F155),$I$11,"ym") -> 11 | K155: =DATEDIF(DATE(H155,G155,F155),$I$11,"y") -> 8
A156: 140 | B156: أريج يحيى عطا يحيى | C156: الثاني | D156: مستجدة | E156: مسلمة | F156: 13 | G156: 6 | H156: 2016 | I156: 18 | J156: 3 | K156: 8
A157: 141 | B157: أسماء الجنيدى عبد العزيز عبد الرازق | C157: الثاني | D157: مستجدة | E157: مسلمة | F157: 2 | G157: 12 | H157: 2015 | I157: 29 | J157: 9 | K157: 8
A158: 142 | B158: أسيل عزت حسن على | C158: الثاني | D158: مستجدة | E158: مسلمة | F158: 1 | G158: 7 | H158: 2016 | I158: 0 | J158: 3 | K158: 8
A159: 143 | B159: أسيل هنى أبو الليل شحاتة | C159: الثاني | D159: مستجدة | E159: مسلمة | F159: 17 | G159: 1 | H159: 2016 | I159: 14 | J159: 8 | K159: 8
A160: 144 | B160: أيات أحمد خليفة على | C160: الثاني | D160: مستجدة | E160: مسلمة | F160: 25 | G160: 2 | H160: 2016 | I160: 6 | J160: 7 | K160: 8
A161: 145 | B161: أية محمد عاشور عبد الفتاح | C161: الثاني | D161: مستجدة | E161: مسلمة | F161: 15 | G161: 10 | H161: 2015 | I161: 16 | J161: 11 | K161: 8
A162: 146 | B162: بسملة عبد القادر مرسى محمد | C162: الثاني | D162: مستجدة | E162: مسلمة | F162: 9 | G162: 5 | H162: 2016 | I162: 22 | J162: 4 | K162: 8
A163: 147 | B163: بسملة محمد حسن زيدان | C163: الثاني | D163: مستجدة | E163: مسلمة | F163: 26 | G163: 6 | H163: 2016 | I163: 5 | J163: 3 | K163: 8
A164: 148 | B164: بسملة محمد يحيى فهمى | C164: الثاني | D164: مستجدة | E164: مسلمة | F164: 17 | G164: 9 | H164: 2016 | I164: 14 | J164: 0 | K164: 8
A165: 149 | B165: جنى عبد القادر كامل عبد اللطيف | C165: الثاني | D165: مستجدة | E165: مسلمة | F165: 1 | G165: 2 | H165: 2016 | I165: 0 | J165: 8 | K165: 8
A166: 150 | B166: جودي أحمد مصطفى مناع | C166: الثاني | D166: مستجدة | E166: مسلمة | F166: 18 | G166: 9 | H166: 2016 | I166: 13 | J166: 0 | K166: 8
A167: 151 | B167: حبيبة محمود عمر محمود | C167: الثاني | D167: مستجدة | E167: مسلمة | F167: 4 | G167: 12 | H167: 2015 | I167: 27 | J167: 9 | K167: 8
A168: 152 | B168: حفصة حمزة صادق عبد الغنى | C168: الثاني | D168: مستجدة | E168: مسلمة | F168: 15 | G168: 5 | H168: 2016 | I168: 16 | J168: 4 | K168: 8
A169: 153 | B169: حنين رجب محمد عبد الغنى | C169: الثاني | D169: مستجدة | E169: مسلمة | F169: 16 | G169: 4 | H169: 2016 | I169: 15 | J169: 5 | K169: 8
A170: 154 | B170: حنين محمد ربيع محمد شعبان | C170: الثاني | D170: مستجدة | E170: مسلمة | F170: 10 | G170: 7 | H170: 2016 | I170: 21 | J170: 2 | K170: 8
A171: 155 | B171: حنين مصطفى فتحى كامل | C171: الثاني | D171: مستجدة | E171: مسلمة | F171: 6 | G171: 4 | H171: 2016 | I171: 25 | J171: 5 | K171: 8
A172: 156 | B172: حنين وائل محمد أبو بكر | C172: الثاني | D172: مستجدة | E172: مسلمة | F172: 28 | G172: 11 | H172: 2015 | I172: 3 | J172: 10 | K172: 8
A173: 157 | B173: خديجة معبد صلاح محمد السيد | C173: الثاني | D173: مستجدة | E173: مسلمة | F173: 30 | G173: 10 | H173: 2015 | I173: 1 | J173: 11 | K173: 8
A174: 158 | B174: خديجة وائل عزت محمد | C174: الثاني | D174: مستجدة | E174: مسلمة | F174: 16 | G174: 6 | H174: 2016 | I174: 15 | J174: 3 | K174: 8
A175: 159 | B175: دعاء صلاح محمد صلاح | C175: الثاني | D175: مستجدة | E175: مسلمة | F175: 13 | G175: 9 | H175: 2016 | I175: 18 | J175: 0 | K175: 8
A176: 160 | B176: رزان إبراهيم يحيى محمد | C176: الثاني | D176: مستجدة | E176: مسلمة | F176: 9 | G176: 5 | H176: 2016 | I176: 22 | J176: 4 | K176: 8
A177: 161 | B177: رنا محمد عبد الله محمد | C177: الثاني | D177: مستجدة | E177: مسلمة | F177: 23 | G177: 11 | H177: 2015 | I177: 8 | J177: 10 | K177: 8
A178: 162 | B178: رودينا محسن محمد ربيع | C178: الثاني | D178: مستجدة | E178: مسلمة | F178: 15 | G178: 4 | H178: 2016 | I178: 16 | J178: 5 | K178: 8
A179: 163 | B179: رودينا محمد خالد محمد | C179: الثاني | D179: مستجدة | E179: مسلمة | F179: 29 | G179: 5 | H179: 2016 | I179: 2 | J179: 4 | K179: 8
A180: 164 | B180: روضة عصام محمد صلاح | C180: الثاني | D180: مستجدة | E180: مسلمة | F180: 9 | G180: 8 | H180: 2016 | I180: 22 | J180: 1 | K180: 8
A181: 165 | B181: ريتاج محمود مصطفى عبد الحكيم | C181: الثاني | D181: مستجدة | E181: مسلمة | F181: 4 | G181: 9 | H181: 2016 | I181: 27 | J181: 0 | K181: 8
A182: 166 | B182: ريتال خالد محمد شلقامى | C182: الثاني | D182: مستجدة | E182: مسلمة | F182: 25 | G182: 10 | H182: 2015 | I182: 6 | J182: 11 | K182: 8
A183: 167 | B183: ريماس إبراهيم حسن إبراهيم | C183: الثاني | D183: مستجدة | E183: مسلمة | F183: 25 | G183: 8 | H183: 2016 | I183: 6 | J183: 1 | K183: 8
A184: 168 | B184: ريماس كرم محمود راضى | C184: الثاني | D184: مستجدة | E184: مسلمة | F184: 5 | G184: 3 | H184: 2016 | I184: 26 | J184: 6 | K184: 8
A185: 169 | B185: ريهام محمود شحاتة محمد | C185: الثاني | D185: مستجدة | E185: مسلمة | F185: 1 | G185: 10 | H185: 2016 | I185: 0 | J185: 0 | K185: 8
A186: 170 | B186: زينب عبد العزيز عبد الغنى محمد | C186: الثاني | D186: مستجدة | E186: مسلمة | F186: 25 | G186: 4 | H186: 2016 | I186: 6 | J186: 5 | K186: 8
A187: 171 | B187: سارة أحمد ربيع أحمد معبد | C187: الثاني | D187: مستجدة | E187: مسلمة | F187: 13 | G187: 3 | H187: 2016 | I187: 18 | J187: 6 | K187: 8
A188: 172 | B188: سارة راضى محمد راضى | C188: الثاني | D188: مستجدة | E188: مسلمة | F188: 9 | G188: 5 | H188: 2016 | I188: 22 | J188: 4 | K188: 8
A189: 173 | B189: سجدة عبد الرحمن محمد شريف | C189: الثاني | D189: مستجدة | E189: مسلمة | F189: 18 | G189: 7 | H189: 2016 | I189: 13 | J189: 2 | K189: 8
A190: 174 | B190: سجود مصطفى محمد محمود | C190: الثاني | D190: مستجدة | E190: مسلمة | F190: 12 | G190: 1 | H190: 2016 | I190: 19 | J190: 8 | K190: 8
A191: 175 | B191: سجى أحمد محمود كامل | C191: الثاني | D191: مستجدة | E191: مسلمة | F191: 1 | G191: 10 | H191: 2016 | I191: 0 | J191: 0 | K191: 8
A192: 176 | B192: سجى محمود عبد العزيز على | C192: الثاني | D192: مستجدة | E192: مسلمة | F192: 9 | G192: 10 | H192: 2015 | I192: 22 | J192: 11 | K192: 8
A193: 177 | B193: سلمى أحمد يحيى سليمان | C193: الثاني | D193: مستجدة | E193: مسلمة | F193: 6 | G193: 11 | H193: 2015 | I193: 25 | J193: 10 | K193: 8
A194: 178 | B194: سما محمود اسماعيل عبد الحليم | C194: الثاني | D194: مستجدة | E194: مسلمة | F194: 12 | G194: 12 | H194: 2015 | I194: 19 | J194: 9 | K194: 8
A195: 179 | B195: عائشة محمد فتحى شعبان | C195: الثاني | D195: مستجدة | E195: مسلمة | F195: 27 | G195: 5 | H195: 2016 | I195: 4 | J195: 4 | K195: 8
A196: 180 | B196: عهود محمد عنتر فهمى | C196: الثاني | D196: مستجدة | E196: مسلمة | F196: 11 | G196: 1 | H196: 2016 | I196: 20 | J196: 8 | K196: 8
A197: 181 | B197: غادة محمد اسماعيل عمر | C197: الثاني | D197: مستجدة | E197: مسلمة | F197: 13 | G197: 10 | H197: 2015 | I197: 18 | J197: 11 | K197: 8
A198: 182 | B198: فاطمة محمد حسنى كمال | C198: الثاني | D198: مستجدة | E198: مسلمة | F198: 14 | G198: 2 | H198: 2016 | I198: 17 | J198: 7 | K198: 8
A199: 183 | B199: كنزى عادل عزت خالد | C199: الثاني | D199: مستجدة | E199: مسلمة | F199: 7 | G199: 8 | H199: 2016 | I199: 24 | J199: 1 | K199: 8
A200: 184 | B200: مريم أحمد أبوبكر صديق | C200: الثاني | D200: مستجدة | E200: مسلمة | F200: 13 | G200: 8 | H200: 2016 | I200: 18 | J200: 1 | K200: 8
A201: 185 | B201: مريم أحمد محروس عبد الغنى | C201: الثاني | D201: مستجدة | E201: مسلمة | F201: 5 | G201: 12 | H201: 2015 | I201: 26 | J201: 9 | K201: 8
A202: 186 | B202: مريم عصام أنور مرسى | C202: الثاني | D202: مستجدة | E202: مسلمة | F202: 18 | G202: 11 | H202: 2015 | I202: 13 | J202: 10 | K202: 8
A203: 187 | B203: مكة أحمد جمال محمد | C203: الثاني | D203: مستجدة | E203: مسلمة | F203: 15 | G203: 3 | H203: 2016 | I203: 16 | J203: 6 | K203: 8
A204: 188 | B204: نجوان إبراهيم يحيى محمد | C204: الثاني | D204: مستجدة | E204: مسلمة | F204: 9 | G204: 5 | H204: 2016 | I204: 22 | J204: 4 | K204: 8
... 205 more rows

Sheet شيت درجات الصفوف الأولى
B1: مديرية التربية والتعليم بالمنيا
B2: إدارة بني مزار التعليمية | P2: =75*80/100 -> 60 | R2: =65*80/100 -> 52 | S2: =50*80/100 -> 40
B3: مدرسة أحمد أنور عبد العزيز
A4: كشف رصـــــد درجـــات الصفــــوف الأولى للعام الدراسي 2023 / 2024 م
A6: رقم الجلوس | B6: اســـــــم التلميـــــذ | C6: الصف | D6: المــــــــــــــــــــــواد
D7: لغة عربية | F7: رياضيات | H7: لغة انجليزية | J7: متعدد | L7: رياضي | M7: قيــــم | N7: توكاتسو | O7: النتيجــــــة | P7: تربية دينية
D8: درجة | E8: تقييم | F8: درجة | G8: تقييم | H8: درجة | I8: تقييم | J8: درجة | K8: تقييم | L8: تقييم | M8: تقدير | N8: تقدير | P8: درجة | Q8: تقييم
A9: ='ن ع 1-2-3'!A17 -> 1 | B9: ='ن ع 1-2-3'!B17 -> أروى أحمد عبدالحميد محمد | C9: ='ن ع 1-2-3'!C17 -> الأول | D9: ='ن ع 1-2-3'!P17 -> 0 | E9: ='ن ع 1-2-3'!R17 -> 0 | F9: ='ن ع 1-2-3'!W17 -> 0 | G9: ='ن ع 1-2-3'!Y17 -> 0 | H9: ='ن ع 1-2-3'!AD17 -> 0 | I9: ='ن ع 1-2-3'!AF17 -> 0 | J9: ='ن ع 1-2-3'!AT17 -> 0 | K9: ='ن ع 1-2-3'!AV17 -> 0 | L9: ='ن ع 1-2-3'!AO17 -> 0 | M9: ='ن ع 1-2-3'!BE17 -> 0 | N9: ='ن ع 1-2-3'!BN17 -> 0 | O9: ='ن ع 1-2-3'!BO17 -> 0 | P9: ='ن ع 1-2-3'!BT17 -> 0 | Q9: ='ن ع 1-2-3'!BV17 -> 0
A10: ='ن ع 1-2-3'!A18 -> 2 | B10: ='ن ع 1-2-3'!B18 -> أسيل فالح خليفة حسن | C10: ='ن ع 1-2-3'!C18 -> الأول | D10: ='ن ع 1-2-3'!P18 -> 0 | E10: ='ن ع 1-2-3'!R18 -> 0 | F10: ='ن ع 1-2-3'!W18 -> 0 | G10: ='ن ع 1-2-3'!Y18 -> 0 | H10: ='ن ع 1-2-3'!AD18 -> 0 | I10: ='ن ع 1-2-3'!AF18 -> 0 | J10: ='ن ع 1-2-3'!AT18 -> 0 | K10: ='ن ع 1-2-3'!AV18 -> 0 | L10: ='ن ع 1-2-3'!AO18 -> 0 | M10: ='ن ع 1-2-3'!BE18 -> 0 | N10: ='ن ع 1-2-3'!BN18 -> 0 | O10: ='ن ع 1-2-3'!BO18 -> 0 | P10: ='ن ع 1-2-3'!BT18 -> 0 | Q10: ='ن ع 1-2-3'!BV18 -> 0
A11: ='ن ع 1-2-3'!A19 -> 3 | B11: ='ن ع 1-2-3'!B19 -> أسيل محمد أحمد عبدالعزيز | C11: ='ن ع 1-2-3'!C19 -> الأول | D11: ='ن ع 1-2-3'!P19 -> 0 | E11: ='ن ع 1-2-3'!R19 -> 0 | F11: ='ن ع 1-2-3'!W19 -> 0 | G11: ='ن ع 1-2-3'!Y19 -> 0 | H11: ='ن ع 1-2-3'!AD19 -> 0 | I11: ='ن ع 1-2-3'!AF19 -> 0 | J11: ='ن ع 1-2-3'!AT19 -> 0 | K11: ='ن ع 1-2-3'!AV19 -> 0 | L11: ='ن ع 1-2-3'!AO19 -> 0 | M11: ='ن ع 1-2-3'!BE19 -> 0 | N11: ='ن ع 1-2-3'!BN19 -> 0 | O11: ='ن ع 1-2-3'!BO19 -> 0 | P11: ='ن ع 1-2-3'!BT19 -> 0 | Q11: ='ن ع 1-2-3'!BV19 -> 0
A12: ='ن ع 1-2-3'!A20 -> 4 | B12: ='ن ع 1-2-3'!B20 -> أسينات علي حسن أبو زيد | C12: ='ن ع 1-2-3'!C20 -> الأول | D12: ='ن ع 1-2-3'!P20 -> 0 | E12: ='ن ع 1-2-3'!R20 -> 0 | F12: ='ن ع 1-2-3'!W20 -> 0 | G12: ='ن ع 1-2-3'!Y20 -> 0 | H12: ='ن ع 1-2-3'!AD20 -> 0 | I12: ='ن ع 1-2-3'!AF20 -> 0 | J12: ='ن ع 1-2-3'!AT20 -> 0 | K12: ='ن ع 1-2-3'!AV20 -> 0 | L12: ='ن ع 1-2-3'!AO20 -> 0 | M12: ='ن ع 1-2-3'!BE20 -> 0 | N12: ='ن ع 1-2-3'!BN20 -> 0 | O12: ='ن ع 1-2-3'!BO20 -> 0 | P12: ='ن ع 1-2-3'!BT20 -> 0 | Q12: ='ن ع 1-2-3'!BV20 -> 0
A13: ='ن ع 1-2-3'!A21 -> 5 | B13: ='ن ع 1-2-3'!B21 -> أشرقت علي أبوزيد حافظ | C13: ='ن ع 1-2-3'!C21 -> الأول | D13: ='ن ع 1-2-3'!P21 -> 0 | E13: ='ن ع 1-2-3'!R21 -> 0 | F13: ='ن ع 1-2-3'!W21 -> 0 | G13: ='ن ع 1-2-3'!Y21 -> 0 | H13: ='ن ع 1-2-3'!AD21 -> 0 | I13: ='ن ع 1-2-3'!AF21 -> 0 | J13: ='ن ع 1-2-3'!AT21 -> 0 | K13: ='ن ع 1-2-3'!AV21 -> 0 | L13: ='ن ع 1-2-3'!AO21 -> 0 | M13: ='ن ع 1-2-3'!BE21 -> 0 | N13: ='ن ع 1-2-3'!BN21 -> 0 | O13: ='ن ع 1-2-3'!BO21 -> 0 | P13: ='ن ع 1-2-3'!BT21 -> 0 | Q13: ='ن ع 1-2-3'!BV21 -> 0
A14: ='ن ع 1-2-3'!A22 -> 6 | B14: ='ن ع 1-2-3'!B22 -> أميرة طه عبدالرحمن محمد | C14: ='ن ع 1-2-3'!C22 -> الأول | D14: ='ن ع 1-2-3'!P22 -> 0 | E14: ='ن ع 1-2-3'!R22 -> 0 | F14: ='ن ع 1-2-3'!W22 -> 0 | G14: ='ن ع 1-2-3'!Y22 -> 0 | H14: ='ن ع 1-2-3'!AD22 -> 0 | I14: ='ن ع 1-2-3'!AF22 -> 0 | J14: ='ن ع 1-2-3'!AT22 -> 0 | K14: ='ن ع 1-2-3'!AV22 -> 0 | L14: ='ن ع 1-2-3'!AO22 -> 0 | M14: ='ن ع 1-2-3'!BE22 -> 0 | N14: ='ن ع 1-2-3'!BN22 -> 0 | O14: ='ن ع 1-2-3'!BO22 -> 0 | P14: ='ن ع 1-2-3'!BT22 -> 0 | Q14: ='ن ع 1-2-3'!BV22 -> 0
A15: ='ن ع 1-2-3'!A23 -> 7 | B15: ='ن ع 1-2-3'!B23 -> آيات عمرو محمد طه | C15: ='ن ع 1-2-3'!C23 -> الأول | D15: ='ن ع 1-2-3'!P23 -> 0 | E15: ='ن ع 1-2-3'!R23 -> 0 | F15: ='ن ع 1-2-3'!W23 -> 0 | G15: ='ن ع 1-2-3'!Y23 -> 0 | H15: ='ن ع 1-2-3'!AD23 -> 0 | I15: ='ن ع 1-2-3'!AF23 -> 0 | J15: ='ن ع 1-2-3'!AT23 -> 0 | K15: ='ن ع 1-2-3'!AV23 -> 0 | L15: ='ن ع 1-2-3'!AO23 -> 0 | M15: ='ن ع 1-2-3'!BE23 -> 0 | N15: ='ن ع 1-2-3'!BN23 -> 0 | O15: ='ن ع 1-2-3'!BO23 -> 0 | P15: ='ن ع 1-2-3'!BT23 -> 0 | Q15: ='ن ع 1-2-3'!BV23 -> 0
A16: ='ن ع 1-2-3'!A24 -> 8 | B16: ='ن ع 1-2-3'!B24 -> بسملة محمد خليفة يحي | C16: ='ن ع 1-2-3'!C24 -> الأول | D16: ='ن ع 1-2-3'!P24 -> 0 | E16: ='ن ع 1-2-3'!R24 -> 0 | F16: ='ن ع 1-2-3'!W24 -> 0 | G16: ='ن ع 1-2-3'!Y24 -> 0 | H16: ='ن ع 1-2-3'!AD24 -> 0 | I16: ='ن ع 1-2-3'!AF24 -> 0 | J16: ='ن ع 1-2-3'!AT24 -> 0 | K16: ='ن ع 1-2-3'!AV24 -> 0 | L16: ='ن ع 1-2-3'!AO24 -> 0 | M16: ='ن ع 1-2-3'!BE24 -> 0 | N16: ='ن ع 1-2-3'!BN24 -> 0 | O16: ='ن ع 1-2-3'!BO24 -> 0 | P16: ='ن ع 1-2-3'!BT24 -> 0 | Q16: ='ن ع 1-2-3'!BV24 -> 0
A17: ='ن ع 1-2-3'!A25 -> 9 | B17: ='ن ع 1-2-3'!B25 -> بسنت عامر محمود راضي | C17: ='ن ع 1-2-3'!C25 -> الأول | D17: ='ن ع 1-2-3'!P25 -> 0 | E17: ='ن ع 1-2-3'!R25 -> 0 | F17: ='ن ع 1-2-3'!W25 -> 0 | G17: ='ن ع 1-2-3'!Y25 -> 0 | H17: ='ن ع 1-2-3'!AD25 -> 0 | I17: ='ن ع 1-2-3'!AF25 -> 0 | J17: ='ن ع 1-2-3'!AT25 -> 0 | K17: ='ن ع 1-2-3'!AV25 -> 0 | L17: ='ن ع 1-2-3'!AO25 -> 0 | M17: ='ن ع 1-2-3'!BE25 -> 0 | N17: ='ن ع 1-2-3'!BN25 -> 0 | O17: ='ن ع 1-2-3'!BO25 -> 0 | P17: ='ن ع 1-2-3'!BT25 -> 0 | Q17: ='ن ع 1-2-3'!BV25 -> 0
A18: ='ن ع 1-2-3'!A26 -> 10 | B18: ='ن ع 1-2-3'!B26 -> ترتيل عويس عبدالقادر إبراهيم | C18: ='ن ع 1-2-3'!C26 -> الأول | D18: ='ن ع 1-2-3'!P26 -> 0 | E18: ='ن ع 1-2-3'!R26 -> 0 | F18: ='ن ع 1-2-3'!W26 -> 0 | G18: ='ن ع 1-2-3'!Y26 -> 0 | H18: ='ن ع 1-2-3'!AD26 -> 0 | I18: ='ن ع 1-2-3'!AF26 -> 0 | J18: ='ن ع 1-2-3'!AT26 -> 0 | K18: ='ن ع 1-2-3'!AV26 -> 0 | L18: ='ن ع 1-2-3'!AO26 -> 0 | M18: ='ن ع 1-2-3'!BE26 -> 0 | N18: ='ن ع 1-2-3'!BN26 -> 0 | O18: ='ن ع 1-2-3'!BO26 -> 0 | P18: ='ن ع 1-2-3'!BT26 -> 0 | Q18: ='ن ع 1-2-3'!BV26 -> 0
A19: ='ن ع 1-2-3'!A27 -> 11 | B19: ='ن ع 1-2-3'!B27 -> تسنيم تامر فتحي عبدالعزيز | C19: ='ن ع 1-2-3'!C27 -> الأول | D19: ='ن ع 1-2-3'!P27 -> 0 | E19: ='ن ع 1-2-3'!R27 -> 0 | F19: ='ن ع 1-2-3'!W27 -> 0 | G19: ='ن ع 1-2-3'!Y27 -> 0 | H19: ='ن ع 1-2-3'!AD27 -> 0 | I19: ='ن ع 1-2-3'!AF27 -> 0 | J19: ='ن ع 1-2-3'!AT27 -> 0 | K19: ='ن ع 1-2-3'!AV27 -> 0 | L19: ='ن ع 1-2-3'!AO27 -> 0 | M19: ='ن ع 1-2-3'!BE27 -> 0 | N19: ='ن ع 1-2-3'!BN27 -> 0 | O19: ='ن ع 1-2-3'!BO27 -> 0 | P19: ='ن ع 1-2-3'!BT27 -> 0 | Q19: ='ن ع 1-2-3'!BV27 -> 0
A20: ='ن ع 1-2-3'!A28 -> 12 | B20: ='ن ع 1-2-3'!B28 -> تمارا محمد عبدالقادر محمد | C20: ='ن ع 1-2-3'!C28 -> الأول | D20: ='ن ع 1-2-3'!P28 -> 0 | E20: ='ن ع 1-2-3'!R28 -> 0 | F20: ='ن ع 1-2-3'!W28 -> 0 | G20: ='ن ع 1-2-3'!Y28 -> 0 | H20: ='ن ع 1-2-3'!AD28 -> 0 | I20: ='ن ع 1-2-3'!AF28 -> 0 | J20: ='ن ع 1-2-3'!AT28 -> 0 | K20: ='ن ع 1-2-3'!AV28 -> 0 | L20: ='ن ع 1-2-3'!AO28 -> 0 | M20: ='ن ع 1-2-3'!BE28 -> 0 | N20: ='ن ع 1-2-3'!BN28 -> 0 | O20: ='ن ع 1-2-3'!BO28 -> 0 | P20: ='ن ع 1-2-3'!BT28 -> 0 | Q20: ='ن ع 1-2-3'!BV28 -> 0
A21: ='ن ع 1-2-3'!A29 -> 13 | B21: ='ن ع 1-2-3'!B29 -> جنى جمعة سيد عبدالرازق | C21: ='ن ع 1-2-3'!C29 -> الأول | D21: ='ن ع 1-2-3'!P29 -> 0 | E21: ='ن ع 1-2-3'!R29 -> 0 | F21: ='ن ع 1-2-3'!W29 -> 0 | G21: ='ن ع 1-2-3'!Y29 -> 0 | H21: ='ن ع 1-2-3'!AD29 -> 0 | I21: ='ن ع 1-2-3'!AF29 -> 0 | J21: ='ن ع 1-2-3'!AT29 -> 0 | K21: ='ن ع 1-2-3'!AV29 -> 0 | L21: ='ن ع 1-2-3'!AO29 -> 0 | M21: ='ن ع 1-2-3'!BE29 -> 0 | N21: ='ن ع 1-2-3'!BN29 -> 0 | O21: ='ن ع 1-2-3'!BO29 -> 0 | P21: ='ن ع 1-2-3'!BT29 -> 0 | Q21: ='ن ع 1-2-3'!BV29 -> 0
A22: ='ن ع 1-2-3'!A30 -> 14 | B22: ='ن ع 1-2-3'!B30 -> جنى حسين السيد محمد | C22: ='ن ع 1-2-3'!C30 -> الأول | D22: ='ن ع 1-2-3'!P30 -> 0 | E22: ='ن ع 1-2-3'!R30 -> 0 | F22: ='ن ع 1-2-3'!W30 -> 0 | G22: ='ن ع 1-2-3'!Y30 -> 0 | H22: ='ن ع 1-2-3'!AD30 -> 0 | I22: ='ن ع 1-2-3'!AF30 -> 0 | J22: ='ن ع 1-2-3'!AT30 -> 0 | K22: ='ن ع 1-2-3'!AV30 -> 0 | L22: ='ن ع 1-2-3'!AO30 -> 0 | M22: ='ن ع 1-2-3'!BE30 -> 0 | N22: ='ن ع 1-2-3'!BN30 -> 0 | O22: ='ن ع 1-2-3'!BO30 -> 0 | P22: ='ن ع 1-2-3'!BT30 -> 0 | Q22: ='ن ع 1-2-3'!BV30 -> 0
A23: ='ن ع 1-2-3'!A31 -> 15 | B23: ='ن ع 1-2-3'!B31 -> جنى صالح محمد محمد | C23: ='ن ع 1-2-3'!C31 -> الأول | D23: ='ن ع 1-2-3'!P31 -> 0 | E23: ='ن ع 1-2-3'!R31 -> 0 | F23: ='ن ع 1-2-3'!W31 -> 0 | G23: ='ن ع 1-2-3'!Y31 -> 0 | H23: ='ن ع 1-2-3'!AD31 -> 0 | I23: ='ن ع 1-2-3'!AF31 -> 0 | J23: ='ن ع 1-2-3'!AT31 -> 0 | K23: ='ن ع 1-2-3'!AV31 -> 0 | L23: ='ن ع 1-2-3'!AO31 -> 0 | M23: ='ن ع 1-2-3'!BE31 -> 0 | N23: ='ن ع 1-2-3'!BN31 -> 0 | O23: ='ن ع 1-2-3'!BO31 -> 0 | P23: ='ن ع 1-2-3'!BT31 -> 0 | Q23: ='ن ع 1-2-3'!BV31 -> 0
A24: ='ن ع 1-2-3'!A32 -> 16 | B24: ='ن ع 1-2-3'!B32 -> جنى عبدالرحمن صديق محمد | C24: ='ن ع 1-2-3'!C32 -> الأول | D24: ='ن ع 1-2-3'!P32 -> 0 | E24: ='ن ع 1-2-3'!R32 -> 0 | F24: ='ن ع 1-2-3'!W32 -> 0 | G24: ='ن ع 1-2-3'!Y32 -> 0 | H24: ='ن ع 1-2-3'!AD32 -> 0 | I24: ='ن ع 1-2-3'!AF32 -> 0 | J24: ='ن ع 1-2-3'!AT32 -> 0 | K24: ='ن ع 1-2-3'!AV32 -> 0 | L24: ='ن ع 1-2-3'!AO32 -> 0 | M24: ='ن ع 1-2-3'!BE32 -> 0 | N24: ='ن ع 1-2-3'!BN32 -> 0 | O24: ='ن ع 1-2-3'!BO32 -> 0 | P24: ='ن ع 1-2-3'!BT32 -> 0 | Q24: ='ن ع 1-2-3'!BV32 -> 0
A25: ='ن ع 1-2-3'!A33 -> 17 | B25: ='ن ع 1-2-3'!B33 -> جنى محمد قياتي عبدالفتاح | C25: ='ن ع 1-2-3'!C33 -> الأول | D25: ='ن ع 1-2-3'!P33 -> 0 | E25: ='ن ع 1-2-3'!R33 -> 0 | F25: ='ن ع 1-2-3'!W33 -> 0 | G25: ='ن ع 1-2-3'!Y33 -> 0 | H25: ='ن ع 1-2-3'!AD33 -> 0 | I25: ='ن ع 1-2-3'!AF33 -> 0 | J25: ='ن ع 1-2-3'!AT33 -> 0 | K25: ='ن ع 1-2-3'!AV33 -> 0 | L25: ='ن ع 1-2-3'!AO33 -> 0 | M25: ='ن ع 1-2-3'!BE33 -> 0 | N25: ='ن ع 1-2-3'!BN33 -> 0 | O25: ='ن ع 1-2-3'!BO33 -> 0 | P25: ='ن ع 1-2-3'!BT33 -> 0 | Q25: ='ن ع 1-2-3'!BV33 -> 0
A26: ='ن ع 1-2-3'!A34 -> 18 | B26: ='ن ع 1-2-3'!B34 -> جوري محمود محمد عبدالعظيم | C26: ='ن ع 1-2-3'!C34 -> الأول | D26: ='ن ع 1-2-3'!P34 -> 0 | E26: ='ن ع 1-2-3'!R34 -> 0 | F26: ='ن ع 1-2-3'!W34 -> 0 | G26: ='ن ع 1-2-3'!Y34 -> 0 | H26: ='ن ع 1-2-3'!AD34 -> 0 | I26: ='ن ع 1-2-3'!AF34 -> 0 | J26: ='ن ع 1-2-3'!AT34 -> 0 | K26: ='ن ع 1-2-3'!AV34 -> 0 | L26: ='ن ع 1-2-3'!AO34 -> 0 | M26: ='ن ع 1-2-3'!BE34 -> 0 | N26: ='ن ع 1-2-3'!BN34 -> 0 | O26: ='ن ع 1-2-3'!BO34 -> 0 | P26: ='ن ع 1-2-3'!BT34 -> 0 | Q26: ='ن ع 1-2-3'!BV34 -> 0
A27: ='ن ع 1-2-3'!A35 -> 19 | B27: ='ن ع 1-2-3'!B35 -> جويرية شعبان جابر شعبان | C27: ='ن ع 1-2-3'!C35 -> الأول | D27: ='ن ع 1-2-3'!P35 -> 0 | E27: ='ن ع 1-2-3'!R35 -> 0 | F27: ='ن ع 1-2-3'!W35 -> 0 | G27: ='ن ع 1-2-3'!Y35 -> 0 | H27: ='ن ع 1-2-3'!AD35 -> 0 | I27: ='ن ع 1-2-3'!AF35 -> 0 | J27: ='ن ع 1-2-3'!AT35 -> 0 | K27: ='ن ع 1-2-3'!AV35 -> 0 | L27: ='ن ع 1-2-3'!AO35 -> 0 | M27: ='ن ع 1-2-3'!BE35 -> 0 | N27: ='ن ع 1-2-3'!BN35 -> 0 | O27: ='ن ع 1-2-3'!BO35 -> 0 | P27: ='ن ع 1-2-3'!BT35 -> 0 | Q27: ='ن ع 1-2-3'!BV35 -> 0
A28: ='ن ع 1-2-3'!A36 -> 20 | B28: ='ن ع 1-2-3'!B36 -> حبيبة أحمد بردهوني خلف | C28: ='ن ع 1-2-3'!C36 -> الأول | D28: ='ن ع 1-2-3'!P36 -> 0 | E28: ='ن ع 1-2-3'!R36 -> 0 | F28: ='ن ع 1-2-3'!W36 -> 0 | G28: ='ن ع 1-2-3'!Y36 -> 0 | H28: ='ن ع 1-2-3'!AD36 -> 0 | I28: ='ن ع 1-2-3'!AF36 -> 0 | J28: ='ن ع 1-2-3'!AT36 -> 0 | K28: ='ن ع 1-2-3'!AV36 -> 0 | L28: ='ن ع 1-2-3'!AO36 -> 0 | M28: ='ن ع 1-2-3'!BE36 -> 0 | N28: ='ن ع 1-2-3'!BN36 -> 0 | O28: ='ن ع 1-2-3'!BO36 -> 0 | P28: ='ن ع 1-2-3'!BT36 -> 0 | Q28: ='ن ع 1-2-3'!BV36 -> 0
A29: ='ن ع 1-2-3'!A37 -> 21 | B29: ='ن ع 1-2-3'!B37 -> حبيبة فتحي مرتضى عبدالغفار | C29: ='ن ع 1-2-3'!C37 -> الأول | D29: ='ن ع 1-2-3'!P37 -> 0 | E29: ='ن ع 1-2-3'!R37 -> 0 | F29: ='ن ع 1-2-3'!W37 -> 0 | G29: ='ن ع 1-2-3'!Y37 -> 0 | H29: ='ن ع 1-2-3'!AD37 -> 0 | I29: ='ن ع 1-2-3'!AF37 -> 0 | J29: ='ن ع 1-2-3'!AT37 -> 0 | K29: ='ن ع 1-2-3'!AV37 -> 0 | L29: ='ن ع 1-2-3'!AO37 -> 0 | M29: ='ن ع 1-2-3'!BE37 -> 0 | N29: ='ن ع 1-2-3'!BN37 -> 0 | O29: ='ن ع 1-2-3'!BO37 -> 0 | P29: ='ن ع 1-2-3'!BT37 -> 0 | Q29: ='ن ع 1-2-3'!BV37 -> 0
A30: ='ن ع 1-2-3'!A38 -> 22 | B30: ='ن ع 1-2-3'!B38 -> حفصة أحمد راضي الجنيدي | C30: ='ن ع 1-2-3'!C38 -> الأول | D30: ='ن ع 1-2-3'!P38 -> 0 | E30: ='ن ع 1-2-3'!R38 -> 0 | F30: ='ن ع 1-2-3'!W38 -> 0 | G30: ='ن ع 1-2-3'!Y38 -> 0 | H30: ='ن ع 1-2-3'!AD38 -> 0 | I30: ='ن ع 1-2-3'!AF38 -> 0 | J30: ='ن ع 1-2-3'!AT38 -> 0 | K30: ='ن ع 1-2-3'!AV38 -> 0 | L30: ='ن ع 1-2-3'!AO38 -> 0 | M30: ='ن ع 1-2-3'!BE38 -> 0 | N30: ='ن ع 1-2-3'!BN38 -> 0 | O30: ='ن ع 1-2-3'!BO38 -> 0 | P30: ='ن ع 1-2-3'!BT38 -> 0 | Q30: ='ن ع 1-2-3'!BV38 -> 0
A31: ='ن ع 1-2-3'!A39 -> 23 | B31: ='ن ع 1-2-3'!B39 -> حنين رمضان عبدالله عبدالسميع | C31: ='ن ع 1-2-3'!C39 -> الأول | D31: ='ن ع 1-2-3'!P39 -> 0 | E31: ='ن ع 1-2-3'!R39 -> 0 | F31: ='ن ع 1-2-3'!W39 -> 0 | G31: ='ن ع 1-2-3'!Y39 -> 0 | H31: ='ن ع 1-2-3'!AD39 -> 0 | I31: ='ن ع 1-2-3'!AF39 -> 0 | J31: ='ن ع 1-2-3'!AT39 -> 0 | K31: ='ن ع 1-2-3'!AV39 -> 0 | L31: ='ن ع 1-2-3'!AO39 -> 0 | M31: ='ن ع 1-2-3'!BE39 -> 0 | N31: ='ن ع 1-2-3'!BN39 -> 0 | O31: ='ن ع 1-2-3'!BO39 -> 0 | P31: ='ن ع 1-2-3'!BT39 -> 0 | Q31: ='ن ع 1-2-3'!BV39 -> 0
A32: ='ن ع 1-2-3'!A40 -> 24 | B32: ='ن ع 1-2-3'!B40 -> حنين محمود أحمد حسن | C32: ='ن ع 1-2-3'!C40 -> الأول | D32: ='ن ع 1-2-3'!P40 -> 0 | E32: ='ن ع 1-2-3'!R40 -> 0 | F32: ='ن ع 1-2-3'!W40 -> 0 | G32: ='ن ع 1-2-3'!Y40 -> 0 | H32: ='ن ع 1-2-3'!AD40 -> 0 | I32: ='ن ع 1-2-3'!AF40 -> 0 | J32: ='ن ع 1-2-3'!AT40 -> 0 | K32: ='ن ع 1-2-3'!AV40 -> 0 | L32: ='ن ع 1-2-3'!AO40 -> 0 | M32: ='ن ع 1-2-3'!BE40 -> 0 | N32: ='ن ع 1-2-3'!BN40 -> 0 | O32: ='ن ع 1-2-3'!BO40 -> 0 | P32: ='ن ع 1-2-3'!BT40 -> 0 | Q32: ='ن ع 1-2-3'!BV40 -> 0
A33: ='ن ع 1-2-3'!A41 -> 25 | B33: ='ن ع 1-2-3'!B41 -> حور الحسن عبدالله عبدالعزيز | C33: ='ن ع 1-2-3'!C41 -> الأول | D33: ='ن ع 1-2-3'!P41 -> 0 | E33: ='ن ع 1-2-3'!R41 -> 0 | F33: ='ن ع 1-2-3'!W41 -> 0 | G33: ='ن ع 1-2-3'!Y41 -> 0 | H33: ='ن ع 1-2-3'!AD41 -> 0 | I33: ='ن ع 1-2-3'!AF41 -> 0 | J33: ='ن ع 1-2-3'!AT41 -> 0 | K33: ='ن ع 1-2-3'!AV41 -> 0 | L33: ='ن ع 1-2-3'!AO41 -> 0 | M33: ='ن ع 1-2-3'!BE41 -> 0 | N33: ='ن ع 1-2-3'!BN41 -> 0 | O33: ='ن ع 1-2-3'!BO41 -> 0 | P33: ='ن ع 1-2-3'!BT41 -> 0 | Q33: ='ن ع 1-2-3'!BV41 -> 0
A34: ='ن ع 1-2-3'!A42 -> 26 | B34: ='ن ع 1-2-3'!B42 -> خديجة أحمد سيد عبدالرازق | C34: ='ن ع 1-2-3'!C42 -> الأول | D34: ='ن ع 1-2-3'!P42 -> 0 | E34: ='ن ع 1-2-3'!R42 -> 0 | F34: ='ن ع 1-2-3'!W42 -> 0 | G34: ='ن ع 1-2-3'!Y42 -> 0 | H34: ='ن ع 1-2-3'!AD42 -> 0 | I34: ='ن ع 1-2-3'!AF42 -> 0 | J34: ='ن ع 1-2-3'!AT42 -> 0 | K34: ='ن ع 1-2-3'!AV42 -> 0 | L34: ='ن ع 1-2-3'!AO42 -> 0 | M34: ='ن ع 1-2-3'!BE42 -> 0 | N34: ='ن ع 1-2-3'!BN42 -> 0 | O34: ='ن ع 1-2-3'!BO42 -> 0 | P34: ='ن ع 1-2-3'!BT42 -> 0 | Q34: ='ن ع 1-2-3'!BV42 -> 0
A35: ='ن ع 1-2-3'!A43 -> 27 | B35: ='ن ع 1-2-3'!B43 -> خديجة أحمد عبدالباقي عبدالفتاح | C35: ='ن ع 1-2-3'!C43 -> الأول | D35: ='ن ع 1-2-3'!P43 -> 0 | E35: ='ن ع 1-2-3'!R43 -> 0 | F35: ='ن ع 1-2-3'!W43 -> 0 | G35: ='ن ع 1-2-3'!Y43 -> 0 | H35: ='ن ع 1-2-3'!AD43 -> 0 | I35: ='ن ع 1-2-3'!AF43 -> 0 | J35: ='ن ع 1-2-3'!AT43 -> 0 | K35: ='ن ع 1-2-3'!AV43 -> 0 | L35: ='ن ع 1-2-3'!AO43 -> 0 | M35: ='ن ع 1-2-3'!BE43 -> 0 | N35: ='ن ع 1-2-3'!BN43 -> 0 | O35: ='ن ع 1-2-3'!BO43 -> 0 | P35: ='ن ع 1-2-3'!BT43 -> 0 | Q35: ='ن ع 1-2-3'!BV43 -> 0
A36: ='ن ع 1-2-3'!A44 -> 28 | B36: ='ن ع 1-2-3'!B44 -> خديجة أحمد كريم أحمد | C36: ='ن ع 1-2-3'!C44 -> الأول | D36: ='ن ع 1-2-3'!P44 -> 0 | E36: ='ن ع 1-2-3'!R44 -> 0 | F36: ='ن ع 1-2-3'!W44 -> 0 | G36: ='ن ع 1-2-3'!Y44 -> 0 | H36: ='ن ع 1-2-3'!AD44 -> 0 | I36: ='ن ع 1-2-3'!AF44 -> 0 | J36: ='ن ع 1-2-3'!AT44 -> 0 | K36: ='ن ع 1-2-3'!AV44 -> 0 | L36: ='ن ع 1-2-3'!AO44 -> 0 | M36: ='ن ع 1-2-3'!BE44 -> 0 | N36: ='ن ع 1-2-3'!BN44 -> 0 | O36: ='ن ع 1-2-3'!BO44 -> 0 | P36: ='ن ع 1-2-3'!BT44 -> 0 | Q36: ='ن ع 1-2-3'!BV44 -> 0
A37: ='ن ع 1-2-3'!A45 -> 29 | B37: ='ن ع 1-2-3'!B45 -> خديجة محمد عبدالهادي بهجات | C37: ='ن ع 1-2-3'!C45 -> الأول | D37: ='ن ع 1-2-3'!P45 -> 0 | E37: ='ن ع 1-2-3'!R45 -> 0 | F37: ='ن ع 1-2-3'!W45 -> 0 | G37: ='ن ع 1-2-3'!Y45 -> 0 | H37: ='ن ع 1-2-3'!AD45 -> 0 | I37: ='ن ع 1-2-3'!AF45 -> 0 | J37: ='ن ع 1-2-3'!AT45 -> 0 | K37: ='ن ع 1-2-3'!AV45 -> 0 | L37: ='ن ع 1-2-3'!AO45 -> 0 | M37: ='ن ع 1-2-3'!BE45 -> 0 | N37: ='ن ع 1-2-3'!BN45 -> 0 | O37: ='ن ع 1-2-3'!BO45 -> 0 | P37: ='ن ع 1-2-3'!BT45 -> 0 | Q37: ='ن ع 1-2-3'!BV45 -> 0
A38: ='ن ع 1-2-3'!A46 -> 30 | B38: ='ن ع 1-2-3'!B46 -> خديجة محمد محمد رفعت | C38: ='ن ع 1-2-3'!C46 -> الأول | D38: ='ن ع 1-2-3'!P46 -> 0 | E38: ='ن ع 1-2-3'!R46 -> 0 | F38: ='ن ع 1-2-3'!W46 -> 0 | G38: ='ن ع 1-2-3'!Y46 -> 0 | H38: ='ن ع 1-2-3'!AD46 -> 0 | I38: ='ن ع 1-2-3'!AF46 -> 0 | J38: ='ن ع 1-2-3'!AT46 -> 0 | K38: ='ن ع 1-2-3'!AV46 -> 0 | L38: ='ن ع 1-2-3'!AO46 -> 0 | M38: ='ن ع 1-2-3'!BE46 -> 0 | N38: ='ن ع 1-2-3'!BN46 -> 0 | O38: ='ن ع 1-2-3'!BO46 -> 0 | P38: ='ن ع 1-2-3'!BT46 -> 0 | Q38: ='ن ع 1-2-3'!BV46 -> 0
A39: ='ن ع 1-2-3'!A47 -> 31 | B39: ='ن ع 1-2-3'!B47 -> خلود عبدالقادر محمد محمد | C39: ='ن ع 1-2-3'!C47 -> الأول | D39: ='ن ع 1-2-3'!P47 -> 0 | E39: ='ن ع 1-2-3'!R47 -> 0 | F39: ='ن ع 1-2-3'!W47 -> 0 | G39: ='ن ع 1-2-3'!Y47 -> 0 | H39: ='ن ع 1-2-3'!AD47 -> 0 | I39: ='ن ع 1-2-3'!AF47 -> 0 | J39: ='ن ع 1-2-3'!AT47 -> 0 | K39: ='ن ع 1-2-3'!AV47 -> 0 | L39: ='ن ع 1-2-3'!AO47 -> 0 | M39: ='ن ع 1-2-3'!BE47 -> 0 | N39: ='ن ع 1-2-3'!BN47 -> 0 | O39: ='ن ع 1-2-3'!BO47 -> 0 | P39: ='ن ع 1-2-3'!BT47 -> 0 | Q39: ='ن ع 1-2-3'!BV47 -> 0
A40: ='ن ع 1-2-3'!A48 -> 32 | B40: ='ن ع 1-2-3'!B48 -> دعاء أسامة محمد صادق | C40: ='ن ع 1-2-3'!C48 -> الأول | D40: ='ن ع 1-2-3'!P48 -> 0 | E40: ='ن ع 1-2-3'!R48 -> 0 | F40: ='ن ع 1-2-3'!W48 -> 0 | G40: ='ن ع 1-2-3'!Y48 -> 0 | H40: ='ن ع 1-2-3'!AD48 -> 0 | I40: ='ن ع 1-2-3'!AF48 -> 0 | J40: ='ن ع 1-2-3'!AT48 -> 0 | K40: ='ن ع 1-2-3'!AV48 -> 0 | L40: ='ن ع 1-2-3'!AO48 -> 0 | M40: ='ن ع 1-2-3'!BE48 -> 0 | N40: ='ن ع 1-2-3'!BN48 -> 0 | O40: ='ن ع 1-2-3'!BO48 -> 0 | P40: ='ن ع 1-2-3'!BT48 -> 0 | Q40: ='ن ع 1-2-3'!BV48 -> 0
A41: ='ن ع 1-2-3'!A49 -> 33 | B41: ='ن ع 1-2-3'!B49 -> دعاء عبدالعزيز يحي يوسف | C41: ='ن ع 1-2-3'!C49 -> الأول | D41: ='ن ع 1-2-3'!P49 -> 0 | E41: ='ن ع 1-2-3'!R49 -> 0 | F41: ='ن ع 1-2-3'!W49 -> 0 | G41: ='ن ع 1-2-3'!Y49 -> 0 | H41: ='ن ع 1-2-3'!AD49 -> 0 | I41: ='ن ع 1-2-3'!AF49 -> 0 | J41: ='ن ع 1-2-3'!AT49 -> 0 | K41: ='ن ع 1-2-3'!AV49 -> 0 | L41: ='ن ع 1-2-3'!AO49 -> 0 | M41: ='ن ع 1-2-3'!BE49 -> 0 | N41: ='ن ع 1-2-3'!BN49 -> 0 | O41: ='ن ع 1-2-3'!BO49 -> 0 | P41: ='ن ع 1-2-3'!BT49 -> 0 | Q41: ='ن ع 1-2-3'!BV49 -> 0
A42: ='ن ع 1-2-3'!A50 -> 34 | B42: ='ن ع 1-2-3'!B50 -> رجوان جنيدي فنجري عبدالواحد | C42: ='ن ع 1-2-3'!C50 -> الأول | D42: ='ن ع 1-2-3'!P50 -> 0 | E42: ='ن ع 1-2-3'!R50 -> 0 | F42: ='ن ع 1-2-3'!W50 -> 0 | G42: ='ن ع 1-2-3'!Y50 -> 0 | H42: ='ن ع 1-2-3'!AD50 -> 0 | I42: ='ن ع 1-2-3'!AF50 -> 0 | J42: ='ن ع 1-2-3'!AT50 -> 0 | K42: ='ن ع 1-2-3'!AV50 -> 0 | L42: ='ن ع 1-2-3'!AO50 -> 0 | M42: ='ن ع 1-2-3'!BE50 -> 0 | N42: ='ن ع 1-2-3'!BN50 -> 0 | O42: ='ن ع 1-2-3'!BO50 -> 0 | P42: ='ن ع 1-2-3'!BT50 -> 0 | Q42: ='ن ع 1-2-3'!BV50 -> 0
A43: ='ن ع 1-2-3'!A51 -> 35 | B43: ='ن ع 1-2-3'!B51 -> رنا عبدالرحمن أحمد عبدالحليم | C43: ='ن ع 1-2-3'!C51 -> الأول | D43: ='ن ع 1-2-3'!P51 -> 0 | E43: ='ن ع 1-2-3'!R51 -> 0 | F43: ='ن ع 1-2-3'!W51 -> 0 | G43: ='ن ع 1-2-3'!Y51 -> 0 | H43: ='ن ع 1-2-3'!AD51 -> 0 | I43: ='ن ع 1-2-3'!AF51 -> 0 | J43: ='ن ع 1-2-3'!AT51 -> 0 | K43: ='ن ع 1-2-3'!AV51 -> 0 | L43: ='ن ع 1-2-3'!AO51 -> 0 | M43: ='ن ع 1-2-3'!BE51 -> 0 | N43: ='ن ع 1-2-3'!BN51 -> 0 | O43: ='ن ع 1-2-3'!BO51 -> 0 | P43: ='ن ع 1-2-3'!BT51 -> 0 | Q43: ='ن ع 1-2-3'!BV51 -> 0
A44: ='ن ع 1-2-3'!A52 -> 36 | B44: ='ن ع 1-2-3'!B52 -> رنا عبدالعزيز أحمد محمود | C44: ='ن ع 1-2-3'!C52 -> الأول | D44: ='ن ع 1-2-3'!P52 -> 0 | E44: ='ن ع 1-2-3'!R52 -> 0 | F44: ='ن ع 1-2-3'!W52 -> 0 | G44: ='ن ع 1-2-3'!Y52 -> 0 | H44: ='ن ع 1-2-3'!AD52 -> 0 | I44: ='ن ع 1-2-3'!AF52 -> 0 | J44: ='ن ع 1-2-3'!AT52 -> 0 | K44: ='ن ع 1-2-3'!AV52 -> 0 | L44: ='ن ع 1-2-3'!AO52 -> 0 | M44: ='ن ع 1-2-3'!BE52 -> 0 | N44: ='ن ع 1-2-3'!BN52 -> 0 | O44: ='ن ع 1-2-3'!BO52 -> 0 | P44: ='ن ع 1-2-3'!BT52 -> 0 | Q44: ='ن ع 1-2-3'!BV52 -> 0
A45: ='ن ع 1-2-3'!A53 -> 37 | B45: ='ن ع 1-2-3'!B53 -> رودينة أحمد محمد عبدالعزيز | C45: ='ن ع 1-2-3'!C53 -> الأول | D45: ='ن ع 1-2-3'!P53 -> 0 | E45: ='ن ع 1-2-3'!R53 -> 0 | F45: ='ن ع 1-2-3'!W53 -> 0 | G45: ='ن ع 1-2-3'!Y53 -> 0 | H45: ='ن ع 1-2-3'!AD53 -> 0 | I45: ='ن ع 1-2-3'!AF53 -> 0 | J45: ='ن ع 1-2-3'!AT53 -> 0 | K45: ='ن ع 1-2-3'!AV53 -> 0 | L45: ='ن ع 1-2-3'!AO53 -> 0 | M45: ='ن ع 1-2-3'!BE53 -> 0 | N45: ='ن ع 1-2-3'!BN53 -> 0 | O45: ='ن ع 1-2-3'!BO53 -> 0 | P45: ='ن ع 1-2-3'!BT53 -> 0 | Q45: ='ن ع 1-2-3'!BV53 -> 0
A46: ='ن ع 1-2-3'!A54 -> 38 | B46: ='ن ع 1-2-3'!B54 -> روفان محمد شعبان شحاتة | C46: ='ن ع 1-2-3'!C54 -> الأول | D46: ='ن ع 1-2-3'!P54 -> 0 | E46: ='ن ع 1-2-3'!R54 -> 0 | F46: ='ن ع 1-2-3'!W54 -> 0 | G46: ='ن ع 1-2-3'!Y54 -> 0 | H46: ='ن ع 1-2-3'!AD54 -> 0 | I46: ='ن ع 1-2-3'!AF54 -> 0 | J46: ='ن ع 1-2-3'!AT54 -> 0 | K46: ='ن ع 1-2-3'!AV54 -> 0 | L46: ='ن ع 1-2-3'!AO54 -> 0 | M46: ='ن ع 1-2-3'!BE54 -> 0 | N46: ='ن ع 1-2-3'!BN54 -> 0 | O46: ='ن ع 1-2-3'!BO54 -> 0 | P46: ='ن ع 1-2-3'!BT54 -> 0 | Q46: ='ن ع 1-2-3'!BV54 -> 0
A47: ='ن ع 1-2-3'!A55 -> 39 | B47: ='ن ع 1-2-3'!B55 -> رؤى محمد شعبان علي | C47: ='ن ع 1-2-3'!C55 -> الأول | D47: ='ن ع 1-2-3'!P55 -> 0 | E47: ='ن ع 1-2-3'!R55 -> 0 | F47: ='ن ع 1-2-3'!W55 -> 0 | G47: ='ن ع 1-2-3'!Y55 -> 0 | H47: ='ن ع 1-2-3'!AD55 -> 0 | I47: ='ن ع 1-2-3'!AF55 -> 0 | J47: ='ن ع 1-2-3'!AT55 -> 0 | K47: ='ن ع 1-2-3'!AV55 -> 0 | L47: ='ن ع 1-2-3'!AO55 -> 0 | M47: ='ن ع 1-2-3'!BE55 -> 0 | N47: ='ن ع 1-2-3'!BN55 -> 0 | O47: ='ن ع 1-2-3'!BO55 -> 0 | P47: ='ن ع 1-2-3'!BT55 -> 0 | Q47: ='ن ع 1-2-3'!BV55 -> 0
A48: ='ن ع 1-2-3'!A56 -> 40 | B48: ='ن ع 1-2-3'!B56 -> ريتاج حمدي جمعة زكي | C48: ='ن ع 1-2-3'!C56 -> الأول | D48: ='ن ع 1-2-3'!P56 -> 0 | E48: ='ن ع 1-2-3'!R56 -> 0 | F48: ='ن ع 1-2-3'!W56 -> 0 | G48: ='ن ع 1-2-3'!Y56 -> 0 | H48: ='ن ع 1-2-3'!AD56 -> 0 | I48: ='ن ع 1-2-3'!AF56 -> 0 | J48: ='ن ع 1-2-3'!AT56 -> 0 | K48: ='ن ع 1-2-3'!AV56 -> 0 | L48: ='ن ع 1-2-3'!AO56 -> 0 | M48: ='ن ع 1-2-3'!BE56 -> 0 | N48: ='ن ع 1-2-3'!BN56 -> 0 | O48: ='ن ع 1-2-3'!BO56 -> 0 | P48: ='ن ع 1-2-3'!BT56 -> 0 | Q48: ='ن ع 1-2-3'!BV56 -> 0
A49: ='ن ع 1-2-3'!A57 -> 41 | B49: ='ن ع 1-2-3'!B57 -> ريتاج ربيع محمد حافظ | C49: ='ن ع 1-2-3'!C57 -> الأول | D49: ='ن ع 1-2-3'!P57 -> 0 | E49: ='ن ع 1-2-3'!R57 -> 0 | F49: ='ن ع 1-2-3'!W57 -> 0 | G49: ='ن ع 1-2-3'!Y57 -> 0 | H49: ='ن ع 1-2-3'!AD57 -> 0 | I49: ='ن ع 1-2-3'!AF57 -> 0 | J49: ='ن ع 1-2-3'!AT57 -> 0 | K49: ='ن ع 1-2-3'!AV57 -> 0 | L49: ='ن ع 1-2-3'!AO57 -> 0 | M49: ='ن ع 1-2-3'!BE57 -> 0 | N49: ='ن ع 1-2-3'!BN57 -> 0 | O49: ='ن ع 1-2-3'!BO57 -> 0 | P49: ='ن ع 1-2-3'!BT57 -> 0 | Q49: ='ن ع 1-2-3'!BV57 -> 0
A50: ='ن ع 1-2-3'!A58 -> 42 | B50: ='ن ع 1-2-3'!B58 -> ريناد علي محمد عثمان | C50: ='ن ع 1-2-3'!C58 -> الأول | D50: ='ن ع 1-2-3'!P58 -> 0 | E50: ='ن ع 1-2-3'!R58 -> 0 | F50: ='ن ع 1-2-3'!W58 -> 0 | G50: ='ن ع 1-2-3'!Y58 -> 0 | H50: ='ن ع 1-2-3'!AD58 -> 0 | I50: ='ن ع 1-2-3'!AF58 -> 0 | J50: ='ن ع 1-2-3'!AT58 -> 0 | K50: ='ن ع 1-2-3'!AV58 -> 0 | L50: ='ن ع 1-2-3'!AO58 -> 0 | M50: ='ن ع 1-2-3'!BE58 -> 0 | N50: ='ن ع 1-2-3'!BN58 -> 0 | O50: ='ن ع 1-2-3'!BO58 -> 0 | P50: ='ن ع 1-2-3'!BT58 -> 0 | Q50: ='ن ع 1-2-3'!BV58 -> 0
A51: ='ن ع 1-2-3'!A59 -> 43 | B51: ='ن ع 1-2-3'!B59 -> ريهام أحمد ناجي محمد علي | C51: ='ن ع 1-2-3'!C59 -> الأول | D51: ='ن ع 1-2-3'!P59 -> 0 | E51: ='ن ع 1-2-3'!R59 -> 0 | F51: ='ن ع 1-2-3'!W59 -> 0 | G51: ='ن ع 1-2-3'!Y59 -> 0 | H51: ='ن ع 1-2-3'!AD59 -> 0 | I51: ='ن ع 1-2-3'!AF59 -> 0 | J51: ='ن ع 1-2-3'!AT59 -> 0 | K51: ='ن ع 1-2-3'!AV59 -> 0 | L51: ='ن ع 1-2-3'!AO59 -> 0 | M51: ='ن ع 1-2-3'!BE59 -> 0 | N51: ='ن ع 1-2-3'!BN59 -> 0 | O51: ='ن ع 1-2-3'!BO59 -> 0 | P51: ='ن ع 1-2-3'!BT59 -> 0 | Q51: ='ن ع 1-2-3'!BV59 -> 0
A52: ='ن ع 1-2-3'!A60 -> 44 | B52: ='ن ع 1-2-3'!B60 -> زينب سامح عيد كامل | C52: ='ن ع 1-2-3'!C60 -> الأول | D52: ='ن ع 1-2-3'!P60 -> 0 | E52: ='ن ع 1-2-3'!R60 -> 0 | F52: ='ن ع 1-2-3'!W60 -> 0 | G52: ='ن ع 1-2-3'!Y60 -> 0 | H52: ='ن ع 1-2-3'!AD60 -> 0 | I52: ='ن ع 1-2-3'!AF60 -> 0 | J52: ='ن ع 1-2-3'!AT60 -> 0 | K52: ='ن ع 1-2-3'!AV60 -> 0 | L52: ='ن ع 1-2-3'!AO60 -> 0 | M52: ='ن ع 1-2-3'!BE60 -> 0 | N52: ='ن ع 1-2-3'!BN60 -> 0 | O52: ='ن ع 1-2-3'!BO60 -> 0 | P52: ='ن ع 1-2-3'!BT60 -> 0 | Q52: ='ن ع 1-2-3'!BV60 -> 0
A53: ='ن ع 1-2-3'!A61 -> 45 | B53: ='ن ع 1-2-3'!B61 -> زينب صالح سمير محمود | C53: ='ن ع 1-2-3'!C61 -> الأول | D53: ='ن ع 1-2-3'!P61 -> 0 | E53: ='ن ع 1-2-3'!R61 -> 0 | F53: ='ن ع 1-2-3'!W61 -> 0 | G53: ='ن ع 1-2-3'!Y61 -> 0 | H53: ='ن ع 1-2-3'!AD61 -> 0 | I53: ='ن ع 1-2-3'!AF61 -> 0 | J53: ='ن ع 1-2-3'!AT61 -> 0 | K53: ='ن ع 1-2-3'!AV61 -> 0 | L53: ='ن ع 1-2-3'!AO61 -> 0 | M53: ='ن ع 1-2-3'!BE61 -> 0 | N53: ='ن ع 1-2-3'!BN61 -> 0 | O53: ='ن ع 1-2-3'!BO61 -> 0 | P53: ='ن ع 1-2-3'!BT61 -> 0 | Q53: ='ن ع 1-2-3'!BV61 -> 0
A54: ='ن ع 1-2-3'!A62 -> 46 | B54: ='ن ع 1-2-3'!B62 -> سما عبدالقادر محمد يونس | C54: ='ن ع 1-2-3'!C62 -> الأول | D54: ='ن ع 1-2-3'!P62 -> 0 | E54: ='ن ع 1-2-3'!R62 -> 0 | F54: ='ن ع 1-2-3'!W62 -> 0 | G54: ='ن ع 1-2-3'!Y62 -> 0 | H54: ='ن ع 1-2-3'!AD62 -> 0 | I54: ='ن ع 1-2-3'!AF62 -> 0 | J54: ='ن ع 1-2-3'!AT62 -> 0 | K54: ='ن ع 1-2-3'!AV62 -> 0 | L54: ='ن ع 1-2-3'!AO62 -> 0 | M54: ='ن ع 1-2-3'!BE62 -> 0 | N54: ='ن ع 1-2-3'!BN62 -> 0 | O54: ='ن ع 1-2-3'!BO62 -> 0 | P54: ='ن ع 1-2-3'!BT62 -> 0 | Q54: ='ن ع 1-2-3'!BV62 -> 0
A55: ='ن ع 1-2-3'!A63 -> 47 | B55: ='ن ع 1-2-3'!B63 -> سما محمود عبدالعزيز علي | C55: ='ن ع 1-2-3'!C63 -> الأول | D55: ='ن ع 1-2-3'!P63 -> 0 | E55: ='ن ع 1-2-3'!R63 -> 0 | F55: ='ن ع 1-2-3'!W63 -> 0 | G55: ='ن ع 1-2-3'!Y63 -> 0 | H55: ='ن ع 1-2-3'!AD63 -> 0 | I55: ='ن ع 1-2-3'!AF63 -> 0 | J55: ='ن ع 1-2-3'!AT63 -> 0 | K55: ='ن ع 1-2-3'!AV63 -> 0 | L55: ='ن ع 1-2-3'!AO63 -> 0 | M55: ='ن ع 1-2-3'!BE63 -> 0 | N55: ='ن ع 1-2-3'!BN63 -> 0 | O55: ='ن ع 1-2-3'!BO63 -> 0 | P55: ='ن ع 1-2-3'!BT63 -> 0 | Q55: ='ن ع 1-2-3'!BV63 -> 0
A56: ='ن ع 1-2-3'!A64 -> 48 | B56: ='ن ع 1-2-3'!B64 -> شيماء عامر أبوبكر صديق | C56: ='ن ع 1-2-3'!C64 -> الأول | D56: ='ن ع 1-2-3'!P64 -> 0 | E56: ='ن ع 1-2-3'!R64 -> 0 | F56: ='ن ع 1-2-3'!W64 -> 0 | G56: ='ن ع 1-2-3'!Y64 -> 0 | H56: ='ن ع 1-2-3'!AD64 -> 0 | I56: ='ن ع 1-2-3'!AF64 -> 0 | J56: ='ن ع 1-2-3'!AT64 -> 0 | K56: ='ن ع 1-2-3'!AV64 -> 0 | L56: ='ن ع 1-2-3'!AO64 -> 0 | M56: ='ن ع 1-2-3'!BE64 -> 0 | N56: ='ن ع 1-2-3'!BN64 -> 0 | O56: ='ن ع 1-2-3'!BO64 -> 0 | P56: ='ن ع 1-2-3'!BT64 -> 0 | Q56: ='ن ع 1-2-3'!BV64 -> 0
A57: ='ن ع 1-2-3'!A65 -> 49 | B57: ='ن ع 1-2-3'!B65 -> علياء أحمد حسن زكي | C57: ='ن ع 1-2-3'!C65 -> الأول | D57: ='ن ع 1-2-3'!P65 -> 0 | E57: ='ن ع 1-2-3'!R65 -> 0 | F57: ='ن ع 1-2-3'!W65 -> 0 | G57: ='ن ع 1-2-3'!Y65 -> 0 | H57: ='ن ع 1-2-3'!AD65 -> 0 | I57: ='ن ع 1-2-3'!AF65 -> 0 | J57: ='ن ع 1-2-3'!AT65 -> 0 | K57: ='ن ع 1-2-3'!AV65 -> 0 | L57: ='ن ع 1-2-3'!AO65 -> 0 | M57: ='ن ع 1-2-3'!BE65 -> 0 | N57: ='ن ع 1-2-3'!BN65 -> 0 | O57: ='ن ع 1-2-3'!BO65 -> 0 | P57: ='ن ع 1-2-3'!BT65 -> 0 | Q57: ='ن ع 1-2-3'!BV65 -> 0
A58: ='ن ع 1-2-3'!A66 -> 50 | B58: ='ن ع 1-2-3'!B66 -> فاطمة مؤمن عيد محمد | C58: ='ن ع 1-2-3'!C66 -> الأول | D58: ='ن ع 1-2-3'!P66 -> 0 | E58: ='ن ع 1-2-3'!R66 -> 0 | F58: ='ن ع 1-2-3'!W66 -> 0 | G58: ='ن ع 1-2-3'!Y66 -> 0 | H58: ='ن ع 1-2-3'!AD66 -> 0 | I58: ='ن ع 1-2-3'!AF66 -> 0 | J58: ='ن ع 1-2-3'!AT66 -> 0 | K58: ='ن ع 1-2-3'!AV66 -> 0 | L58: ='ن ع 1-2-3'!AO66 -> 0 | M58: ='ن ع 1-2-3'!BE66 -> 0 | N58: ='ن ع 1-2-3'!BN66 -> 0 | O58: ='ن ع 1-2-3'!BO66 -> 0 | P58: ='ن ع 1-2-3'!BT66 -> 0 | Q58: ='ن ع 1-2-3'!BV66 -> 0
A59: ='ن ع 1-2-3'!A67 -> 51 | B59: ='ن ع 1-2-3'!B67 -> فرحة صبري يحي يوسف | C59: ='ن ع 1-2-3'!C67 -> الأول | D59: ='ن ع 1-2-3'!P67 -> 0 | E59: ='ن ع 1-2-3'!R67 -> 0 | F59: ='ن ع 1-2-3'!W67 -> 0 | G59: ='ن ع 1-2-3'!Y67 -> 0 | H59: ='ن ع 1-2-3'!AD67 -> 0 | I59: ='ن ع 1-2-3'!AF67 -> 0 | J59: ='ن ع 1-2-3'!AT67 -> 0 | K59: ='ن ع 1-2-3'!AV67 -> 0 | L59: ='ن ع 1-2-3'!AO67 -> 0 | M59: ='ن ع 1-2-3'!BE67 -> 0 | N59: ='ن ع 1-2-3'!BN67 -> 0 | O59: ='ن ع 1-2-3'!BO67 -> 0 | P59: ='ن ع 1-2-3'!BT67 -> 0 | Q59: ='ن ع 1-2-3'!BV67 -> 0
A60: ='ن ع 1-2-3'!A68 -> 52 | B60: ='ن ع 1-2-3'!B68 -> لمياء سعيد سيد عبدالرازق | C60: ='ن ع 1-2-3'!C68 -> الأول | D60: ='ن ع 1-2-3'!P68 -> 0 | E60: ='ن ع 1-2-3'!R68 -> 0 | F60: ='ن ع 1-2-3'!W68 -> 0 | G60: ='ن ع 1-2-3'!Y68 -> 0 | H60: ='ن ع 1-2-3'!AD68 -> 0 | I60: ='ن ع 1-2-3'!AF68 -> 0 | J60: ='ن ع 1-2-3'!AT68 -> 0 | K60: ='ن ع 1-2-3'!AV68 -> 0 | L60: ='ن ع 1-2-3'!AO68 -> 0 | M60: ='ن ع 1-2-3'!BE68 -> 0 | N60: ='ن ع 1-2-3'!BN68 -> 0 | O60: ='ن ع 1-2-3'!BO68 -> 0 | P60: ='ن ع 1-2-3'!BT68 -> 0 | Q60: ='ن ع 1-2-3'!BV68 -> 0
A61: ='ن ع 1-2-3'!A69 -> 53 | B61: ='ن ع 1-2-3'!B69 -> مريم إبراهيم محمد شلقامي | C61: ='ن ع 1-2-3'!C69 -> الأول | D61: ='ن ع 1-2-3'!P69 -> 0 | E61: ='ن ع 1-2-3'!R69 -> 0 | F61: ='ن ع 1-2-3'!W69 -> 0 | G61: ='ن ع 1-2-3'!Y69 -> 0 | H61: ='ن ع 1-2-3'!AD69 -> 0 | I61: ='ن ع 1-2-3'!AF69 -> 0 | J61: ='ن ع 1-2-3'!AT69 -> 0 | K61: ='ن ع 1-2-3'!AV69 -> 0 | L61: ='ن ع 1-2-3'!AO69 -> 0 | M61: ='ن ع 1-2-3'!BE69 -> 0 | N61: ='ن ع 1-2-3'!BN69 -> 0 | O61: ='ن ع 1-2-3'!BO69 -> 0 | P61: ='ن ع 1-2-3'!BT69 -> 0 | Q61: ='ن ع 1-2-3'!BV69 -> 0
A62: ='ن ع 1-2-3'!A70 -> 54 | B62: ='ن ع 1-2-3'!B70 -> مريم ربيع خيري زكي | C62: ='ن ع 1-2-3'!C70 -> الأول | D62: ='ن ع 1-2-3'!P70 -> 0 | E62: ='ن ع 1-2-3'!R70 -> 0 | F62: ='ن ع 1-2-3'!W70 -> 0 | G62: ='ن ع 1-2-3'!Y70 -> 0 | H62: ='ن ع 1-2-3'!AD70 -> 0 | I62: ='ن ع 1-2-3'!AF70 -> 0 | J62: ='ن ع 1-2-3'!AT70 -> 0 | K62: ='ن ع 1-2-3'!AV70 -> 0 | L62: ='ن ع 1-2-3'!AO70 -> 0 | M62: ='ن ع 1-2-3'!BE70 -> 0 | N62: ='ن ع 1-2-3'!BN70 -> 0 | O62: ='ن ع 1-2-3'!BO70 -> 0 | P62: ='ن ع 1-2-3'!BT70 -> 0 | Q62: ='ن ع 1-2-3'!BV70 -> 0
A63: ='ن ع 1-2-3'!A71 -> 55 | B63: ='ن ع 1-2-3'!B71 -> مريم ربيع علي محمد | C63: ='ن ع 1-2-3'!C71 -> الأول | D63: ='ن ع 1-2-3'!P71 -> 0 | E63: ='ن ع 1-2-3'!R71 -> 0 | F63: ='ن ع 1-2-3'!W71 -> 0 | G63: ='ن ع 1-2-3'!Y71 -> 0 | H63: ='ن ع 1-2-3'!AD71 -> 0 | I63: ='ن ع 1-2-3'!AF71 -> 0 | J63: ='ن ع 1-2-3'!AT71 -> 0 | K63: ='ن ع 1-2-3'!AV71 -> 0 | L63: ='ن ع 1-2-3'!AO71 -> 0 | M63: ='ن ع 1-2-3'!BE71 -> 0 | N63: ='ن ع 1-2-3'!BN71 -> 0 | O63: ='ن ع 1-2-3'!BO71 -> 0 | P63: ='ن ع 1-2-3'!BT71 -> 0 | Q63: ='ن ع 1-2-3'!BV71 -> 0
A64: ='ن ع 1-2-3'!A72 -> 56 | B64: ='ن ع 1-2-3'!B72 -> مريم محمد خميس أحمد | C64: ='ن ع 1-2-3'!C72 -> الأول | D64: ='ن ع 1-2-3'!P72 -> 0 | E64: ='ن ع 1-2-3'!R72 -> 0 | F64: ='ن ع 1-2-3'!W72 -> 0 | G64: ='ن ع 1-2-3'!Y72 -> 0 | H64: ='ن ع 1-2-3'!AD72 -> 0 | I64: ='ن ع 1-2-3'!AF72 -> 0 | J64: ='ن ع 1-2-3'!AT72 -> 0 | K64: ='ن ع 1-2-3'!AV72 -> 0 | L64: ='ن ع 1-2-3'!AO72 -> 0 | M64: ='ن ع 1-2-3'!BE72 -> 0 | N64: ='ن ع 1-2-3'!BN72 -> 0 | O64: ='ن ع 1-2-3'!BO72 -> 0 | P64: ='ن ع 1-2-3'!BT72 -> 0 | Q64: ='ن ع 1-2-3'!BV72 -> 0
A65: ='ن ع 1-2-3'!A73 -> 57 | B65: ='ن ع 1-2-3'!B73 -> مكة ربيع سمير محمود | C65: ='ن ع 1-2-3'!C73 -> الأول | D65: ='ن ع 1-2-3'!P73 -> 0 | E65: ='ن ع 1-2-3'!R73 -> 0 | F65: ='ن ع 1-2-3'!W73 -> 0 | G65: ='ن ع 1-2-3'!Y73 -> 0 | H65: ='ن ع 1-2-3'!AD73 -> 0 | I65: ='ن ع 1-2-3'!AF73 -> 0 | J65: ='ن ع 1-2-3'!AT73 -> 0 | K65: ='ن ع 1-2-3'!AV73 -> 0 | L65: ='ن ع 1-2-3'!AO73 -> 0 | M65: ='ن ع 1-2-3'!BE73 -> 0 | N65: ='ن ع 1-2-3'!BN73 -> 0 | O65: ='ن ع 1-2-3'!BO73 -> 0 | P65: ='ن ع 1-2-3'!BT73 -> 0 | Q65: ='ن ع 1-2-3'!BV73 -> 0
A66: ='ن ع 1-2-3'!A74 -> 58 | B66: ='ن ع 1-2-3'!B74 -> ملك تامر خميس أحمد | C66: ='ن ع 1-2-3'!C74 -> الأول | D66: ='ن ع 1-2-3'!P74 -> 0 | E66: ='ن ع 1-2-3'!R74 -> 0 | F66: ='ن ع 1-2-3'!W74 -> 0 | G66: ='ن ع 1-2-3'!Y74 -> 0 | H66: ='ن ع 1-2-3'!AD74 -> 0 | I66: ='ن ع 1-2-3'!AF74 -> 0 | J66: ='ن ع 1-2-3'!AT74 -> 0 | K66: ='ن ع 1-2-3'!AV74 -> 0 | L66: ='ن ع 1-2-3'!AO74 -> 0 | M66: ='ن ع 1-2-3'!BE74 -> 0 | N66: ='ن ع 1-2-3'!BN74 -> 0 | O66: ='ن ع 1-2-3'!BO74 -> 0 | P66: ='ن ع 1-2-3'!BT74 -> 0 | Q66: ='ن ع 1-2-3'!BV74 -> 0
A67: ='ن ع 1-2-3'!A75 -> 59 | B67: ='ن ع 1-2-3'!B75 -> منار مصطفى محمد أنور | C67: ='ن ع 1-2-3'!C75 -> الأول | D67: ='ن ع 1-2-3'!P75 -> 0 | E67: ='ن ع 1-2-3'!R75 -> 0 | F67: ='ن ع 1-2-3'!W75 -> 0 | G67: ='ن ع 1-2-3'!Y75 -> 0 | H67: ='ن ع 1-2-3'!AD75 -> 0 | I67: ='ن ع 1-2-3'!AF75 -> 0 | J67: ='ن ع 1-2-3'!AT75 -> 0 | K67: ='ن ع 1-2-3'!AV75 -> 0 | L67: ='ن ع 1-2-3'!AO75 -> 0 | M67: ='ن ع 1-2-3'!BE75 -> 0 | N67: ='ن ع 1-2-3'!BN75 -> 0 | O67: ='ن ع 1-2-3'!BO75 -> 0 | P67: ='ن ع 1-2-3'!BT75 -> 0 | Q67: ='ن ع 1-2-3'!BV75 -> 0
A68: ='ن ع 1-2-3'!A76 -> 60 | B68: ='ن ع 1-2-3'!B76 -> منة محمد رمضان أحمد | C68: ='ن ع 1-2-3'!C76 -> الأول | D68: ='ن ع 1-2-3'!P76 -> 0 | E68: ='ن ع 1-2-3'!R76 -> 0 | F68: ='ن ع 1-2-3'!W76 -> 0 | G68: ='ن ع 1-2-3'!Y76 -> 0 | H68: ='ن ع 1-2-3'!AD76 -> 0 | I68: ='ن ع 1-2-3'!AF76 -> 0 | J68: ='ن ع 1-2-3'!AT76 -> 0 | K68: ='ن ع 1-2-3'!AV76 -> 0 | L68: ='ن ع 1-2-3'!AO76 -> 0 | M68: ='ن ع 1-2-3'!BE76 -> 0 | N68: ='ن ع 1-2-3'!BN76 -> 0 | O68: ='ن ع 1-2-3'!BO76 -> 0 | P68: ='ن ع 1-2-3'!BT76 -> 0 | Q68: ='ن ع 1-2-3'!BV76 -> 0
A69: ='ن ع 1-2-3'!A77 -> 61 | B69: ='ن ع 1-2-3'!B77 -> مي أحمد حسين محمد | C69: ='ن ع 1-2-3'!C77 -> الأول | D69: ='ن ع 1-2-3'!P77 -> 0 | E69: ='ن ع 1-2-3'!R77 -> 0 | F69: ='ن ع 1-2-3'!W77 -> 0 | G69: ='ن ع 1-2-3'!Y77 -> 0 | H69: ='ن ع 1-2-3'!AD77 -> 0 | I69: ='ن ع 1-2-3'!AF77 -> 0 | J69: ='ن ع 1-2-3'!AT77 -> 0 | K69: ='ن ع 1-2-3'!AV77 -> 0 | L69: ='ن ع 1-2-3'!AO77 -> 0 | M69: ='ن ع 1-2-3'!BE77 -> 0 | N69: ='ن ع 1-2-3'!BN77 -> 0 | O69: ='ن ع 1-2-3'!BO77 -> 0 | P69: ='ن ع 1-2-3'!BT77 -> 0 | Q69: ='ن ع 1-2-3'!BV77 -> 0
A70: ='ن ع 1-2-3'!A78 -> 62 | B70: ='ن ع 1-2-3'!B78 -> مي رمضان محمد كامل | C70: ='ن ع 1-2-3'!C78 -> الأول | D70: ='ن ع 1-2-3'!P78 -> 0 | E70: ='ن ع 1-2-3'!R78 -> 0 | F70: ='ن ع 1-2-3'!W78 -> 0 | G70: ='ن ع 1-2-3'!Y78 -> 0 | H70: ='ن ع 1-2-3'!AD78 -> 0 | I70: ='ن ع 1-2-3'!AF78 -> 0 | J70: ='ن ع 1-2-3'!AT78 -> 0 | K70: ='ن ع 1-2-3'!AV78 -> 0 | L70: ='ن ع 1-2-3'!AO78 -> 0 | M70: ='ن ع 1-2-3'!BE78 -> 0 | N70: ='ن ع 1-2-3'!BN78 -> 0 | O70: ='ن ع 1-2-3'!BO78 -> 0 | P70: ='ن ع 1-2-3'!BT78 -> 0 | Q70: ='ن ع 1-2-3'!BV78 -> 0
A71: ='ن ع 1-2-3'!A79 -> 63 | B71: ='ن ع 1-2-3'!B79 -> مي عصام عزالدين عبدالرحيم | C71: ='ن ع 1-2-3'!C79 -> الأول | D71: ='ن ع 1-2-3'!P79 -> 0 | E71: ='ن ع 1-2-3'!R79 -> 0 | F71: ='ن ع 1-2-3'!W79 -> 0 | G71: ='ن ع 1-2-3'!Y79 -> 0 | H71: ='ن ع 1-2-3'!AD79 -> 0 | I71: ='ن ع 1-2-3'!AF79 -> 0 | J71: ='ن ع 1-2-3'!AT79 -> 0 | K71: ='ن ع 1-2-3'!AV79 -> 0 | L71: ='ن ع 1-2-3'!AO79 -> 0 | M71: ='ن ع 1-2-3'!BE79 -> 0 | N71: ='ن ع 1-2-3'!BN79 -> 0 | O71: ='ن ع 1-2-3'!BO79 -> 0 | P71: ='ن ع 1-2-3'!BT79 -> 0 | Q71: ='ن ع 1-2-3'!BV79 -> 0
A72: ='ن ع 1-2-3'!A80 -> 64 | B72: ='ن ع 1-2-3'!B80 -> ندى عبدالعزيز أحمد عبدالعزيز | C72: ='ن ع 1-2-3'!C80 -> الأول | D72: ='ن ع 1-2-3'!P80 -> 0 | E72: ='ن ع 1-2-3'!R80 -> 0 | F72: ='ن ع 1-2-3'!W80 -> 0 | G72: ='ن ع 1-2-3'!Y80 -> 0 | H72: ='ن ع 1-2-3'!AD80 -> 0 | I72: ='ن ع 1-2-3'!AF80 -> 0 | J72: ='ن ع 1-2-3'!AT80 -> 0 | K72: ='ن ع 1-2-3'!AV80 -> 0 | L72: ='ن ع 1-2-3'!AO80 -> 0 | M72: ='ن ع 1-2-3'!BE80 -> 0 | N72: ='ن ع 1-2-3'!BN80 -> 0 | O72: ='ن ع 1-2-3'!BO80 -> 0 | P72: ='ن ع 1-2-3'!BT80 -> 0 | Q72: ='ن ع 1-2-3'!BV80 -> 0
A73: ='ن ع 1-2-3'!A81 -> 65 | B73: ='ن ع 1-2-3'!B81 -> هاجر عبدالرحمن السيد محمد | C73: ='ن ع 1-2-3'!C81 -> الأول | D73: ='ن ع 1-2-3'!P81 -> 0 | E73: ='ن ع 1-2-3'!R81 -> 0 | F73: ='ن ع 1-2-3'!W81 -> 0 | G73: ='ن ع 1-2-3'!Y81 -> 0 | H73: ='ن ع 1-2-3'!AD81 -> 0 | I73: ='ن ع 1-2-3'!AF81 -> 0 | J73: ='ن ع 1-2-3'!AT81 -> 0 | K73: ='ن ع 1-2-3'!AV81 -> 0 | L73: ='ن ع 1-2-3'!AO81 -> 0 | M73: ='ن ع 1-2-3'!BE81 -> 0 | N73: ='ن ع 1-2-3'!BN81 -> 0 | O73: ='ن ع 1-2-3'!BO81 -> 0 | P73: ='ن ع 1-2-3'!BT81 -> 0 | Q73: ='ن ع 1-2-3'!BV81 -> 0
A74: ='ن ع 1-2-3'!A82 -> 66 | B74: ='ن ع 1-2-3'!B82 -> همس هشام عبدالمعز محمود | C74: ='ن ع 1-2-3'!C82 -> الأول | D74: ='ن ع 1-2-3'!P82 -> 0 | E74: ='ن ع 1-2-3'!R82 -> 0 | F74: ='ن ع 1-2-3'!W82 -> 0 | G74: ='ن ع 1-2-3'!Y82 -> 0 | H74: ='ن ع 1-2-3'!AD82 -> 0 | I74: ='ن ع 1-2-3'!AF82 -> 0 | J74: ='ن ع 1-2-3'!AT82 -> 0 | K74: ='ن ع 1-2-3'!AV82 -> 0 | L74: ='ن ع 1-2-3'!AO82 -> 0 | M74: ='ن ع 1-2-3'!BE82 -> 0 | N74: ='ن ع 1-2-3'!BN82 -> 0 | O74: ='ن ع 1-2-3'!BO82 -> 0 | P74: ='ن ع 1-2-3'!BT82 -> 0 | Q74: ='ن ع 1-2-3'!BV82 -> 0
A75: ='ن ع 1-2-3'!A83 -> 67 | B75: ='ن ع 1-2-3'!B83 -> هنا عبدالعزيز أحمد محمود | C75: ='ن ع 1-2-3'!C83 -> الأول | D75: ='ن ع 1-2-3'!P83 -> 0 | E75: ='ن ع 1-2-3'!R83 -> 0 | F75: ='ن ع 1-2-3'!W83 -> 0 | G75: ='ن ع 1-2-3'!Y83 -> 0 | H75: ='ن ع 1-2-3'!AD83 -> 0 | I75: ='ن ع 1-2-3'!AF83 -> 0 | J75: ='ن ع 1-2-3'!AT83 -> 0 | K75: ='ن ع 1-2-3'!AV83 -> 0 | L75: ='ن ع 1-2-3'!AO83 -> 0 | M75: ='ن ع 1-2-3'!BE83 -> 0 | N75: ='ن ع 1-2-3'!BN83 -> 0 | O75: ='ن ع 1-2-3'!BO83 -> 0 | P75: ='ن ع 1-2-3'!BT83 -> 0 | Q75: ='ن ع 1-2-3'!BV83 -> 0
A76: ='ن ع 1-2-3'!A84 -> 68 | B76: ='ن ع 1-2-3'!B84 -> ياسمين عمر عبدالعزيز عبدالرازق | C76: ='ن ع 1-2-3'!C84 -> الأول | D76: ='ن ع 1-2-3'!P84 -> 0 | E76: ='ن ع 1-2-3'!R84 -> 0 | F76: ='ن ع 1-2-3'!W84 -> 0 | G76: ='ن ع 1-2-3'!Y84 -> 0 | H76: ='ن ع 1-2-3'!AD84 -> 0 | I76: ='ن ع 1-2-3'!AF84 -> 0 | J76: ='ن ع 1-2-3'!AT84 -> 0 | K76: ='ن ع 1-2-3'!AV84 -> 0 | L76: ='ن ع 1-2-3'!AO84 -> 0 | M76: ='ن ع 1-2-3'!BE84 -> 0 | N76: ='ن ع 1-2-3'!BN84 -> 0 | O76: ='ن ع 1-2-3'!BO84 -> 0 | P76: ='ن ع 1-2-3'!BT84 -> 0 | Q76: ='ن ع 1-2-3'!BV84 -> 0
A77: ='ن ع 1-2-3'!A85 -> 69 | B77: ='ن ع 1-2-3'!B85 -> ياسمين مصطفى سمير إبراهيم | C77: ='ن ع 1-2-3'!C85 -> الأول | D77: ='ن ع 1-2-3'!P85 -> 0 | E77: ='ن ع 1-2-3'!R85 -> 0 | F77: ='ن ع 1-2-3'!W85 -> 0 | G77: ='ن ع 1-2-3'!Y85 -> 0 | H77: ='ن ع 1-2-3'!AD85 -> 0 | I77: ='ن ع 1-2-3'!AF85 -> 0 | J77: ='ن ع 1-2-3'!AT85 -> 0 | K77: ='ن ع 1-2-3'!AV85 -> 0 | L77: ='ن ع 1-2-3'!AO85 -> 0 | M77: ='ن ع 1-2-3'!BE85 -> 0 | N77: ='ن ع 1-2-3'!BN85 -> 0 | O77: ='ن ع 1-2-3'!BO85 -> 0 | P77: ='ن ع 1-2-3'!BT85 -> 0 | Q77: ='ن ع 1-2-3'!BV85 -> 0
A78: ='ن ع 1-2-3'!A86 -> 70 | B78: ='ن ع 1-2-3'!B86 -> إبراهيم حسن ناجح محمود | C78: ='ن ع 1-2-3'!C86 -> الأول | D78: ='ن ع 1-2-3'!P86 -> 0 | E78: ='ن ع 1-2-3'!R86 -> 0 | F78: ='ن ع 1-2-3'!W86 -> 0 | G78: ='ن ع 1-2-3'!Y86 -> 0 | H78: ='ن ع 1-2-3'!AD86 -> 0 | I78: ='ن ع 1-2-3'!AF86 -> 0 | J78: ='ن ع 1-2-3'!AT86 -> 0 | K78: ='ن ع 1-2-3'!AV86 -> 0 | L78: ='ن ع 1-2-3'!AO86 -> 0 | M78: ='ن ع 1-2-3'!BE86 -> 0 | N78: ='ن ع 1-2-3'!BN86 -> 0 | O78: ='ن ع 1-2-3'!BO86 -> 0 | P78: ='ن ع 1-2-3'!BT86 -> 0 | Q78: ='ن ع 1-2-3'!BV86 -> 0
A79: ='ن ع 1-2-3'!A87 -> 71 | B79: ='ن ع 1-2-3'!B87 -> إبراهيم سعيد محمد صلاح | C79: ='ن ع 1-2-3'!C87 -> الأول | D79: ='ن ع 1-2-3'!P87 -> 0 | E79: ='ن ع 1-2-3'!R87 -> 0 | F79: ='ن ع 1-2-3'!W87 -> 0 | G79: ='ن ع 1-2-3'!Y87 -> 0 | H79: ='ن ع 1-2-3'!AD87 -> 0 | I79: ='ن ع 1-2-3'!AF87 -> 0 | J79: ='ن ع 1-2-3'!AT87 -> 0 | K79: ='ن ع 1-2-3'!AV87 -> 0 | L79: ='ن ع 1-2-3'!AO87 -> 0 | M79: ='ن ع 1-2-3'!BE87 -> 0 | N79: ='ن ع 1-2-3'!BN87 -> 0 | O79: ='ن ع 1-2-3'!BO87 -> 0 | P79: ='ن ع 1-2-3'!BT87 -> 0 | Q79: ='ن ع 1-2-3'!BV87 -> 0
A80: ='ن ع 1-2-3'!A88 -> 72 | B80: ='ن ع 1-2-3'!B88 -> إياد عبدالحليم أحمد عبدالحليم | C80: ='ن ع 1-2-3'!C88 -> الأول | D80: ='ن ع 1-2-3'!P88 -> 0 | E80: ='ن ع 1-2-3'!R88 -> 0 | F80: ='ن ع 1-2-3'!W88 -> 0 | G80: ='ن ع 1-2-3'!Y88 -> 0 | H80: ='ن ع 1-2-3'!AD88 -> 0 | I80: ='ن ع 1-2-3'!AF88 -> 0 | J80: ='ن ع 1-2-3'!AT88 -> 0 | K80: ='ن ع 1-2-3'!AV88 -> 0 | L80: ='ن ع 1-2-3'!AO88 -> 0 | M80: ='ن ع 1-2-3'!BE88 -> 0 | N80: ='ن ع 1-2-3'!BN88 -> 0 | O80: ='ن ع 1-2-3'!BO88 -> 0 | P80: ='ن ع 1-2-3'!BT88 -> 0 | Q80: ='ن ع 1-2-3'!BV88 -> 0
A81: ='ن ع 1-2-3'!A89 -> 73 | B81: ='ن ع 1-2-3'!B89 -> أحمد رجب وحيد أبوبكر | C81: ='ن ع 1-2-3'!C89 -> الأول | D81: ='ن ع 1-2-3'!P89 -> 0 | E81: ='ن ع 1-2-3'!R89 -> 0 | F81: ='ن ع 1-2-3'!W89 -> 0 | G81: ='ن ع 1-2-3'!Y89 -> 0 | H81: ='ن ع 1-2-3'!AD89 -> 0 | I81: ='ن ع 1-2-3'!AF89 -> 0 | J81: ='ن ع 1-2-3'!AT89 -> 0 | K81: ='ن ع 1-2-3'!AV89 -> 0 | L81: ='ن ع 1-2-3'!AO89 -> 0 | M81: ='ن ع 1-2-3'!BE89 -> 0 | N81: ='ن ع 1-2-3'!BN89 -> 0 | O81: ='ن ع 1-2-3'!BO89 -> 0 | P81: ='ن ع 1-2-3'!BT89 -> 0 | Q81: ='ن ع 1-2-3'!BV89 -> 0
A82: ='ن ع 1-2-3'!A90 -> 74 | B82: ='ن ع 1-2-3'!B90 -> أحمد عبدالرحمن محمود كامل | C82: ='ن ع 1-2-3'!C90 -> الأول | D82: ='ن ع 1-2-3'!P90 -> 0 | E82: ='ن ع 1-2-3'!R90 -> 0 | F82: ='ن ع 1-2-3'!W90 -> 0 | G82: ='ن ع 1-2-3'!Y90 -> 0 | H82: ='ن ع 1-2-3'!AD90 -> 0 | I82: ='ن ع 1-2-3'!AF90 -> 0 | J82: ='ن ع 1-2-3'!AT90 -> 0 | K82: ='ن ع 1-2-3'!AV90 -> 0 | L82: ='ن ع 1-2-3'!AO90 -> 0 | M82: ='ن ع 1-2-3'!BE90 -> 0 | N82: ='ن ع 1-2-3'!BN90 -> 0 | O82: ='ن ع 1-2-3'!BO90 -> 0 | P82: ='ن ع 1-2-3'!BT90 -> 0 | Q82: ='ن ع 1-2-3'!BV90 -> 0
A83: ='ن ع 1-2-3'!A91 -> 75 | B83: ='ن ع 1-2-3'!B91 -> أحمد عبدالعزيز حماد عبدالرازق | C83: ='ن ع 1-2-3'!C91 -> الأول | D83: ='ن ع 1-2-3'!P91 -> 0 | E83: ='ن ع 1-2-3'!R91 -> 0 | F83: ='ن ع 1-2-3'!W91 -> 0 | G83: ='ن ع 1-2-3'!Y91 -> 0 | H83: ='ن ع 1-2-3'!AD91 -> 0 | I83: ='ن ع 1-2-3'!AF91 -> 0 | J83: ='ن ع 1-2-3'!AT91 -> 0 | K83: ='ن ع 1-2-3'!AV91 -> 0 | L83: ='ن ع 1-2-3'!AO91 -> 0 | M83: ='ن ع 1-2-3'!BE91 -> 0 | N83: ='ن ع 1-2-3'!BN91 -> 0 | O83: ='ن ع 1-2-3'!BO91 -> 0 | P83: ='ن ع 1-2-3'!BT91 -> 0 | Q83: ='ن ع 1-2-3'!BV91 -> 0
A84: ='ن ع 1-2-3'!A92 -> 76 | B84: ='ن ع 1-2-3'!B92 -> أحمد عبدالعزيز ممدوح عبدالغني | C84: ='ن ع 1-2-3'!C92 -> الأول | D84: ='ن ع 1-2-3'!P92 -> 0 | E84: ='ن ع 1-2-3'!R92 -> 0 | F84: ='ن ع 1-2-3'!W92 -> 0 | G84: ='ن ع 1-2-3'!Y92 -> 0 | H84: ='ن ع 1-2-3'!AD92 -> 0 | I84: ='ن ع 1-2-3'!AF92 -> 0 | J84: ='ن ع 1-2-3'!AT92 -> 0 | K84: ='ن ع 1-2-3'!AV92 -> 0 | L84: ='ن ع 1-2-3'!AO92 -> 0 | M84: ='ن ع 1-2-3'!BE92 -> 0 | N84: ='ن ع 1-2-3'!BN92 -> 0 | O84: ='ن ع 1-2-3'!BO92 -> 0 | P84: ='ن ع 1-2-3'!BT92 -> 0 | Q84: ='ن ع 1-2-3'!BV92 -> 0
A85: ='ن ع 1-2-3'!A93 -> 77 | B85: ='ن ع 1-2-3'!B93 -> أحمد علاء عمر محمود | C85: ='ن ع 1-2-3'!C93 -> الأول | D85: ='ن ع 1-2-3'!P93 -> 0 | E85: ='ن ع 1-2-3'!R93 -> 0 | F85: ='ن ع 1-2-3'!W93 -> 0 | G85: ='ن ع 1-2-3'!Y93 -> 0 | H85: ='ن ع 1-2-3'!AD93 -> 0 | I85: ='ن ع 1-2-3'!AF93 -> 0 | J85: ='ن ع 1-2-3'!AT93 -> 0 | K85: ='ن ع 1-2-3'!AV93 -> 0 | L85: ='ن ع 1-2-3'!AO93 -> 0 | M85: ='ن ع 1-2-3'!BE93 -> 0 | N85: ='ن ع 1-2-3'!BN93 -> 0 | O85: ='ن ع 1-2-3'!BO93 -> 0 | P85: ='ن ع 1-2-3'!BT93 -> 0 | Q85: ='ن ع 1-2-3'!BV93 -> 0
A86: ='ن ع 1-2-3'!A94 -> 78 | B86: ='ن ع 1-2-3'!B94 -> أحمد عيد حسن محمد | C86: ='ن ع 1-2-3'!C94 -> الأول | D86: ='ن ع 1-2-3'!P94 -> 0 | E86: ='ن ع 1-2-3'!R94 -> 0 | F86: ='ن ع 1-2-3'!W94 -> 0 | G86: ='ن ع 1-2-3'!Y94 -> 0 | H86: ='ن ع 1-2-3'!AD94 -> 0 | I86: ='ن ع 1-2-3'!AF94 -> 0 | J86: ='ن ع 1-2-3'!AT94 -> 0 | K86: ='ن ع 1-2-3'!AV94 -> 0 | L86: ='ن ع 1-2-3'!AO94 -> 0 | M86: ='ن ع 1-2-3'!BE94 -> 0 | N86: ='ن ع 1-2-3'!BN94 -> 0 | O86: ='ن ع 1-2-3'!BO94 -> 0 | P86: ='ن ع 1-2-3'!BT94 -> 0 | Q86: ='ن ع 1-2-3'!BV94 -> 0
A87: ='ن ع 1-2-3'!A95 -> 79 | B87: ='ن ع 1-2-3'!B95 -> أحمد محمد عبدالحميد محمد | C87: ='ن ع 1-2-3'!C95 -> الأول | D87: ='ن ع 1-2-3'!P95 -> 0 | E87: ='ن ع 1-2-3'!R95 -> 0 | F87: ='ن ع 1-2-3'!W95 -> 0 | G87: ='ن ع 1-2-3'!Y95 -> 0 | H87: ='ن ع 1-2-3'!AD95 -> 0 | I87: ='ن ع 1-2-3'!AF95 -> 0 | J87: ='ن ع 1-2-3'!AT95 -> 0 | K87: ='ن ع 1-2-3'!AV95 -> 0 | L87: ='ن ع 1-2-3'!AO95 -> 0 | M87: ='ن ع 1-2-3'!BE95 -> 0 | N87: ='ن ع 1-2-3'!BN95 -> 0 | O87: ='ن ع 1-2-3'!BO95 -> 0 | P87: ='ن ع 1-2-3'!BT95 -> 0 | Q87: ='ن ع 1-2-3'!BV95 -> 0
A88: ='ن ع 1-2-3'!A96 -> 80 | B88: ='ن ع 1-2-3'!B96 -> أحمد هاني عبدالقادر حسن | C88: ='ن ع 1-2-3'!C96 -> الأول | D88: ='ن ع 1-2-3'!P96 -> 0 | E88: ='ن ع 1-2-3'!R96 -> 0 | F88: ='ن ع 1-2-3'!W96 -> 0 | G88: ='ن ع 1-2-3'!Y96 -> 0 | H88: ='ن ع 1-2-3'!AD96 -> 0 | I88: ='ن ع 1-2-3'!AF96 -> 0 | J88: ='ن ع 1-2-3'!AT96 -> 0 | K88: ='ن ع 1-2-3'!AV96 -> 0 | L88: ='ن ع 1-2-3'!AO96 -> 0 | M88: ='ن ع 1-2-3'!BE96 -> 0 | N88: ='ن ع 1-2-3'!BN96 -> 0 | O88: ='ن ع 1-2-3'!BO96 -> 0 | P88: ='ن ع 1-2-3'!BT96 -> 0 | Q88: ='ن ع 1-2-3'!BV96 -> 0
A89: ='ن ع 1-2-3'!A97 -> 81 | B89: ='ن ع 1-2-3'!B97 -> أشرف رضا صبحي محمد | C89: ='ن ع 1-2-3'!C97 -> الأول | D89: ='ن ع 1-2-3'!P97 -> 0 | E89: ='ن ع 1-2-3'!R97 -> 0 | F89: ='ن ع 1-2-3'!W97 -> 0 | G89: ='ن ع 1-2-3'!Y97 -> 0 | H89: ='ن ع 1-2-3'!AD97 -> 0 | I89: ='ن ع 1-2-3'!AF97 -> 0 | J89: ='ن ع 1-2-3'!AT97 -> 0 | K89: ='ن ع 1-2-3'!AV97 -> 0 | L89: ='ن ع 1-2-3'!AO97 -> 0 | M89: ='ن ع 1-2-3'!BE97 -> 0 | N89: ='ن ع 1-2-3'!BN97 -> 0 | O89: ='ن ع 1-2-3'!BO97 -> 0 | P89: ='ن ع 1-2-3'!BT97 -> 0 | Q89: ='ن ع 1-2-3'!BV97 -> 0
A90: ='ن ع 1-2-3'!A98 -> 82 | B90: ='ن ع 1-2-3'!B98 -> أنس أبوزيد حسن أبوزيد | C90: ='ن ع 1-2-3'!C98 -> الأول | D90: ='ن ع 1-2-3'!P98 -> 0 | E90: ='ن ع 1-2-3'!R98 -> 0 | F90: ='ن ع 1-2-3'!W98 -> 0 | G90: ='ن ع 1-2-3'!Y98 -> 0 | H90: ='ن ع 1-2-3'!AD98 -> 0 | I90: ='ن ع 1-2-3'!AF98 -> 0 | J90: ='ن ع 1-2-3'!AT98 -> 0 | K90: ='ن ع 1-2-3'!AV98 -> 0 | L90: ='ن ع 1-2-3'!AO98 -> 0 | M90: ='ن ع 1-2-3'!BE98 -> 0 | N90: ='ن ع 1-2-3'!BN98 -> 0 | O90: ='ن ع 1-2-3'!BO98 -> 0 | P90: ='ن ع 1-2-3'!BT98 -> 0 | Q90: ='ن ع 1-2-3'!BV98 -> 0
A91: ='ن ع 1-2-3'!A99 -> 83 | B91: ='ن ع 1-2-3'!B99 -> آدم أسامة سمير محمد | C91: ='ن ع 1-2-3'!C99 -> الأول | D91: ='ن ع 1-2-3'!P99 -> 0 | E91: ='ن ع 1-2-3'!R99 -> 0 | F91: ='ن ع 1-2-3'!W99 -> 0 | G91: ='ن ع 1-2-3'!Y99 -> 0 | H91: ='ن ع 1-2-3'!AD99 -> 0 | I91: ='ن ع 1-2-3'!AF99 -> 0 | J91: ='ن ع 1-2-3'!AT99 -> 0 | K91: ='ن ع 1-2-3'!AV99 -> 0 | L91: ='ن ع 1-2-3'!AO99 -> 0 | M91: ='ن ع 1-2-3'!BE99 -> 0 | N91: ='ن ع 1-2-3'!BN99 -> 0 | O91: ='ن ع 1-2-3'!BO99 -> 0 | P91: ='ن ع 1-2-3'!BT99 -> 0 | Q91: ='ن ع 1-2-3'!BV99 -> 0
A92: ='ن ع 1-2-3'!A100 -> 84 | B92: ='ن ع 1-2-3'!B100 -> آدم عمران حامد عبدالدايم | C92: ='ن ع 1-2-3'!C100 -> الأول | D92: ='ن ع 1-2-3'!P100 -> 0 | E92: ='ن ع 1-2-3'!R100 -> 0 | F92: ='ن ع 1-2-3'!W100 -> 0 | G92: ='ن ع 1-2-3'!Y100 -> 0 | H92: ='ن ع 1-2-3'!AD100 -> 0 | I92: ='ن ع 1-2-3'!AF100 -> 0 | J92: ='ن ع 1-2-3'!AT100 -> 0 | K92: ='ن ع 1-2-3'!AV100 -> 0 | L92: ='ن ع 1-2-3'!AO100 -> 0 | M92: ='ن ع 1-2-3'!BE100 -> 0 | N92: ='ن ع 1-2-3'!BN100 -> 0 | O92: ='ن ع 1-2-3'!BO100 -> 0 | P92: ='ن ع 1-2-3'!BT100 -> 0 | Q92: ='ن ع 1-2-3'!BV100 -> 0
A93: ='ن ع 1-2-3'!A101 -> 85 | B93: ='ن ع 1-2-3'!B101 -> آدم محمد رشاد أمين | C93: ='ن ع 1-2-3'!C101 -> الأول | D93: ='ن ع 1-2-3'!P101 -> 0 | E93: ='ن ع 1-2-3'!R101 -> 0 | F93: ='ن ع 1-2-3'!W101 -> 0 | G93: ='ن ع 1-2-3'!Y101 -> 0 | H93: ='ن ع 1-2-3'!AD101 -> 0 | I93: ='ن ع 1-2-3'!AF101 -> 0 | J93: ='ن ع 1-2-3'!AT101 -> 0 | K93: ='ن ع 1-2-3'!AV101 -> 0 | L93: ='ن ع 1-2-3'!AO101 -> 0 | M93: ='ن ع 1-2-3'!BE101 -> 0 | N93: ='ن ع 1-2-3'!BN101 -> 0 | O93: ='ن ع 1-2-3'!BO101 -> 0 | P93: ='ن ع 1-2-3'!BT101 -> 0 | Q93: ='ن ع 1-2-3'!BV101 -> 0
A94: ='ن ع 1-2-3'!A102 -> 86 | B94: ='ن ع 1-2-3'!B102 -> آدم محمد عبدالقادر حسن | C94: ='ن ع 1-2-3'!C102 -> الأول | D94: ='ن ع 1-2-3'!P102 -> 0 | E94: ='ن ع 1-2-3'!R102 -> 0 | F94: ='ن ع 1-2-3'!W102 -> 0 | G94: ='ن ع 1-2-3'!Y102 -> 0 | H94: ='ن ع 1-2-3'!AD102 -> 0 | I94: ='ن ع 1-2-3'!AF102 -> 0 | J94: ='ن ع 1-2-3'!AT102 -> 0 | K94: ='ن ع 1-2-3'!AV102 -> 0 | L94: ='ن ع 1-2-3'!AO102 -> 0 | M94: ='ن ع 1-2-3'!BE102 -> 0 | N94: ='ن ع 1-2-3'!BN102 -> 0 | O94: ='ن ع 1-2-3'!BO102 -> 0 | P94: ='ن ع 1-2-3'!BT102 -> 0 | Q94: ='ن ع 1-2-3'!BV102 -> 0
A95: ='ن ع 1-2-3'!A103 -> 87 | B95: ='ن ع 1-2-3'!B103 -> آدم مؤمن عبدالقادر محمد ربيع | C95: ='ن ع 1-2-3'!C103 -> الأول | D95: ='ن ع 1-2-3'!P103 -> 0 | E95: ='ن ع 1-2-3'!R103 -> 0 | F95: ='ن ع 1-2-3'!W103 -> 0 | G95: ='ن ع 1-2-3'!Y103 -> 0 | H95: ='ن ع 1-2-3'!AD103 -> 0 | I95: ='ن ع 1-2-3'!AF103 -> 0 | J95: ='ن ع 1-2-3'!AT103 -> 0 | K95: ='ن ع 1-2-3'!AV103 -> 0 | L95: ='ن ع 1-2-3'!AO103 -> 0 | M95: ='ن ع 1-2-3'!BE103 -> 0 | N95: ='ن ع 1-2-3'!BN103 -> 0 | O95: ='ن ع 1-2-3'!BO103 -> 0 | P95: ='ن ع 1-2-3'!BT103 -> 0 | Q95: ='ن ع 1-2-3'!BV103 -> 0
A96: ='ن ع 1-2-3'!A104 -> 88 | B96: ='ن ع 1-2-3'!B104 -> حسام عبدالعزيز محمد علي | C96: ='ن ع 1-2-3'!C104 -> الأول | D96: ='ن ع 1-2-3'!P104 -> 0 | E96: ='ن ع 1-2-3'!R104 -> 0 | F96: ='ن ع 1-2-3'!W104 -> 0 | G96: ='ن ع 1-2-3'!Y104 -> 0 | H96: ='ن ع 1-2-3'!AD104 -> 0 | I96: ='ن ع 1-2-3'!AF104 -> 0 | J96: ='ن ع 1-2-3'!AT104 -> 0 | K96: ='ن ع 1-2-3'!AV104 -> 0 | L96: ='ن ع 1-2-3'!AO104 -> 0 | M96: ='ن ع 1-2-3'!BE104 -> 0 | N96: ='ن ع 1-2-3'!BN104 -> 0 | O96: ='ن ع 1-2-3'!BO104 -> 0 | P96: ='ن ع 1-2-3'!BT104 -> 0 | Q96: ='ن ع 1-2-3'!BV104 -> 0
A97: ='ن ع 1-2-3'!A105 -> 89 | B97: ='ن ع 1-2-3'!B105 -> حسام مصطفى رجب أحمد | C97: ='ن ع 1-2-3'!C105 -> الأول | D97: ='ن ع 1-2-3'!P105 -> 0 | E97: ='ن ع 1-2-3'!R105 -> 0 | F97: ='ن ع 1-2-3'!W105 -> 0 | G97: ='ن ع 1-2-3'!Y105 -> 0 | H97: ='ن ع 1-2-3'!AD105 -> 0 | I97: ='ن ع 1-2-3'!AF105 -> 0 | J97: ='ن ع 1-2-3'!AT105 -> 0 | K97: ='ن ع 1-2-3'!AV105 -> 0 | L97: ='ن ع 1-2-3'!AO105 -> 0 | M97: ='ن ع 1-2-3'!BE105 -> 0 | N97: ='ن ع 1-2-3'!BN105 -> 0 | O97: ='ن ع 1-2-3'!BO105 -> 0 | P97: ='ن ع 1-2-3'!BT105 -> 0 | Q97: ='ن ع 1-2-3'!BV105 -> 0
A98: ='ن ع 1-2-3'!A106 -> 90 | B98: ='ن ع 1-2-3'!B106 -> حمدي قياتي محمد شاكر | C98: ='ن ع 1-2-3'!C106 -> الأول | D98: ='ن ع 1-2-3'!P106 -> 0 | E98: ='ن ع 1-2-3'!R106 -> 0 | F98: ='ن ع 1-2-3'!W106 -> 0 | G98: ='ن ع 1-2-3'!Y106 -> 0 | H98: ='ن ع 1-2-3'!AD106 -> 0 | I98: ='ن ع 1-2-3'!AF106 -> 0 | J98: ='ن ع 1-2-3'!AT106 -> 0 | K98: ='ن ع 1-2-3'!AV106 -> 0 | L98: ='ن ع 1-2-3'!AO106 -> 0 | M98: ='ن ع 1-2-3'!BE106 -> 0 | N98: ='ن ع 1-2-3'!BN106 -> 0 | O98: ='ن ع 1-2-3'!BO106 -> 0 | P98: ='ن ع 1-2-3'!BT106 -> 0 | Q98: ='ن ع 1-2-3'!BV106 -> 0
A99: ='ن ع 1-2-3'!A107 -> 91 | B99: ='ن ع 1-2-3'!B107 -> حمزة رجب عبدالغفار محمد | C99: ='ن ع 1-2-3'!C107 -> الأول | D99: ='ن ع 1-2-3'!P107 -> 0 | E99: ='ن ع 1-2-3'!R107 -> 0 | F99: ='ن ع 1-2-3'!W107 -> 0 | G99: ='ن ع 1-2-3'!Y107 -> 0 | H99: ='ن ع 1-2-3'!AD107 -> 0 | I99: ='ن ع 1-2-3'!AF107 -> 0 | J99: ='ن ع 1-2-3'!AT107 -> 0 | K99: ='ن ع 1-2-3'!AV107 -> 0 | L99: ='ن ع 1-2-3'!AO107 -> 0 | M99: ='ن ع 1-2-3'!BE107 -> 0 | N99: ='ن ع 1-2-3'!BN107 -> 0 | O99: ='ن ع 1-2-3'!BO107 -> 0 | P99: ='ن ع 1-2-3'!BT107 -> 0 | Q99: ='ن ع 1-2-3'!BV107 -> 0
A100: ='ن ع 1-2-3'!A108 -> 92 | B100: ='ن ع 1-2-3'!B108 -> حمزة محمد فتحي عبدالرازق | C100: ='ن ع 1-2-3'!C108 -> الأول | D100: ='ن ع 1-2-3'!P108 -> 0 | E100: ='ن ع 1-2-3'!R108 -> 0 | F100: ='ن ع 1-2-3'!W108 -> 0 | G100: ='ن ع 1-2-3'!Y108 -> 0 | H100: ='ن ع 1-2-3'!AD108 -> 0 | I100: ='ن ع 1-2-3'!AF108 -> 0 | J100: ='ن ع 1-2-3'!AT108 -> 0 | K100: ='ن ع 1-2-3'!AV108 -> 0 | L100: ='ن ع 1-2-3'!AO108 -> 0 | M100: ='ن ع 1-2-3'!BE108 -> 0 | N100: ='ن ع 1-2-3'!BN108 -> 0 | O100: ='ن ع 1-2-3'!BO108 -> 0 | P100: ='ن ع 1-2-3'!BT108 -> 0 | Q100: ='ن ع 1-2-3'!BV108 -> 0
A101: ='ن ع 1-2-3'!A109 -> 93 | B101: ='ن ع 1-2-3'!B109 -> حمزة مصطفى عطية عبدالرازق | C101: ='ن ع 1-2-3'!C109 -> الأول | D101: ='ن ع 1-2-3'!P109 -> 0 | E101: ='ن ع 1-2-3'!R109 -> 0 | F101: ='ن ع 1-2-3'!W109 -> 0 | G101: ='ن ع 1-2-3'!Y109 -> 0 | H101: ='ن ع 1-2-3'!AD109 -> 0 | I101: ='ن ع 1-2-3'!AF109 -> 0 | J101: ='ن ع 1-2-3'!AT109 -> 0 | K101: ='ن ع 1-2-3'!AV109 -> 0 | L101: ='ن ع 1-2-3'!AO109 -> 0 | M101: ='ن ع 1-2-3'!BE109 -> 0 | N101: ='ن ع 1-2-3'!BN109 -> 0 | O101: ='ن ع 1-2-3'!BO109 -> 0 | P101: ='ن ع 1-2-3'!BT109 -> 0 | Q101: ='ن ع 1-2-3'!BV109 -> 0
A102: ='ن ع 1-2-3'!A110 -> 94 | B102: ='ن ع 1-2-3'!B110 -> ريان محمود عبدالقادر محمد | C102: ='ن ع 1-2-3'!C110 -> الأول | D102: ='ن ع 1-2-3'!P110 -> 0 | E102: ='ن ع 1-2-3'!R110 -> 0 | F102: ='ن ع 1-2-3'!W110 -> 0 | G102: ='ن ع 1-2-3'!Y110 -> 0 | H102: ='ن ع 1-2-3'!AD110 -> 0 | I102: ='ن ع 1-2-3'!AF110 -> 0 | J102: ='ن ع 1-2-3'!AT110 -> 0 | K102: ='ن ع 1-2-3'!AV110 -> 0 | L102: ='ن ع 1-2-3'!AO110 -> 0 | M102: ='ن ع 1-2-3'!BE110 -> 0 | N102: ='ن ع 1-2-3'!BN110 -> 0 | O102: ='ن ع 1-2-3'!BO110 -> 0 | P102: ='ن ع 1-2-3'!BT110 -> 0 | Q102: ='ن ع 1-2-3'!BV110 -> 0
A103: ='ن ع 1-2-3'!A111 -> 95 | B103: ='ن ع 1-2-3'!B111 -> زياد حمادة ربيع أحمد | C103: ='ن ع 1-2-3'!C111 -> الأول | D103: ='ن ع 1-2-3'!P111 -> 0 | E103: ='ن ع 1-2-3'!R111 -> 0 | F103: ='ن ع 1-2-3'!W111 -> 0 | G103: ='ن ع 1-2-3'!Y111 -> 0 | H103: ='ن ع 1-2-3'!AD111 -> 0 | I103: ='ن ع 1-2-3'!AF111 -> 0 | J103: ='ن ع 1-2-3'!AT111 -> 0 | K103: ='ن ع 1-2-3'!AV111 -> 0 | L103: ='ن ع 1-2-3'!AO111 -> 0 | M103: ='ن ع 1-2-3'!BE111 -> 0 | N103: ='ن ع 1-2-3'!BN111 -> 0 | O103: ='ن ع 1-2-3'!BO111 -> 0 | P103: ='ن ع 1-2-3'!BT111 -> 0 | Q103: ='ن ع 1-2-3'!BV111 -> 0
A104: ='ن ع 1-2-3'!A112 -> 96 | B104: ='ن ع 1-2-3'!B112 -> سعيد عبدالباسط عيسى محمد | C104: ='ن ع 1-2-3'!C112 -> الأول | D104: ='ن ع 1-2-3'!P112 -> 0 | E104: ='ن ع 1-2-3'!R112 -> 0 | F104: ='ن ع 1-2-3'!W112 -> 0 | G104: ='ن ع 1-2-3'!Y112 -> 0 | H104: ='ن ع 1-2-3'!AD112 -> 0 | I104: ='ن ع 1-2-3'!AF112 -> 0 | J104: ='ن ع 1-2-3'!AT112 -> 0 | K104: ='ن ع 1-2-3'!AV112 -> 0 | L104: ='ن ع 1-2-3'!AO112 -> 0 | M104: ='ن ع 1-2-3'!BE112 -> 0 | N104: ='ن ع 1-2-3'!BN112 -> 0 | O104: ='ن ع 1-2-3'!BO112 -> 0 | P104: ='ن ع 1-2-3'!BT112 -> 0 | Q104: ='ن ع 1-2-3'!BV112 -> 0
A105: ='ن ع 1-2-3'!A113 -> 97 | B105: ='ن ع 1-2-3'!B113 -> سلطان محمد سلطان عثمان | C105: ='ن ع 1-2-3'!C113 -> الأول | D105: ='ن ع 1-2-3'!P113 -> 0 | E105: ='ن ع 1-2-3'!R113 -> 0 | F105: ='ن ع 1-2-3'!W113 -> 0 | G105: ='ن ع 1-2-3'!Y113 -> 0 | H105: ='ن ع 1-2-3'!AD113 -> 0 | I105: ='ن ع 1-2-3'!AF113 -> 0 | J105: ='ن ع 1-2-3'!AT113 -> 0 | K105: ='ن ع 1-2-3'!AV113 -> 0 | L105: ='ن ع 1-2-3'!AO113 -> 0 | M105: ='ن ع 1-2-3'!BE113 -> 0 | N105: ='ن ع 1-2-3'!BN113 -> 0 | O105: ='ن ع 1-2-3'!BO113 -> 0 | P105: ='ن ع 1-2-3'!BT113 -> 0 | Q105: ='ن ع 1-2-3'!BV113 -> 0
A106: ='ن ع 1-2-3'!A114 -> 98 | B106: ='ن ع 1-2-3'!B114 -> سيف محمد ماضي أحمد | C106: ='ن ع 1-2-3'!C114 -> الأول | D106: ='ن ع 1-2-3'!P114 -> 0 | E106: ='ن ع 1-2-3'!R114 -> 0 | F106: ='ن ع 1-2-3'!W114 -> 0 | G106: ='ن ع 1-2-3'!Y114 -> 0 | H106: ='ن ع 1-2-3'!AD114 -> 0 | I106: ='ن ع 1-2-3'!AF114 -> 0 | J106: ='ن ع 1-2-3'!AT114 -> 0 | K106: ='ن ع 1-2-3'!AV114 -> 0 | L106: ='ن ع 1-2-3'!AO114 -> 0 | M106: ='ن ع 1-2-3'!BE114 -> 0 | N106: ='ن ع 1-2-3'!BN114 -> 0 | O106: ='ن ع 1-2-3'!BO114 -> 0 | P106: ='ن ع 1-2-3'!BT114 -> 0 | Q106: ='ن ع 1-2-3'!BV114 -> 0
A107: ='ن ع 1-2-3'!A115 -> 99 | B107: ='ن ع 1-2-3'!B115 -> عبدالرحمن فاروق عويس فاروق | C107: ='ن ع 1-2-3'!C115 -> الأول | D107: ='ن ع 1-2-3'!P115 -> 0 | E107: ='ن ع 1-2-3'!R115 -> 0 | F107: ='ن ع 1-2-3'!W115 -> 0 | G107: ='ن ع 1-2-3'!Y115 -> 0 | H107: ='ن ع 1-2-3'!AD115 -> 0 | I107: ='ن ع 1-2-3'!AF115 -> 0 | J107: ='ن ع 1-2-3'!AT115 -> 0 | K107: ='ن ع 1-2-3'!AV115 -> 0 | L107: ='ن ع 1-2-3'!AO115 -> 0 | M107: ='ن ع 1-2-3'!BE115 -> 0 | N107: ='ن ع 1-2-3'!BN115 -> 0 | O107: ='ن ع 1-2-3'!BO115 -> 0 | P107: ='ن ع 1-2-3'!BT115 -> 0 | Q107: ='ن ع 1-2-3'!BV115 -> 0
A108: ='ن ع 1-2-3'!A116 -> 100 | B108: ='ن ع 1-2-3'!B116 -> عبدالعزيز محمود عبدالعزيز أحمد | C108: ='ن ع 1-2-3'!C116 -> الأول | D108: ='ن ع 1-2-3'!P116 -> 0 | E108: ='ن ع 1-2-3'!R116 -> 0 | F108: ='ن ع 1-2-3'!W116 -> 0 | G108: ='ن ع 1-2-3'!Y116 -> 0 | H108: ='ن ع 1-2-3'!AD116 -> 0 | I108: ='ن ع 1-2-3'!AF116 -> 0 | J108: ='ن ع 1-2-3'!AT116 -> 0 | K108: ='ن ع 1-2-3'!AV116 -> 0 | L108: ='ن ع 1-2-3'!AO116 -> 0 | M108: ='ن ع 1-2-3'!BE116 -> 0 | N108: ='ن ع 1-2-3'!BN116 -> 0 | O108: ='ن ع 1-2-3'!BO116 -> 0 | P108: ='ن ع 1-2-3'!BT116 -> 0 | Q108: ='ن ع 1-2-3'!BV116 -> 0
A109: ='ن ع 1-2-3'!A117 -> 101 | B109: ='ن ع 1-2-3'!B117 -> عبدالقادر شعبان عبدالقادر إبراهيم | C109: ='ن ع 1-2-3'!C117 -> الأول | D109: ='ن ع 1-2-3'!P117 -> 0 | E109: ='ن ع 1-2-3'!R117 -> 0 | F109: ='ن ع 1-2-3'!W117 -> 0 | G109: ='ن ع 1-2-3'!Y117 -> 0 | H109: ='ن ع 1-2-3'!AD117 -> 0 | I109: ='ن ع 1-2-3'!AF117 -> 0 | J109: ='ن ع 1-2-3'!AT117 -> 0 | K109: ='ن ع 1-2-3'!AV117 -> 0 | L109: ='ن ع 1-2-3'!AO117 -> 0 | M109: ='ن ع 1-2-3'!BE117 -> 0 | N109: ='ن ع 1-2-3'!BN117 -> 0 | O109: ='ن ع 1-2-3'!BO117 -> 0 | P109: ='ن ع 1-2-3'!BT117 -> 0 | Q109: ='ن ع 1-2-3'!BV117 -> 0
A110: ='ن ع 1-2-3'!A118 -> 102 | B110: ='ن ع 1-2-3'!B118 -> عبدالله عربي عادل شعبان | C110: ='ن ع 1-2-3'!C118 -> الأول | D110: ='ن ع 1-2-3'!P118 -> 0 | E110: ='ن ع 1-2-3'!R118 -> 0 | F110: ='ن ع 1-2-3'!W118 -> 0 | G110: ='ن ع 1-2-3'!Y118 -> 0 | H110: ='ن ع 1-2-3'!AD118 -> 0 | I110: ='ن ع 1-2-3'!AF118 -> 0 | J110: ='ن ع 1-2-3'!AT118 -> 0 | K110: ='ن ع 1-2-3'!AV118 -> 0 | L110: ='ن ع 1-2-3'!AO118 -> 0 | M110: ='ن ع 1-2-3'!BE118 -> 0 | N110: ='ن ع 1-2-3'!BN118 -> 0 | O110: ='ن ع 1-2-3'!BO118 -> 0 | P110: ='ن ع 1-2-3'!BT118 -> 0 | Q110: ='ن ع 1-2-3'!BV118 -> 0
A111: ='ن ع 1-2-3'!A119 -> 103 | B111: ='ن ع 1-2-3'!B119 -> عمر عصام عطا لملوم | C111: ='ن ع 1-2-3'!C119 -> الأول | D111: ='ن ع 1-2-3'!P119 -> 0 | E111: ='ن ع 1-2-3'!R119 -> 0 | F111: ='ن ع 1-2-3'!W119 -> 0 | G111: ='ن ع 1-2-3'!Y119 -> 0 | H111: ='ن ع 1-2-3'!AD119 -> 0 | I111: ='ن ع 1-2-3'!AF119 -> 0 | J111: ='ن ع 1-2-3'!AT119 -> 0 | K111: ='ن ع 1-2-3'!AV119 -> 0 | L111: ='ن ع 1-2-3'!AO119 -> 0 | M111: ='ن ع 1-2-3'!BE119 -> 0 | N111: ='ن ع 1-2-3'!BN119 -> 0 | O111: ='ن ع 1-2-3'!BO119 -> 0 | P111: ='ن ع 1-2-3'!BT119 -> 0 | Q111: ='ن ع 1-2-3'!BV119 -> 0
A112: ='ن ع 1-2-3'!A120 -> 104 | B112: ='ن ع 1-2-3'!B120 -> عمر محمد أحمد يحى | C112: ='ن ع 1-2-3'!C120 -> الأول | D112: ='ن ع 1-2-3'!P120 -> 0 | E112: ='ن ع 1-2-3'!R120 -> 0 | F112: ='ن ع 1-2-3'!W120 -> 0 | G112: ='ن ع 1-2-3'!Y120 -> 0 | H112: ='ن ع 1-2-3'!AD120 -> 0 | I112: ='ن ع 1-2-3'!AF120 -> 0 | J112: ='ن ع 1-2-3'!AT120 -> 0 | K112: ='ن ع 1-2-3'!AV120 -> 0 | L112: ='ن ع 1-2-3'!AO120 -> 0 | M112: ='ن ع 1-2-3'!BE120 -> 0 | N112: ='ن ع 1-2-3'!BN120 -> 0 | O112: ='ن ع 1-2-3'!BO120 -> 0 | P112: ='ن ع 1-2-3'!BT120 -> 0 | Q112: ='ن ع 1-2-3'!BV120 -> 0
A113: ='ن ع 1-2-3'!A121 -> 105 | B113: ='ن ع 1-2-3'!B121 -> عمر محمد حسن علي | C113: ='ن ع 1-2-3'!C121 -> الأول | D113: ='ن ع 1-2-3'!P121 -> 0 | E113: ='ن ع 1-2-3'!R121 -> 0 | F113: ='ن ع 1-2-3'!W121 -> 0 | G113: ='ن ع 1-2-3'!Y121 -> 0 | H113: ='ن ع 1-2-3'!AD121 -> 0 | I113: ='ن ع 1-2-3'!AF121 -> 0 | J113: ='ن ع 1-2-3'!AT121 -> 0 | K113: ='ن ع 1-2-3'!AV121 -> 0 | L113: ='ن ع 1-2-3'!AO121 -> 0 | M113: ='ن ع 1-2-3'!BE121 -> 0 | N113: ='ن ع 1-2-3'!BN121 -> 0 | O113: ='ن ع 1-2-3'!BO121 -> 0 | P113: ='ن ع 1-2-3'!BT121 -> 0 | Q113: ='ن ع 1-2-3'!BV121 -> 0
A114: ='ن ع 1-2-3'!A122 -> 106 | B114: ='ن ع 1-2-3'!B122 -> عمر مصطفى جمال محمد | C114: ='ن ع 1-2-3'!C122 -> الأول | D114: ='ن ع 1-2-3'!P122 -> 0 | E114: ='ن ع 1-2-3'!R122 -> 0 | F114: ='ن ع 1-2-3'!W122 -> 0 | G114: ='ن ع 1-2-3'!Y122 -> 0 | H114: ='ن ع 1-2-3'!AD122 -> 0 | I114: ='ن ع 1-2-3'!AF122 -> 0 | J114: ='ن ع 1-2-3'!AT122 -> 0 | K114: ='ن ع 1-2-3'!AV122 -> 0 | L114: ='ن ع 1-2-3'!AO122 -> 0 | M114: ='ن ع 1-2-3'!BE122 -> 0 | N114: ='ن ع 1-2-3'!BN122 -> 0 | O114: ='ن ع 1-2-3'!BO122 -> 0 | P114: ='ن ع 1-2-3'!BT122 -> 0 | Q114: ='ن ع 1-2-3'!BV122 -> 0
A115: ='ن ع 1-2-3'!A123 -> 107 | B115: ='ن ع 1-2-3'!B123 -> عمرو خالد محمد محمد | C115: ='ن ع 1-2-3'!C123 -> الأول | D115: ='ن ع 1-2-3'!P123 -> 0 | E115: ='ن ع 1-2-3'!R123 -> 0 | F115: ='ن ع 1-2-3'!W123 -> 0 | G115: ='ن ع 1-2-3'!Y123 -> 0 | H115: ='ن ع 1-2-3'!AD123 -> 0 | I115: ='ن ع 1-2-3'!AF123 -> 0 | J115: ='ن ع 1-2-3'!AT123 -> 0 | K115: ='ن ع 1-2-3'!AV123 -> 0 | L115: ='ن ع 1-2-3'!AO123 -> 0 | M115: ='ن ع 1-2-3'!BE123 -> 0 | N115: ='ن ع 1-2-3'!BN123 -> 0 | O115: ='ن ع 1-2-3'!BO123 -> 0 | P115: ='ن ع 1-2-3'!BT123 -> 0 | Q115: ='ن ع 1-2-3'!BV123 -> 0
A116: ='ن ع 1-2-3'!A124 -> 108 | B116: ='ن ع 1-2-3'!B124 -> مازن عربي محمود شحاتة | C116: ='ن ع 1-2-3'!C124 -> الأول | D116: ='ن ع 1-2-3'!P124 -> 0 | E116: ='ن ع 1-2-3'!R124 -> 0 | F116: ='ن ع 1-2-3'!W124 -> 0 | G116: ='ن ع 1-2-3'!Y124 -> 0 | H116: ='ن ع 1-2-3'!AD124 -> 0 | I116: ='ن ع 1-2-3'!AF124 -> 0 | J116: ='ن ع 1-2-3'!AT124 -> 0 | K116: ='ن ع 1-2-3'!AV124 -> 0 | L116: ='ن ع 1-2-3'!AO124 -> 0 | M116: ='ن ع 1-2-3'!BE124 -> 0 | N116: ='ن ع 1-2-3'!BN124 -> 0 | O116: ='ن ع 1-2-3'!BO124 -> 0 | P116: ='ن ع 1-2-3'!BT124 -> 0 | Q116: ='ن ع 1-2-3'!BV124 -> 0
A117: ='ن ع 1-2-3'!A125 -> 109 | B117: ='ن ع 1-2-3'!B125 -> محمد المحمودي عبدالغني محمد | C117: ='ن ع 1-2-3'!C125 -> الأول | D117: ='ن ع 1-2-3'!P125 -> 0 | E117: ='ن ع 1-2-3'!R125 -> 0 | F117: ='ن ع 1-2-3'!W125 -> 0 | G117: ='ن ع 1-2-3'!Y125 -> 0 | H117: ='ن ع 1-2-3'!AD125 -> 0 | I117: ='ن ع 1-2-3'!AF125 -> 0 | J117: ='ن ع 1-2-3'!AT125 -> 0 | K117: ='ن ع 1-2-3'!AV125 -> 0 | L117: ='ن ع 1-2-3'!AO125 -> 0 | M117: ='ن ع 1-2-3'!BE125 -> 0 | N117: ='ن ع 1-2-3'!BN125 -> 0 | O117: ='ن ع 1-2-3'!BO125 -> 0 | P117: ='ن ع 1-2-3'!BT125 -> 0 | Q117: ='ن ع 1-2-3'!BV125 -> 0
A118: ='ن ع 1-2-3'!A126 -> 110 | B118: ='ن ع 1-2-3'!B126 -> محمد أحمد محمد مختار | C118: ='ن ع 1-2-3'!C126 -> الأول | D118: ='ن ع 1-2-3'!P126 -> 0 | E118: ='ن ع 1-2-3'!R126 -> 0 | F118: ='ن ع 1-2-3'!W126 -> 0 | G118: ='ن ع 1-2-3'!Y126 -> 0 | H118: ='ن ع 1-2-3'!AD126 -> 0 | I118: ='ن ع 1-2-3'!AF126 -> 0 | J118: ='ن ع 1-2-3'!AT126 -> 0 | K118: ='ن ع 1-2-3'!AV126 -> 0 | L118: ='ن ع 1-2-3'!AO126 -> 0 | M118: ='ن ع 1-2-3'!BE126 -> 0 | N118: ='ن ع 1-2-3'!BN126 -> 0 | O118: ='ن ع 1-2-3'!BO126 -> 0 | P118: ='ن ع 1-2-3'!BT126 -> 0 | Q118: ='ن ع 1-2-3'!BV126 -> 0
A119: ='ن ع 1-2-3'!A127 -> 111 | B119: ='ن ع 1-2-3'!B127 -> محمد أسامة محمد مسعد | C119: ='ن ع 1-2-3'!C127 -> الأول | D119: ='ن ع 1-2-3'!P127 -> 0 | E119: ='ن ع 1-2-3'!R127 -> 0 | F119: ='ن ع 1-2-3'!W127 -> 0 | G119: ='ن ع 1-2-3'!Y127 -> 0 | H119: ='ن ع 1-2-3'!AD127 -> 0 | I119: ='ن ع 1-2-3'!AF127 -> 0 | J119: ='ن ع 1-2-3'!AT127 -> 0 | K119: ='ن ع 1-2-3'!AV127 -> 0 | L119: ='ن ع 1-2-3'!AO127 -> 0 | M119: ='ن ع 1-2-3'!BE127 -> 0 | N119: ='ن ع 1-2-3'!BN127 -> 0 | O119: ='ن ع 1-2-3'!BO127 -> 0 | P119: ='ن ع 1-2-3'!BT127 -> 0 | Q119: ='ن ع 1-2-3'!BV127 -> 0
A120: ='ن ع 1-2-3'!A128 -> 112 | B120: ='ن ع 1-2-3'!B128 -> محمد حسين عبدالعزيز عبدالرازق | C120: ='ن ع 1-2-3'!C128 -> الأول | D120: ='ن ع 1-2-3'!P128 -> 0 | E120: ='ن ع 1-2-3'!R128 -> 0 | F120: ='ن ع 1-2-3'!W128 -> 0 | G120: ='ن ع 1-2-3'!Y128 -> 0 | H120: ='ن ع 1-2-3'!AD128 -> 0 | I120: ='ن ع 1-2-3'!AF128 -> 0 | J120: ='ن ع 1-2-3'!AT128 -> 0 | K120: ='ن ع 1-2-3'!AV128 -> 0 | L120: ='ن ع 1-2-3'!AO128 -> 0 | M120: ='ن ع 1-2-3'!BE128 -> 0 | N120: ='ن ع 1-2-3'!BN128 -> 0 | O120: ='ن ع 1-2-3'!BO128 -> 0 | P120: ='ن ع 1-2-3'!BT128 -> 0 | Q120: ='ن ع 1-2-3'!BV128 -> 0
A121: ='ن ع 1-2-3'!A129 -> 113 | B121: ='ن ع 1-2-3'!B129 -> محمد خالد عبدالقادر أمين | C121: ='ن ع 1-2-3'!C129 -> الأول | D121: ='ن ع 1-2-3'!P129 -> 0 | E121: ='ن ع 1-2-3'!R129 -> 0 | F121: ='ن ع 1-2-3'!W129 -> 0 | G121: ='ن ع 1-2-3'!Y129 -> 0 | H121: ='ن ع 1-2-3'!AD129 -> 0 | I121: ='ن ع 1-2-3'!AF129 -> 0 | J121: ='ن ع 1-2-3'!AT129 -> 0 | K121: ='ن ع 1-2-3'!AV129 -> 0 | L121: ='ن ع 1-2-3'!AO129 -> 0 | M121: ='ن ع 1-2-3'!BE129 -> 0 | N121: ='ن ع 1-2-3'!BN129 -> 0 | O121: ='ن ع 1-2-3'!BO129 -> 0 | P121: ='ن ع 1-2-3'!BT129 -> 0 | Q121: ='ن ع 1-2-3'!BV129 -> 0
A122: ='ن ع 1-2-3'!A130 -> 114 | B122: ='ن ع 1-2-3'!B130 -> محمد شريف خيري زكي | C122: ='ن ع 1-2-3'!C130 -> الأول | D122: ='ن ع 1-2-3'!P130 -> 0 | E122: ='ن ع 1-2-3'!R130 -> 0 | F122: ='ن ع 1-2-3'!W130 -> 0 | G122: ='ن ع 1-2-3'!Y130 -> 0 | H122: ='ن ع 1-2-3'!AD130 -> 0 | I122: ='ن ع 1-2-3'!AF130 -> 0 | J122: ='ن ع 1-2-3'!AT130 -> 0 | K122: ='ن ع 1-2-3'!AV130 -> 0 | L122: ='ن ع 1-2-3'!AO130 -> 0 | M122: ='ن ع 1-2-3'!BE130 -> 0 | N122: ='ن ع 1-2-3'!BN130 -> 0 | O122: ='ن ع 1-2-3'!BO130 -> 0 | P122: ='ن ع 1-2-3'!BT130 -> 0 | Q122: ='ن ع 1-2-3'!BV130 -> 0
A123: ='ن ع 1-2-3'!A131 -> 115 | B123: ='ن ع 1-2-3'!B131 -> محمد عبدالرازق عبدالعزيز عبدالرازق | C123: ='ن ع 1-2-3'!C131 -> الأول | D123: ='ن ع 1-2-3'!P131 -> 0 | E123: ='ن ع 1-2-3'!R131 -> 0 | F123: ='ن ع 1-2-3'!W131 -> 0 | G123: ='ن ع 1-2-3'!Y131 -> 0 | H123: ='ن ع 1-2-3'!AD131 -> 0 | I123: ='ن ع 1-2-3'!AF131 -> 0 | J123: ='ن ع 1-2-3'!AT131 -> 0 | K123: ='ن ع 1-2-3'!AV131 -> 0 | L123: ='ن ع 1-2-3'!AO131 -> 0 | M123: ='ن ع 1-2-3'!BE131 -> 0 | N123: ='ن ع 1-2-3'!BN131 -> 0 | O123: ='ن ع 1-2-3'!BO131 -> 0 | P123: ='ن ع 1-2-3'!BT131 -> 0 | Q123: ='ن ع 1-2-3'!BV131 -> 0
A124: ='ن ع 1-2-3'!A132 -> 116 | B124: ='ن ع 1-2-3'!B132 -> محمد عبدالرحمن أحمد محمد | C124: ='ن ع 1-2-3'!C132 -> الأول | D124: ='ن ع 1-2-3'!P132 -> 0 | E124: ='ن ع 1-2-3'!R132 -> 0 | F124: ='ن ع 1-2-3'!W132 -> 0 | G124: ='ن ع 1-2-3'!Y132 -> 0 | H124: ='ن ع 1-2-3'!AD132 -> 0 | I124: ='ن ع 1-2-3'!AF132 -> 0 | J124: ='ن ع 1-2-3'!AT132 -> 0 | K124: ='ن ع 1-2-3'!AV132 -> 0 | L124: ='ن ع 1-2-3'!AO132 -> 0 | M124: ='ن ع 1-2-3'!BE132 -> 0 | N124: ='ن ع 1-2-3'!BN132 -> 0 | O124: ='ن ع 1-2-3'!BO132 -> 0 | P124: ='ن ع 1-2-3'!BT132 -> 0 | Q124: ='ن ع 1-2-3'!BV132 -> 0
A125: ='ن ع 1-2-3'!A133 -> 117 | B125: ='ن ع 1-2-3'!B133 -> محمد عبدالرحمن محمد عبدالصابر | C125: ='ن ع 1-2-3'!C133 -> الأول | D125: ='ن ع 1-2-3'!P133 -> 0 | E125: ='ن ع 1-2-3'!R133 -> 0 | F125: ='ن ع 1-2-3'!W133 -> 0 | G125: ='ن ع 1-2-3'!Y133 -> 0 | H125: ='ن ع 1-2-3'!AD133 -> 0 | I125: ='ن ع 1-2-3'!AF133 -> 0 | J125: ='ن ع 1-2-3'!AT133 -> 0 | K125: ='ن ع 1-2-3'!AV133 -> 0 | L125: ='ن ع 1-2-3'!AO133 -> 0 | M125: ='ن ع 1-2-3'!BE133 -> 0 | N125: ='ن ع 1-2-3'!BN133 -> 0 | O125: ='ن ع 1-2-3'!BO133 -> 0 | P125: ='ن ع 1-2-3'!BT133 -> 0 | Q125: ='ن ع 1-2-3'!BV133 -> 0
A126: ='ن ع 1-2-3'!A134 -> 118 | B126: ='ن ع 1-2-3'!B134 -> محمد علي محمد عبدالفتاح | C126: ='ن ع 1-2-3'!C134 -> الأول | D126: ='ن ع 1-2-3'!P134 -> 0 | E126: ='ن ع 1-2-3'!R134 -> 0 | F126: ='ن ع 1-2-3'!W134 -> 0 | G126: ='ن ع 1-2-3'!Y134 -> 0 | H126: ='ن ع 1-2-3'!AD134 -> 0 | I126: ='ن ع 1-2-3'!AF134 -> 0 | J126: ='ن ع 1-2-3'!AT134 -> 0 | K126: ='ن ع 1-2-3'!AV134 -> 0 | L126: ='ن ع 1-2-3'!AO134 -> 0 | M126: ='ن ع 1-2-3'!BE134 -> 0 | N126: ='ن ع 1-2-3'!BN134 -> 0 | O126: ='ن ع 1-2-3'!BO134 -> 0 | P126: ='ن ع 1-2-3'!BT134 -> 0 | Q126: ='ن ع 1-2-3'!BV134 -> 0
A127: ='ن ع 1-2-3'!A135 -> 119 | B127: ='ن ع 1-2-3'!B135 -> محمد محمود عبدالرحمن محمد | C127: ='ن ع 1-2-3'!C135 -> الأول | D127: ='ن ع 1-2-3'!P135 -> 0 | E127: ='ن ع 1-2-3'!R135 -> 0 | F127: ='ن ع 1-2-3'!W135 -> 0 | G127: ='ن ع 1-2-3'!Y135 -> 0 | H127: ='ن ع 1-2-3'!AD135 -> 0 | I127: ='ن ع 1-2-3'!AF135 -> 0 | J127: ='ن ع 1-2-3'!AT135 -> 0 | K127: ='ن ع 1-2-3'!AV135 -> 0 | L127: ='ن ع 1-2-3'!AO135 -> 0 | M127: ='ن ع 1-2-3'!BE135 -> 0 | N127: ='ن ع 1-2-3'!BN135 -> 0 | O127: ='ن ع 1-2-3'!BO135 -> 0 | P127: ='ن ع 1-2-3'!BT135 -> 0 | Q127: ='ن ع 1-2-3'!BV135 -> 0
A128: ='ن ع 1-2-3'!A136 -> 120 | B128: ='ن ع 1-2-3'!B136 -> محمد مصطفى عطا خلف | C128: ='ن ع 1-2-3'!C136 -> الأول | D128: ='ن ع 1-2-3'!P136 -> 0 | E128: ='ن ع 1-2-3'!R136 -> 0 | F128: ='ن ع 1-2-3'!W136 -> 0 | G128: ='ن ع 1-2-3'!Y136 -> 0 | H128: ='ن ع 1-2-3'!AD136 -> 0 | I128: ='ن ع 1-2-3'!AF136 -> 0 | J128: ='ن ع 1-2-3'!AT136 -> 0 | K128: ='ن ع 1-2-3'!AV136 -> 0 | L128: ='ن ع 1-2-3'!AO136 -> 0 | M128: ='ن ع 1-2-3'!BE136 -> 0 | N128: ='ن ع 1-2-3'!BN136 -> 0 | O128: ='ن ع 1-2-3'!BO136 -> 0 | P128: ='ن ع 1-2-3'!BT136 -> 0 | Q128: ='ن ع 1-2-3'!BV136 -> 0
A129: ='ن ع 1-2-3'!A137 -> 121 | B129: ='ن ع 1-2-3'!B137 -> محمد هاشم محمد عبداللطيف | C129: ='ن ع 1-2-3'!C137 -> الأول | D129: ='ن ع 1-2-3'!P137 -> 0 | E129: ='ن ع 1-2-3'!R137 -> 0 | F129: ='ن ع 1-2-3'!W137 -> 0 | G129: ='ن ع 1-2-3'!Y137 -> 0 | H129: ='ن ع 1-2-3'!AD137 -> 0 | I129: ='ن ع 1-2-3'!AF137 -> 0 | J129: ='ن ع 1-2-3'!AT137 -> 0 | K129: ='ن ع 1-2-3'!AV137 -> 0 | L129: ='ن ع 1-2-3'!AO137 -> 0 | M129: ='ن ع 1-2-3'!BE137 -> 0 | N129: ='ن ع 1-2-3'!BN137 -> 0 | O129: ='ن ع 1-2-3'!BO137 -> 0 | P129: ='ن ع 1-2-3'!BT137 -> 0 | Q129: ='ن ع 1-2-3'!BV137 -> 0
A130: ='ن ع 1-2-3'!A138 -> 122 | B130: ='ن ع 1-2-3'!B138 -> محمود أسامة معتمد محمود | C130: ='ن ع 1-2-3'!C138 -> الأول | D130: ='ن ع 1-2-3'!P138 -> 0 | E130: ='ن ع 1-2-3'!R138 -> 0 | F130: ='ن ع 1-2-3'!W138 -> 0 | G130: ='ن ع 1-2-3'!Y138 -> 0 | H130: ='ن ع 1-2-3'!AD138 -> 0 | I130: ='ن ع 1-2-3'!AF138 -> 0 | J130: ='ن ع 1-2-3'!AT138 -> 0 | K130: ='ن ع 1-2-3'!AV138 -> 0 | L130: ='ن ع 1-2-3'!AO138 -> 0 | M130: ='ن ع 1-2-3'!BE138 -> 0 | N130: ='ن ع 1-2-3'!BN138 -> 0 | O130: ='ن ع 1-2-3'!BO138 -> 0 | P130: ='ن ع 1-2-3'!BT138 -> 0 | Q130: ='ن ع 1-2-3'!BV138 -> 0
A131: ='ن ع 1-2-3'!A139 -> 123 | B131: ='ن ع 1-2-3'!B139 -> محمود سعيد قياتي عبدالفتاح | C131: ='ن ع 1-2-3'!C139 -> الأول | D131: ='ن ع 1-2-3'!P139 -> 0 | E131: ='ن ع 1-2-3'!R139 -> 0 | F131: ='ن ع 1-2-3'!W139 -> 0 | G131: ='ن ع 1-2-3'!Y139 -> 0 | H131: ='ن ع 1-2-3'!AD139 -> 0 | I131: ='ن ع 1-2-3'!AF139 -> 0 | J131: ='ن ع 1-2-3'!AT139 -> 0 | K131: ='ن ع 1-2-3'!AV139 -> 0 | L131: ='ن ع 1-2-3'!AO139 -> 0 | M131: ='ن ع 1-2-3'!BE139 -> 0 | N131: ='ن ع 1-2-3'!BN139 -> 0 | O131: ='ن ع 1-2-3'!BO139 -> 0 | P131: ='ن ع 1-2-3'!BT139 -> 0 | Q131: ='ن ع 1-2-3'!BV139 -> 0
A132: ='ن ع 1-2-3'!A140 -> 124 | B132: ='ن ع 1-2-3'!B140 -> محمود علاء إسماعيل حسن | C132: ='ن ع 1-2-3'!C140 -> الأول | D132: ='ن ع 1-2-3'!P140 -> 0 | E132: ='ن ع 1-2-3'!R140 -> 0 | F132: ='ن ع 1-2-3'!W140 -> 0 | G132: ='ن ع 1-2-3'!Y140 -> 0 | H132: ='ن ع 1-2-3'!AD140 -> 0 | I132: ='ن ع 1-2-3'!AF140 -> 0 | J132: ='ن ع 1-2-3'!AT140 -> 0 | K132: ='ن ع 1-2-3'!AV140 -> 0 | L132: ='ن ع 1-2-3'!AO140 -> 0 | M132: ='ن ع 1-2-3'!BE140 -> 0 | N132: ='ن ع 1-2-3'!BN140 -> 0 | O132: ='ن ع 1-2-3'!BO140 -> 0 | P132: ='ن ع 1-2-3'!BT140 -> 0 | Q132: ='ن ع 1-2-3'!BV140 -> 0
A133: ='ن ع 1-2-3'!A141 -> 125 | B133: ='ن ع 1-2-3'!B141 -> محمود محمد رجب عبدالعزيز | C133: ='ن ع 1-2-3'!C141 -> الأول | D133: ='ن ع 1-2-3'!P141 -> 0 | E133: ='ن ع 1-2-3'!R141 -> 0 | F133: ='ن ع 1-2-3'!W141 -> 0 | G133: ='ن ع 1-2-3'!Y141 -> 0 | H133: ='ن ع 1-2-3'!AD141 -> 0 | I133: ='ن ع 1-2-3'!AF141 -> 0 | J133: ='ن ع 1-2-3'!AT141 -> 0 | K133: ='ن ع 1-2-3'!AV141 -> 0 | L133: ='ن ع 1-2-3'!AO141 -> 0 | M133: ='ن ع 1-2-3'!BE141 -> 0 | N133: ='ن ع 1-2-3'!BN141 -> 0 | O133: ='ن ع 1-2-3'!BO141 -> 0 | P133: ='ن ع 1-2-3'!BT141 -> 0 | Q133: ='ن ع 1-2-3'!BV141 -> 0
A134: ='ن ع 1-2-3'!A142 -> 126 | B134: ='ن ع 1-2-3'!B142 -> مروان أسامة محمد أحمد | C134: ='ن ع 1-2-3'!C142 -> الأول | D134: ='ن ع 1-2-3'!P142 -> 0 | E134: ='ن ع 1-2-3'!R142 -> 0 | F134: ='ن ع 1-2-3'!W142 -> 0 | G134: ='ن ع 1-2-3'!Y142 -> 0 | H134: ='ن ع 1-2-3'!AD142 -> 0 | I134: ='ن ع 1-2-3'!AF142 -> 0 | J134: ='ن ع 1-2-3'!AT142 -> 0 | K134: ='ن ع 1-2-3'!AV142 -> 0 | L134: ='ن ع 1-2-3'!AO142 -> 0 | M134: ='ن ع 1-2-3'!BE142 -> 0 | N134: ='ن ع 1-2-3'!BN142 -> 0 | O134: ='ن ع 1-2-3'!BO142 -> 0 | P134: ='ن ع 1-2-3'!BT142 -> 0 | Q134: ='ن ع 1-2-3'!BV142 -> 0
A135: ='ن ع 1-2-3'!A143 -> 127 | B135: ='ن ع 1-2-3'!B143 -> مروان رضا سلطان عثمان | C135: ='ن ع 1-2-3'!C143 -> الأول | D135: ='ن ع 1-2-3'!P143 -> 0 | E135: ='ن ع 1-2-3'!R143 -> 0 | F135: ='ن ع 1-2-3'!W143 -> 0 | G135: ='ن ع 1-2-3'!Y143 -> 0 | H135: ='ن ع 1-2-3'!AD143 -> 0 | I135: ='ن ع 1-2-3'!AF143 -> 0 | J135: ='ن ع 1-2-3'!AT143 -> 0 | K135: ='ن ع 1-2-3'!AV143 -> 0 | L135: ='ن ع 1-2-3'!AO143 -> 0 | M135: ='ن ع 1-2-3'!BE143 -> 0 | N135: ='ن ع 1-2-3'!BN143 -> 0 | O135: ='ن ع 1-2-3'!BO143 -> 0 | P135: ='ن ع 1-2-3'!BT143 -> 0 | Q135: ='ن ع 1-2-3'!BV143 -> 0
A136: ='ن ع 1-2-3'!A144 -> 128 | B136: ='ن ع 1-2-3'!B144 -> مروان عبدالرحمن عواد شعبان | C136: ='ن ع 1-2-3'!C144 -> الأول | D136: ='ن ع 1-2-3'!P144 -> 0 | E136: ='ن ع 1-2-3'!R144 -> 0 | F136: ='ن ع 1-2-3'!W144 -> 0 | G136: ='ن ع 1-2-3'!Y144 -> 0 | H136: ='ن ع 1-2-3'!AD144 -> 0 | I136: ='ن ع 1-2-3'!AF144 -> 0 | J136: ='ن ع 1-2-3'!AT144 -> 0 | K136: ='ن ع 1-2-3'!AV144 -> 0 | L136: ='ن ع 1-2-3'!AO144 -> 0 | M136: ='ن ع 1-2-3'!BE144 -> 0 | N136: ='ن ع 1-2-3'!BN144 -> 0 | O136: ='ن ع 1-2-3'!BO144 -> 0 | P136: ='ن ع 1-2-3'!BT144 -> 0 | Q136: ='ن ع 1-2-3'!BV144 -> 0
A137: ='ن ع 1-2-3'!A145 -> 129 | B137: ='ن ع 1-2-3'!B145 -> مروان محمد ماضي أحمد | C137: ='ن ع 1-2-3'!C145 -> الأول | D137: ='ن ع 1-2-3'!P145 -> 0 | E137: ='ن ع 1-2-3'!R145 -> 0 | F137: ='ن ع 1-2-3'!W145 -> 0 | G137: ='ن ع 1-2-3'!Y145 -> 0 | H137: ='ن ع 1-2-3'!AD145 -> 0 | I137: ='ن ع 1-2-3'!AF145 -> 0 | J137: ='ن ع 1-2-3'!AT145 -> 0 | K137: ='ن ع 1-2-3'!AV145 -> 0 | L137: ='ن ع 1-2-3'!AO145 -> 0 | M137: ='ن ع 1-2-3'!BE145 -> 0 | N137: ='ن ع 1-2-3'!BN145 -> 0 | O137: ='ن ع 1-2-3'!BO145 -> 0 | P137: ='ن ع 1-2-3'!BT145 -> 0 | Q137: ='ن ع 1-2-3'!BV145 -> 0
A138: ='ن ع 1-2-3'!A146 -> 130 | B138: ='ن ع 1-2-3'!B146 -> مصطفى أحمد مصطفى عبدالحكيم | C138: ='ن ع 1-2-3'!C146 -> الأول | D138: ='ن ع 1-2-3'!P146 -> 0 | E138: ='ن ع 1-2-3'!R146 -> 0 | F138: ='ن ع 1-2-3'!W146 -> 0 | G138: ='ن ع 1-2-3'!Y146 -> 0 | H138: ='ن ع 1-2-3'!AD146 -> 0 | I138: ='ن ع 1-2-3'!AF146 -> 0 | J138: ='ن ع 1-2-3'!AT146 -> 0 | K138: ='ن ع 1-2-3'!AV146 -> 0 | L138: ='ن ع 1-2-3'!AO146 -> 0 | M138: ='ن ع 1-2-3'!BE146 -> 0 | N138: ='ن ع 1-2-3'!BN146 -> 0 | O138: ='ن ع 1-2-3'!BO146 -> 0 | P138: ='ن ع 1-2-3'!BT146 -> 0 | Q138: ='ن ع 1-2-3'!BV146 -> 0
A139: ='ن ع 1-2-3'!A147 -> 131 | B139: ='ن ع 1-2-3'!B147 -> مصطفى عاطف علي عباس | C139: ='ن ع 1-2-3'!C147 -> الأول | D139: ='ن ع 1-2-3'!P147 -> 0 | E139: ='ن ع 1-2-3'!R147 -> 0 | F139: ='ن ع 1-2-3'!W147 -> 0 | G139: ='ن ع 1-2-3'!Y147 -> 0 | H139: ='ن ع 1-2-3'!AD147 -> 0 | I139: ='ن ع 1-2-3'!AF147 -> 0 | J139: ='ن ع 1-2-3'!AT147 -> 0 | K139: ='ن ع 1-2-3'!AV147 -> 0 | L139: ='ن ع 1-2-3'!AO147 -> 0 | M139: ='ن ع 1-2-3'!BE147 -> 0 | N139: ='ن ع 1-2-3'!BN147 -> 0 | O139: ='ن ع 1-2-3'!BO147 -> 0 | P139: ='ن ع 1-2-3'!BT147 -> 0 | Q139: ='ن ع 1-2-3'!BV147 -> 0
A140: ='ن ع 1-2-3'!A148 -> 132 | B140: ='ن ع 1-2-3'!B148 -> مصطفى عبدالحفيظ عبدالعزيز عبدالرازق | C140: ='ن ع 1-2-3'!C148 -> الأول | D140: ='ن ع 1-2-3'!P148 -> 0 | E140: ='ن ع 1-2-3'!R148 -> 0 | F140: ='ن ع 1-2-3'!W148 -> 0 | G140: ='ن ع 1-2-3'!Y148 -> 0 | H140: ='ن ع 1-2-3'!AD148 -> 0 | I140: ='ن ع 1-2-3'!AF148 -> 0 | J140: ='ن ع 1-2-3'!AT148 -> 0 | K140: ='ن ع 1-2-3'!AV148 -> 0 | L140: ='ن ع 1-2-3'!AO148 -> 0 | M140: ='ن ع 1-2-3'!BE148 -> 0 | N140: ='ن ع 1-2-3'!BN148 -> 0 | O140: ='ن ع 1-2-3'!BO148 -> 0 | P140: ='ن ع 1-2-3'!BT148 -> 0 | Q140: ='ن ع 1-2-3'!BV148 -> 0
A141: ='ن ع 1-2-3'!A149 -> 133 | B141: ='ن ع 1-2-3'!B149 -> معتز أحمد شعبان شحاتة | C141: ='ن ع 1-2-3'!C149 -> الأول | D141: ='ن ع 1-2-3'!P149 -> 0 | E141: ='ن ع 1-2-3'!R149 -> 0 | F141: ='ن ع 1-2-3'!W149 -> 0 | G141: ='ن ع 1-2-3'!Y149 -> 0 | H141: ='ن ع 1-2-3'!AD149 -> 0 | I141: ='ن ع 1-2-3'!AF149 -> 0 | J141: ='ن ع 1-2-3'!AT149 -> 0 | K141: ='ن ع 1-2-3'!AV149 -> 0 | L141: ='ن ع 1-2-3'!AO149 -> 0 | M141: ='ن ع 1-2-3'!BE149 -> 0 | N141: ='ن ع 1-2-3'!BN149 -> 0 | O141: ='ن ع 1-2-3'!BO149 -> 0 | P141: ='ن ع 1-2-3'!BT149 -> 0 | Q141: ='ن ع 1-2-3'!BV149 -> 0
A142: ='ن ع 1-2-3'!A150 -> 134 | B142: ='ن ع 1-2-3'!B150 -> مكاري إبراهيم حبيب إبراهيم | C142: ='ن ع 1-2-3'!C150 -> الأول | D142: ='ن ع 1-2-3'!P150 -> 0 | E142: ='ن ع 1-2-3'!R150 -> 0 | F142: ='ن ع 1-2-3'!W150 -> 0 | G142: ='ن ع 1-2-3'!Y150 -> 0 | H142: ='ن ع 1-2-3'!AD150 -> 0 | I142: ='ن ع 1-2-3'!AF150 -> 0 | J142: ='ن ع 1-2-3'!AT150 -> 0 | K142: ='ن ع 1-2-3'!AV150 -> 0 | L142: ='ن ع 1-2-3'!AO150 -> 0 | M142: ='ن ع 1-2-3'!BE150 -> 0 | N142: ='ن ع 1-2-3'!BN150 -> 0 | O142: ='ن ع 1-2-3'!BO150 -> 0 | P142: ='ن ع 1-2-3'!BT150 -> 0 | Q142: ='ن ع 1-2-3'!BV150 -> 0
A143: ='ن ع 1-2-3'!A151 -> 135 | B143: ='ن ع 1-2-3'!B151 -> ياسين طه عبدالرحمن محمد | C143: ='ن ع 1-2-3'!C151 -> الأول | D143: ='ن ع 1-2-3'!P151 -> 0 | E143: ='ن ع 1-2-3'!R151 -> 0 | F143: ='ن ع 1-2-3'!W151 -> 0 | G143: ='ن ع 1-2-3'!Y151 -> 0 | H143: ='ن ع 1-2-3'!AD151 -> 0 | I143: ='ن ع 1-2-3'!AF151 -> 0 | J143: ='ن ع 1-2-3'!AT151 -> 0 | K143: ='ن ع 1-2-3'!AV151 -> 0 | L143: ='ن ع 1-2-3'!AO151 -> 0 | M143: ='ن ع 1-2-3'!BE151 -> 0 | N143: ='ن ع 1-2-3'!BN151 -> 0 | O143: ='ن ع 1-2-3'!BO151 -> 0 | P143: ='ن ع 1-2-3'!BT151 -> 0 | Q143: ='ن ع 1-2-3'!BV151 -> 0
A144: ='ن ع 1-2-3'!A152 -> 136 | B144: ='ن ع 1-2-3'!B152 -> يحي مصطفى زكي كامل | C144: ='ن ع 1-2-3'!C152 -> الأول | D144: ='ن ع 1-2-3'!P152 -> 0 | E144: ='ن ع 1-2-3'!R152 -> 0 | F144: ='ن ع 1-2-3'!W152 -> 0 | G144: ='ن ع 1-2-3'!Y152 -> 0 | H144: ='ن ع 1-2-3'!AD152 -> 0 | I144: ='ن ع 1-2-3'!AF152 -> 0 | J144: ='ن ع 1-2-3'!AT152 -> 0 | K144: ='ن ع 1-2-3'!AV152 -> 0 | L144: ='ن ع 1-2-3'!AO152 -> 0 | M144: ='ن ع 1-2-3'!BE152 -> 0 | N144: ='ن ع 1-2-3'!BN152 -> 0 | O144: ='ن ع 1-2-3'!BO152 -> 0 | P144: ='ن ع 1-2-3'!BT152 -> 0 | Q144: ='ن ع 1-2-3'!BV152 -> 0
A145: ='ن ع 1-2-3'!A153 -> 137 | B145: ='ن ع 1-2-3'!B153 -> يوسف محمود جمال أمين | C145: ='ن ع 1-2-3'!C153 -> الأول | D145: ='ن ع 1-2-3'!P153 -> 0 | E145: ='ن ع 1-2-3'!R153 -> 0 | F145: ='ن ع 1-2-3'!W153 -> 0 | G145: ='ن ع 1-2-3'!Y153 -> 0 | H145: ='ن ع 1-2-3'!AD153 -> 0 | I145: ='ن ع 1-2-3'!AF153 -> 0 | J145: ='ن ع 1-2-3'!AT153 -> 0 | K145: ='ن ع 1-2-3'!AV153 -> 0 | L145: ='ن ع 1-2-3'!AO153 -> 0 | M145: ='ن ع 1-2-3'!BE153 -> 0 | N145: ='ن ع 1-2-3'!BN153 -> 0 | O145: ='ن ع 1-2-3'!BO153 -> 0 | P145: ='ن ع 1-2-3'!BT153 -> 0 | Q145: ='ن ع 1-2-3'!BV153 -> 0
A146: ='ن ع 1-2-3'!A154 -> 138 | B146: ='ن ع 1-2-3'!B154 -> إيمان طه فتحى محمود على | C146: ='ن ع 1-2-3'!C154 -> الثاني | D146: ='ن ع 1-2-3'!P154 -> 0 | E146: ='ن ع 1-2-3'!R154 -> 0 | F146: ='ن ع 1-2-3'!W154 -> 0 | G146: ='ن ع 1-2-3'!Y154 -> 0 | H146: ='ن ع 1-2-3'!AD154 -> 0 | I146: ='ن ع 1-2-3'!AF154 -> 0 | J146: ='ن ع 1-2-3'!AT154 -> 0 | K146: ='ن ع 1-2-3'!AV154 -> 0 | L146: ='ن ع 1-2-3'!AO154 -> 0 | M146: ='ن ع 1-2-3'!BE154 -> 0 | N146: ='ن ع 1-2-3'!BN154 -> 0 | O146: ='ن ع 1-2-3'!BO154 -> 0 | P146: ='ن ع 1-2-3'!BT154 -> 0 | Q146: ='ن ع 1-2-3'!BV154 -> 0
A147: ='ن ع 1-2-3'!A155 -> 139 | B147: ='ن ع 1-2-3'!B155 -> أروى ربيع عيد أبو بكر | C147: ='ن ع 1-2-3'!C155 -> الثاني | D147: ='ن ع 1-2-3'!P155 -> 0 | E147: ='ن ع 1-2-3'!R155 -> 0 | F147: ='ن ع 1-2-3'!W155 -> 0 | G147: ='ن ع 1-2-3'!Y155 -> 0 | H147: ='ن ع 1-2-3'!AD155 -> 0 | I147: ='ن ع 1-2-3'!AF155 -> 0 | J147: ='ن ع 1-2-3'!AT155 -> 0 | K147: ='ن ع 1-2-3'!AV155 -> 0 | L147: ='ن ع 1-2-3'!AO155 -> 0 | M147: ='ن ع 1-2-3'!BE155 -> 0 | N147: ='ن ع 1-2-3'!BN155 -> 0 | O147: ='ن ع 1-2-3'!BO155 -> 0 | P147: ='ن ع 1-2-3'!BT155 -> 0 | Q147: ='ن ع 1-2-3'!BV155 -> 0
A148: ='ن ع 1-2-3'!A156 -> 140 | B148: ='ن ع 1-2-3'!B156 -> أريج يحيى عطا يحيى | C148: ='ن ع 1-2-3'!C156 -> الثاني | D148: ='ن ع 1-2-3'!P156 -> 0 | E148: ='ن ع 1-2-3'!R156 -> 0 | F148: ='ن ع 1-2-3'!W156 -> 0 | G148: ='ن ع 1-2-3'!Y156 -> 0 | H148: ='ن ع 1-2-3'!AD156 -> 0 | I148: ='ن ع 1-2-3'!AF156 -> 0 | J148: ='ن ع 1-2-3'!AT156 -> 0 | K148: ='ن ع 1-2-3'!AV156 -> 0 | L148: ='ن ع 1-2-3'!AO156 -> 0 | M148: ='ن ع 1-2-3'!BE156 -> 0 | N148: ='ن ع 1-2-3'!BN156 -> 0 | O148: ='ن ع 1-2-3'!BO156 -> 0 | P148: ='ن ع 1-2-3'!BT156 -> 0 | Q148: ='ن ع 1-2-3'!BV156 -> 0
A149: ='ن ع 1-2-3'!A157 -> 141 | B149: ='ن ع 1-2-3'!B157 -> أسماء الجنيدى عبد العزيز عبد الرازق | C149: ='ن ع 1-2-3'!C157 -> الثاني | D149: ='ن ع 1-2-3'!P157 -> 0 | E149: ='ن ع 1-2-3'!R157 -> 0 | F149: ='ن ع 1-2-3'!W157 -> 0 | G149: ='ن ع 1-2-3'!Y157 -> 0 | H149: ='ن ع 1-2-3'!AD157 -> 0 | I149: ='ن ع 1-2-3'!AF157 -> 0 | J149: ='ن ع 1-2-3'!AT157 -> 0 | K149: ='ن ع 1-2-3'!AV157 -> 0 | L149: ='ن ع 1-2-3'!AO157 -> 0 | M149: ='ن ع 1-2-3'!BE157 -> 0 | N149: ='ن ع 1-2-3'!BN157 -> 0 | O149: ='ن ع 1-2-3'!BO157 -> 0 | P149: ='ن ع 1-2-3'!BT157 -> 0 | Q149: ='ن ع 1-2-3'!BV157 -> 0
A150: ='ن ع 1-2-3'!A158 -> 142 | B150: ='ن ع 1-2-3'!B158 -> أسيل عزت حسن على | C150: ='ن ع 1-2-3'!C158 -> الثاني | D150: ='ن ع 1-2-3'!P158 -> 0 | E150: ='ن ع 1-2-3'!R158 -> 0 | F150: ='ن ع 1-2-3'!W158 -> 0 | G150: ='ن ع 1-2-3'!Y158 -> 0 | H150: ='ن ع 1-2-3'!AD158 -> 0 | I150: ='ن ع 1-2-3'!AF158 -> 0 | J150: ='ن ع 1-2-3'!AT158 -> 0 | K150: ='ن ع 1-2-3'!AV158 -> 0 | L150: ='ن ع 1-2-3'!AO158 -> 0 | M150: ='ن ع 1-2-3'!BE158 -> 0 | N150: ='ن ع 1-2-3'!BN158 -> 0 | O150: ='ن ع 1-2-3'!BO158 -> 0 | P150: ='ن ع 1-2-3'!BT158 -> 0 | Q150: ='ن ع 1-2-3'!BV158 -> 0
A151: ='ن ع 1-2-3'!A159 -> 143 | B151: ='ن ع 1-2-3'!B159 -> أسيل هنى أبو الليل شحاتة | C151: ='ن ع 1-2-3'!C159 -> الثاني | D151: ='ن ع 1-2-3'!P159 -> 0 | E151: ='ن ع 1-2-3'!R159 -> 0 | F151: ='ن ع 1-2-3'!W159 -> 0 | G151: ='ن ع 1-2-3'!Y159 -> 0 | H151: ='ن ع 1-2-3'!AD159 -> 0 | I151: ='ن ع 1-2-3'!AF159 -> 0 | J151: ='ن ع 1-2-3'!AT159 -> 0 | K151: ='ن ع 1-2-3'!AV159 -> 0 | L151: ='ن ع 1-2-3'!AO159 -> 0 | M151: ='ن ع 1-2-3'!BE159 -> 0 | N151: ='ن ع 1-2-3'!BN159 -> 0 | O151: ='ن ع 1-2-3'!BO159 -> 0 | P151: ='ن ع 1-2-3'!BT159 -> 0 | Q151: ='ن ع 1-2-3'!BV159 -> 0
A152: ='ن ع 1-2-3'!A160 -> 144 | B152: ='ن ع 1-2-3'!B160 -> أيات أحمد خليفة على | C152: ='ن ع 1-2-3'!C160 -> الثاني | D152: ='ن ع 1-2-3'!P160 -> 0 | E152: ='ن ع 1-2-3'!R160 -> 0 | F152: ='ن ع 1-2-3'!W160 -> 0 | G152: ='ن ع 1-2-3'!Y160 -> 0 | H152: ='ن ع 1-2-3'!AD160 -> 0 | I152: ='ن ع 1-2-3'!AF160 -> 0 | J152: ='ن ع 1-2-3'!AT160 -> 0 | K152: ='ن ع 1-2-3'!AV160 -> 0 | L152: ='ن ع 1-2-3'!AO160 -> 0 | M152: ='ن ع 1-2-3'!BE160 -> 0 | N152: ='ن ع 1-2-3'!BN160 -> 0 | O152: ='ن ع 1-2-3'!BO160 -> 0 | P152: ='ن ع 1-2-3'!BT160 -> 0 | Q152: ='ن ع 1-2-3'!BV160 -> 0
A153: ='ن ع 1-2-3'!A161 -> 145 | B153: ='ن ع 1-2-3'!B161 -> أية محمد عاشور عبد الفتاح | C153: ='ن ع 1-2-3'!C161 -> الثاني | D153: ='ن ع 1-2-3'!P161 -> 0 | E153: ='ن ع 1-2-3'!R161 -> 0 | F153: ='ن ع 1-2-3'!W161 -> 0 | G153: ='ن ع 1-2-3'!Y161 -> 0 | H153: ='ن ع 1-2-3'!AD161 -> 0 | I153: ='ن ع 1-2-3'!AF161 -> 0 | J153: ='ن ع 1-2-3'!AT161 -> 0 | K153: ='ن ع 1-2-3'!AV161 -> 0 | L153: ='ن ع 1-2-3'!AO161 -> 0 | M153: ='ن ع 1-2-3'!BE161 -> 0 | N153: ='ن ع 1-2-3'!BN161 -> 0 | O153: ='ن ع 1-2-3'!BO161 -> 0 | P153: ='ن ع 1-2-3'!BT161 -> 0 | Q153: ='ن ع 1-2-3'!BV161 -> 0
A154: ='ن ع 1-2-3'!A162 -> 146 | B154: ='ن ع 1-2-3'!B162 -> بسملة عبد القادر مرسى محمد | C154: ='ن ع 1-2-3'!C162 -> الثاني | D154: ='ن ع 1-2-3'!P162 -> 0 | E154: ='ن ع 1-2-3'!R162 -> 0 | F154: ='ن ع 1-2-3'!W162 -> 0 | G154: ='ن ع 1-2-3'!Y162 -> 0 | H154: ='ن ع 1-2-3'!AD162 -> 0 | I154: ='ن ع 1-2-3'!AF162 -> 0 | J154: ='ن ع 1-2-3'!AT162 -> 0 | K154: ='ن ع 1-2-3'!AV162 -> 0 | L154: ='ن ع 1-2-3'!AO162 -> 0 | M154: ='ن ع 1-2-3'!BE162 -> 0 | N154: ='ن ع 1-2-3'!BN162 -> 0 | O154: ='ن ع 1-2-3'!BO162 -> 0 | P154: ='ن ع 1-2-3'!BT162 -> 0 | Q154: ='ن ع 1-2-3'!BV162 -> 0
A155: ='ن ع 1-2-3'!A163 -> 147 | B155: ='ن ع 1-2-3'!B163 -> بسملة محمد حسن زيدان | C155: ='ن ع 1-2-3'!C163 -> الثاني | D155: ='ن ع 1-2-3'!P163 -> 0 | E155: ='ن ع 1-2-3'!R163 -> 0 | F155: ='ن ع 1-2-3'!W163 -> 0 | G155: ='ن ع 1-2-3'!Y163 -> 0 | H155: ='ن ع 1-2-3'!AD163 -> 0 | I155: ='ن ع 1-2-3'!AF163 -> 0 | J155: ='ن ع 1-2-3'!AT163 -> 0 | K155: ='ن ع 1-2-3'!AV163 -> 0 | L155: ='ن ع 1-2-3'!AO163 -> 0 | M155: ='ن ع 1-2-3'!BE163 -> 0 | N155: ='ن ع 1-2-3'!BN163 -> 0 | O155: ='ن ع 1-2-3'!BO163 -> 0 | P155: ='ن ع 1-2-3'!BT163 -> 0 | Q155: ='ن ع 1-2-3'!BV163 -> 0
A156: ='ن ع 1-2-3'!A164 -> 148 | B156: ='ن ع 1-2-3'!B164 -> بسملة محمد يحيى فهمى | C156: ='ن ع 1-2-3'!C164 -> الثاني | D156: ='ن ع 1-2-3'!P164 -> 0 | E156: ='ن ع 1-2-3'!R164 -> 0 | F156: ='ن ع 1-2-3'!W164 -> 0 | G156: ='ن ع 1-2-3'!Y164 -> 0 | H156: ='ن ع 1-2-3'!AD164 -> 0 | I156: ='ن ع 1-2-3'!AF164 -> 0 | J156: ='ن ع 1-2-3'!AT164 -> 0 | K156: ='ن ع 1-2-3'!AV164 -> 0 | L156: ='ن ع 1-2-3'!AO164 -> 0 | M156: ='ن ع 1-2-3'!BE164 -> 0 | N156: ='ن ع 1-2-3'!BN164 -> 0 | O156: ='ن ع 1-2-3'!BO164 -> 0 | P156: ='ن ع 1-2-3'!BT164 -> 0 | Q156: ='ن ع 1-2-3'!BV164 -> 0
A157: ='ن ع 1-2-3'!A165 -> 149 | B157: ='ن ع 1-2-3'!B165 -> جنى عبد القادر كامل عبد اللطيف | C157: ='ن ع 1-2-3'!C165 -> الثاني | D157: ='ن ع 1-2-3'!P165 -> 0 | E157: ='ن ع 1-2-3'!R165 -> 0 | F157: ='ن ع 1-2-3'!W165 -> 0 | G157: ='ن ع 1-2-3'!Y165 -> 0 | H157: ='ن ع 1-2-3'!AD165 -> 0 | I157: ='ن ع 1-2-3'!AF165 -> 0 | J157: ='ن ع 1-2-3'!AT165 -> 0 | K157: ='ن ع 1-2-3'!AV165 -> 0 | L157: ='ن ع 1-2-3'!AO165 -> 0 | M157: ='ن ع 1-2-3'!BE165 -> 0 | N157: ='ن ع 1-2-3'!BN165 -> 0 | O157: ='ن ع 1-2-3'!BO165 -> 0 | P157: ='ن ع 1-2-3'!BT165 -> 0 | Q157: ='ن ع 1-2-3'!BV165 -> 0
A158: ='ن ع 1-2-3'!A166 -> 150 | B158: ='ن ع 1-2-3'!B166 -> جودي أحمد مصطفى مناع | C158: ='ن ع 1-2-3'!C166 -> الثاني | D158: ='ن ع 1-2-3'!P166 -> 0 | E158: ='ن ع 1-2-3'!R166 -> 0 | F158: ='ن ع 1-2-3'!W166 -> 0 | G158: ='ن ع 1-2-3'!Y166 -> 0 | H158: ='ن ع 1-2-3'!AD166 -> 0 | I158: ='ن ع 1-2-3'!AF166 -> 0 | J158: ='ن ع 1-2-3'!AT166 -> 0 | K158: ='ن ع 1-2-3'!AV166 -> 0 | L158: ='ن ع 1-2-3'!AO166 -> 0 | M158: ='ن ع 1-2-3'!BE166 -> 0 | N158: ='ن ع 1-2-3'!BN166 -> 0 | O158: ='ن ع 1-2-3'!BO166 -> 0 | P158: ='ن ع 1-2-3'!BT166 -> 0 | Q158: ='ن ع 1-2-3'!BV166 -> 0
A159: ='ن ع 1-2-3'!A167 -> 151 | B159: ='ن ع 1-2-3'!B167 -> حبيبة محمود عمر محمود | C159: ='ن ع 1-2-3'!C167 -> الثاني | D159: ='ن ع 1-2-3'!P167 -> 0 | E159: ='ن ع 1-2-3'!R167 -> 0 | F159: ='ن ع 1-2-3'!W167 -> 0 | G159: ='ن ع 1-2-3'!Y167 -> 0 | H159: ='ن ع 1-2-3'!AD167 -> 0 | I159: ='ن ع 1-2-3'!AF167 -> 0 | J159: ='ن ع 1-2-3'!AT167 -> 0 | K159: ='ن ع 1-2-3'!AV167 -> 0 | L159: ='ن ع 1-2-3'!AO167 -> 0 | M159: ='ن ع 1-2-3'!BE167 -> 0 | N159: ='ن ع 1-2-3'!BN167 -> 0 | O159: ='ن ع 1-2-3'!BO167 -> 0 | P159: ='ن ع 1-2-3'!BT167 -> 0 | Q159: ='ن ع 1-2-3'!BV167 -> 0
A160: ='ن ع 1-2-3'!A168 -> 152 | B160: ='ن ع 1-2-3'!B168 -> حفصة حمزة صادق عبد الغنى | C160: ='ن ع 1-2-3'!C168 -> الثاني | D160: ='ن ع 1-2-3'!P168 -> 0 | E160: ='ن ع 1-2-3'!R168 -> 0 | F160: ='ن ع 1-2-3'!W168 -> 0 | G160: ='ن ع 1-2-3'!Y168 -> 0 | H160: ='ن ع 1-2-3'!AD168 -> 0 | I160: ='ن ع 1-2-3'!AF168 -> 0 | J160: ='ن ع 1-2-3'!AT168 -> 0 | K160: ='ن ع 1-2-3'!AV168 -> 0 | L160: ='ن ع 1-2-3'!AO168 -> 0 | M160: ='ن ع 1-2-3'!BE168 -> 0 | N160: ='ن ع 1-2-3'!BN168 -> 0 | O160: ='ن ع 1-2-3'!BO168 -> 0 | P160: ='ن ع 1-2-3'!BT168 -> 0 | Q160: ='ن ع 1-2-3'!BV168 -> 0
A161: ='ن ع 1-2-3'!A169 -> 153 | B161: ='ن ع 1-2-3'!B169 -> حنين رجب محمد عبد الغنى | C161: ='ن ع 1-2-3'!C169 -> الثاني | D161: ='ن ع 1-2-3'!P169 -> 0 | E161: ='ن ع 1-2-3'!R169 -> 0 | F161: ='ن ع 1-2-3'!W169 -> 0 | G161: ='ن ع 1-2-3'!Y169 -> 0 | H161: ='ن ع 1-2-3'!AD169 -> 0 | I161: ='ن ع 1-2-3'!AF169 -> 0 | J161: ='ن ع 1-2-3'!AT169 -> 0 | K161: ='ن ع 1-2-3'!AV169 -> 0 | L161: ='ن ع 1-2-3'!AO169 -> 0 | M161: ='ن ع 1-2-3'!BE169 -> 0 | N161: ='ن ع 1-2-3'!BN169 -> 0 | O161: ='ن ع 1-2-3'!BO169 -> 0 | P161: ='ن ع 1-2-3'!BT169 -> 0 | Q161: ='ن ع 1-2-3'!BV169 -> 0
A162: ='ن ع 1-2-3'!A170 -> 154 | B162: ='ن ع 1-2-3'!B170 -> حنين محمد ربيع محمد شعبان | C162: ='ن ع 1-2-3'!C170 -> الثاني | D162: ='ن ع 1-2-3'!P170 -> 0 | E162: ='ن ع 1-2-3'!R170 -> 0 | F162: ='ن ع 1-2-3'!W170 -> 0 | G162: ='ن ع 1-2-3'!Y170 -> 0 | H162: ='ن ع 1-2-3'!AD170 -> 0 | I162: ='ن ع 1-2-3'!AF170 -> 0 | J162: ='ن ع 1-2-3'!AT170 -> 0 | K162: ='ن ع 1-2-3'!AV170 -> 0 | L162: ='ن ع 1-2-3'!AO170 -> 0 | M162: ='ن ع 1-2-3'!BE170 -> 0 | N162: ='ن ع 1-2-3'!BN170 -> 0 | O162: ='ن ع 1-2-3'!BO170 -> 0 | P162: ='ن ع 1-2-3'!BT170 -> 0 | Q162: ='ن ع 1-2-3'!BV170 -> 0
A163: ='ن ع 1-2-3'!A171 -> 155 | B163: ='ن ع 1-2-3'!B171 -> حنين مصطفى فتحى كامل | C163: ='ن ع 1-2-3'!C171 -> الثاني | D163: ='ن ع 1-2-3'!P171 -> 0 | E163: ='ن ع 1-2-3'!R171 -> 0 | F163: ='ن ع 1-2-3'!W171 -> 0 | G163: ='ن ع 1-2-3'!Y171 -> 0 | H163: ='ن ع 1-2-3'!AD171 -> 0 | I163: ='ن ع 1-2-3'!AF171 -> 0 | J163: ='ن ع 1-2-3'!AT171 -> 0 | K163: ='ن ع 1-2-3'!AV171 -> 0 | L163: ='ن ع 1-2-3'!AO171 -> 0 | M163: ='ن ع 1-2-3'!BE171 -> 0 | N163: ='ن ع 1-2-3'!BN171 -> 0 | O163: ='ن ع 1-2-3'!BO171 -> 0 | P163: ='ن ع 1-2-3'!BT171 -> 0 | Q163: ='ن ع 1-2-3'!BV171 -> 0
A164: ='ن ع 1-2-3'!A172 -> 156 | B164: ='ن ع 1-2-3'!B172 -> حنين وائل محمد أبو بكر | C164: ='ن ع 1-2-3'!C172 -> الثاني | D164: ='ن ع 1-2-3'!P172 -> 0 | E164: ='ن ع 1-2-3'!R172 -> 0 | F164: ='ن ع 1-2-3'!W172 -> 0 | G164: ='ن ع 1-2-3'!Y172 -> 0 | H164: ='ن ع 1-2-3'!AD172 -> 0 | I164: ='ن ع 1-2-3'!AF172 -> 0 | J164: ='ن ع 1-2-3'!AT172 -> 0 | K164: ='ن ع 1-2-3'!AV172 -> 0 | L164: ='ن ع 1-2-3'!AO172 -> 0 | M164: ='ن ع 1-2-3'!BE172 -> 0 | N164: ='ن ع 1-2-3'!BN172 -> 0 | O164: ='ن ع 1-2-3'!BO172 -> 0 | P164: ='ن ع 1-2-3'!BT172 -> 0 | Q164: ='ن ع 1-2-3'!BV172 -> 0
A165: ='ن ع 1-2-3'!A173 -> 157 | B165: ='ن ع 1-2-3'!B173 -> خديجة معبد صلاح محمد السيد | C165: ='ن ع 1-2-3'!C173 -> الثاني | D165: ='ن ع 1-2-3'!P173 -> 0 | E165: ='ن ع 1-2-3'!R173 -> 0 | F165: ='ن ع 1-2-3'!W173 -> 0 | G165: ='ن ع 1-2-3'!Y173 -> 0 | H165: ='ن ع 1-2-3'!AD173 -> 0 | I165: ='ن ع 1-2-3'!AF173 -> 0 | J165: ='ن ع 1-2-3'!AT173 -> 0 | K165: ='ن ع 1-2-3'!AV173 -> 0 | L165: ='ن ع 1-2-3'!AO173 -> 0 | M165: ='ن ع 1-2-3'!BE173 -> 0 | N165: ='ن ع 1-2-3'!BN173 -> 0 | O165: ='ن ع 1-2-3'!BO173 -> 0 | P165: ='ن ع 1-2-3'!BT173 -> 0 | Q165: ='ن ع 1-2-3'!BV173 -> 0
A166: ='ن ع 1-2-3'!A174 -> 158 | B166: ='ن ع 1-2-3'!B174 -> خديجة وائل عزت محمد | C166: ='ن ع 1-2-3'!C174 -> الثاني | D166: ='ن ع 1-2-3'!P174 -> 0 | E166: ='ن ع 1-2-3'!R174 -> 0 | F166: ='ن ع 1-2-3'!W174 -> 0 | G166: ='ن ع 1-2-3'!Y174 -> 0 | H166: ='ن ع 1-2-3'!AD174 -> 0 | I166: ='ن ع 1-2-3'!AF174 -> 0 | J166: ='ن ع 1-2-3'!AT174 -> 0 | K166: ='ن ع 1-2-3'!AV174 -> 0 | L166: ='ن ع 1-2-3'!AO174 -> 0 | M166: ='ن ع 1-2-3'!BE174 -> 0 | N166: ='ن ع 1-2-3'!BN174 -> 0 | O166: ='ن ع 1-2-3'!BO174 -> 0 | P166: ='ن ع 1-2-3'!BT174 -> 0 | Q166: ='ن ع 1-2-3'!BV174 -> 0
A167: ='ن ع 1-2-3'!A175 -> 159 | B167: ='ن ع 1-2-3'!B175 -> دعاء صلاح محمد صلاح | C167: ='ن ع 1-2-3'!C175 -> الثاني | D167: ='ن ع 1-2-3'!P175 -> 0 | E167: ='ن ع 1-2-3'!R175 -> 0 | F167: ='ن ع 1-2-3'!W175 -> 0 | G167: ='ن ع 1-2-3'!Y175 -> 0 | H167: ='ن ع 1-2-3'!AD175 -> 0 | I167: ='ن ع 1-2-3'!AF175 -> 0 | J167: ='ن ع 1-2-3'!AT175 -> 0 | K167: ='ن ع 1-2-3'!AV175 -> 0 | L167: ='ن ع 1-2-3'!AO175 -> 0 | M167: ='ن ع 1-2-3'!BE175 -> 0 | N167: ='ن ع 1-2-3'!BN175 -> 0 | O167: ='ن ع 1-2-3'!BO175 -> 0 | P167: ='ن ع 1-2-3'!BT175 -> 0 | Q167: ='ن ع 1-2-3'!BV175 -> 0
A168: ='ن ع 1-2-3'!A176 -> 160 | B168: ='ن ع 1-2-3'!B176 -> رزان إبراهيم يحيى محمد | C168: ='ن ع 1-2-3'!C176 -> الثاني | D168: ='ن ع 1-2-3'!P176 -> 0 | E168: ='ن ع 1-2-3'!R176 -> 0 | F168: ='ن ع 1-2-3'!W176 -> 0 | G168: ='ن ع 1-2-3'!Y176 -> 0 | H168: ='ن ع 1-2-3'!AD176 -> 0 | I168: ='ن ع 1-2-3'!AF176 -> 0 | J168: ='ن ع 1-2-3'!AT176 -> 0 | K168: ='ن ع 1-2-3'!AV176 -> 0 | L168: ='ن ع 1-2-3'!AO176 -> 0 | M168: ='ن ع 1-2-3'!BE176 -> 0 | N168: ='ن ع 1-2-3'!BN176 -> 0 | O168: ='ن ع 1-2-3'!BO176 -> 0 | P168: ='ن ع 1-2-3'!BT176 -> 0 | Q168: ='ن ع 1-2-3'!BV176 -> 0
A169: ='ن ع 1-2-3'!A177 -> 161 | B169: ='ن ع 1-2-3'!B177 -> رنا محمد عبد الله محمد | C169: ='ن ع 1-2-3'!C177 -> الثاني | D169: ='ن ع 1-2-3'!P177 -> 0 | E169: ='ن ع 1-2-3'!R177 -> 0 | F169: ='ن ع 1-2-3'!W177 -> 0 | G169: ='ن ع 1-2-3'!Y177 -> 0 | H169: ='ن ع 1-2-3'!AD177 -> 0 | I169: ='ن ع 1-2-3'!AF177 -> 0 | J169: ='ن ع 1-2-3'!AT177 -> 0 | K169: ='ن ع 1-2-3'!AV177 -> 0 | L169: ='ن ع 1-2-3'!AO177 -> 0 | M169: ='ن ع 1-2-3'!BE177 -> 0 | N169: ='ن ع 1-2-3'!BN177 -> 0 | O169: ='ن ع 1-2-3'!BO177 -> 0 | P169: ='ن ع 1-2-3'!BT177 -> 0 | Q169: ='ن ع 1-2-3'!BV177 -> 0
A170: ='ن ع 1-2-3'!A178 -> 162 | B170: ='ن ع 1-2-3'!B178 -> رودينا محسن محمد ربيع | C170: ='ن ع 1-2-3'!C178 -> الثاني | D170: ='ن ع 1-2-3'!P178 -> 0 | E170: ='ن ع 1-2-3'!R178 -> 0 | F170: ='ن ع 1-2-3'!W178 -> 0 | G170: ='ن ع 1-2-3'!Y178 -> 0 | H170: ='ن ع 1-2-3'!AD178 -> 0 | I170: ='ن ع 1-2-3'!AF178 -> 0 | J170: ='ن ع 1-2-3'!AT178 -> 0 | K170: ='ن ع 1-2-3'!AV178 -> 0 | L170: ='ن ع 1-2-3'!AO178 -> 0 | M170: ='ن ع 1-2-3'!BE178 -> 0 | N170: ='ن ع 1-2-3'!BN178 -> 0 | O170: ='ن ع 1-2-3'!BO178 -> 0 | P170: ='ن ع 1-2-3'!BT178 -> 0 | Q170: ='ن ع 1-2-3'!BV178 -> 0
A171: ='ن ع 1-2-3'!A179 -> 163 | B171: ='ن ع 1-2-3'!B179 -> رودينا محمد خالد محمد | C171: ='ن ع 1-2-3'!C179 -> الثاني | D171: ='ن ع 1-2-3'!P179 -> 0 | E171: ='ن ع 1-2-3'!R179 -> 0 | F171: ='ن ع 1-2-3'!W179 -> 0 | G171: ='ن ع 1-2-3'!Y179 -> 0 | H171: ='ن ع 1-2-3'!AD179 -> 0 | I171: ='ن ع 1-2-3'!AF179 -> 0 | J171: ='ن ع 1-2-3'!AT179 -> 0 | K171: ='ن ع 1-2-3'!AV179 -> 0 | L171: ='ن ع 1-2-3'!AO179 -> 0 | M171: ='ن ع 1-2-3'!BE179 -> 0 | N171: ='ن ع 1-2-3'!BN179 -> 0 | O171: ='ن ع 1-2-3'!BO179 -> 0 | P171: ='ن ع 1-2-3'!BT179 -> 0 | Q171: ='ن ع 1-2-3'!BV179 -> 0
A172: ='ن ع 1-2-3'!A180 -> 164 | B172: ='ن ع 1-2-3'!B180 -> روضة عصام محمد صلاح | C172: ='ن ع 1-2-3'!C180 -> الثاني | D172: ='ن ع 1-2-3'!P180 -> 0 | E172: ='ن ع 1-2-3'!R180 -> 0 | F172: ='ن ع 1-2-3'!W180 -> 0 | G172: ='ن ع 1-2-3'!Y180 -> 0 | H172: ='ن ع 1-2-3'!AD180 -> 0 | I172: ='ن ع 1-2-3'!AF180 -> 0 | J172: ='ن ع 1-2-3'!AT180 -> 0 | K172: ='ن ع 1-2-3'!AV180 -> 0 | L172: ='ن ع 1-2-3'!AO180 -> 0 | M172: ='ن ع 1-2-3'!BE180 -> 0 | N172: ='ن ع 1-2-3'!BN180 -> 0 | O172: ='ن ع 1-2-3'!BO180 -> 0 | P172: ='ن ع 1-2-3'!BT180 -> 0 | Q172: ='ن ع 1-2-3'!BV180 -> 0
A173: ='ن ع 1-2-3'!A181 -> 165 | B173: ='ن ع 1-2-3'!B181 -> ريتاج محمود مصطفى عبد الحكيم | C173: ='ن ع 1-2-3'!C181 -> الثاني | D173: ='ن ع 1-2-3'!P181 -> 0 | E173: ='ن ع 1-2-3'!R181 -> 0 | F173: ='ن ع 1-2-3'!W181 -> 0 | G173: ='ن ع 1-2-3'!Y181 -> 0 | H173: ='ن ع 1-2-3'!AD181 -> 0 | I173: ='ن ع 1-2-3'!AF181 -> 0 | J173: ='ن ع 1-2-3'!AT181 -> 0 | K173: ='ن ع 1-2-3'!AV181 -> 0 | L173: ='ن ع 1-2-3'!AO181 -> 0 | M173: ='ن ع 1-2-3'!BE181 -> 0 | N173: ='ن ع 1-2-3'!BN181 -> 0 | O173: ='ن ع 1-2-3'!BO181 -> 0 | P173: ='ن ع 1-2-3'!BT181 -> 0 | Q173: ='ن ع 1-2-3'!BV181 -> 0
A174: ='ن ع 1-2-3'!A182 -> 166 | B174: ='ن ع 1-2-3'!B182 -> ريتال خالد محمد شلقامى | C174: ='ن ع 1-2-3'!C182 -> الثاني | D174: ='ن ع 1-2-3'!P182 -> 0 | E174: ='ن ع 1-2-3'!R182 -> 0 | F174: ='ن ع 1-2-3'!W182 -> 0 | G174: ='ن ع 1-2-3'!Y182 -> 0 | H174: ='ن ع 1-2-3'!AD182 -> 0 | I174: ='ن ع 1-2-3'!AF182 -> 0 | J174: ='ن ع 1-2-3'!AT182 -> 0 | K174: ='ن ع 1-2-3'!AV182 -> 0 | L174: ='ن ع 1-2-3'!AO182 -> 0 | M174: ='ن ع 1-2-3'!BE182 -> 0 | N174: ='ن ع 1-2-3'!BN182 -> 0 | O174: ='ن ع 1-2-3'!BO182 -> 0 | P174: ='ن ع 1-2-3'!BT182 -> 0 | Q174: ='ن ع 1-2-3'!BV182 -> 0
A175: ='ن ع 1-2-3'!A183 -> 167 | B175: ='ن ع 1-2-3'!B183 -> ريماس إبراهيم حسن إبراهيم | C175: ='ن ع 1-2-3'!C183 -> الثاني | D175: ='ن ع 1-2-3'!P183 -> 0 | E175: ='ن ع 1-2-3'!R183 -> 0 | F175: ='ن ع 1-2-3'!W183 -> 0 | G175: ='ن ع 1-2-3'!Y183 -> 0 | H175: ='ن ع 1-2-3'!AD183 -> 0 | I175: ='ن ع 1-2-3'!AF183 -> 0 | J175: ='ن ع 1-2-3'!AT183 -> 0 | K175: ='ن ع 1-2-3'!AV183 -> 0 | L175: ='ن ع 1-2-3'!AO183 -> 0 | M175: ='ن ع 1-2-3'!BE183 -> 0 | N175: ='ن ع 1-2-3'!BN183 -> 0 | O175: ='ن ع 1-2-3'!BO183 -> 0 | P175: ='ن ع 1-2-3'!BT183 -> 0 | Q175: ='ن ع 1-2-3'!BV183 -> 0
A176: ='ن ع 1-2-3'!A184 -> 168 | B176: ='ن ع 1-2-3'!B184 -> ريماس كرم محمود راضى | C176: ='ن ع 1-2-3'!C184 -> الثاني | D176: ='ن ع 1-2-3'!P184 -> 0 | E176: ='ن ع 1-2-3'!R184 -> 0 | F176: ='ن ع 1-2-3'!W184 -> 0 | G176: ='ن ع 1-2-3'!Y184 -> 0 | H176: ='ن ع 1-2-3'!AD184 -> 0 | I176: ='ن ع 1-2-3'!AF184 -> 0 | J176: ='ن ع 1-2-3'!AT184 -> 0 | K176: ='ن ع 1-2-3'!AV184 -> 0 | L176: ='ن ع 1-2-3'!AO184 -> 0 | M176: ='ن ع 1-2-3'!BE184 -> 0 | N176: ='ن ع 1-2-3'!BN184 -> 0 | O176: ='ن ع 1-2-3'!BO184 -> 0 | P176: ='ن ع 1-2-3'!BT184 -> 0 | Q176: ='ن ع 1-2-3'!BV184 -> 0
A177: ='ن ع 1-2-3'!A185 -> 169 | B177: ='ن ع 1-2-3'!B185 -> ريهام محمود شحاتة محمد | C177: ='ن ع 1-2-3'!C185 -> الثاني | D177: ='ن ع 1-2-3'!P185 -> 0 | E177: ='ن ع 1-2-3'!R185 -> 0 | F177: ='ن ع 1-2-3'!W185 -> 0 | G177: ='ن ع 1-2-3'!Y185 -> 0 | H177: ='ن ع 1-2-3'!AD185 -> 0 | I177: ='ن ع 1-2-3'!AF185 -> 0 | J177: ='ن ع 1-2-3'!AT185 -> 0 | K177: ='ن ع 1-2-3'!AV185 -> 0 | L177: ='ن ع 1-2-3'!AO185 -> 0 | M177: ='ن ع 1-2-3'!BE185 -> 0 | N177: ='ن ع 1-2-3'!BN185 -> 0 | O177: ='ن ع 1-2-3'!BO185 -> 0 | P177: ='ن ع 1-2-3'!BT185 -> 0 | Q177: ='ن ع 1-2-3'!BV185 -> 0
A178: ='ن ع 1-2-3'!A186 -> 170 | B178: ='ن ع 1-2-3'!B186 -> زينب عبد العزيز عبد الغنى محمد | C178: ='ن ع 1-2-3'!C186 -> الثاني | D178: ='ن ع 1-2-3'!P186 -> 0 | E178: ='ن ع 1-2-3'!R186 -> 0 | F178: ='ن ع 1-2-3'!W186 -> 0 | G178: ='ن ع 1-2-3'!Y186 -> 0 | H178: ='ن ع 1-2-3'!AD186 -> 0 | I178: ='ن ع 1-2-3'!AF186 -> 0 | J178: ='ن ع 1-2-3'!AT186 -> 0 | K178: ='ن ع 1-2-3'!AV186 -> 0 | L178: ='ن ع 1-2-3'!AO186 -> 0 | M178: ='ن ع 1-2-3'!BE186 -> 0 | N178: ='ن ع 1-2-3'!BN186 -> 0 | O178: ='ن ع 1-2-3'!BO186 -> 0 | P178: ='ن ع 1-2-3'!BT186 -> 0 | Q178: ='ن ع 1-2-3'!BV186 -> 0
A179: ='ن ع 1-2-3'!A187 -> 171 | B179: ='ن ع 1-2-3'!B187 -> سارة أحمد ربيع أحمد معبد | C179: ='ن ع 1-2-3'!C187 -> الثاني | D179: ='ن ع 1-2-3'!P187 -> 0 | E179: ='ن ع 1-2-3'!R187 -> 0 | F179: ='ن ع 1-2-3'!W187 -> 0 | G179: ='ن ع 1-2-3'!Y187 -> 0 | H179: ='ن ع 1-2-3'!AD187 -> 0 | I179: ='ن ع 1-2-3'!AF187 -> 0 | J179: ='ن ع 1-2-3'!AT187 -> 0 | K179: ='ن ع 1-2-3'!AV187 -> 0 | L179: ='ن ع 1-2-3'!AO187 -> 0 | M179: ='ن ع 1-2-3'!BE187 -> 0 | N179: ='ن ع 1-2-3'!BN187 -> 0 | O179: ='ن ع 1-2-3'!BO187 -> 0 | P179: ='ن ع 1-2-3'!BT187 -> 0 | Q179: ='ن ع 1-2-3'!BV187 -> 0
A180: ='ن ع 1-2-3'!A188 -> 172 | B180: ='ن ع 1-2-3'!B188 -> سارة راضى محمد راضى | C180: ='ن ع 1-2-3'!C188 -> الثاني | D180: ='ن ع 1-2-3'!P188 -> 0 | E180: ='ن ع 1-2-3'!R188 -> 0 | F180: ='ن ع 1-2-3'!W188 -> 0 | G180: ='ن ع 1-2-3'!Y188 -> 0 | H180: ='ن ع 1-2-3'!AD188 -> 0 | I180: ='ن ع 1-2-3'!AF188 -> 0 | J180: ='ن ع 1-2-3'!AT188 -> 0 | K180: ='ن ع 1-2-3'!AV188 -> 0 | L180: ='ن ع 1-2-3'!AO188 -> 0 | M180: ='ن ع 1-2-3'!BE188 -> 0 | N180: ='ن ع 1-2-3'!BN188 -> 0 | O180: ='ن ع 1-2-3'!BO188 -> 0 | P180: ='ن ع 1-2-3'!BT188 -> 0 | Q180: ='ن ع 1-2-3'!BV188 -> 0
A181: ='ن ع 1-2-3'!A189 -> 173 | B181: ='ن ع 1-2-3'!B189 -> سجدة عبد الرحمن محمد شريف | C181: ='ن ع 1-2-3'!C189 -> الثاني | D181: ='ن ع 1-2-3'!P189 -> 0 | E181: ='ن ع 1-2-3'!R189 -> 0 | F181: ='ن ع 1-2-3'!W189 -> 0 | G181: ='ن ع 1-2-3'!Y189 -> 0 | H181: ='ن ع 1-2-3'!AD189 -> 0 | I181: ='ن ع 1-2-3'!AF189 -> 0 | J181: ='ن ع 1-2-3'!AT189 -> 0 | K181: ='ن ع 1-2-3'!AV189 -> 0 | L181: ='ن ع 1-2-3'!AO189 -> 0 | M181: ='ن ع 1-2-3'!BE189 -> 0 | N181: ='ن ع 1-2-3'!BN189 -> 0 | O181: ='ن ع 1-2-3'!BO189 -> 0 | P181: ='ن ع 1-2-3'!BT189 -> 0 | Q181: ='ن ع 1-2-3'!BV189 -> 0
A182: ='ن ع 1-2-3'!A190 -> 174 | B182: ='ن ع 1-2-3'!B190 -> سجود مصطفى محمد محمود | C182: ='ن ع 1-2-3'!C190 -> الثاني | D182: ='ن ع 1-2-3'!P190 -> 0 | E182: ='ن ع 1-2-3'!R190 -> 0 | F182: ='ن ع 1-2-3'!W190 -> 0 | G182: ='ن ع 1-2-3'!Y190 -> 0 | H182: ='ن ع 1-2-3'!AD190 -> 0 | I182: ='ن ع 1-2-3'!AF190 -> 0 | J182: ='ن ع 1-2-3'!AT190 -> 0 | K182: ='ن ع 1-2-3'!AV190 -> 0 | L182: ='ن ع 1-2-3'!AO190 -> 0 | M182: ='ن ع 1-2-3'!BE190 -> 0 | N182: ='ن ع 1-2-3'!BN190 -> 0 | O182: ='ن ع 1-2-3'!BO190 -> 0 | P182: ='ن ع 1-2-3'!BT190 -> 0 | Q182: ='ن ع 1-2-3'!BV190 -> 0
A183: ='ن ع 1-2-3'!A191 -> 175 | B183: ='ن ع 1-2-3'!B191 -> سجى أحمد محمود كامل | C183: ='ن ع 1-2-3'!C191 -> الثاني | D183: ='ن ع 1-2-3'!P191 -> 0 | E183: ='ن ع 1-2-3'!R191 -> 0 | F183: ='ن ع 1-2-3'!W191 -> 0 | G183: ='ن ع 1-2-3'!Y191 -> 0 | H183: ='ن ع 1-2-3'!AD191 -> 0 | I183: ='ن ع 1-2-3'!AF191 -> 0 | J183: ='ن ع 1-2-3'!AT191 -> 0 | K183: ='ن ع 1-2-3'!AV191 -> 0 | L183: ='ن ع 1-2-3'!AO191 -> 0 | M183: ='ن ع 1-2-3'!BE191 -> 0 | N183: ='ن ع 1-2-3'!BN191 -> 0 | O183: ='ن ع 1-2-3'!BO191 -> 0 | P183: ='ن ع 1-2-3'!BT191 -> 0 | Q183: ='ن ع 1-2-3'!BV191 -> 0
A184: ='ن ع 1-2-3'!A192 -> 176 | B184: ='ن ع 1-2-3'!B192 -> سجى محمود عبد العزيز على | C184: ='ن ع 1-2-3'!C192 -> الثاني | D184: ='ن ع 1-2-3'!P192 -> 0 | E184: ='ن ع 1-2-3'!R192 -> 0 | F184: ='ن ع 1-2-3'!W192 -> 0 | G184: ='ن ع 1-2-3'!Y192 -> 0 | H184: ='ن ع 1-2-3'!AD192 -> 0 | I184: ='ن ع 1-2-3'!AF192 -> 0 | J184: ='ن ع 1-2-3'!AT192 -> 0 | K184: ='ن ع 1-2-3'!AV192 -> 0 | L184: ='ن ع 1-2-3'!AO192 -> 0 | M184: ='ن ع 1-2-3'!BE192 -> 0 | N184: ='ن ع 1-2-3'!BN192 -> 0 | O184: ='ن ع 1-2-3'!BO192 -> 0 | P184: ='ن ع 1-2-3'!BT192 -> 0 | Q184: ='ن ع 1-2-3'!BV192 -> 0
A185: ='ن ع 1-2-3'!A193 -> 177 | B185: ='ن ع 1-2-3'!B193 -> سلمى أحمد يحيى سليمان | C185: ='ن ع 1-2-3'!C193 -> الثاني | D185: ='ن ع 1-2-3'!P193 -> 0 | E185: ='ن ع 1-2-3'!R193 -> 0 | F185: ='ن ع 1-2-3'!W193 -> 0 | G185: ='ن ع 1-2-3'!Y193 -> 0 | H185: ='ن ع 1-2-3'!AD193 -> 0 | I185: ='ن ع 1-2-3'!AF193 -> 0 | J185: ='ن ع 1-2-3'!AT193 -> 0 | K185: ='ن ع 1-2-3'!AV193 -> 0 | L185: ='ن ع 1-2-3'!AO193 -> 0 | M185: ='ن ع 1-2-3'!BE193 -> 0 | N185: ='ن ع 1-2-3'!BN193 -> 0 | O185: ='ن ع 1-2-3'!BO193 -> 0 | P185: ='ن ع 1-2-3'!BT193 -> 0 | Q185: ='ن ع 1-2-3'!BV193 -> 0
A186: ='ن ع 1-2-3'!A194 -> 178 | B186: ='ن ع 1-2-3'!B194 -> سما محمود اسماعيل عبد الحليم | C186: ='ن ع 1-2-3'!C194 -> الثاني | D186: ='ن ع 1-2-3'!P194 -> 0 | E186: ='ن ع 1-2-3'!R194 -> 0 | F186: ='ن ع 1-2-3'!W194 -> 0 | G186: ='ن ع 1-2-3'!Y194 -> 0 | H186: ='ن ع 1-2-3'!AD194 -> 0 | I186: ='ن ع 1-2-3'!AF194 -> 0 | J186: ='ن ع 1-2-3'!AT194 -> 0 | K186: ='ن ع 1-2-3'!AV194 -> 0 | L186: ='ن ع 1-2-3'!AO194 -> 0 | M186: ='ن ع 1-2-3'!BE194 -> 0 | N186: ='ن ع 1-2-3'!BN194 -> 0 | O186: ='ن ع 1-2-3'!BO194 -> 0 | P186: ='ن ع 1-2-3'!BT194 -> 0 | Q186: ='ن ع 1-2-3'!BV194 -> 0
A187: ='ن ع 1-2-3'!A195 -> 179 | B187: ='ن ع 1-2-3'!B195 -> عائشة محمد فتحى شعبان | C187: ='ن ع 1-2-3'!C195 -> الثاني | D187: ='ن ع 1-2-3'!P195 -> 0 | E187: ='ن ع 1-2-3'!R195 -> 0 | F187: ='ن ع 1-2-3'!W195 -> 0 | G187: ='ن ع 1-2-3'!Y195 -> 0 | H187: ='ن ع 1-2-3'!AD195 -> 0 | I187: ='ن ع 1-2-3'!AF195 -> 0 | J187: ='ن ع 1-2-3'!AT195 -> 0 | K187: ='ن ع 1-2-3'!AV195 -> 0 | L187: ='ن ع 1-2-3'!AO195 -> 0 | M187: ='ن ع 1-2-3'!BE195 -> 0 | N187: ='ن ع 1-2-3'!BN195 -> 0 | O187: ='ن ع 1-2-3'!BO195 -> 0 | P187: ='ن ع 1-2-3'!BT195 -> 0 | Q187: ='ن ع 1-2-3'!BV195 -> 0
A188: ='ن ع 1-2-3'!A196 -> 180 | B188: ='ن ع 1-2-3'!B196 -> عهود محمد عنتر فهمى | C188: ='ن ع 1-2-3'!C196 -> الثاني | D188: ='ن ع 1-2-3'!P196 -> 0 | E188: ='ن ع 1-2-3'!R196 -> 0 | F188: ='ن ع 1-2-3'!W196 -> 0 | G188: ='ن ع 1-2-3'!Y196 -> 0 | H188: ='ن ع 1-2-3'!AD196 -> 0 | I188: ='ن ع 1-2-3'!AF196 -> 0 | J188: ='ن ع 1-2-3'!AT196 -> 0 | K188: ='ن ع 1-2-3'!AV196 -> 0 | L188: ='ن ع 1-2-3'!AO196 -> 0 | M188: ='ن ع 1-2-3'!BE196 -> 0 | N188: ='ن ع 1-2-3'!BN196 -> 0 | O188: ='ن ع 1-2-3'!BO196 -> 0 | P188: ='ن ع 1-2-3'!BT196 -> 0 | Q188: ='ن ع 1-2-3'!BV196 -> 0
A189: ='ن ع 1-2-3'!A197 -> 181 | B189: ='ن ع 1-2-3'!B197 -> غادة محمد اسماعيل عمر | C189: ='ن ع 1-2-3'!C197 -> الثاني | D189: ='ن ع 1-2-3'!P197 -> 0 | E189: ='ن ع 1-2-3'!R197 -> 0 | F189: ='ن ع 1-2-3'!W197 -> 0 | G189: ='ن ع 1-2-3'!Y197 -> 0 | H189: ='ن ع 1-2-3'!AD197 -> 0 | I189: ='ن ع 1-2-3'!AF197 -> 0 | J189: ='ن ع 1-2-3'!AT197 -> 0 | K189: ='ن ع 1-2-3'!AV197 -> 0 | L189: ='ن ع 1-2-3'!AO197 -> 0 | M189: ='ن ع 1-2-3'!BE197 -> 0 | N189: ='ن ع 1-2-3'!BN197 -> 0 | O189: ='ن ع 1-2-3'!BO197 -> 0 | P189: ='ن ع 1-2-3'!BT197 -> 0 | Q189: ='ن ع 1-2-3'!BV197 -> 0
A190: ='ن ع 1-2-3'!A198 -> 182 | B190: ='ن ع 1-2-3'!B198 -> فاطمة محمد حسنى كمال | C190: ='ن ع 1-2-3'!C198 -> الثاني | D190: ='ن ع 1-2-3'!P198 -> 0 | E190: ='ن ع 1-2-3'!R198 -> 0 | F190: ='ن ع 1-2-3'!W198 -> 0 | G190: ='ن ع 1-2-3'!Y198 -> 0 | H190: ='ن ع 1-2-3'!AD198 -> 0 | I190: ='ن ع 1-2-3'!AF198 -> 0 | J190: ='ن ع 1-2-3'!AT198 -> 0 | K190: ='ن ع 1-2-3'!AV198 -> 0 | L190: ='ن ع 1-2-3'!AO198 -> 0 | M190: ='ن ع 1-2-3'!BE198 -> 0 | N190: ='ن ع 1-2-3'!BN198 -> 0 | O190: ='ن ع 1-2-3'!BO198 -> 0 | P190: ='ن ع 1-2-3'!BT198 -> 0 | Q190: ='ن ع 1-2-3'!BV198 -> 0
A191: ='ن ع 1-2-3'!A199 -> 183 | B191: ='ن ع 1-2-3'!B199 -> كنزى عادل عزت خالد | C191: ='ن ع 1-2-3'!C199 -> الثاني | D191: ='ن ع 1-2-3'!P199 -> 0 | E191: ='ن ع 1-2-3'!R199 -> 0 | F191: ='ن ع 1-2-3'!W199 -> 0 | G191: ='ن ع 1-2-3'!Y199 -> 0 | H191: ='ن ع 1-2-3'!AD199 -> 0 | I191: ='ن ع 1-2-3'!AF199 -> 0 | J191: ='ن ع 1-2-3'!AT199 -> 0 | K191: ='ن ع 1-2-3'!AV199 -> 0 | L191: ='ن ع 1-2-3'!AO199 -> 0 | M191: ='ن ع 1-2-3'!BE199 -> 0 | N191: ='ن ع 1-2-3'!BN199 -> 0 | O191: ='ن ع 1-2-3'!BO199 -> 0 | P191: ='ن ع 1-2-3'!BT199 -> 0 | Q191: ='ن ع 1-2-3'!BV199 -> 0
A192: ='ن ع 1-2-3'!A200 -> 184 | B192: ='ن ع 1-2-3'!B200 -> مريم أحمد أبوبكر صديق | C192: ='ن ع 1-2-3'!C200 -> الثاني | D192: ='ن ع 1-2-3'!P200 -> 0 | E192: ='ن ع 1-2-3'!R200 -> 0 | F192: ='ن ع 1-2-3'!W200 -> 0 | G192: ='ن ع 1-2-3'!Y200 -> 0 | H192: ='ن ع 1-2-3'!AD200 -> 0 | I192: ='ن ع 1-2-3'!AF200 -> 0 | J192: ='ن ع 1-2-3'!AT200 -> 0 | K192: ='ن ع 1-2-3'!AV200 -> 0 | L192: ='ن ع 1-2-3'!AO200 -> 0 | M192: ='ن ع 1-2-3'!BE200 -> 0 | N192: ='ن ع 1-2-3'!BN200 -> 0 | O192: ='ن ع 1-2-3'!BO200 -> 0 | P192: ='ن ع 1-2-3'!BT200 -> 0 | Q192: ='ن ع 1-2-3'!BV200 -> 0
A193: ='ن ع 1-2-3'!A201 -> 185 | B193: ='ن ع 1-2-3'!B201 -> مريم أحمد محروس عبد الغنى | C193: ='ن ع 1-2-3'!C201 -> الثاني | D193: ='ن ع 1-2-3'!P201 -> 0 | E193: ='ن ع 1-2-3'!R201 -> 0 | F193: ='ن ع 1-2-3'!W201 -> 0 | G193: ='ن ع 1-2-3'!Y201 -> 0 | H193: ='ن ع 1-2-3'!AD201 -> 0 | I193: ='ن ع 1-2-3'!AF201 -> 0 | J193: ='ن ع 1-2-3'!AT201 -> 0 | K193: ='ن ع 1-2-3'!AV201 -> 0 | L193: ='ن ع 1-2-3'!AO201 -> 0 | M193: ='ن ع 1-2-3'!BE201 -> 0 | N193: ='ن ع 1-2-3'!BN201 -> 0 | O193: ='ن ع 1-2-3'!BO201 -> 0 | P193: ='ن ع 1-2-3'!BT201 -> 0 | Q193: ='ن ع 1-2-3'!BV201 -> 0
A194: ='ن ع 1-2-3'!A202 -> 186 | B194: ='ن ع 1-2-3'!B202 -> مريم عصام أنور مرسى | C194: ='ن ع 1-2-3'!C202 -> الثاني | D194: ='ن ع 1-2-3'!P202 -> 0 | E194: ='ن ع 1-2-3'!R202 -> 0 | F194: ='ن ع 1-2-3'!W202 -> 0 | G194: ='ن ع 1-2-3'!Y202 -> 0 | H194: ='ن ع 1-2-3'!AD202 -> 0 | I194: ='ن ع 1-2-3'!AF202 -> 0 | J194: ='ن ع 1-2-3'!AT202 -> 0 | K194: ='ن ع 1-2-3'!AV202 -> 0 | L194: ='ن ع 1-2-3'!AO202 -> 0 | M194: ='ن ع 1-2-3'!BE202 -> 0 | N194: ='ن ع 1-2-3'!BN202 -> 0 | O194: ='ن ع 1-2-3'!BO202 -> 0 | P194: ='ن ع 1-2-3'!BT202 -> 0 | Q194: ='ن ع 1-2-3'!BV202 -> 0
A195: ='ن ع 1-2-3'!A203 -> 187 | B195: ='ن ع 1-2-3'!B203 -> مكة أحمد جمال محمد | C195: ='ن ع 1-2-3'!C203 -> الثاني | D195: ='ن ع 1-2-3'!P203 -> 0 | E195: ='ن ع 1-2-3'!R203 -> 0 | F195: ='ن ع 1-2-3'!W203 -> 0 | G195: ='ن ع 1-2-3'!Y203 -> 0 | H195: ='ن ع 1-2-3'!AD203 -> 0 | I195: ='ن ع 1-2-3'!AF203 -> 0 | J195: ='ن ع 1-2-3'!AT203 -> 0 | K195: ='ن ع 1-2-3'!AV203 -> 0 | L195: ='ن ع 1-2-3'!AO203 -> 0 | M195: ='ن ع 1-2-3'!BE203 -> 0 | N195: ='ن ع 1-2-3'!BN203 -> 0 | O195: ='ن ع 1-2-3'!BO203 -> 0 | P195: ='ن ع 1-2-3'!BT203 -> 0 | Q195: ='ن ع 1-2-3'!BV203 -> 0
A196: ='ن ع 1-2-3'!A204 -> 188 | B196: ='ن ع 1-2-3'!B204 -> نجوان إبراهيم يحيى محمد | C196: ='ن ع 1-2-3'!C204 -> الثاني | D196: ='ن ع 1-2-3'!P204 -> 0 | E196: ='ن ع 1-2-3'!R204 -> 0 | F196: ='ن ع 1-2-3'!W204 -> 0 | G196: ='ن ع 1-2-3'!Y204 -> 0 | H196: ='ن ع 1-2-3'!AD204 -> 0 | I196: ='ن ع 1-2-3'!AF204 -> 0 | J196: ='ن ع 1-2-3'!AT204 -> 0 | K196: ='ن ع 1-2-3'!AV204 -> 0 | L196: ='ن ع 1-2-3'!AO204 -> 0 | M196: ='ن ع 1-2-3'!BE204 -> 0 | N196: ='ن ع 1-2-3'!BN204 -> 0 | O196: ='ن ع 1-2-3'!BO204 -> 0 | P196: ='ن ع 1-2-3'!BT204 -> 0 | Q196: ='ن ع 1-2-3'!BV204 -> 0
A197: ='ن ع 1-2-3'!A205 -> 189 | B197: ='ن ع 1-2-3'!B205 -> نداء عبد العزيز رضا عبد الله | C197: ='ن ع 1-2-3'!C205 -> الثاني | D197: ='ن ع 1-2-3'!P205 -> 0 | E197: ='ن ع 1-2-3'!R205 -> 0 | F197: ='ن ع 1-2-3'!W205 -> 0 | G197: ='ن ع 1-2-3'!Y205 -> 0 | H197: ='ن ع 1-2-3'!AD205 -> 0 | I197: ='ن ع 1-2-3'!AF205 -> 0 | J197: ='ن ع 1-2-3'!AT205 -> 0 | K197: ='ن ع 1-2-3'!AV205 -> 0 | L197: ='ن ع 1-2-3'!AO205 -> 0 | M197: ='ن ع 1-2-3'!BE205 -> 0 | N197: ='ن ع 1-2-3'!BN205 -> 0 | O197: ='ن ع 1-2-3'!BO205 -> 0 | P197: ='ن ع 1-2-3'!BT205 -> 0 | Q197: ='ن ع 1-2-3'!BV205 -> 0
A198: ='ن ع 1-2-3'!A206 -> 190 | B198: ='ن ع 1-2-3'!B206 -> نفيسة محمود السيد الجنيدى | C198: ='ن ع 1-2-3'!C206 -> الثاني | D198: ='ن ع 1-2-3'!P206 -> 0 | E198: ='ن ع 1-2-3'!R206 -> 0 | F198: ='ن ع 1-2-3'!W206 -> 0 | G198: ='ن ع 1-2-3'!Y206 -> 0 | H198: ='ن ع 1-2-3'!AD206 -> 0 | I198: ='ن ع 1-2-3'!AF206 -> 0 | J198: ='ن ع 1-2-3'!AT206 -> 0 | K198: ='ن ع 1-2-3'!AV206 -> 0 | L198: ='ن ع 1-2-3'!AO206 -> 0 | M198: ='ن ع 1-2-3'!BE206 -> 0 | N198: ='ن ع 1-2-3'!BN206 -> 0 | O198: ='ن ع 1-2-3'!BO206 -> 0 | P198: ='ن ع 1-2-3'!BT206 -> 0 | Q198: ='ن ع 1-2-3'!BV206 -> 0
A199: ='ن ع 1-2-3'!A207 -> 191 | B199: ='ن ع 1-2-3'!B207 -> نور محمد احمد إبراهيم | C199: ='ن ع 1-2-3'!C207 -> الثاني | D199: ='ن ع 1-2-3'!P207 -> 0 | E199: ='ن ع 1-2-3'!R207 -> 0 | F199: ='ن ع 1-2-3'!W207 -> 0 | G199: ='ن ع 1-2-3'!Y207 -> 0 | H199: ='ن ع 1-2-3'!AD207 -> 0 | I199: ='ن ع 1-2-3'!AF207 -> 0 | J199: ='ن ع 1-2-3'!AT207 -> 0 | K199: ='ن ع 1-2-3'!AV207 -> 0 | L199: ='ن ع 1-2-3'!AO207 -> 0 | M199: ='ن ع 1-2-3'!BE207 -> 0 | N199: ='ن ع 1-2-3'!BN207 -> 0 | O199: ='ن ع 1-2-3'!BO207 -> 0 | P199: ='ن ع 1-2-3'!BT207 -> 0 | Q199: ='ن ع 1-2-3'!BV207 -> 0
A200: ='ن ع 1-2-3'!A208 -> 192 | B200: ='ن ع 1-2-3'!B208 -> نورين جمعة رجب حسين | C200: ='ن ع 1-2-3'!C208 -> الثاني | D200: ='ن ع 1-2-3'!P208 -> 0 | E200: ='ن ع 1-2-3'!R208 -> 0 | F200: ='ن ع 1-2-3'!W208 -> 0 | G200: ='ن ع 1-2-3'!Y208 -> 0 | H200: ='ن ع 1-2-3'!AD208 -> 0 | I200: ='ن ع 1-2-3'!AF208 -> 0 | J200: ='ن ع 1-2-3'!AT208 -> 0 | K200: ='ن ع 1-2-3'!AV208 -> 0 | L200: ='ن ع 1-2-3'!AO208 -> 0 | M200: ='ن ع 1-2-3'!BE208 -> 0 | N200: ='ن ع 1-2-3'!BN208 -> 0 | O200: ='ن ع 1-2-3'!BO208 -> 0 | P200: ='ن ع 1-2-3'!BT208 -> 0 | Q200: ='ن ع 1-2-3'!BV208 -> 0
A201: ='ن ع 1-2-3'!A209 -> 193 | B201: ='ن ع 1-2-3'!B209 -> هاجر صبرى محمد محمد | C201: ='ن ع 1-2-3'!C209 -> الثاني | D201: ='ن ع 1-2-3'!P209 -> 0 | E201: ='ن ع 1-2-3'!R209 -> 0 | F201: ='ن ع 1-2-3'!W209 -> 0 | G201: ='ن ع 1-2-3'!Y209 -> 0 | H201: ='ن ع 1-2-3'!AD209 -> 0 | I201: ='ن ع 1-2-3'!AF209 -> 0 | J201: ='ن ع 1-2-3'!AT209 -> 0 | K201: ='ن ع 1-2-3'!AV209 -> 0 | L201: ='ن ع 1-2-3'!AO209 -> 0 | M201: ='ن ع 1-2-3'!BE209 -> 0 | N201: ='ن ع 1-2-3'!BN209 -> 0 | O201: ='ن ع 1-2-3'!BO209 -> 0 | P201: ='ن ع 1-2-3'!BT209 -> 0 | Q201: ='ن ع 1-2-3'!BV209 -> 0
... 200 more rows

Sheet شهادات1-2-3
A1: =K1 -> 34 | B1: إدارة بني مزار التعليمية | K1: 34
B2: استمــارة تقييـــم التلميـــــــذ آخر العام | F2: =INDEX('ن ع 1-2-3'!$BW$17:$BW$409,MATCH($A$1,'ن ع 1-2-3'!$A$17:$A$409,0)) -> 0 | I2: =INDEX('ن ع 1-2-3'!$A$17:$A$409,MATCH($A$1,'ن ع 1-2-3'!$A$17:$A$409,0)) -> 34
B3: ولي أمر التلميذ/ التلميذة / | D3: =INDEX('ن ع 1-2-3'!$B$17:$B$409,MATCH($A$1,'ن ع 1-2-3'!$A$17:$A$409,0)) -> رجوان جنيدي فنجري عبدالواحد | I3: =INDEX('ن ع 1-2-3'!$C$17:$C$409,MATCH($A$1,'ن ع 1-2-3'!$A$17:$A$409,0)) -> الأول
B5: المـــادة | C5: لغة عربية | D5: رياضيات | E5: لغة انجليزية | F5: متعدد | G5: تربية دينية | H5: التربية الرياضية | I5: توكاتسو | J5: القيم
B6: اللـــــــون | H6: =INDEX('ن ع 1-2-3'!$AO$17:$AO$409,MATCH($A$1,'ن ع 1-2-3'!$A$17:$A$409,0)) -> 0 | I6: =INDEX('ن ع 1-2-3'!$BN$17:$BN$409,MATCH($A$1,'ن ع 1-2-3'!$A$17:$A$409,0)) -> 0 | J6: =INDEX('ن ع 1-2-3'!$BE$17:$BE$409,MATCH($A$1,'ن ع 1-2-3'!$A$17:$A$409,0)) -> 0
B7: التقييــــــم | C7: =INDEX('ن ع 1-2-3'!$R$17:$R$409,MATCH($A$1,'ن ع 1-2-3'!$A$17:$A$409,0)) -> 0 | D7: =INDEX('ن ع 1-2-3'!$Y$17:$Y$409,MATCH($A$1,'ن ع 1-2-3'!$A$17:$A$409,0)) -> 0 | E7: =INDEX('ن ع 1-2-3'!$AF$17:$AF$409,MATCH($A$1,'ن ع 1-2-3'!$A$17:$A$409,0)) -> 0 | F7: =INDEX('ن ع 1-2-3'!$AV$17:$AV$409,MATCH($A$1,'ن ع 1-2-3'!$A$17:$A$409,0)) -> 0 | G7: =INDEX('ن ع 1-2-3'!$BV$17:$BV$409,MATCH($A$1,'ن ع 1-2-3'!$A$17:$A$409,0)) -> 0
B9: نتيجـــة الطالب : | C9: =INDEX('ن ع 1-2-3'!$BO$17:$BO$409,MATCH($A$1,'ن ع 1-2-3'!$A$17:$A$409,0)) -> 0
C12: 4 | D12: يفوق التوقعات من85 %: 100% | G12: 3
C14: 2 | D14: يلبي أحياناً من 50%: أقل من 65% | G14: 1
B16: رئيس الكنترول
A19: =A1+1 -> 35 | B19: =B1 -> إدارة بني مزار التعليمية
B20: استمــارة تقييـــم التلميـــــــذ آخر العام | F20: =INDEX('ن ع 1-2-3'!$BW$17:$BW$409,MATCH($A$1,'ن ع 1-2-3'!$A$17:$A$409,0)) -> 0 | I20: =INDEX('ن ع 1-2-3'!$A$17:$A$409,MATCH($A$19,'ن ع 1-2-3'!$A$17:$A$409,0)) -> 35
B21: ولي أمر التلميذ/ التلميذة / | D21: =INDEX('ن ع 1-2-3'!$B$17:$B$409,MATCH($A$19,'ن ع 1-2-3'!$A$17:$A$409,0)) -> رنا عبدالرحمن أحمد عبدالحليم | I21: =INDEX('ن ع 1-2-3'!$C$17:$C$409,MATCH($A$19,'ن ع 1-2-3'!$A$17:$A$409,0)) -> الأول
B23: المـــادة | C23: لغة عربية | D23: رياضيات | E23: لغة انجليزية | F23: متعدد | G23: تربية دينية | H23: التربية الرياضية | I23: توكاتسو | J23: القيم
B24: اللـــــــون | H24: =INDEX('ن ع 1-2-3'!$AO$17:$AO$409,MATCH($A$19,'ن ع 1-2-3'!$A$17:$A$409,0)) -> 0 | I24: =INDEX('ن ع 1-2-3'!$BN$17:$BN$409,MATCH($A$19,'ن ع 1-2-3'!$A$17:$A$409,0)) -> 0 | J24: =INDEX('ن ع 1-2-3'!$BE$17:$BE$409,MATCH($A$19,'ن ع 1-2-3'!$A$17:$A$409,0)) -> 0
B25: التقييــــــم | C25: =INDEX('ن ع 1-2-3'!$R$17:$R$409,MATCH($A$19,'ن ع 1-2-3'!$A$17:$A$409,0)) -> 0 | D25: =INDEX('ن ع 1-2-3'!$Y$17:$Y$409,MATCH($A$19,'ن ع 1-2-3'!$A$17:$A$409,0)) -> 0 | E25: =INDEX('ن ع 1-2-3'!$AF$17:$AF$409,MATCH($A$19,'ن ع 1-2-3'!$A$17:$A$409,0)) -> 0 | F25: =INDEX('ن ع 1-2-3'!$AV$17:$AV$409,MATCH($A$19,'ن ع 1-2-3'!$A$17:$A$409,0)) -> 0 | G25: =INDEX('ن ع 1-2-3'!$BV$17:$BV$409,MATCH($A$19,'ن ع 1-2-3'!$A$17:$A$409,0)) -> 0
B27: نتيجـــة الطالب : | C27: =INDEX('ن ع 1-2-3'!$BO$17:$BO$409,MATCH($A$19,'ن ع 1-2-3'!$A$17:$A$409,0)) -> 0
C30: 4 | D30: يفوق التوقعات من85 %: 100% | G30: 3
C32: 2 | D32: يلبي أحياناً من 50%: أقل من 65% | G32: 1
B34: رئيس الكنترول
A37: =A19+1 -> 36 | B37: =B19 -> إدارة بني مزار التعليمية
B38: استمــارة تقييـــم التلميـــــــذ آخر العام | F38: =INDEX('ن ع 1-2-3'!$BW$17:$BW$409,MATCH($A$1,'ن ع 1-2-3'!$A$17:$A$409,0)) -> 0 | I38: =INDEX('ن ع 1-2-3'!$A$17:$A$409,MATCH($A$37,'ن ع 1-2-3'!$A$17:$A$409,0)) -> 36
B39: ولي أمر التلميذ/ التلميذة / | D39: =INDEX('ن ع 1-2-3'!$B$17:$B$409,MATCH($A$37,'ن ع 1-2-3'!$A$17:$A$409,0)) -> رنا عبدالعزيز أحمد محمود | I39: =INDEX('ن ع 1-2-3'!$C$17:$C$409,MATCH($A$1,'ن ع 1-2-3'!$A$17:$A$409,0)) -> الأول
B41: المـــادة | C41: لغة عربية | D41: رياضيات | E41: لغة انجليزية | F41: متعدد | G41: تربية دينية | H41: التربية الرياضية | I41: توكاتسو | J41: القيم
B42: اللـــــــون | H42: =INDEX('ن ع 1-2-3'!$AO$17:$AO$409,MATCH($A$37,'ن ع 1-2-3'!$A$17:$A$409,0)) -> 0 | I42: =INDEX('ن ع 1-2-3'!$BN$17:$BN$409,MATCH($A$37,'ن ع 1-2-3'!$A$17:$A$409,0)) -> 0 | J42: =INDEX('ن ع 1-2-3'!$BE$17:$BE$409,MATCH($A$37,'ن ع 1-2-3'!$A$17:$A$409,0)) -> 0
B43: التقييــــــم | C43: =INDEX('ن ع 1-2-3'!$R$17:$R$409,MATCH($A$37,'ن ع 1-2-3'!$A$17:$A$409,0)) -> 0 | D43: =INDEX('ن ع 1-2-3'!$Y$17:$Y$409,MATCH($A$37,'ن ع 1-2-3'!$A$17:$A$409,0)) -> 0 | E43: =INDEX('ن ع 1-2-3'!$AF$17:$AF$409,MATCH($A$37,'ن ع 1-2-3'!$A$17:$A$409,0)) -> 0 | F43: =INDEX('ن ع 1-2-3'!$AV$17:$AV$409,MATCH($A$37,'ن ع 1-2-3'!$A$17:$A$409,0)) -> 0 | G43: =INDEX('ن ع 1-2-3'!$BV$17:$BV$409,MATCH($A$37,'ن ع 1-2-3'!$A$17:$A$409,0)) -> 0
B45: نتيجـــة الطالب : | C45: =INDEX('ن ع 1-2-3'!$BO$17:$BO$409,MATCH($A$37,'ن ع 1-2-3'!$A$17:$A$409,0)) -> 0
C48: 4 | D48: يفوق التوقعات من85 %: 100% | G48: 3
C50: 2 | D50: يلبي أحياناً من 50%: أقل من 65% | G50: 1
B52: رئيس الكنترول

Sheet شيت إدارة الصفوف الأولى
C1: إدارة بني مزار التعليمية | K1: يقوق التوقعات من 85 % : 100 %
C2: مدرسة أحمد أنور عبد العزيز | K2: يلبي التوقعات من 65 % : أقل من 85 %
C3: الابتدائيــــــة | K3: يلبي أحياناً من 50 % : أقل من 65 %
A4: كنترول المدرســـــة للعام الدراسي 2022 / 2023 م | K4: أقل من المتوقع ويحتاج إلى رعاية أقل من 50 %
B6: رقم الجلوس | C6: الاســــــــــــم | F6: الصف | G6: الحالة | H6: الديانة | I6: المــــــــــــــــــــــــــــواد | Q6: 1
I7: عربي | J7: رياضيات | K7: انجليزي | L7: رياضي | M7: متعدد | N7: قيم | O7: توكاتسو | P7: دين
A8: =Q6 -> 1 | B8: =INDEX('ن ع 1-2-3'!$A$17:$A$409,MATCH(A8,'ن ع 1-2-3'!$A$17:$A$409,0)) -> 1 | C8: =INDEX('ن ع 1-2-3'!$B$17:$B$409,MATCH(A8,'ن ع 1-2-3'!$A$17:$A$409,0)) -> أروى أحمد عبدالحميد محمد | F8: =INDEX('ن ع 1-2-3'!$C$17:$C$409,MATCH(A8,'ن ع 1-2-3'!$A$17:$A$409,0)) -> الأول | G8: =INDEX('ن ع 1-2-3'!$D$17:$D$409,MATCH(A8,'ن ع 1-2-3'!$A$17:$A$409,0)) -> مستجدة | H8: =INDEX('ن ع 1-2-3'!$E$17:$E$409,MATCH(A8,'ن ع 1-2-3'!$A$17:$A$409,0)) -> مسلمة | I8: =INDEX('ن ع 1-2-3'!$R$17:$R$409,MATCH(A8,'ن ع 1-2-3'!$A$17:$A$409,0)) -> 0 | J8: =INDEX('ن ع 1-2-3'!$Y$17:$Y$409,MATCH(A8,'ن ع 1-2-3'!$A$17:$A$409,0)) -> 0 | K8: =INDEX('ن ع 1-2-3'!$AF$17:$AF$409,MATCH(A8,'ن ع 1-2-3'!$A$17:$A$409,0)) -> 0 | L8: =INDEX('ن ع 1-2-3'!$AO$17:$AO$409,MATCH(A8,'ن ع 1-2-3'!$A$17:$A$409,0)) -> 0 | M8: =INDEX('ن ع 1-2-3'!$AV$17:$AV$409,MATCH(A8,'ن ع 1-2-3'!$A$17:$A$409,0)) -> 0 | N8: =INDEX('ن ع 1-2-3'!$BE$17:$BE$409,MATCH(A8,'ن ع 1-2-3'!$A$17:$A$409,0)) -> 0 | O8: =INDEX('ن ع 1-2-3'!$BN$17:$BN$409,MATCH(A8,'ن ع 1-2-3'!$A$17:$A$409,0)) -> 0 | P8: =INDEX('ن ع 1-2-3'!$BV$17:$BV$409,MATCH(A8,'ن ع 1-2-3'!$A$17:$A$409,0)) -> 0
C9: تاريخ الميــــلاد | F9: السن في 1/ 10 / 2023
C10: =INDEX('ن ع 1-2-3'!$F$17:$F$409,MATCH(A8,'ن ع 1-2-3'!$A$17:$A$409,0)) -> 14 | D10: =INDEX('ن ع 1-2-3'!$G$17:$G$409,MATCH(A8,'ن ع 1-2-3'!$A$17:$A$409,0)) -> 5 | E10: =INDEX('ن ع 1-2-3'!$H$17:$H$409,MATCH(A8,'ن ع 1-2-3'!$A$17:$A$409,0)) -> 2017 | F10: =INDEX('ن ع 1-2-3'!$I$17:$I$409,MATCH(A8,'ن ع 1-2-3'!$A$17:$A$409,0)) -> 17 | G10: =INDEX('ن ع 1-2-3'!$J$17:$J$409,MATCH(A8,'ن ع 1-2-3'!$A$17:$A$409,0)) -> 4 | H10: =INDEX('ن ع 1-2-3'!$K$17:$K$409,MATCH(A8,'ن ع 1-2-3'!$A$17:$A$409,0)) -> 7 | I10: =INDEX('ن ع 1-2-3'!$R$17:$R$409,MATCH(A8,'ن ع 1-2-3'!$A$17:$A$409,0)) -> 0 | J10: =INDEX('ن ع 1-2-3'!$Y$17:$Y$409,MATCH(A8,'ن ع 1-2-3'!$A$17:$A$409,0)) -> 0 | K10: =INDEX('ن ع 1-2-3'!$AF$17:$AF$409,MATCH(A8,'ن ع 1-2-3'!$A$17:$A$409,0)) -> 0 | M10: =INDEX('ن ع 1-2-3'!$AV$17:$AV$409,MATCH(A8,'ن ع 1-2-3'!$A$17:$A$409,0)) -> 0 | P10: =INDEX('ن ع 1-2-3'!$BV$17:$BV$409,MATCH(A8,'ن ع 1-2-3'!$A$17:$A$409,0)) -> 0
A12: =A8+1 -> 2 | B12: =INDEX('ن ع 1-2-3'!$A$17:$A$409,MATCH(A12,'ن ع 1-2-3'!$A$17:$A$409,0)) -> 2 | C12: =INDEX('ن ع 1-2-3'!$B$17:$B$409,MATCH(A12,'ن ع 1-2-3'!$A$17:$A$409,0)) -> أسيل فالح خليفة حسن | F12: =INDEX('ن ع 1-2-3'!$C$17:$C$409,MATCH(A12,'ن ع 1-2-3'!$A$17:$A$409,0)) -> الأول | G12: =INDEX('ن ع 1-2-3'!$D$17:$D$409,MATCH(A12,'ن ع 1-2-3'!$A$17:$A$409,0)) -> مستجدة | H12: =INDEX('ن ع 1-2-3'!$E$17:$E$409,MATCH(A12,'ن ع 1-2-3'!$A$17:$A$409,0)) -> مسلمة | I12: =INDEX('ن ع 1-2-3'!$R$17:$R$409,MATCH(A12,'ن ع 1-2-3'!$A$17:$A$409,0)) -> 0 | J12: =INDEX('ن ع 1-2-3'!$Y$17:$Y$409,MATCH(A12,'ن ع 1-2-3'!$A$17:$A$409,0)) -> 0 | K12: =INDEX('ن ع 1-2-3'!$AF$17:$AF$409,MATCH(A12,'ن ع 1-2-3'!$A$17:$A$409,0)) -> 0 | L12: =INDEX('ن ع 1-2-3'!$AO$17:$AO$409,MATCH(A12,'ن ع 1-2-3'!$A$17:$A$409,0)) -> 0 | M12: =INDEX('ن ع 1-2-3'!$AV$17:$AV$409,MATCH(A12,'ن ع 1-2-3'!$A$17:$A$409,0)) -> 0 | N12: =INDEX('ن ع 1-2-3'!$BE$17:$BE$409,MATCH(A12,'ن ع 1-2-3'!$A$17:$A$409,0)) -> 0 | O12: =INDEX('ن ع 1-2-3'!$BN$17:$BN$409,MATCH(A12,'ن ع 1-2-3'!$A$17:$A$409,0)) -> 0 | P12: =INDEX('ن ع 1-2-3'!$BV$17:$BV$409,MATCH(A12,'ن ع 1-2-3'!$A$17:$A$409,0)) -> 0
C13: تاريخ الميــــلاد | F13: السن في 1/ 10 / 2023
C14: =INDEX('ن ع 1-2-3'!$F$17:$F$409,MATCH(A12,'ن ع 1-2-3'!$A$17:$A$409,0)) -> 5 | D14: =INDEX('ن ع 1-2-3'!$G$17:$G$409,MATCH(A12,'ن ع 1-2-3'!$A$17:$A$409,0)) -> 1 | E14: =INDEX('ن ع 1-2-3'!$H$17:$H$409,MATCH(A12,'ن ع 1-2-3'!$A$17:$A$409,0)) -> 2017 | F14: =INDEX('ن ع 1-2-3'!$I$17:$I$409,MATCH(A12,'ن ع 1-2-3'!$A$17:$A$409,0)) -> 26 | G14: =INDEX('ن ع 1-2-3'!$J$17:$J$409,MATCH(A12,'ن ع 1-2-3'!$A$17:$A$409,0)) -> 8 | H14: =INDEX('ن ع 1-2-3'!$K$17:$K$409,MATCH(A12,'ن ع 1-2-3'!$A$17:$A$409,0)) -> 7 | I14: =INDEX('ن ع 1-2-3'!$R$17:$R$409,MATCH(A12,'ن ع 1-2-3'!$A$17:$A$409,0)) -> 0 | J14: =INDEX('ن ع 1-2-3'!$Y$17:$Y$409,MATCH(A12,'ن ع 1-2-3'!$A$17:$A$409,0)) -> 0 | K14: =INDEX('ن ع 1-2-3'!$AF$17:$AF$409,MATCH(A12,'ن ع 1-2-3'!$A$17:$A$409,0)) -> 0 | M14: =INDEX('ن ع 1-2-3'!$AV$17:$AV$409,MATCH(A12,'ن ع 1-2-3'!$A$17:$A$409,0)) -> 0 | P14: =INDEX('ن ع 1-2-3'!$BV$17:$BV$409,MATCH(A12,'ن ع 1-2-3'!$A$17:$A$409,0)) -> 0
A16: =A12+1 -> 3 | B16: =INDEX('ن ع 1-2-3'!$A$17:$A$409,MATCH(A16,'ن ع 1-2-3'!$A$17:$A$409,0)) -> 3 | C16: =INDEX('ن ع 1-2-3'!$B$17:$B$409,MATCH(A16,'ن ع 1-2-3'!$A$17:$A$409,0)) -> أسيل محمد أحمد عبدالعزيز | F16: =INDEX('ن ع 1-2-3'!$C$17:$C$409,MATCH(A16,'ن ع 1-2-3'!$A$17:$A$409,0)) -> الأول | G16: =INDEX('ن ع 1-2-3'!$D$17:$D$409,MATCH(A16,'ن ع 1-2-3'!$A$17:$A$409,0)) -> مستجدة | H16: =INDEX('ن ع 1-2-3'!$E$17:$E$409,MATCH(A16,'ن ع 1-2-3'!$A$17:$A$409,0)) -> مسلمة | I16: =INDEX('ن ع 1-2-3'!$R$17:$R$409,MATCH(A16,'ن ع 1-2-3'!$A$17:$A$409,0)) -> 0 | J16: =INDEX('ن ع 1-2-3'!$Y$17:$Y$409,MATCH(A16,'ن ع 1-2-3'!$A$17:$A$409,0)) -> 0 | K16: =INDEX('ن ع 1-2-3'!$AF$17:$AF$409,MATCH(A16,'ن ع 1-2-3'!$A$17:$A$409,0)) -> 0 | L16: =INDEX('ن ع 1-2-3'!$AO$17:$AO$409,MATCH(A16,'ن ع 1-2-3'!$A$17:$A$409,0)) -> 0 | M16: =INDEX('ن ع 1-2-3'!$AV$17:$AV$409,MATCH(A16,'ن ع 1-2-3'!$A$17:$A$409,0)) -> 0 | N16: =INDEX('ن ع 1-2-3'!$BE$17:$BE$409,MATCH(A16,'ن ع 1-2-3'!$A$17:$A$409,0)) -> 0 | O16: =INDEX('ن ع 1-2-3'!$BN$17:$BN$409,MATCH(A16,'ن ع 1-2-3'!$A$17:$A$409,0)) -> 0 | P16: =INDEX('ن ع 1-2-3'!$BV$17:$BV$409,MATCH(A16,'ن ع 1-2-3'!$A$17:$A$409,0)) -> 0
C17: تاريخ الميــــلاد | F17: السن في 1/ 10 / 2023
C18: =INDEX('ن ع 1-2-3'!$F$17:$F$409,MATCH(A16,'ن ع 1-2-3'!$A$17:$A$409,0)) -> 14 | D18: =INDEX('ن ع 1-2-3'!$G$17:$G$409,MATCH(A16,'ن ع 1-2-3'!$A$17:$A$409,0)) -> 2 | E18: =INDEX('ن ع 1-2-3'!$H$17:$H$409,MATCH(A16,'ن ع 1-2-3'!$A$17:$A$409,0)) -> 2017 | F18: =INDEX('ن ع 1-2-3'!$I$17:$I$409,MATCH(A16,'ن ع 1-2-3'!$A$17:$A$409,0)) -> 17 | G18: =INDEX('ن ع 1-2-3'!$J$17:$J$409,MATCH(A16,'ن ع 1-2-3'!$A$17:$A$409,0)) -> 7 | H18: =INDEX('ن ع 1-2-3'!$K$17:$K$409,MATCH(A16,'ن ع 1-2-3'!$A$17:$A$409,0)) -> 7 | I18: =INDEX('ن ع 1-2-3'!$R$17:$R$409,MATCH(A16,'ن ع 1-2-3'!$A$17:$A$409,0)) -> 0 | J18: =INDEX('ن ع 1-2-3'!$Y$17:$Y$409,MATCH(A16,'ن ع 1-2-3'!$A$17:$A$409,0)) -> 0 | K18: =INDEX('ن ع 1-2-3'!$AF$17:$AF$409,MATCH(A16,'ن ع 1-2-3'!$A$17:$A$409,0)) -> 0 | M18: =INDEX('ن ع 1-2-3'!$AV$17:$AV$409,MATCH(A16,'ن ع 1-2-3'!$A$17:$A$409,0)) -> 0 | P18: =INDEX('ن ع 1-2-3'!$BV$17:$BV$409,MATCH(A16,'ن ع 1-2-3'!$A$17:$A$409,0)) -> 0
A20: =A16+1 -> 4 | B20: =INDEX('ن ع 1-2-3'!$A$17:$A$409,MATCH(A20,'ن ع 1-2-3'!$A$17:$A$409,0)) -> 4 | C20: =INDEX('ن ع 1-2-3'!$B$17:$B$409,MATCH(A20,'ن ع 1-2-3'!$A$17:$A$409,0)) -> أسينات علي حسن أبو زيد | F20: =INDEX('ن ع 1-2-3'!$C$17:$C$409,MATCH(A20,'ن ع 1-2-3'!$A$17:$A$409,0)) -> الأول | G20: =INDEX('ن ع 1-2-3'!$D$17:$D$409,MATCH(A20,'ن ع 1-2-3'!$A$17:$A$409,0)) -> مستجدة | H20: =INDEX('ن ع 1-2-3'!$E$17:$E$409,MATCH(A20,'ن ع 1-2-3'!$A$17:$A$409,0)) -> مسلمة | I20: =INDEX('ن ع 1-2-3'!$R$17:$R$409,MATCH(A20,'ن ع 1-2-3'!$A$17:$A$409,0)) -> 0 | J20: =INDEX('ن ع 1-2-3'!$Y$17:$Y$409,MATCH(A20,'ن ع 1-2-3'!$A$17:$A$409,0)) -> 0 | K20: =INDEX('ن ع 1-2-3'!$AF$17:$AF$409,MATCH(A20,'ن ع 1-2-3'!$A$17:$A$409,0)) -> 0 | L20: =INDEX('ن ع 1-2-3'!$AO$17:$AO$409,MATCH(A20,'ن ع 1-2-3'!$A$17:$A$409,0)) -> 0 | M20: =INDEX('ن ع 1-2-3'!$AV$17:$AV$409,MATCH(A20,'ن ع 1-2-3'!$A$17:$A$409,0)) -> 0 | N20: =INDEX('ن ع 1-2-3'!$BE$17:$BE$409,MATCH(A20,'ن ع 1-2-3'!$A$17:$A$409,0)) -> 0 | O20: =INDEX('ن ع 1-2-3'!$BN$17:$BN$409,MATCH(A20,'ن ع 1-2-3'!$A$17:$A$409,0)) -> 0 | P20: =INDEX('ن ع 1-2-3'!$BV$17:$BV$409,MATCH(A20,'ن ع 1-2-3'!$A$17:$A$409,0)) -> 0
C21: تاريخ الميــــلاد | F21: السن في 1/ 10 / 2023
C22: =INDEX('ن ع 1-2-3'!$F$17:$F$409,MATCH(A20,'ن ع 1-2-3'!$A$17:$A$409,0)) -> 12 | D22: =INDEX('ن ع 1-2-3'!$G$17:$G$409,MATCH(A20,'ن ع 1-2-3'!$A$17:$A$409,0)) -> 12 | E22: =INDEX('ن ع 1-2-3'!$H$17:$H$409,MATCH(A20,'ن ع 1-2-3'!$A$17:$A$409,0)) -> 2016 | F22: =INDEX('ن ع 1-2-3'!$I$17:$I$409,MATCH(A20,'ن ع 1-2-3'!$A$17:$A$409,0)) -> 19 | G22: =INDEX('ن ع 1-2-3'!$J$17:$J$409,MATCH(A20,'ن ع 1-2-3'!$A$17:$A$409,0)) -> 9 | H22: =INDEX('ن ع 1-2-3'!$K$17:$K$409,MATCH(A20,'ن ع 1-2-3'!$A$17:$A$409,0)) -> 7 | I22: =INDEX('ن ع 1-2-3'!$R$17:$R$409,MATCH(A20,'ن ع 1-2-3'!$A$17:$A$409,0)) -> 0 | J22: =INDEX('ن ع 1-2-3'!$Y$17:$Y$409,MATCH(A20,'ن ع 1-2-3'!$A$17:$A$409,0)) -> 0 | K22: =INDEX('ن ع 1-2-3'!$AF$17:$AF$409,MATCH(A20,'ن ع 1-2-3'!$A$17:$A$409,0)) -> 0 | M22: =INDEX('ن ع 1-2-3'!$AV$17:$AV$409,MATCH(A20,'ن ع 1-2-3'!$A$17:$A$409,0)) -> 0 | P22: =INDEX('ن ع 1-2-3'!$BV$17:$BV$409,MATCH(A20,'ن ع 1-2-3'!$A$17:$A$409,0)) -> 0
A24: =A20+1 -> 5 | B24: =INDEX('ن ع 1-2-3'!$A$17:$A$409,MATCH(A24,'ن ع 1-2-3'!$A$17:$A$409,0)) -> 5 | C24: =INDEX('ن ع 1-2-3'!$B$17:$B$409,MATCH(A24,'ن ع 1-2-3'!$A$17:$A$409,0)) -> أشرقت علي أبوزيد حافظ | F24: =INDEX('ن ع 1-2-3'!$C$17:$C$409,MATCH(A24,'ن ع 1-2-3'!$A$17:$A$409,0)) -> الأول | G24: =INDEX('ن ع 1-2-3'!$D$17:$D$409,MATCH(A24,'ن ع 1-2-3'!$A$17:$A$409,0)) -> مستجدة | H24: =INDEX('ن ع 1-2-3'!$E$17:$E$409,MATCH(A24,'ن ع 1-2-3'!$A$17:$A$409,0)) -> مسلمة | I24: =INDEX('ن ع 1-2-3'!$R$17:$R$409,MATCH(A24,'ن ع 1-2-3'!$A$17:$A$409,0)) -> 0 | J24: =INDEX('ن ع 1-2-3'!$Y$17:$Y$409,MATCH(A24,'ن ع 1-2-3'!$A$17:$A$409,0)) -> 0 | K24: =INDEX('ن ع 1-2-3'!$AF$17:$AF$409,MATCH(A24,'ن ع 1-2-3'!$A$17:$A$409,0)) -> 0 | L24: =INDEX('ن ع 1-2-3'!$AO$17:$AO$409,MATCH(A24,'ن ع 1-2-3'!$A$17:$A$409,0)) -> 0 | M24: =INDEX('ن ع 1-2-3'!$AV$17:$AV$409,MATCH(A24,'ن ع 1-2-3'!$A$17:$A$409,0)) -> 0 | N24: =INDEX('ن ع 1-2-3'!$BE$17:$BE$409,MATCH(A24,'ن ع 1-2-3'!$A$17:$A$409,0)) -> 0 | O24: =INDEX('ن ع 1-2-3'!$BN$17:$BN$409,MATCH(A24,'ن ع 1-2-3'!$A$17:$A$409,0)) -> 0 | P24: =INDEX('ن ع 1-2-3'!$BV$17:$BV$409,MATCH(A24,'ن ع 1-2-3'!$A$17:$A$409,0)) -> 0
C25: تاريخ الميــــلاد | F25: السن في 1/ 10 / 2023
C26: =INDEX('ن ع 1-2-3'!$F$17:$F$409,MATCH(A24,'ن ع 1-2-3'!$A$17:$A$409,0)) -> 22 | D26: =INDEX('ن ع 1-2-3'!$G$17:$G$409,MATCH(A24,'ن ع 1-2-3'!$A$17:$A$409,0)) -> 6 | E26: =INDEX('ن ع 1-2-3'!$H$17:$H$409,MATCH(A24,'ن ع 1-2-3'!$A$17:$A$409,0)) -> 2017 | F26: =INDEX('ن ع 1-2-3'!$I$17:$I$409,MATCH(A24,'ن ع 1-2-3'!$A$17:$A$409,0)) -> 9 | G26: =INDEX('ن ع 1-2-3'!$J$17:$J$409,MATCH(A24,'ن ع 1-2-3'!$A$17:$A$409,0)) -> 3 | H26: =INDEX('ن ع 1-2-3'!$K$17:$K$409,MATCH(A24,'ن ع 1-2-3'!$A$17:$A$409,0)) -> 7 | I26: =INDEX('ن ع 1-2-3'!$R$17:$R$409,MATCH(A24,'ن ع 1-2-3'!$A$17:$A$409,0)) -> 0 | J26: =INDEX('ن ع 1-2-3'!$Y$17:$Y$409,MATCH(A24,'ن ع 1-2-3'!$A$17:$A$409,0)) -> 0 | K26: =INDEX('ن ع 1-2-3'!$AF$17:$AF$409,MATCH(A24,'ن ع 1-2-3'!$A$17:$A$409,0)) -> 0 | M26: =INDEX('ن ع 1-2-3'!$AV$17:$AV$409,MATCH(A24,'ن ع 1-2-3'!$A$17:$A$409,0)) -> 0 | P26: =INDEX('ن ع 1-2-3'!$BV$17:$BV$409,MATCH(A24,'ن ع 1-2-3'!$A$17:$A$409,0)) -> 0
A28: =A24+1 -> 6 | B28: =INDEX('ن ع 1-2-3'!$A$17:$A$409,MATCH(A28,'ن ع 1-2-3'!$A$17:$A$409,0)) -> 6 | C28: =INDEX('ن ع 1-2-3'!$B$17:$B$409,MATCH(A28,'ن ع 1-2-3'!$A$17:$A$409,0)) -> أميرة طه عبدالرحمن محمد | F28: =INDEX('ن ع 1-2-3'!$C$17:$C$409,MATCH(A28,'ن ع 1-2-3'!$A$17:$A$409,0)) -> الأول | G28: =INDEX('ن ع 1-2-3'!$D$17:$D$409,MATCH(A28,'ن ع 1-2-3'!$A$17:$A$409,0)) -> مستجدة | H28: =INDEX('ن ع 1-2-3'!$E$17:$E$409,MATCH(A28,'ن ع 1-2-3'!$A$17:$A$409,0)) -> مسلمة | I28: =INDEX('ن ع 1-2-3'!$R$17:$R$409,MATCH(A28,'ن ع 1-2-3'!$A$17:$A$409,0)) -> 0 | J28: =INDEX('ن ع 1-2-3'!$Y$17:$Y$409,MATCH(A28,'ن ع 1-2-3'!$A$17:$A$409,0)) -> 0 | K28: =INDEX('ن ع 1-2-3'!$AF$17:$AF$409,MATCH(A28,'ن ع 1-2-3'!$A$17:$A$409,0)) -> 0 | L28: =INDEX('ن ع 1-2-3'!$AO$17:$AO$409,MATCH(A28,'ن ع 1-2-3'!$A$17:$A$409,0)) -> 0 | M28: =INDEX('ن ع 1-2-3'!$AV$17:$AV$409,MATCH(A28,'ن ع 1-2-3'!$A$17:$A$409,0)) -> 0 | N28: =INDEX('ن ع 1-2-3'!$BE$17:$BE$409,MATCH(A28,'ن ع 1-2-3'!$A$17:$A$409,0)) -> 0 | O28: =INDEX('ن ع 1-2-3'!$BN$17:$BN$409,MATCH(A28,'ن ع 1-2-3'!$A$17:$A$409,0)) -> 0 | P28: =INDEX('ن ع 1-2-3'!$BV$17:$BV$409,MATCH(A28,'ن ع 1-2-3'!$A$17:$A$409,0)) -> 0
C29: تاريخ الميــــلاد | F29: السن في 1/ 10 / 2023
C30: =INDEX('ن ع 1-2-3'!$F$17:$F$409,MATCH(A28,'ن ع 1-2-3'!$A$17:$A$409,0)) -> 14 | D30: =INDEX('ن ع 1-2-3'!$G$17:$G$409,MATCH(A28,'ن ع 1-2-3'!$A$17:$A$409,0)) -> 1 | E30: =INDEX('ن ع 1-2-3'!$H$17:$H$409,MATCH(A28,'ن ع 1-2-3'!$A$17:$A$409,0)) -> 2017 | F30: =INDEX('ن ع 1-2-3'!$I$17:$I$409,MATCH(A28,'ن ع 1-2-3'!$A$17:$A$409,0)) -> 17 | G30: =INDEX('ن ع 1-2-3'!$J$17:$J$409,MATCH(A28,'ن ع 1-2-3'!$A$17:$A$409,0)) -> 8 | H30: =INDEX('ن ع 1-2-3'!$K$17:$K$409,MATCH(A28,'ن ع 1-2-3'!$A$17:$A$409,0)) -> 7 | I30: =INDEX('ن ع 1-2-3'!$R$17:$R$409,MATCH(A28,'ن ع 1-2-3'!$A$17:$A$409,0)) -> 0 | J30: =INDEX('ن ع 1-2-3'!$Y$17:$Y$409,MATCH(A28,'ن ع 1-2-3'!$A$17:$A$409,0)) -> 0 | K30: =INDEX('ن ع 1-2-3'!$AF$17:$AF$409,MATCH(A28,'ن ع 1-2-3'!$A$17:$A$409,0)) -> 0 | M30: =INDEX('ن ع 1-2-3'!$AV$17:$AV$409,MATCH(A28,'ن ع 1-2-3'!$A$17:$A$409,0)) -> 0 | P30: =INDEX('ن ع 1-2-3'!$BV$17:$BV$409,MATCH(A28,'ن ع 1-2-3'!$A$17:$A$409,0)) -> 0
A32: =A28+1 -> 7 | B32: =INDEX('ن ع 1-2-3'!$A$17:$A$409,MATCH(A32,'ن ع 1-2-3'!$A$17:$A$409,0)) -> 7 | C32: =INDEX('ن ع 1-2-3'!$B$17:$B$409,MATCH(A32,'ن ع 1-2-3'!$A$17:$A$409,0)) -> آيات عمرو محمد طه | F32: =INDEX('ن ع 1-2-3'!$C$17:$C$409,MATCH(A32,'ن ع 1-2-3'!$A$17:$A$409,0)) -> الأول | G32: =INDEX('ن ع 1-2-3'!$D$17:$D$409,MATCH(A32,'ن ع 1-2-3'!$A$17:$A$409,0)) -> مستجدة | H32: =INDEX('ن ع 1-2-3'!$E$17:$E$409,MATCH(A32,'ن ع 1-2-3'!$A$17:$A$409,0)) -> مسلمة | I32: =INDEX('ن ع 1-2-3'!$R$17:$R$409,MATCH(A32,'ن ع 1-2-3'!$A$17:$A$409,0)) -> 0 | J32: =INDEX('ن ع 1-2-3'!$Y$17:$Y$409,MATCH(A32,'ن ع 1-2-3'!$A$17:$A$409,0)) -> 0 | K32: =INDEX('ن ع 1-2-3'!$AF$17:$AF$409,MATCH(A32,'ن ع 1-2-3'!$A$17:$A$409,0)) -> 0 | L32: =INDEX('ن ع 1-2-3'!$AO$17:$AO$409,MATCH(A32,'ن ع 1-2-3'!$A$17:$A$409,0)) -> 0 | M32: =INDEX('ن ع 1-2-3'!$AV$17:$AV$409,MATCH(A32,'ن ع 1-2-3'!$A$17:$A$409,0)) -> 0 | N32: =INDEX('ن ع 1-2-3'!$BE$17:$BE$409,MATCH(A32,'ن ع 1-2-3'!$A$17:$A$409,0)) -> 0 | O32: =INDEX('ن ع 1-2-3'!$BN$17:$BN$409,MATCH(A32,'ن ع 1-2-3'!$A$17:$A$409,0)) -> 0 | P32: =INDEX('ن ع 1-2-3'!$BV$17:$BV$409,MATCH(A32,'ن ع 1-2-3'!$A$17:$A$409,0)) -> 0
C33: تاريخ الميــــلاد | F33: السن في 1/ 10 / 2023
C34: =INDEX('ن ع 1-2-3'!$F$17:$F$409,MATCH(A32,'ن ع 1-2-3'!$A$17:$A$409,0)) -> 19 | D34: =INDEX('ن ع 1-2-3'!$G$17:$G$409,MATCH(A32,'ن ع 1-2-3'!$A$17:$A$409,0)) -> 11 | E34: =INDEX('ن ع 1-2-3'!$H$17:$H$409,MATCH(A32,'ن ع 1-2-3'!$A$17:$A$409,0)) -> 2016 | F34: =INDEX('ن ع 1-2-3'!$I$17:$I$409,MATCH(A32,'ن ع 1-2-3'!$A$17:$A$409,0)) -> 12 | G34: =INDEX('ن ع 1-2-3'!$J$17:$J$409,MATCH(A32,'ن ع 1-2-3'!$A$17:$A$409,0)) -> 10 | H34: =INDEX('ن ع 1-2-3'!$K$17:$K$409,MATCH(A32,'ن ع 1-2-3'!$A$17:$A$409,0)) -> 7 | I34: =INDEX('ن ع 1-2-3'!$R$17:$R$409,MATCH(A32,'ن ع 1-2-3'!$A$17:$A$409,0)) -> 0 | J34: =INDEX('ن ع 1-2-3'!$Y$17:$Y$409,MATCH(A32,'ن ع 1-2-3'!$A$17:$A$409,0)) -> 0 | K34: =INDEX('ن ع 1-2-3'!$AF$17:$AF$409,MATCH(A32,'ن ع 1-2-3'!$A$17:$A$409,0)) -> 0 | M34: =INDEX('ن ع 1-2-3'!$AV$17:$AV$409,MATCH(A32,'ن ع 1-2-3'!$A$17:$A$409,0)) -> 0 | P34: =INDEX('ن ع 1-2-3'!$BV$17:$BV$409,MATCH(A32,'ن ع 1-2-3'!$A$17:$A$409,0)) -> 0
A36: =A32+1 -> 8 | B36: =INDEX('ن ع 1-2-3'!$A$17:$A$409,MATCH(A36,'ن ع 1-2-3'!$A$17:$A$409,0)) -> 8 | C36: =INDEX('ن ع 1-2-3'!$B$17:$B$409,MATCH(A36,'ن ع 1-2-3'!$A$17:$A$409,0)) -> بسملة محمد خليفة يحي | F36: =INDEX('ن ع 1-2-3'!$C$17:$C$409,MATCH(A36,'ن ع 1-2-3'!$A$17:$A$409,0)) -> الأول | G36: =INDEX('ن ع 1-2-3'!$D$17:$D$409,MATCH(A36,'ن ع 1-2-3'!$A$17:$A$409,0)) -> مستجدة | H36: =INDEX('ن ع 1-2-3'!$E$17:$E$409,MATCH(A36,'ن ع 1-2-3'!$A$17:$A$409,0)) -> مسلمة | I36: =INDEX('ن ع 1-2-3'!$R$17:$R$409,MATCH(A36,'ن ع 1-2-3'!$A$17:$A$409,0)) -> 0 | J36: =INDEX('ن ع 1-2-3'!$Y$17:$Y$409,MATCH(A36,'ن ع 1-2-3'!$A$17:$A$409,0)) -> 0 | K36: =INDEX('ن ع 1-2-3'!$AF$17:$AF$409,MATCH(A36,'ن ع 1-2-3'!$A$17:$A$409,0)) -> 0 | L36: =INDEX('ن ع 1-2-3'!$AO$17:$AO$409,MATCH(A36,'ن ع 1-2-3'!$A$17:$A$409,0)) -> 0 | M36: =INDEX('ن ع 1-2-3'!$AV$17:$AV$409,MATCH(A36,'ن ع 1-2-3'!$A$17:$A$409,0)) -> 0 | N36: =INDEX('ن ع 1-2-3'!$BE$17:$BE$409,MATCH(A36,'ن ع 1-2-3'!$A$17:$A$409,0)) -> 0 | O36: =INDEX('ن ع 1-2-3'!$BN$17:$BN$409,MATCH(A36,'ن ع 1-2-3'!$A$17:$A$409,0)) -> 0 | P36: =INDEX('ن ع 1-2-3'!$BV$17:$BV$409,MATCH(A36,'ن ع 1-2-3'!$A$17:$A$409,0)) -> 0
C37: تاريخ الميــــلاد | F37: السن في 1/ 10 / 2023
C38: =INDEX('ن ع 1-2-3'!$F$17:$F$409,MATCH(A36,'ن ع 1-2-3'!$A$17:$A$409,0)) -> 22 | D38: =INDEX('ن ع 1-2-3'!$G$17:$G$409,MATCH(A36,'ن ع 1-2-3'!$A$17:$A$409,0)) -> 3 | E38: =INDEX('ن ع 1-2-3'!$H$17:$H$409,MATCH(A36,'ن ع 1-2-3'!$A$17:$A$409,0)) -> 2017 | F38: =INDEX('ن ع 1-2-3'!$I$17:$I$409,MATCH(A36,'ن ع 1-2-3'!$A$17:$A$409,0)) -> 9 | G38: =INDEX('ن ع 1-2-3'!$J$17:$J$409,MATCH(A36,'ن ع 1-2-3'!$A$17:$A$409,0)) -> 6 | H38: =INDEX('ن ع 1-2-3'!$K$17:$K$409,MATCH(A36,'ن ع 1-2-3'!$A$17:$A$409,0)) -> 7 | I38: =INDEX('ن ع 1-2-3'!$R$17:$R$409,MATCH(A36,'ن ع 1-2-3'!$A$17:$A$409,0)) -> 0 | J38: =INDEX('ن ع 1-2-3'!$Y$17:$Y$409,MATCH(A36,'ن ع 1-2-3'!$A$17:$A$409,0)) -> 0 | K38: =INDEX('ن ع 1-2-3'!$AF$17:$AF$409,MATCH(A36,'ن ع 1-2-3'!$A$17:$A$409,0)) -> 0 | M38: =INDEX('ن ع 1-2-3'!$AV$17:$AV$409,MATCH(A36,'ن ع 1-2-3'!$A$17:$A$409,0)) -> 0 | P38: =INDEX('ن ع 1-2-3'!$BV$17:$BV$409,MATCH(A36,'ن ع 1-2-3'!$A$17:$A$409,0)) -> 0
A40: =A36+1 -> 9 | B40: =INDEX('ن ع 1-2-3'!$A$17:$A$409,MATCH(A40,'ن ع 1-2-3'!$A$17:$A$409,0)) -> 9 | C40: =INDEX('ن ع 1-2-3'!$B$17:$B$409,MATCH(A40,'ن ع 1-2-3'!$A$17:$A$409,0)) -> بسنت عامر محمود راضي | F40: =INDEX('ن ع 1-2-3'!$C$17:$C$409,MATCH(A40,'ن ع 1-2-3'!$A$17:$A$409,0)) -> الأول | G40: =INDEX('ن ع 1-2-3'!$D$17:$D$409,MATCH(A40,'ن ع 1-2-3'!$A$17:$A$409,0)) -> مستجدة | H40: =INDEX('ن ع 1-2-3'!$E$17:$E$409,MATCH(A40,'ن ع 1-2-3'!$A$17:$A$409,0)) -> مسلمة | I40: =INDEX('ن ع 1-2-3'!$R$17:$R$409,MATCH(A40,'ن ع 1-2-3'!$A$17:$A$409,0)) -> 0 | J40: =INDEX('ن ع 1-2-3'!$Y$17:$Y$409,MATCH(A40,'ن ع 1-2-3'!$A$17:$A$409,0)) -> 0 | K40: =INDEX('ن ع 1-2-3'!$AF$17:$AF$409,MATCH(A40,'ن ع 1-2-3'!$A$17:$A$409,0)) -> 0 | L40: =INDEX('ن ع 1-2-3'!$AO$17:$AO$409,MATCH(A40,'ن ع 1-2-3'!$A$17:$A$409,0)) -> 0 | M40: =INDEX('ن ع 1-2-3'!$AV$17:$AV$409,MATCH(A40,'ن ع 1-2-3'!$A$17:$A$409,0)) -> 0 | N40: =INDEX('ن ع 1-2-3'!$BE$17:$BE$409,MATCH(A40,'ن ع 1-2-3'!$A$17:$A$409,0)) -> 0 | O40: =INDEX('ن ع 1-2-3'!$BN$17:$BN$409,MATCH(A40,'ن ع 1-2-3'!$A$17:$A$409,0)) -> 0 | P40: =INDEX('ن ع 1-2-3'!$BV$17:$BV$409,MATCH(A40,'ن ع 1-2-3'!$A$17:$A$409,0)) -> 0
C41: تاريخ الميــــلاد | F41: السن في 1/ 10 / 2023
C42: =INDEX('ن ع 1-2-3'!$F$17:$F$409,MATCH(A40,'ن ع 1-2-3'!$A$17:$A$409,0)) -> 30 | D42: =INDEX('ن ع 1-2-3'!$G$17:$G$409,MATCH(A40,'ن ع 1-2-3'!$A$17:$A$409,0)) -> 6 | E42: =INDEX('ن ع 1-2-3'!$H$17:$H$409,MATCH(A40,'ن ع 1-2-3'!$A$17:$A$409,0)) -> 2017 | F42: =INDEX('ن ع 1-2-3'!$I$17:$I$409,MATCH(A40,'ن ع 1-2-3'!$A$17:$A$409,0)) -> 1 | G42: =INDEX('ن ع 1-2-3'!$J$17:$J$409,MATCH(A40,'ن ع 1-2-3'!$A$17:$A$409,0)) -> 3 | H42: =INDEX('ن ع 1-2-3'!$K$17:$K$409,MATCH(A40,'ن ع 1-2-3'!$A$17:$A$409,0)) -> 7 | I42: =INDEX('ن ع 1-2-3'!$R$17:$R$409,MATCH(A40,'ن ع 1-2-3'!$A$17:$A$409,0)) -> 0 | J42: =INDEX('ن ع 1-2-3'!$Y$17:$Y$409,MATCH(A40,'ن ع 1-2-3'!$A$17:$A$409,0)) -> 0 | K42: =INDEX('ن ع 1-2-3'!$AF$17:$AF$409,MATCH(A40,'ن ع 1-2-3'!$A$17:$A$409,0)) -> 0 | M42: =INDEX('ن ع 1-2-3'!$AV$17:$AV$409,MATCH(A40,'ن ع 1-2-3'!$A$17:$A$409,0)) -> 0 | P42: =INDEX('ن ع 1-2-3'!$BV$17:$BV$409,MATCH(A40,'ن ع 1-2-3'!$A$17:$A$409,0)) -> 0
A44: =A40+1 -> 10 | B44: =INDEX('ن ع 1-2-3'!$A$17:$A$409,MATCH(A44,'ن ع 1-2-3'!$A$17:$A$409,0)) -> 10 | C44: =INDEX('ن ع 1-2-3'!$B$17:$B$409,MATCH(A44,'ن ع 1-2-3'!$A$17:$A$409,0)) -> ترتيل عويس عبدالقادر إبراهيم | F44: =INDEX('ن ع 1-2-3'!$C$17:$C$409,MATCH(A44,'ن ع 1-2-3'!$A$17:$A$409,0)) -> الأول | G44: =INDEX('ن ع 1-2-3'!$D$17:$D$409,MATCH(A44,'ن ع 1-2-3'!$A$17:$A$409,0)) -> مستجدة | H44: =INDEX('ن ع 1-2-3'!$E$17:$E$409,MATCH(A44,'ن ع 1-2-3'!$A$17:$A$409,0)) -> مسلمة | I44: =INDEX('ن ع 1-2-3'!$R$17:$R$409,MATCH(A44,'ن ع 1-2-3'!$A$17:$A$409,0)) -> 0 | J44: =INDEX('ن ع 1-2-3'!$Y$17:$Y$409,MATCH(A44,'ن ع 1-2-3'!$A$17:$A$409,0)) -> 0 | K44: =INDEX('ن ع 1-2-3'!$AF$17:$AF$409,MATCH(A44,'ن ع 1-2-3'!$A$17:$A$409,0)) -> 0 | L44: =INDEX('ن ع 1-2-3'!$AO$17:$AO$409,MATCH(A44,'ن ع 1-2-3'!$A$17:$A$409,0)) -> 0 | M44: =INDEX('ن ع 1-2-3'!$AV$17:$AV$409,MATCH(A44,'ن ع 1-2-3'!$A$17:$A$409,0)) -> 0 | N44: =INDEX('ن ع 1-2-3'!$BE$17:$BE$409,MATCH(A44,'ن ع 1-2-3'!$A$17:$A$409,0)) -> 0 | O44: =INDEX('ن ع 1-2-3'!$BN$17:$BN$409,MATCH(A44,'ن ع 1-2-3'!$A$17:$A$409,0)) -> 0 | P44: =INDEX('ن ع 1-2-3'!$BV$17:$BV$409,MATCH(A44,'ن ع 1-2-3'!$A$17:$A$409,0)) -> 0
C45: تاريخ الميــــلاد | F45: السن في 1/ 10 / 2023
C46: =INDEX('ن ع 1-2-3'!$F$17:$F$409,MATCH(A44,'ن ع 1-2-3'!$A$17:$A$409,0)) -> 19 | D46: =INDEX('ن ع 1-2-3'!$G$17:$G$409,MATCH(A44,'ن ع 1-2-3'!$A$17:$A$409,0)) -> 4 | E46: =INDEX('ن ع 1-2-3'!$H$17:$H$409,MATCH(A44,'ن ع 1-2-3'!$A$17:$A$409,0)) -> 2017 | F46: =INDEX('ن ع 1-2-3'!$I$17:$I$409,MATCH(A44,'ن ع 1-2-3'!$A$17:$A$409,0)) -> 12 | G46: =INDEX('ن ع 1-2-3'!$J$17:$J$409,MATCH(A44,'ن ع 1-2-3'!$A$17:$A$409,0)) -> 5 | H46: =INDEX('ن ع 1-2-3'!$K$17:$K$409,MATCH(A44,'ن ع 1-2-3'!$A$17:$A$409,0)) -> 7 | I46: =INDEX('ن ع 1-2-3'!$R$17:$R$409,MATCH(A44,'ن ع 1-2-3'!$A$17:$A$409,0)) -> 0 | J46: =INDEX('ن ع 1-2-3'!$Y$17:$Y$409,MATCH(A44,'ن ع 1-2-3'!$A$17:$A$409,0)) -> 0 | K46: =INDEX('ن ع 1-2-3'!$AF$17:$AF$409,MATCH(A44,'ن ع 1-2-3'!$A$17:$A$409,0)) -> 0 | M46: =INDEX('ن ع 1-2-3'!$AV$17:$AV$409,MATCH(A44,'ن ع 1-2-3'!$A$17:$A$409,0)) -> 0 | P46: =INDEX('ن ع 1-2-3'!$BV$17:$BV$409,MATCH(A44,'ن ع 1-2-3'!$A$17:$A$409,0)) -> 0
A48: =A44+1 -> 11 | B48: =INDEX('ن ع 1-2-3'!$A$17:$A$409,MATCH(A48,'ن ع 1-2-3'!$A$17:$A$409,0)) -> 11 | C48: =INDEX('ن ع 1-2-3'!$B$17:$B$409,MATCH(A48,'ن ع 1-2-3'!$A$17:$A$409,0)) -> تسنيم تامر فتحي عبدالعزيز | F48: =INDEX('ن ع 1-2-3'!$C$17:$C$409,MATCH(A48,'ن ع 1-2-3'!$A$17:$A$409,0)) -> الأول | G48: =INDEX('ن ع 1-2-3'!$D$17:$D$409,MATCH(A48,'ن ع 1-2-3'!$A$17:$A$409,0)) -> مستجدة | H48: =INDEX('ن ع 1-2-3'!$E$17:$E$409,MATCH(A48,'ن ع 1-2-3'!$A$17:$A$409,0)) -> مسلمة | I48: =INDEX('ن ع 1-2-3'!$R$17:$R$409,MATCH(A48,'ن ع 1-2-3'!$A$17:$A$409,0)) -> 0 | J48: =INDEX('ن ع 1-2-3'!$Y$17:$Y$409,MATCH(A48,'ن ع 1-2-3'!$A$17:$A$409,0)) -> 0 | K48: =INDEX('ن ع 1-2-3'!$AF$17:$AF$409,MATCH(A48,'ن ع 1-2-3'!$A$17:$A$409,0)) -> 0 | L48: =INDEX('ن ع 1-2-3'!$AO$17:$AO$409,MATCH(A48,'ن ع 1-2-3'!$A$17:$A$409,0)) -> 0 | M48: =INDEX('ن ع 1-2-3'!$AV$17:$AV$409,MATCH(A48,'ن ع 1-2-3'!$A$17:$A$409,0)) -> 0 | N48: =INDEX('ن ع 1-2-3'!$BE$17:$BE$409,MATCH(A48,'ن ع 1-2-3'!$A$17:$A$409,0)) -> 0 | O48: =INDEX('ن ع 1-2-3'!$BN$17:$BN$409,MATCH(A48,'ن ع 1-2-3'!$A$17:$A$409,0)) -> 0 | P48: =INDEX('ن ع 1-2-3'!$BV$17:$BV$409,MATCH(A48,'ن ع 1-2-3'!$A$17:$A$409,0)) -> 0
C49: تاريخ الميــــلاد | F49: السن في 1/ 10 / 2023
C50: =INDEX('ن ع 1-2-3'!$F$17:$F$409,MATCH(A48,'ن ع 1-2-3'!$A$17:$A$409,0)) -> 18 | D50: =INDEX('ن ع 1-2-3'!$G$17:$G$409,MATCH(A48,'ن ع 1-2-3'!$A$17:$A$409,0)) -> 8 | E50: =INDEX('ن ع 1-2-3'!$H$17:$H$409,MATCH(A48,'ن ع 1-2-3'!$A$17:$A$409,0)) -> 2017 | F50: =INDEX('ن ع 1-2-3'!$I$17:$I$409,MATCH(A48,'ن ع 1-2-3'!$A$17:$A$409,0)) -> 13 | G50: =INDEX('ن ع 1-2-3'!$J$17:$J$409,MATCH(A48,'ن ع 1-2-3'!$A$17:$A$409,0)) -> 1 | H50: =INDEX('ن ع 1-2-3'!$K$17:$K$409,MATCH(A48,'ن ع 1-2-3'!$A$17:$A$409,0)) -> 7 | I50: =INDEX('ن ع 1-2-3'!$R$17:$R$409,MATCH(A48,'ن ع 1-2-3'!$A$17:$A$409,0)) -> 0 | J50: =INDEX('ن ع 1-2-3'!$Y$17:$Y$409,MATCH(A48,'ن ع 1-2-3'!$A$17:$A$409,0)) -> 0 | K50: =INDEX('ن ع 1-2-3'!$AF$17:$AF$409,MATCH(A48,'ن ع 1-2-3'!$A$17:$A$409,0)) -> 0 | M50: =INDEX('ن ع 1-2-3'!$AV$17:$AV$409,MATCH(A48,'ن ع 1-2-3'!$A$17:$A$409,0)) -> 0 | P50: =INDEX('ن ع 1-2-3'!$BV$17:$BV$409,MATCH(A48,'ن ع 1-2-3'!$A$17:$A$409,0)) -> 0
A52: =A48+1 -> 12 | B52: =INDEX('ن ع 1-2-3'!$A$17:$A$409,MATCH(A52,'ن ع 1-2-3'!$A$17:$A$409,0)) -> 12 | C52: =INDEX('ن ع 1-2-3'!$B$17:$B$409,MATCH(A52,'ن ع 1-2-3'!$A$17:$A$409,0)) -> تمارا محمد عبدالقادر محمد | F52: =INDEX('ن ع 1-2-3'!$C$17:$C$409,MATCH(A52,'ن ع 1-2-3'!$A$17:$A$409,0)) -> الأول | G52: =INDEX('ن ع 1-2-3'!$D$17:$D$409,MATCH(A52,'ن ع 1-2-3'!$A$17:$A$409,0)) -> مستجدة | H52: =INDEX('ن ع 1-2-3'!$E$17:$E$409,MATCH(A52,'ن ع 1-2-3'!$A$17:$A$409,0)) -> مسلمة | I52: =INDEX('ن ع 1-2-3'!$R$17:$R$409,MATCH(A52,'ن ع 1-2-3'!$A$17:$A$409,0)) -> 0 | J52: =INDEX('ن ع 1-2-3'!$Y$17:$Y$409,MATCH(A52,'ن ع 1-2-3'!$A$17:$A$409,0)) -> 0 | K52: =INDEX('ن ع 1-2-3'!$AF$17:$AF$409,MATCH(A52,'ن ع 1-2-3'!$A$17:$A$409,0)) -> 0 | L52: =INDEX('ن ع 1-2-3'!$AO$17:$AO$409,MATCH(A52,'ن ع 1-2-3'!$A$17:$A$409,0)) -> 0 | M52: =INDEX('ن ع 1-2-3'!$AV$17:$AV$409,MATCH(A52,'ن ع 1-2-3'!$A$17:$A$409,0)) -> 0 | N52: =INDEX('ن ع 1-2-3'!$BE$17:$BE$409,MATCH(A52,'ن ع 1-2-3'!$A$17:$A$409,0)) -> 0 | O52: =INDEX('ن ع 1-2-3'!$BN$17:$BN$409,MATCH(A52,'ن ع 1-2-3'!$A$17:$A$409,0)) -> 0 | P52: =INDEX('ن ع 1-2-3'!$BV$17:$BV$409,MATCH(A52,'ن ع 1-2-3'!$A$17:$A$409,0)) -> 0
C53: تاريخ الميــــلاد | F53: السن في 1/ 10 / 2023
C54: =INDEX('ن ع 1-2-3'!$F$17:$F$409,MATCH(A52,'ن ع 1-2-3'!$A$17:$A$409,0)) -> 22 | D54: =INDEX('ن ع 1-2-3'!$G$17:$G$409,MATCH(A52,'ن ع 1-2-3'!$A$17:$A$409,0)) -> 6 | E54: =INDEX('ن ع 1-2-3'!$H$17:$H$409,MATCH(A52,'ن ع 1-2-3'!$A$17:$A$409,0)) -> 2017 | F54: =INDEX('ن ع 1-2-3'!$I$17:$I$409,MATCH(A52,'ن ع 1-2-3'!$A$17:$A$409,0)) -> 9 | G54: =INDEX('ن ع 1-2-3'!$J$17:$J$409,MATCH(A52,'ن ع 1-2-3'!$A$17:$A$409,0)) -> 3 | H54: =INDEX('ن ع 1-2-3'!$K$17:$K$409,MATCH(A52,'ن ع 1-2-3'!$A$17:$A$409,0)) -> 7 | I54: =INDEX('ن ع 1-2-3'!$R$17:$R$409,MATCH(A52,'ن ع 1-2-3'!$A$17:$A$409,0)) -> 0 | J54: =INDEX('ن ع 1-2-3'!$Y$17:$Y$409,MATCH(A52,'ن ع 1-2-3'!$A$17:$A$409,0)) -> 0 | K54: =INDEX('ن ع 1-2-3'!$AF$17:$AF$409,MATCH(A52,'ن ع 1-2-3'!$A$17:$A$409,0)) -> 0 | M54: =INDEX('ن ع 1-2-3'!$AV$17:$AV$409,MATCH(A52,'ن ع 1-2-3'!$A$17:$A$409,0)) -> 0 | P54: =INDEX('ن ع 1-2-3'!$BV$17:$BV$409,MATCH(A52,'ن ع 1-2-3'!$A$17:$A$409,0)) -> 0
A56: =A52+1 -> 13 | B56: =INDEX('ن ع 1-2-3'!$A$17:$A$409,MATCH(A56,'ن ع 1-2-3'!$A$17:$A$409,0)) -> 13 | C56: =INDEX('ن ع 1-2-3'!$B$17:$B$409,MATCH(A56,'ن ع 1-2-3'!$A$17:$A$409,0)) -> جنى جمعة سيد عبدالرازق | F56: =INDEX('ن ع 1-2-3'!$C$17:$C$409,MATCH(A56,'ن ع 1-2-3'!$A$17:$A$409,0)) -> الأول | G56: =INDEX('ن ع 1-2-3'!$D$17:$D$409,MATCH(A56,'ن ع 1-2-3'!$A$17:$A$409,0)) -> مستجدة | H56: =INDEX('ن ع 1-2-3'!$E$17:$E$409,MATCH(A56,'ن ع 1-2-3'!$A$17:$A$409,0)) -> مسلمة | I56: =INDEX('ن ع 1-2-3'!$R$17:$R$409,MATCH(A56,'ن ع 1-2-3'!$A$17:$A$409,0)) -> 0 | J56: =INDEX('ن ع 1-2-3'!$Y$17:$Y$409,MATCH(A56,'ن ع 1-2-3'!$A$17:$A$409,0)) -> 0 | K56: =INDEX('ن ع 1-2-3'!$AF$17:$AF$409,MATCH(A56,'ن ع 1-2-3'!$A$17:$A$409,0)) -> 0 | L56: =INDEX('ن ع 1-2-3'!$AO$17:$AO$409,MATCH(A56,'ن ع 1-2-3'!$A$17:$A$409,0)) -> 0 | M56: =INDEX('ن ع 1-2-3'!$AV$17:$AV$409,MATCH(A56,'ن ع 1-2-3'!$A$17:$A$409,0)) -> 0 | N56: =INDEX('ن ع 1-2-3'!$BE$17:$BE$409,MATCH(A56,'ن ع 1-2-3'!$A$17:$A$409,0)) -> 0 | O56: =INDEX('ن ع 1-2-3'!$BN$17:$BN$409,MATCH(A56,'ن ع 1-2-3'!$A$17:$A$409,0)) -> 0 | P56: =INDEX('ن ع 1-2-3'!$BV$17:$BV$409,MATCH(A56,'ن ع 1-2-3'!$A$17:$A$409,0)) -> 0
C57: تاريخ الميــــلاد | F57: السن في 1/ 10 / 2023
C58: =INDEX('ن ع 1-2-3'!$F$17:$F$409,MATCH(A56,'ن ع 1-2-3'!$A$17:$A$409,0)) -> 14 | D58: =INDEX('ن ع 1-2-3'!$G$17:$G$409,MATCH(A56,'ن ع 1-2-3'!$A$17:$A$409,0)) -> 11 | E58: =INDEX('ن ع 1-2-3'!$H$17:$H$409,MATCH(A56,'ن ع 1-2-3'!$A$17:$A$409,0)) -> 2016 | F58: =INDEX('ن ع 1-2-3'!$I$17:$I$409,MATCH(A56,'ن ع 1-2-3'!$A$17:$A$409,0)) -> 17 | G58: =INDEX('ن ع 1-2-3'!$J$17:$J$409,MATCH(A56,'ن ع 1-2-3'!$A$17:$A$409,0)) -> 10 | H58: =INDEX('ن ع 1-2-3'!$K$17:$K$409,MATCH(A56,'ن ع 1-2-3'!$A$17:$A$409,0)) -> 7 | I58: =INDEX('ن ع 1-2-3'!$R$17:$R$409,MATCH(A56,'ن ع 1-2-3'!$A$17:$A$409,0)) -> 0 | J58: =INDEX('ن ع 1-2-3'!$Y$17:$Y$409,MATCH(A56,'ن ع 1-2-3'!$A$17:$A$409,0)) -> 0 | K58: =INDEX('ن ع 1-2-3'!$AF$17:$AF$409,MATCH(A56,'ن ع 1-2-3'!$A$17:$A$409,0)) -> 0 | M58: =INDEX('ن ع 1-2-3'!$AV$17:$AV$409,MATCH(A56,'ن ع 1-2-3'!$A$17:$A$409,0)) -> 0 | P58: =INDEX('ن ع 1-2-3'!$BV$17:$BV$409,MATCH(A56,'ن ع 1-2-3'!$A$17:$A$409,0)) -> 0

Sheet بيان درجات الصفوف الأولى
G3: أزرق | H3: يقوق التوقعات من 85 % : 100 %
C4: محافظة المنيا | G4: أخضر | H4: يلبي التوقعات من 65 % : أقل من 85 %
C5: إدارة بني مزار التعليمية | G5: أصفر | H5: يلبي أحياناً من 50 % : أقل من 65 %
C6: مدرسة أحمد أنور عبد العزيز الابتدائية | G6: أحمر | H6: أقل من المتوقع ويحتاج إلى رعاية أقل من 50 % | N6: 3
B8: بالبحث في كشوف الناجحين للعام الدراسي 2022 / 2023 م
A9: =N6 -> 3 | B9: الخاص بمدرسة أحمد أنور عبد العزيز تبين أن الطالب / | H9: =INDEX('ن ع 1-2-3'!B17:B409,MATCH(A9,'ن ع 1-2-3'!A17:A409,0)) -> أسيل محمد أحمد عبدالعزيز
B10: قد اجتاز / لم يجتاز امتحان النقل للصف : | G10: =INDEX('ن ع 1-2-3'!C17:C409,MATCH(A9,'ن ع 1-2-3'!A17:A409,0)) -> الأول | I10: للعام الدراسي ... | K10: =INDEX('ن ع 1-2-3'!BW17:BW409,MATCH(A9,'ن ع 1-2-3'!A17:A409,0)) -> 0
E12: يوم | F12: شهر | G12: سنة | J12: يوم | K12: شهر | L12: سنة
C13: تاريخ الميلاد ..... | H13: السن ....
E14: =INDEX('ن ع 1-2-3'!F17:F409,MATCH(A9,'ن ع 1-2-3'!A17:A409,0)) -> 14 | F14: =INDEX('ن ع 1-2-3'!G17:G409,MATCH(A9,'ن ع 1-2-3'!A17:A409,0)) -> 2 | G14: =INDEX('ن ع 1-2-3'!H17:H409,MATCH(A9,'ن ع 1-2-3'!A17:A409,0)) -> 2017 | J14: =INDEX('ن ع 1-2-3'!I17:I409,MATCH(A9,'ن ع 1-2-3'!A17:A409,0)) -> 17 | K14: =INDEX('ن ع 1-2-3'!J17:J409,MATCH(A9,'ن ع 1-2-3'!A17:A409,0)) -> 7 | L14: =INDEX('ن ع 1-2-3'!K17:K409,MATCH(A9,'ن ع 1-2-3'!A17:A409,0)) -> 7
C16: وبيان درجاته كما يلي ......
C18: االمادة | E18: لغة عربية | F18: رياضيات | G18: انجليزي | H18: متعدد | I18: تربية دينية | J18: نشاط رياضي | K18: توكاتسو | L18: قيم
C19: درجات الطالب | E19: =INDEX('ن ع 1-2-3'!P17:P409,MATCH(A9,'ن ع 1-2-3'!A17:A409,0)) -> 0 | F19: =INDEX('ن ع 1-2-3'!W17:W409,MATCH(A9,'ن ع 1-2-3'!A17:A409,0)) -> 0 | G19: =INDEX('ن ع 1-2-3'!AD17:AD409,MATCH(A9,'ن ع 1-2-3'!A17:A409,0)) -> 0 | H19: =INDEX('ن ع 1-2-3'!AT17:AT409,MATCH(A9,'ن ع 1-2-3'!A17:A409,0)) -> 0 | I19: =INDEX('ن ع 1-2-3'!BT17:BT409,MATCH(A9,'ن ع 1-2-3'!A17:A409,0)) -> 0 | J19: =INDEX('ن ع 1-2-3'!AM17:AM409,MATCH(A9,'ن ع 1-2-3'!A17:A409,0)) -> 0 | K19: =INDEX('ن ع 1-2-3'!BL17:BL409,MATCH(A9,'ن ع 1-2-3'!A17:A409,0)) -> 0 | L19: =INDEX('ن ع 1-2-3'!BC17:BC409,MATCH(A9,'ن ع 1-2-3'!A17:A409,0)) -> 0
C20: تقديرات الطالب | J20: =INDEX('ن ع 1-2-3'!AO17:AO409,MATCH(A9,'ن ع 1-2-3'!A17:A409,0)) -> 0 | K20: =INDEX('ن ع 1-2-3'!BN17:BN409,MATCH(A9,'ن ع 1-2-3'!A17:A409,0)) -> 0 | L20: =INDEX('ن ع 1-2-3'!BE17:BE409,MATCH(A9,'ن ع 1-2-3'!A17:A409,0)) -> 0
E21: =INDEX('ن ع 1-2-3'!R17:R409,MATCH(A9,'ن ع 1-2-3'!A17:A409,0)) -> 0 | F21: =INDEX('ن ع 1-2-3'!Y17:Y409,MATCH(A9,'ن ع 1-2-3'!A17:A409,0)) -> 0 | G21: =INDEX('ن ع 1-2-3'!AF17:AF409,MATCH(A9,'ن ع 1-2-3'!A17:A409,0)) -> 0 | H21: =INDEX('ن ع 1-2-3'!AV17:AV409,MATCH(A9,'ن ع 1-2-3'!A17:A409,0)) -> 0 | I21: =INDEX('ن ع 1-2-3'!BV17:BV409,MATCH(A9,'ن ع 1-2-3'!A17:A409,0)) -> 0
C23: ومنه تبين أن النتيجة النهائية للطالب ... عن العام الدراسي | J23: =INDEX('ن ع 1-2-3'!BW17:BW409,MATCH(A9,'ن ع 1-2-3'!A17:A409,0)) -> 0
C24: =INDEX('ن ع 1-2-3'!BO17:BO409,MATCH(A9,'ن ع 1-2-3'!A17:A409,0)) -> 0
A25: وقد تم استخراج هذه البيانات بناءً على الطلب المقدم من ولي أمر الطالب ... | I25: =INDEX('ن ع 1-2-3'!B17:B409,MATCH(A9,'ن ع 1-2-3'!A17:A409,0)) -> أسيل محمد أحمد عبدالعزيز
C26: لتقديمها إلى من يهمه الأمر ...
C29: شئون الطلبـــة | I29: يعتمد ... مدير المدرسة

Sheet نتيجة عامة4-5-6
B1: مديرية التربية والتعليم بالمنيا
B2: إدارة بني مزار التعليمية | K2: بطاقة درجات طالب
B3: مدرسة أحمد أنور عبد العزيز
I5: اسم الطالب : | M5: =VLOOKUP($X$5,A20:EE398,2,FALSE) -> اسماء عبد العزيز يحي يوسف | O5: =VLOOKUP($X$5,#REF!,3,FALSE) ->  | Q5: الصف : | S5: =VLOOKUP($X$5,A20:EE398,3,FALSE) -> الرابع | U5: رقم الجلوس : | X5: 394
I7: البيـــــان | K7: عربي | L7: رياضيات | M7: انجليزي | N7: دراسات | O7: علوم | P7: رياضي | Q7: فني | R7: موسيقى | S7: مهارات | T7: مجموع | U7: حاسب وتكنولوجيا | V7: توكاتسو | W7: قيم | X7: دين
I8: النهاية العظمى | K8: 100 | L8: 80 | M8: 40 | N8: 40 | O8: 40 | P8: 20 | Q8: 20 | R8: 20 | S8: 40 | T8: 400 | U8: 40 | V8: 20 | W8: 100 | X8: 40
I9: درجات الطالب | K9: =VLOOKUP($X$5,$A$20:$EE$398,18,FALSE) -> 0 | L9: =VLOOKUP($X$5,$A$20:$EE$398,27,FALSE) -> 0 | M9: =VLOOKUP($X$5,$A$20:$EE$398,36,FALSE) -> 0 | N9: =VLOOKUP($X$5,$A$20:$EE$398,45,FALSE) -> 0 | O9: =VLOOKUP($X$5,$A$20:$EE$398,54,FALSE) -> 0 | P9: =VLOOKUP($X$5,$A$20:$EE$398,63,FALSE) -> 0 | Q9: =VLOOKUP($X$5,$A$20:$EE$398,72,FALSE) -> 0 | R9: =VLOOKUP($X$5,$A$20:$EE$398,81,FALSE) -> 0 | S9: =VLOOKUP($X$5,$A$20:$EE$398,90,FALSE) -> 0 | T9: =VLOOKUP($X$5,$A$20:$EE$398,95,FALSE) -> 0 | U9: =VLOOKUP($X$5,$A$20:$EE$398,106,FALSE) -> 0 | V9: =VLOOKUP($X$5,$A$20:$EE$398,115,FALSE) -> 0 | W9: =VLOOKUP($X$5,$A$20:$EE$398,124,FALSE) -> 0 | X9: =VLOOKUP($X$5,$A$20:$EE$398,133,FALSE) -> 0
I10: النسبة المئوية | K10: =VLOOKUP($X$5,$A$20:$EE$398,19,FALSE) -> 0 | L10: =VLOOKUP($X$5,$A$20:$EE$398,28,FALSE) -> 0 | M10: =VLOOKUP($X$5,$A$20:$EE$398,37,FALSE) -> 0 | N10: =VLOOKUP($X$5,$A$20:$EE$398,46,FALSE) -> 0 | O10: =VLOOKUP($X$5,$A$20:$EE$398,55,FALSE) -> 0 | P10: =VLOOKUP($X$5,$A$20:$EE$398,64,FALSE) -> 0 | Q10: =VLOOKUP($X$5,$A$20:$EE$398,73,FALSE) -> 0 | R10: =VLOOKUP($X$5,$A$20:$EE$398,82,FALSE) -> 0 | S10: =VLOOKUP($X$5,$A$20:$EE$398,91,FALSE) -> 0 | T10: =VLOOKUP($X$5,$A$20:$EE$398,96,FALSE) -> 0 | U10: =VLOOKUP($X$5,$A$20:$EE$398,107,FALSE) -> 0 | V10: =VLOOKUP($X$5,$A$20:$EE$398,116,FALSE) -> 0 | W10: =VLOOKUP($X$5,$A$20:$EE$398,125,FALSE) -> 0 | X10: =VLOOKUP($X$5,$A$20:$EE$398,134,FALSE) -> 0 | CT10: =60*33/100 -> 19.8
I11: التقدير | K11: =VLOOKUP($X$5,$A$20:$EE$398,20,FALSE) -> 0 | L11: =VLOOKUP($X$5,$A$20:$EE$398,29,FALSE) -> 0 | M11: =VLOOKUP($X$5,$A$20:$EE$398,38,FALSE) -> 0 | N11: =VLOOKUP($X$5,$A$20:$EE$398,47,FALSE) -> 0 | O11: =VLOOKUP($X$5,$A$20:$EE$398,56,FALSE) -> 0 | P11: =VLOOKUP($X$5,$A$20:$EE$398,65,FALSE) -> 0 | Q11: =VLOOKUP($X$5,$A$20:$EE$398,74,FALSE) -> 0 | R11: =VLOOKUP($X$5,$A$20:$EE$398,83,FALSE) -> 0 | S11: =VLOOKUP($X$5,$A$20:$EE$398,92,FALSE) -> 0 | T11: =VLOOKUP($X$5,$A$20:$EE$398,97,FALSE) -> 0 | U11: =VLOOKUP($X$5,$A$20:$EE$398,108,FALSE) -> 0 | V11: =VLOOKUP($X$5,$A$20:$EE$398,117,FALSE) -> 0 | W11: =VLOOKUP($X$5,$A$20:$EE$398,126,FALSE) -> 0 | X11: =VLOOKUP($X$5,$A$20:$EE$398,135,FALSE) -> 0
I12: النتيجـــة | K12: =VLOOKUP($X$5,A20:EE398,98,FALSE) -> 0
A14: رقم الجلوس | B14: اسم التلميذ | C14: الصف | D14: الحالة | E14: الديانة | F14: تاريخ الميلاد | I14: 2024-10-01 | L14: اللغة العربية والخط | U14: الرياضيات | AD14: اللغة الأجنبية | AM14: الدراسات | AV14: العلوم | BE14: التربيــــــة الرياضيــــة | BN14: التربيـــــــة الفنيـــــــة | BW14: تربية موسيقية | CF14: المهارات المهنية | CO14: المجموع الكلي | CT14: النتيجة | CU14: الترتيــــــــــــب | CV14: الحاسب الآلي وتكنولوجيا المعلومات | DE14: توكاتسو | DN14: قيم | DW14: التربية الدينية | EF14: العام الدراسي
L16: فصل دراسي أول | O16: فصل دراسي ثان | R16: مجموع | S16: نسبة | T16: تقدير | U16: فصل دراسي أول | X16: فصل دراسي ثان | AA16: مجموع | AB16: نسبة | AC16: تقدير | AD16: فصل دراسي أول | AG16: فصل دراسي ثان | AJ16: مجموع | AK16: نسبة | AL16: تقدير | AM16: فصل دراسي أول | AP16: فصل دراسي ثان | AS16: مجموع | AT16: نسبة | AU16: تقدير | AV16: فصل دراسي أول | AY16: فصل دراسي ثان | BB16: مجموع | BC16: نسبة | BD16: تقدير | BE16: فصل دراسي أول | BH16: فصل دراسي ثان | BK16: مجموع | BL16: نسبة | BM16: تقدير | BN16: فصل دراسي أول | BQ16: فصل دراسي ثان | BT16: مجموع | BU16: نسبة | BV16: تقدير | BW16: فصل دراسي أول | BZ16: فصل دراسي ثان | CC16: مجموع | CD16: نسبة | CE16: تقدير | CF16: فصل دراسي أول | CI16: فصل دراسي ثان | CL16: مجموع | CM16: نسبة | CN16: تقدير | CO16: نصف | CP16: آخر | CQ16: مجموع | CR16: نسبة | CS16: تقدير | CV16: فصل دراسي أول | CY16: فصل دراسي ثان | DB16: مجموع | DC16: نسبة | DD16: تقدير | DE16: فصل دراسي أول | DH16: فصل دراسي ثان | DK16: مجموع | DL16: نسبة | DM16: تقدير | DN16: فصل دراسي أول | DQ16: فصل دراسي ثان | DT16: مجموع | DU16: نسبة | DV16: تقدير | DW16: فصل دراسي أول | DZ16: فصل دراسي ثان | EC16: مجموع | ED16: نسبة | EE16: تقدير
F18: يوم | G18: شهر | H18: سنة | I18: يوم | J18: شهر | K18: سنة | L18: اختبارات ومهام وسلوك | M18: نهاية الفصل | N18: المجموع | O18: اختبارات ومهام وسلوك | P18: نهاية الفصل | Q18: المجموع | U18: اختبارات ومهام وسلوك | V18: نهاية الفصل | W18: المجموع | X18: اختبارات ومهام وسلوك | Y18: نهاية الفصل | Z18: المجموع | AD18: اختبارات ومهام وسلوك | AE18: نهاية الفصل | AF18: المجموع | AG18: اختبارات ومهام وسلوك | AH18: نهاية الفصل | AI18: المجموع | AM18: اختبارات ومهام وسلوك | AN18: نهاية الفصل | AO18: المجموع | AP18: اختبارات ومهام وسلوك | AQ18: نهاية الفصل | AR18: المجموع | AV18: اختبارات ومهام وسلوك | AW18: نهاية الفصل | AX18: المجموع | AY18: اختبارات ومهام وسلوك | AZ18: نهاية الفصل | BA18: المجموع | BE18: مهام جماعية حضور وسلوك | BF18: عملي | BG18: المجموع | BH18: مهام جماعية حضور وسلوك | BI18: عملي | BJ18: المجموع | BN18: مهام جماعية حضور وسلوك | BO18: عملي | BP18: المجموع | BQ18: مهام جماعية حضور وسلوك | BR18: عملي | BS18: المجموع | BW18: مهام جماعية حضور وسلوك | BX18: عملي | BY18: المجموع | BZ18: مهام جماعية حضور وسلوك | CA18: عملي | CB18: المجموع | CF18: اختبارات ومهام وسلوك | CG18: نهاية الفصل | CH18: المجموع | CI18: اختبارات ومهام وسلوك | CJ18: نهاية الفصل | CK18: المجموع | CV18: اختبارات ومهام وسلوك | CW18: نهاية الفصل | CX18: المجموع | CY18: اختبارات ومهام وسلوك | CZ18: نهاية الفصل | DA18: المجموع | DE18: مهام جماعية حضور وسلوك | DF18: عملي | DG18: المجموع | DH18: مهام جماعية حضور وسلوك | DI18: عملي | DJ18: المجموع | DN18: اختبارات ومهام وسلوك | DO18: نهاية الفصل | DP18: المجموع | DQ18: اختبارات ومهام وسلوك | DR18: نهاية الفصل | DS18: المجموع | DW18: اختبارات ومهام وسلوك | DX18: نهاية الفصل | DY18: المجموع | DZ18: اختبارات ومهام وسلوك | EA18: نهاية الفصل | EB18: المجموع
L19: 70 | M19: 30 | N19: 100 | O19: 70 | P19: 30 | Q19: 100 | R19: 100 | U19: 70 | V19: 30 | W19: 100 | X19: 70 | Y19: 30 | Z19: 100 | AA19: 80 | AD19: 70 | AE19: 30 | AF19: 100 | AG19: 70 | AH19: 30 | AI19: 100 | AJ19: 40 | AM19: 70 | AN19: 30 | AO19: 100 | AP19: 70 | AQ19: 30 | AR19: 100 | AS19: 40 | AV19: 70 | AW19: 30 | AX19: 100 | AY19: 70 | AZ19: 30 | BA19: 100 | BB19: 40 | BE19: 10 | BF19: 10 | BG19: 20 | BH19: 10 | BI19: 10 | BJ19: 10 | BK19: 20 | BN19: 10 | BO19: 10 | BP19: 20 | BQ19: 10 | BR19: 10 | BS19: 10 | BT19: 20 | BW19: 10 | BX19: 10 | BY19: 20 | BZ19: 10 | CA19: 10 | CB19: 10 | CC19: 20 | CF19: 70 | CG19: 30 | CH19: 100 | CI19: 70 | CJ19: 30 | CK19: 100 | CL19: 40 | CO19: 800 | CP19: 800 | CQ19: 400 | CV19: 70 | CW19: 30 | CX19: 100 | CY19: 70 | CZ19: 30 | DA19: 100 | DB19: 20 | DE19: 50 | DF19: 50 | DG19: 100 | DH19: 50 | DI19: 50 | DJ19: 100 | DK19: 20 | DN19: 70 | DO19: 30 | DP19: 100 | DQ19: 70 | DR19: 30 | DS19: 100 | DT19: 40 | DW19: 70 | DX19: 30 | DY19: 100 | DZ19: 70 | EA19: 30 | EB19: 100 | EC19: 40
A20: 394 | B20: اسماء عبد العزيز يحي يوسف | C20: الرابع | D20: منقولة | E20: مسلمة | F20: 23 | G20: 8 | H20: 2014 | I20: =DATEDIF(DATE(H20,G20,F20),$I$14,"MD") -> 8 | J20: =DATEDIF(DATE(H20,G20,F20),$I$14,"ym") -> 1 | K20: =DATEDIF(DATE(H20,G20,F20),$I$14,"y") -> 10
A21: 395 | B21: اماني خالد محمد البدري | C21: الرابع | D21: منقولة | E21: مسلمة | F21: 8 | G21: 5 | H21: 2014 | I21: =DATEDIF(DATE(H21,G21,F21),$I$14,"MD") -> 23 | J21: =DATEDIF(DATE(H21,G21,F21),$I$14,"ym") -> 4 | K21: =DATEDIF(DATE(H21,G21,F21),$I$14,"y") -> 10
A22: 396 | B22: ايات محمد محمد ربيع | C22: الرابع | D22: منقولة | E22: مسلمة | F22: 15 | G22: 12 | H22: 2013 | I22: =DATEDIF(DATE(H22,G22,F22),$I$14,"MD") -> 16 | J22: =DATEDIF(DATE(H22,G22,F22),$I$14,"ym") -> 9 | K22: =DATEDIF(DATE(H22,G22,F22),$I$14,"y") -> 10
A23: 397 | B23: ايه شعبان يونس حسن | C23: الرابع | D23: منقولة | E23: مسلمة | F23: 6 | G23: 1 | H23: 2014 | I23: =DATEDIF(DATE(H23,G23,F23),$I$14,"MD") -> 25 | J23: =DATEDIF(DATE(H23,G23,F23),$I$14,"ym") -> 8 | K23: =DATEDIF(DATE(H23,G23,F23),$I$14,"y") -> 10
A24: 398 | B24: ايه مصطفى عطا خلف | C24: الرابع | D24: منقولة | E24: مسلمة | F24: 23 | G24: 7 | H24: 2014 | I24: 8 | J24: 2 | K24: 10
A25: 399 | B25: بسملة إبراهيم السيد الجنيدي | C25: الرابع | D25: منقولة | E25: مسلمة | F25: 25 | G25: 10 | H25: 2013 | I25: 6 | J25: 11 | K25: 10
A26: 400 | B26: جنى أحمد عبد الله طلب محمد | C26: الرابع | D26: منقولة | E26: مسلمة | F26: 15 | G26: 6 | H26: 2014 | I26: 16 | J26: 3 | K26: 10
A27: 401 | B27: جنى أحمد عمر محمد إبراهيم | C27: الرابع | D27: منقولة | E27: مسلمة | F27: 23 | G27: 6 | H27: 2014 | I27: 8 | J27: 3 | K27: 10
A28: 402 | B28: جنى أحمد محمد عبدالله | C28: الرابع | D28: منقولة | E28: مسلمة | F28: 23 | G28: 6 | H28: 2014 | I28: 8 | J28: 3 | K28: 10
A29: 403 | B29: جنى حسام حسن صابر | C29: الرابع | D29: منقولة | E29: مسلمة | F29: 15 | G29: 11 | H29: 2013 | I29: 16 | J29: 10 | K29: 10
A30: 404 | B30: جنى محمد عبدالعظيم محمود | C30: الرابع | D30: منقولة | E30: مسلمة | F30: 3 | G30: 2 | H30: 2014 | I30: 28 | J30: 7 | K30: 10
A31: 405 | B31: جنى مصطفى خليفه يحي محمد | C31: الرابع | D31: منقولة | E31: مسلمة | F31: 12 | G31: 1 | H31: 2014 | I31: 19 | J31: 8 | K31: 10
A32: 406 | B32: جنى يس أحمد المهدي كامل | C32: الرابع | D32: منقولة | E32: مسلمة | F32: 5 | G32: 12 | H32: 2013 | I32: 26 | J32: 9 | K32: 10
A33: 407 | B33: جودي مؤمن رزق عبدالله | C33: الرابع | D33: منقولة | E33: مسلمة | F33: 28 | G33: 7 | H33: 2014 | I33: 3 | J33: 2 | K33: 10
A34: 408 | B34: جومانه محمد سلطان عثمان | C34: الرابع | D34: منقولة | E34: مسلمة | F34: 27 | G34: 9 | H34: 2014 | I34: 4 | J34: 0 | K34: 10
A35: 409 | B35: حبيبة ربيع محمد محمد السيد | C35: الرابع | D35: منقولة | E35: مسلمة | F35: 9 | G35: 3 | H35: 2014 | I35: 22 | J35: 6 | K35: 10
A36: 410 | B36: حبيبه محمد ماضي أحمد | C36: الرابع | D36: منقولة | E36: مسلمة | F36: 13 | G36: 2 | H36: 2014 | I36: 18 | J36: 7 | K36: 10
A37: 411 | B37: حبيبه منتصر محمد علي | C37: الرابع | D37: منقولة | E37: مسلمة | F37: 28 | G37: 10 | H37: 2013 | I37: 3 | J37: 11 | K37: 10
A38: 412 | B38: حفصه حسين عبد العزيز عبد الرازق | C38: الرابع | D38: منقولة | E38: مسلمة | F38: 23 | G38: 6 | H38: 2014 | I38: 8 | J38: 3 | K38: 10
A39: 413 | B39: حنين شعبان جابر شعبان | C39: الرابع | D39: منقولة | E39: مسلمة | F39: 18 | G39: 11 | H39: 2014 | I39: 13 | J39: 10 | K39: 9
A40: 414 | B40: خديجه حسين عبد العزيز عبد الرازق | C40: الرابع | D40: منقولة | E40: مسلمة | F40: 23 | G40: 6 | H40: 2014 | I40: 8 | J40: 3 | K40: 10
A41: 415 | B41: خديجه محمد خيري زكي كامل | C41: الرابع | D41: منقولة | E41: مسلمة | F41: 25 | G41: 1 | H41: 2014 | I41: 6 | J41: 8 | K41: 10
A42: 416 | B42: دينا عبد الله جابر شعبان | C42: الرابع | D42: منقولة | E42: مسلمة | F42: 23 | G42: 12 | H42: 2013 | I42: 8 | J42: 9 | K42: 10
A43: 417 | B43: رؤى عيد عثمان عبد الحليم | C43: الرابع | D43: منقولة | E43: مسلمة | F43: 15 | G43: 10 | H43: 2013 | I43: 16 | J43: 11 | K43: 10
A44: 418 | B44: رنا محمد جمال محمد | C44: الرابع | D44: منقولة | E44: مسلمة | F44: 16 | G44: 11 | H44: 2013 | I44: 15 | J44: 10 | K44: 10
A45: 419 | B45: روان أيمن عبد المنعم محمد | C45: الرابع | D45: منقولة | E45: مسلمة | F45: 26 | G45: 11 | H45: 2013 | I45: 5 | J45: 10 | K45: 10
A46: 420 | B46: رودينه عبدالسلام أحمد عبدالسلام | C46: الرابع | D46: منقولة | E46: مسلمة | F46: 4 | G46: 9 | H46: 2014 | I46: 27 | J46: 0 | K46: 10
A47: 421 | B47: ريتاج الحسين راغب محمد | C47: الرابع | D47: منقولة | E47: مسلمة | F47: 9 | G47: 2 | H47: 2014 | I47: 22 | J47: 7 | K47: 10
A48: 422 | B48: ريتاج عبدالباسط عيسى محمد | C48: الرابع | D48: منقولة | E48: مسلمة | F48: 18 | G48: 2 | H48: 2014 | I48: 13 | J48: 7 | K48: 10
A49: 423 | B49: سارة محمود إبراهيم عبدالغني | C49: الرابع | D49: منقولة | E49: مسلمة | F49: 12 | G49: 5 | H49: 2014 | I49: 19 | J49: 4 | K49: 10
A50: 424 | B50: سجى خالد زيدان محمد | C50: الرابع | D50: منقولة | E50: مسلمة | F50: 5 | G50: 4 | H50: 2014 | I50: 26 | J50: 5 | K50: 10
A51: 425 | B51: سلمى خالد محمد كامل | C51: الرابع | D51: منقولة | E51: مسلمة | F51: 15 | G51: 7 | H51: 2014 | I51: 16 | J51: 2 | K51: 10
A52: 426 | B52: سلمى مصطفى طلبه إسماعيل | C52: الرابع | D52: منقولة | E52: مسلمة | F52: 13 | G52: 10 | H52: 2013 | I52: 18 | J52: 11 | K52: 10
A53: 427 | B53: شذى وحيد فتحي عبد العزيز | C53: الرابع | D53: منقولة | E53: مسلمة | F53: 15 | G53: 9 | H53: 2014 | I53: 16 | J53: 0 | K53: 10
A54: 428 | B54: شروق محمود محمد عبدالعظيم | C54: الرابع | D54: منقولة | E54: مسلمة | F54: 30 | G54: 10 | H54: 2013 | I54: 1 | J54: 11 | K54: 10
A55: 429 | B55: شمس عبدالعزيز أحمد محمود | C55: الرابع | D55: منقولة | E55: مسلمة | F55: 7 | G55: 7 | H55: 2014 | I55: 24 | J55: 2 | K55: 10
A56: 430 | B56: شمس قاسم فاروق محمد | C56: الرابع | D56: منقولة | E56: مسلمة | F56: 1 | G56: 5 | H56: 2014 | I56: 0 | J56: 5 | K56: 10
A57: 431 | B57: شيماء أشرف محمد أنور أمين | C57: الرابع | D57: منقولة | E57: مسلمة | F57: 26 | G57: 9 | H57: 2014 | I57: 5 | J57: 0 | K57: 10
A58: 432 | B58: فاطمة إبراهيم يحي محمد | C58: الرابع | D58: منقولة | E58: مسلمة | F58: 5 | G58: 10 | H58: 2013 | I58: 26 | J58: 11 | K58: 10
A59: 433 | B59: فاطمه عامر أبوبكر صديق | C59: الرابع | D59: منقولة | E59: مسلمة | F59: 20 | G59: 5 | H59: 2014 | I59: 11 | J59: 4 | K59: 10
A60: 434 | B60: فاطمه عبد المطلب عثمان حسين | C60: الرابع | D60: منقولة | E60: مسلمة | F60: 24 | G60: 4 | H60: 2014 | I60: 7 | J60: 5 | K60: 10
A61: 435 | B61: فاطمه محمد حمدي يحي | C61: الرابع | D61: منقولة | E61: مسلمة | F61: 24 | G61: 8 | H61: 2014 | I61: 7 | J61: 1 | K61: 10
A62: 436 | B62: مريم أحمد محمد أبوبكر | C62: الرابع | D62: منقولة | E62: مسلمة | F62: 24 | G62: 10 | H62: 2013 | I62: 7 | J62: 11 | K62: 10
A63: 437 | B63: مريم شريف محمد صادق | C63: الرابع | D63: منقولة | E63: مسلمة | F63: 12 | G63: 3 | H63: 2014 | I63: 19 | J63: 6 | K63: 10
A64: 438 | B64: ملك أحمد حسين محمد | C64: الرابع | D64: منقولة | E64: مسلمة | F64: 23 | G64: 6 | H64: 2014 | I64: 8 | J64: 3 | K64: 10
A65: 439 | B65: ملك بلال محمد رفعت محمود | C65: الرابع | D65: منقولة | E65: مسلمة | F65: 23 | G65: 2 | H65: 2014 | I65: 8 | J65: 7 | K65: 10
A66: 440 | B66: ملك جنيدي حسن أبو زيد | C66: الرابع | D66: منقولة | E66: مسلمة | F66: 11 | G66: 8 | H66: 2014 | I66: 20 | J66: 1 | K66: 10
A67: 441 | B67: ملك عربي محمود شحاته | C67: الرابع | D67: منقولة | E67: مسلمة | F67: 7 | G67: 10 | H67: 2013 | I67: 24 | J67: 11 | K67: 10
A68: 442 | B68: ملك عمر صلاح هريدي | C68: الرابع | D68: منقولة | E68: مسلمة | F68: 3 | G68: 6 | H68: 2014 | I68: 28 | J68: 3 | K68: 10
A69: 443 | B69: منه الحسيني علي حسن | C69: الرابع | D69: منقولة | E69: مسلمة | F69: 6 | G69: 12 | H69: 2013 | I69: 25 | J69: 9 | K69: 10
A70: 444 | B70: منه جنيدي حسن أبو زيد | C70: الرابع | D70: منقولة | E70: مسلمة | F70: 11 | G70: 8 | H70: 2014 | I70: 20 | J70: 1 | K70: 10
A71: 445 | B71: منه رجب محمد محمد السيد | C71: الرابع | D71: منقولة | E71: مسلمة | F71: 29 | G71: 3 | H71: 2014 | I71: 2 | J71: 6 | K71: 10
A72: 446 | B72: منه فرج إسماعيل عبدالفتاح | C72: الرابع | D72: منقولة | E72: مسلمة | F72: 25 | G72: 12 | H72: 2013 | I72: 6 | J72: 9 | K72: 10
A73: 447 | B73: مي وسام حمزة دكروري | C73: الرابع | D73: منقولة | E73: مسلمة | F73: 20 | G73: 9 | H73: 2014 | I73: 11 | J73: 0 | K73: 10
A74: 448 | B74: ندا محمد مندي عبد الحميد سيف | C74: الرابع | D74: منقولة | E74: مسلمة | F74: 18 | G74: 1 | H74: 2014 | I74: 13 | J74: 8 | K74: 10
A75: 449 | B75: ندى كمال حسني كمال | C75: الرابع | D75: منقولة | E75: مسلمة | F75: 26 | G75: 1 | H75: 2014 | I75: 5 | J75: 8 | K75: 10
A76: 450 | B76: نهال خالد محمد ربيع محمد | C76: الرابع | D76: منقولة | E76: مسلمة | F76: 2 | G76: 2 | H76: 2014 | I76: 29 | J76: 7 | K76: 10
A77: 451 | B77: نور إبراهيم معطي عبد الرازق | C77: الرابع | D77: منقولة | E77: مسلمة | F77: 24 | G77: 2 | H77: 2014 | I77: 7 | J77: 7 | K77: 10
A78: 452 | B78: نور حسن حجاج السيد عبد الحميد | C78: الرابع | D78: منقولة | E78: مسلمة | F78: 26 | G78: 5 | H78: 2014 | I78: 5 | J78: 4 | K78: 10
A79: 453 | B79: نور محمود طه سعيد | C79: الرابع | D79: منقولة | E79: مسلمة | F79: 11 | G79: 8 | H79: 2014 | I79: 20 | J79: 1 | K79: 10
A80: 454 | B80: نوران مصطفى فتحي لملوم | C80: الرابع | D80: منقولة | E80: مسلمة | F80: 6 | G80: 9 | H80: 2014 | I80: 25 | J80: 0 | K80: 10
A81: 455 | B81: هاجر عبدالغني إبراهيم عبدالغني | C81: الرابع | D81: منقولة | E81: مسلمة | F81: 25 | G81: 6 | H81: 2014 | I81: 6 | J81: 3 | K81: 10
A82: 456 | B82: هنا سلامه مصطفى محمد | C82: الرابع | D82: منقولة | E82: مسلمة | F82: 23 | G82: 1 | H82: 2014 | I82: 8 | J82: 8 | K82: 10
A83: 457 | B83: وتين محمد حسن علي حسن | C83: الرابع | D83: منقولة | E83: مسلمة | F83: 10 | G83: 5 | H83: 2014 | I83: 21 | J83: 4 | K83: 10
A84: 458 | B84: ياسمين عبد الغني صادق عبد الغني | C84: الرابع | D84: منقولة | E84: مسلمة | F84: 11 | G84: 1 | H84: 2014 | I84: 20 | J84: 8 | K84: 10
A85: 459 | B85: احمد أشرف شحاته محمد | C85: الرابع | D85: منقول | E85: مسلم | F85: 10 | G85: 11 | H85: 2013 | I85: =DATEDIF(DATE(H85,G85,F85),$I$14,"MD") -> 21 | J85: =DATEDIF(DATE(H85,G85,F85),$I$14,"ym") -> 10 | K85: =DATEDIF(DATE(H85,G85,F85),$I$14,"y") -> 10
A86: 460 | B86: احمد صلاح يحي عثمان | C86: الرابع | D86: منقول | E86: مسلم | F86: 6 | G86: 4 | H86: 2014 | I86: 25 | J86: 5 | K86: 10
A87: 461 | B87: احمد عبد العزيز أحمد عبد العزيز | C87: الرابع | D87: منقول | E87: مسلم | F87: 30 | G87: 8 | H87: 2014 | I87: 1 | J87: 1 | K87: 10
A88: 462 | B88: احمد علاء خلف عبد الدايم | C88: الرابع | D88: منقول | E88: مسلم | F88: 25 | G88: 6 | H88: 2014 | I88: 6 | J88: 3 | K88: 10
A89: 463 | B89: احمد علي محمد محمد الجنيدي | C89: الرابع | D89: منقول | E89: مسلم | F89: 18 | G89: 8 | H89: 2014 | I89: 13 | J89: 1 | K89: 10
A90: 464 | B90: احمد قياتي محمد شاكر | C90: الرابع | D90: منقول | E90: مسلم | F90: 2 | G90: 3 | H90: 2014 | I90: 29 | J90: 6 | K90: 10
A91: 465 | B91: احمد محمد رجب عبدالعزيز | C91: الرابع | D91: منقول | E91: مسلم | F91: 20 | G91: 1 | H91: 2014 | I91: 11 | J91: 8 | K91: 10
A92: 466 | B92: احمد محمد رجب كامل | C92: الرابع | D92: منقول | E92: مسلم | F92: 14 | G92: 4 | H92: 2014 | I92: 17 | J92: 5 | K92: 10
A93: 467 | B93: احمد محمد فتحي عبد المنعم | C93: الرابع | D93: منقول | E93: مسلم | F93: 3 | G93: 1 | H93: 2014 | I93: 28 | J93: 8 | K93: 10
A94: 468 | B94: احمد محمود محمد محمد الشوربجي | C94: الرابع | D94: منقول | E94: مسلم | F94: 25 | G94: 5 | H94: 2014 | I94: 6 | J94: 4 | K94: 10
A95: 469 | B95: ادم عبدالله خليفه يحي محمد | C95: الرابع | D95: الثالث | E95: مسلم | F95: 21 | G95: 1 | H95: 2014 | I95: =DATEDIF(DATE(H95,G95,F95),$I$14,"MD") -> 10 | J95: =DATEDIF(DATE(H95,G95,F95),$I$14,"ym") -> 8 | K95: =DATEDIF(DATE(H95,G95,F95),$I$14,"y") -> 10
A96: 470 | B96: ادهم محمود عبدالرازق عيد | C96: الرابع | D96: منقول | E96: مسلم | F96: 14 | G96: 2 | H96: 2014 | I96: 17 | J96: 7 | K96: 10
A97: 471 | B97: امير أحمد مرتضى عبدالغفار | C97: الرابع | D97: الثالث | E97: مسلم | F97: 12 | G97: 5 | H97: 2014 | I97: =DATEDIF(DATE(H97,G97,F97),$I$14,"MD") -> 19 | J97: =DATEDIF(DATE(H97,G97,F97),$I$14,"ym") -> 4 | K97: =DATEDIF(DATE(H97,G97,F97),$I$14,"y") -> 10
A98: 472 | B98: انس طه عبدالعزيز أحمد إبراهيم | C98: الرابع | D98: منقول | E98: مسلم | F98: 4 | G98: 7 | H98: 2014 | I98: 27 | J98: 2 | K98: 10
A99: 473 | B99: اياد مصطفى عطيه عبدالرازق | C99: الرابع | D99: منقول | E99: مسلم | F99: 15 | G99: 5 | H99: 2014 | I99: 16 | J99: 4 | K99: 10
A100: 474 | B100: بلال أحمد خليفة علي | C100: الرابع | D100: منقول | E100: مسلم | F100: 30 | G100: 11 | H100: 2013 | I100: 1 | J100: 10 | K100: 10
A101: 475 | B101: حازم محمد خليفه يحي | C101: الرابع | D101: منقول | E101: مسلم | F101: 1 | G101: 5 | H101: 2014 | I101: 0 | J101: 5 | K101: 10
A102: 476 | B102: حسام مصطفى محمد راضي | C102: الرابع | D102: منقول | E102: مسلم | F102: 10 | G102: 10 | H102: 2013 | I102: 21 | J102: 11 | K102: 10
A103: 477 | B103: سعيد محمود محمد شريف | C103: الرابع | D103: منقول | E103: مسلم | F103: 19 | G103: 2 | H103: 2014 | I103: 12 | J103: 7 | K103: 10
A104: 478 | B104: سمير أحمد سمير محمود | C104: الرابع | D104: منقول | E104: مسلم | F104: 13 | G104: 8 | H104: 2014 | I104: 18 | J104: 1 | K104: 10
A105: 479 | B105: صموئيل عاطف صموئيل بطرس | C105: الرابع | D105: منقول | E105: مسيحي | F105: 12 | G105: 4 | H105: 2014 | I105: 19 | J105: 5 | K105: 10
A106: 480 | B106: عاصم خالد محمد محمد إبراهيم | C106: الرابع | D106: منقول | E106: مسلم | F106: 6 | G106: 1 | H106: 2014 | I106: 25 | J106: 8 | K106: 10
A107: 481 | B107: عاصم عبد العزيز حماد عبد الرازق | C107: الرابع | D107: منقول | E107: مسلم | F107: 1 | G107: 2 | H107: 2014 | I107: 0 | J107: 8 | K107: 10
A108: 482 | B108: عبد الحليم محمود عبد الحليم محمد | C108: الرابع | D108: منقول | E108: مسلم | F108: 26 | G108: 2 | H108: 2014 | I108: 5 | J108: 7 | K108: 10
A109: 483 | B109: عبد الرحمن محمد عبد الله طلب | C109: الرابع | D109: منقول | E109: مسلم | F109: 25 | G109: 1 | H109: 2014 | I109: 6 | J109: 8 | K109: 10
A110: 484 | B110: عبد الله أحمد عبد الناصر عبد الغني | C110: الرابع | D110: منقول | E110: مسلم | F110: 2 | G110: 2 | H110: 2014 | I110: 29 | J110: 7 | K110: 10
A111: 485 | B111: عبد الله أحمد سيد عبد الرازق عثمان | C111: الرابع | D111: منقول | E111: مسلم | F111: 24 | G111: 9 | H111: 2014 | I111: 7 | J111: 0 | K111: 10
A112: 486 | B112: عبدالله أحمد عبدالغفار محمد | C112: الرابع | D112: منقول | E112: مسلم | F112: 10 | G112: 1 | H112: 2014 | I112: 21 | J112: 8 | K112: 10
A113: 487 | B113: عبد الله عبد العزيز محمد راضي | C113: الرابع | D113: منقول | E113: مسلم | F113: 31 | G113: 8 | H113: 2014 | I113: 0 | J113: 1 | K113: 10
A114: 488 | B114: عبدالمنعم محمود راضي الجنيدي | C114: الرابع | D114: منقول | E114: مسلم | F114: 12 | G114: 12 | H114: 2013 | I114: 19 | J114: 9 | K114: 10
A115: 489 | B115: عز الدين نزيه عبد المعز محمود | C115: الرابع | D115: منقول | E115: مسلم | F115: 22 | G115: 6 | H115: 2014 | I115: 9 | J115: 3 | K115: 10
A116: 490 | B116: عمار جنيدي فنجري عبدالواحد | C116: الرابع | D116: منقول | E116: مسلم | F116: 25 | G116: 9 | H116: 2014 | I116: 6 | J116: 0 | K116: 10
A117: 491 | B117: عمر عبد الرحمن عيد أبو بكر | C117: الرابع | D117: منقول | E117: مسلم | F117: 8 | G117: 7 | H117: 2014 | I117: 23 | J117: 2 | K117: 10
A118: 492 | B118: عمر عبدالعزيز ممدوح عبدالغني | C118: الرابع | D118: منقول | E118: مسلم | F118: 25 | G118: 1 | H118: 2014 | I118: 6 | J118: 8 | K118: 10
A119: 493 | B119: عمر محسن محمد عثمان | C119: الرابع | D119: منقول | E119: مسلم | F119: 3 | G119: 5 | H119: 2014 | I119: 28 | J119: 4 | K119: 10
A120: 494 | B120: كريم محمد عبد الحليم إبراهيم | C120: الرابع | D120: منقول | E120: مسلم | F120: 18 | G120: 11 | H120: 2013 | I120: 13 | J120: 10 | K120: 10
A121: 495 | B121: كريم مصطفى حسني عبدالونيس | C121: الرابع | D121: منقول | E121: مسلم | F121: 8 | G121: 2 | H121: 2015 | I121: 23 | J121: 7 | K121: 9
A122: 496 | B122: محمد أسامه إسماعيل أبو زيد | C122: الرابع | D122: منقول | E122: مسلم | F122: 3 | G122: 8 | H122: 2014 | I122: 28 | J122: 1 | K122: 10
A123: 497 | B123: محمد أسامه محمد صادق | C123: الرابع | D123: منقول | E123: مسلم | F123: 13 | G123: 10 | H123: 2013 | I123: 18 | J123: 11 | K123: 10
A124: 498 | B124: محمد خالد إبراهيم عبد الفتاح | C124: الرابع | D124: منقول | E124: مسلم | F124: 16 | G124: 6 | H124: 2014 | I124: 15 | J124: 3 | K124: 10
A125: 499 | B125: محمد عبدالحليم عبدالفتاح محمد | C125: الرابع | D125: منقول | E125: مسلم | F125: 14 | G125: 11 | H125: 2013 | I125: 17 | J125: 10 | K125: 10
A126: 500 | B126: محمد عبد الرازق عثمان محمد | C126: الرابع | D126: منقول | E126: مسلم | F126: 29 | G126: 6 | H126: 2014 | I126: 2 | J126: 3 | K126: 10
A127: 501 | B127: محمد عبدالقادر حماد عبدالرازق | C127: الرابع | D127: منقول | E127: مسلم | F127: 24 | G127: 3 | H127: 2014 | I127: 7 | J127: 6 | K127: 10
A128: 502 | B128: محمد عبد القادر محمد محمد عبد الرسول | C128: الرابع | D128: منقول | E128: مسلم | F128: 30 | G128: 3 | H128: 2014 | I128: 1 | J128: 6 | K128: 10
A129: 503 | B129: محمد عوض ناجح أحمد | C129: الرابع | D129: منقول | E129: مسلم | F129: 17 | G129: 10 | H129: 2013 | I129: 14 | J129: 11 | K129: 10
A130: 504 | B130: محمد مصطفى سعودي محمد | C130: الرابع | D130: منقول | E130: مسلم | F130: 4 | G130: 9 | H130: 2014 | I130: 27 | J130: 0 | K130: 10
A131: 505 | B131: محمود أحمد عبدالحليم محمد | C131: الرابع | D131: منقول | E131: مسلم | F131: 5 | G131: 6 | H131: 2014 | I131: 26 | J131: 3 | K131: 10
A132: 506 | B132: محمود بدوي محمد محمود | C132: الرابع | D132: منقول | E132: مسلم | F132: 24 | G132: 2 | H132: 2014 | I132: 7 | J132: 7 | K132: 10
A133: 507 | B133: مروان ربيع محمد حافظ | C133: الرابع | D133: منقول | E133: مسلم | F133: 16 | G133: 11 | H133: 2013 | I133: 15 | J133: 10 | K133: 10
A134: 508 | B134: مروان محمد قياتي علي | C134: الرابع | D134: منقول | E134: مسلم | F134: 1 | G134: 4 | H134: 2014 | I134: 0 | J134: 6 | K134: 10
A135: 509 | B135: مصطفى عامر محمود راضي | C135: الرابع | D135: منقول | E135: مسلم | F135: 30 | G135: 11 | H135: 2013 | I135: 1 | J135: 10 | K135: 10
A136: 510 | B136: معاذ مصطفى محمد سعيد | C136: الرابع | D136: منقول | E136: مسلم | F136: 1 | G136: 12 | H136: 2013 | I136: 0 | J136: 10 | K136: 10
A137: 511 | B137: معتز هاني عبد المعز محمود | C137: الرابع | D137: منقول | E137: مسلم | F137: 1 | G137: 7 | H137: 2014 | I137: 0 | J137: 3 | K137: 10
A138: 512 | B138: مهند أسامة محمد حسيب | C138: الرابع | D138: منقول | E138: مسلم | F138: 10 | G138: 11 | H138: 2014 | I138: 21 | J138: 10 | K138: 9
A139: 513 | B139: ياسين محمود محمد محمود عثمان | C139: الرابع | D139: منقول | E139: مسلم | F139: 19 | G139: 3 | H139: 2014 | I139: 12 | J139: 6 | K139: 10
A140: 514 | B140: يوسف أحمد فتحي بهجات | C140: الرابع | D140: منقول | E140: مسلم | F140: 8 | G140: 8 | H140: 2014 | I140: 23 | J140: 1 | K140: 10
A141: 515 | B141: يوسف ربيع صبحي محمد محمد | C141: الرابع | D141: منقول | E141: مسلم | F141: 29 | G141: 3 | H141: 2014 | I141: 2 | J141: 6 | K141: 10
A142: 516 | B142: يوسف عبدالحليم أحمد عبدالحليم | C142: الرابع | D142: منقول | E142: مسلم | F142: 22 | G142: 1 | H142: 2014 | I142: 9 | J142: 8 | K142: 10
A143: 517 | B143: يوسف علي محمد ربيع علي | C143: الرابع | D143: منقول | E143: مسلم | F143: 15 | G143: 4 | H143: 2014 | I143: 16 | J143: 5 | K143: 10
A144: 518 | B144: يوسف محمد محمود شحاته | C144: الرابع | D144: منقول | E144: مسلم | F144: 3 | G144: 7 | H144: 2014 | I144: 28 | J144: 2 | K144: 10
A145: 519 | B145: يوسف مصطفى فتحي كامل | C145: الرابع | D145: منقول | E145: مسلم | F145: 6 | G145: 6 | H145: 2014 | I145: 25 | J145: 3 | K145: 10
A146: 520 | B146: اروى سعيد قياتي عبد الفتاح | C146: الخامس | D146: منقولة | E146: مسلمة | F146: 26 | G146: 9 | H146: 2013 | I146: =DATEDIF(DATE(H146,G146,F146),$I$14,"MD") -> 5 | J146: =DATEDIF(DATE(H146,G146,F146),$I$14,"YM") -> 0 | K146: =DATEDIF(DATE(H146,G146,F146),$I$14,"y") -> 11
A147: 521 | B147: اسراء عبد القادر كامل عبد اللطيف | C147: الخامس | D147: منقولة | E147: مسلمة | F147: 12 | G147: 7 | H147: 2013 | I147: 19 | J147: 2 | K147: 11
A148: 522 | B148: اسماء ناصر عبد القادر أمين أمين | C148: الخامس | D148: منقولة | E148: مسلمة | F148: 28 | G148: 1 | H148: 2013 | I148: 3 | J148: 8 | K148: 11
A149: 523 | B149: التقوى حسين خليفة محمد | C149: الخامس | D149: منقولة | E149: مسلمة | F149: 30 | G149: 5 | H149: 2013 | I149: 1 | J149: 4 | K149: 11
A150: 524 | B150: الزهراء صابر محمد عبد الصابر | C150: الخامس | D150: منقولة | E150: مسلمة | F150: 1 | G150: 2 | H150: 2013 | I150: 0 | J150: 8 | K150: 11
A151: 525 | B151: الزهراء محمد السيد حسانين | C151: الخامس | D151: منقولة | E151: مسلمة | F151: 17 | G151: 1 | H151: 2013 | I151: 14 | J151: 8 | K151: 11
A152: 526 | B152: امنه رمضان أحمد إبراهيم | C152: الخامس | D152: منقولة | E152: مسلمة | F152: 22 | G152: 1 | H152: 2013 | I152: =DATEDIF(DATE(H152,G152,F152),$I$14,"MD") -> 9 | J152: =DATEDIF(DATE(H152,G152,F152),$I$14,"YM") -> 8 | K152: =DATEDIF(DATE(H152,G152,F152),$I$14,"y") -> 11
A153: 527 | B153: اسينات محمد حسني كمال | C153: الخامس | D153: منقولة | E153: مسلمة | F153: 7 | G153: 6 | H153: 2013 | I153: 24 | J153: 3 | K153: 11
A154: 528 | B154: اسينات محمد عبد المنعم محمد حسن | C154: الخامس | D154: منقولة | E154: مسلمة | F154: 6 | G154: 6 | H154: 2013 | I154: 25 | J154: 3 | K154: 11
A155: 529 | B155: اميرة محمد محمود عبد اللطيف | C155: الخامس | D155: منقولة | E155: مسلمة | F155: 1 | G155: 12 | H155: 2012 | I155: 0 | J155: 10 | K155: 11
A156: 530 | B156: تقوى محمد سعد حلمي | C156: الخامس | D156: منقولة | E156: مسلمة | F156: 20 | G156: 5 | H156: 2013 | I156: 11 | J156: 4 | K156: 11
A157: 531 | B157: جنات حمدي جمال حلمي | C157: الخامس | D157: منقولة | E157: مسلمة | F157: 6 | G157: 10 | H157: 2013 | I157: 25 | J157: 11 | K157: 10
A158: 532 | B158: جنى عبد العزيز محمد أحمد عبد المقصود | C158: الخامس | D158: منقولة | E158: مسلمة | F158: 23 | G158: 1 | H158: 2013 | I158: 8 | J158: 8 | K158: 11
A159: 533 | B159: جنى محمد عاشور عبد الفتاح | C159: الخامس | D159: منقولة | E159: مسلمة | F159: 27 | G159: 10 | H159: 2012 | I159: 4 | J159: 11 | K159: 11
A160: 534 | B160: حبيبه حسين أحمد عبد العزيز | C160: الخامس | D160: منقولة | E160: مسلمة | F160: 16 | G160: 8 | H160: 2013 | I160: 15 | J160: 1 | K160: 11
A161: 535 | B161: حبيبه محمد سيد محمد جاد الله | C161: الخامس | D161: منقولة | E161: مسلمة | F161: 1 | G161: 8 | H161: 2013 | I161: 0 | J161: 2 | K161: 11
A162: 536 | B162: حسناء محمود رمضان عبد الله | C162: الخامس | D162: منقولة | E162: مسلمة | F162: 25 | G162: 9 | H162: 2013 | I162: 6 | J162: 0 | K162: 11
A163: 537 | B163: خديجه أحمد فتحي خطاب | C163: الخامس | D163: منقولة | E163: مسلمة | F163: 18 | G163: 4 | H163: 2013 | I163: 13 | J163: 5 | K163: 11
A164: 538 | B164: خديجة محمد يحي فهمي | C164: الخامس | D164: منقولة | E164: مسلمة | F164: 27 | G164: 6 | H164: 2013 | I164: 4 | J164: 3 | K164: 11
A165: 539 | B165: رؤى محمد فتحي بهجات | C165: الخامس | D165: منقولة | E165: مسلمة | F165: 9 | G165: 10 | H165: 2012 | I165: 22 | J165: 11 | K165: 11
A166: 540 | B166: رجاء فتحي مرتضى عبد الغفار | C166: الخامس | D166: منقولة | E166: مسلمة | F166: 24 | G166: 7 | H166: 2013 | I166: 7 | J166: 2 | K166: 11
A167: 541 | B167: روضه إسماعيل محمد إبراهيم | C167: الخامس | D167: منقولة | E167: مسلمة | F167: 3 | G167: 7 | H167: 2013 | I167: 28 | J167: 2 | K167: 11
A168: 542 | B168: روضه محمد أحمد عبد النعيم | C168: الخامس | D168: منقولة | E168: مسلمة | F168: 9 | G168: 6 | H168: 2013 | I168: 22 | J168: 3 | K168: 11
A169: 543 | B169: روفيده طارق بكر محمد | C169: الخامس | D169: منقولة | E169: مسلمة | F169: 18 | G169: 2 | H169: 2013 | I169: 13 | J169: 7 | K169: 11
A170: 544 | B170: ريم ناصر رجب كامل جاد الحق | C170: الخامس | D170: منقولة | E170: مسلمة | F170: 26 | G170: 1 | H170: 2013 | I170: 5 | J170: 8 | K170: 11
A171: 545 | B171: سجى خليل عبد النعم محمد حسن | C171: الخامس | D171: منقولة | E171: مسلمة | F171: 14 | G171: 9 | H171: 2013 | I171: 17 | J171: 0 | K171: 11
A172: 546 | B172: سلمى إبراهيم عبد العزيز علي | C172: الخامس | D172: منقولة | E172: مسلمة | F172: 25 | G172: 6 | H172: 2013 | I172: 6 | J172: 3 | K172: 11
A173: 547 | B173: سما عبد القادر مرسي محمد | C173: الخامس | D173: منقولة | E173: مسلمة | F173: 10 | G173: 3 | H173: 2013 | I173: 21 | J173: 6 | K173: 11
A174: 548 | B174: سما نصر محمد صديق | C174: الخامس | D174: منقولة | E174: مسلمة | F174: 15 | G174: 11 | H174: 2012 | I174: 16 | J174: 10 | K174: 11
A175: 549 | B175: شذا عزالدين محمد علي | C175: الخامس | D175: منقولة | E175: مسلمة | F175: 20 | G175: 2 | H175: 2013 | I175: 11 | J175: 7 | K175: 11
A176: 550 | B176: عبير مصطفى مساعد مشاضي | C176: الخامس | D176: منقولة | E176: مسلمة | F176: 1 | G176: 9 | H176: 2013 | I176: 0 | J176: 1 | K176: 11
A177: 551 | B177: فرح محمد علي صابر | C177: الخامس | D177: منقولة | E177: مسلمة | F177: 27 | G177: 10 | H177: 2012 | I177: 4 | J177: 11 | K177: 11
A178: 552 | B178: لجين سامر محمد أبو زيد | C178: الخامس | D178: منقولة | E178: مسلمة | F178: 11 | G178: 9 | H178: 2013 | I178: 20 | J178: 0 | K178: 11
A179: 553 | B179: لمار محمد عبدالله محمد | C179: الخامس | D179: منقولة | E179: مسلمة | F179: 30 | G179: 11 | H179: 2013 | I179: 1 | J179: 10 | K179: 10
A180: 554 | B180: مريم ثروت محمد محمود | C180: الخامس | D180: منقولة | E180: مسلمة | F180: 23 | G180: 12 | H180: 2012 | I180: 8 | J180: 9 | K180: 11
A181: 555 | B181: مريم سعيد سيد عبد الرازق | C181: الخامس | D181: منقولة | E181: مسلمة | F181: 18 | G181: 12 | H181: 2012 | I181: 13 | J181: 9 | K181: 11
A182: 556 | B182: مريم طه فتحي محمود | C182: الخامس | D182: منقولة | E182: مسلمة | F182: 16 | G182: 3 | H182: 2013 | I182: 15 | J182: 6 | K182: 11
A183: 557 | B183: مريم فولي عبد الله عبد السميع | C183: الخامس | D183: منقولة | E183: مسلمة | F183: 4 | G183: 7 | H183: 2013 | I183: 27 | J183: 2 | K183: 11
A184: 558 | B184: مريم مرزبان عبد الغفار محمد | C184: الخامس | D184: منقولة | E184: مسلمة | F184: 26 | G184: 3 | H184: 2013 | I184: 5 | J184: 6 | K184: 11
A185: 559 | B185: مريم مصطفى عطا خلف | C185: الخامس | D185: منقولة | E185: مسلمة | F185: 2 | G185: 10 | H185: 2012 | I185: 29 | J185: 11 | K185: 11
A186: 560 | B186: مريم مصطفى محمد أنور | C186: الخامس | D186: منقولة | E186: مسلمة | F186: 16 | G186: 3 | H186: 2013 | I186: 15 | J186: 6 | K186: 11
A187: 561 | B187: ملك أحمد ربيع أحمد | C187: الخامس | D187: منقولة | E187: مسلمة | F187: 7 | G187: 10 | H187: 2012 | I187: 24 | J187: 11 | K187: 11
A188: 562 | B188: ملك صالح محمد محمد علي | C188: الخامس | D188: منقولة | E188: مسلمة | F188: 26 | G188: 8 | H188: 2013 | I188: 5 | J188: 1 | K188: 11
A189: 563 | B189: مي عبد الباسط عبد الحميد محمد | C189: الخامس | D189: منقولة | E189: مسلمة | F189: 24 | G189: 1 | H189: 2013 | I189: 7 | J189: 8 | K189: 11
A190: 564 | B190: مي محمود صلاح الدين حسن | C190: الخامس | D190: منقولة | E190: مسلمة | F190: 24 | G190: 2 | H190: 2013 | I190: 7 | J190: 7 | K190: 11
A191: 565 | B191: ناهد وليد عبد الله عبد الحليم | C191: الخامس | D191: منقولة | E191: مسلمة | F191: 7 | G191: 10 | H191: 2012 | I191: 24 | J191: 11 | K191: 11
A192: 566 | B192: ندا سامح عيد كامل عبد الظاهر | C192: الخامس | D192: منقولة | E192: مسلمة | F192: 19 | G192: 9 | H192: 2013 | I192: 12 | J192: 0 | K192: 11
A193: 567 | B193: ندى محمود عبد النعيم محمد | C193: الخامس | D193: منقولة | E193: مسلمة | F193: 25 | G193: 9 | H193: 2013 | I193: 6 | J193: 0 | K193: 11
A194: 568 | B194: نور محمود شحاته محمد أحمد | C194: الخامس | D194: منقولة | E194: مسلمة | F194: 7 | G194: 4 | H194: 2013 | I194: 24 | J194: 5 | K194: 11
A195: 569 | B195: نورهان أشرف خيري زكي | C195: الخامس | D195: منقولة | E195: مسلمة | F195: 26 | G195: 12 | H195: 2012 | I195: 5 | J195: 9 | K195: 11
A196: 570 | B196: هدير جمال رجب توفيق | C196: الخامس | D196: منقولة | E196: مسلمة | F196: 7 | G196: 4 | H196: 2013 | I196: 24 | J196: 5 | K196: 11
A197: 571 | B197: ياسمين خالد عبد الغني حسن | C197: الخامس | D197: منقولة | E197: مسلمة | F197: 15 | G197: 8 | H197: 2013 | I197: 16 | J197: 1 | K197: 11
A198: 572 | B198: ياسمين عبد الله محمد محمد | C198: الخامس | D198: منقولة | E198: مسلمة | F198: 3 | G198: 2 | H198: 2013 | I198: 28 | J198: 7 | K198: 11
A199: 573 | B199: ابراهيم خالد إبراهيم صادق | C199: الخامس | D199: منقول | E199: مسلم | F199: 13 | G199: 11 | H199: 2012 | I199: 18 | J199: 10 | K199: 11
A200: 574 | B200: احمد حسن كامل عثمان | C200: الخامس | D200: منقول | E200: مسلم | F200: 1 | G200: 9 | H200: 2013 | I200: =DATEDIF(DATE(H200,G200,F200),$I$14,"MD") -> 0 | J200: =DATEDIF(DATE(H200,G200,F200),$I$14,"YM") -> 1 | K200: =DATEDIF(DATE(H200,G200,F200),$I$14,"y") -> 11
A201: 575 | B201: احمد خالد محمد شلقامي | C201: الخامس | D201: منقول | E201: مسلم | F201: 30 | G201: 5 | H201: 2013 | I201: 1 | J201: 4 | K201: 11
A202: 576 | B202: احمد رضا أحمد حسين | C202: الخامس | D202: منقول | E202: مسلم | F202: 10 | G202: 6 | H202: 2013 | I202: 21 | J202: 3 | K202: 11
A203: 577 | B203: احمد شعبان محمد علي | C203: الخامس | D203: منقول | E203: مسلم | F203: 1 | G203: 8 | H203: 2013 | I203: 0 | J203: 2 | K203: 11
A204: 578 | B204: احمد محمد أحمد عبد العزيز محمد | C204: الخامس | D204: منقول | E204: مسلم | F204: 19 | G204: 8 | H204: 2013 | I204: 12 | J204: 1 | K204: 11
A205: 579 | B205: احمد محمد خالد محمد | C205: الخامس | D205: منقول | E205: مسلم | F205: 28 | G205: 7 | H205: 2013 | I205: 3 | J205: 2 | K205: 11
... 193 more rows

Sheet كشوف رصد فصل أول
B1: مديرية التربية والتعليم بالمنيا
B2: إدارة بني مزار التعليمية
B3: مدرسة أحمد أنور عبد العزيز
A4: كشف رصـــــد درجـــات الصفــــوف الرابع والخامس والسادس فصل أول للعام الدراسي 2023 / 2024 م
A6: رقم الجلوس | B6: اســـــــم التلميـــــذ | C6: رقم الجلوس | D6: سري | E6: سري | F6: المــــــــــــــــــــــواد
F7: لغة عربية | I7: رياضيات | L7: لغة انجليزية | O7: دراسات | R7: علوم | U7: رياضي | V7: فني | W7: موسيقى | X7: مهارات | AA7: مجموع | AB7: حاسب | AE7: توكاتسو | AF7: قيم | AG7: تربية دينية
F8: أعمال | G8: نصف العام | H8: مجموع | I8: أعمال | J8: نصف العام | K8: مجموع | L8: أعمال | M8: نصف العام | N8: مجموع | O8: أعمال | P8: نصف العام | Q8: مجموع | R8: أعمال | S8: نصف العام | T8: مجموع | U8: درجة | V8: درجة | W8: درجة | X8: أعمال | Y8: نصف العام | Z8: مجموع | AA8: درجة | AB8: أعمال | AC8: نصف العام | AD8: مجموع | AE8: درجة | AF8: درجة | AG8: أعمال | AH8: نصف العام | AI8: مجموع
F9: 70 | G9: 30 | H9: 100 | I9: 70 | J9: 30 | K9: 100 | L9: 70 | M9: 30 | N9: 100 | O9: 70 | P9: 30 | Q9: 100 | R9: 70 | S9: 30 | T9: 100 | U9: 20 | V9: 20 | W9: 20 | X9: 70 | Y9: 30 | Z9: 100 | AA9: 800 | AB9: 70 | AC9: 30 | AD9: 100 | AE9: 100 | AF9: 100 | AG9: 70 | AH9: 30 | AI9: 100
A10: ='نتيجة عامة4-5-6'!A20 -> 394 | B10: ='نتيجة عامة4-5-6'!B20 -> اسماء عبد العزيز يحي يوسف | C10: ='نتيجة عامة4-5-6'!A20 -> 394 | F10: ='نتيجة عامة4-5-6'!L20 -> 0 | I10: ='نتيجة عامة4-5-6'!U20 -> 0 | L10: ='نتيجة عامة4-5-6'!AD20 -> 0 | O10: ='نتيجة عامة4-5-6'!AM20 -> 0 | R10: ='نتيجة عامة4-5-6'!AV20 -> 0 | U10: ='نتيجة عامة4-5-6'!BG20 -> 0 | V10: ='نتيجة عامة4-5-6'!BP20 -> 0 | W10: ='نتيجة عامة4-5-6'!BY20 -> 0 | X10: ='نتيجة عامة4-5-6'!CF20 -> 0 | AA10: ='نتيجة عامة4-5-6'!CO20 -> 0 | AB10: ='نتيجة عامة4-5-6'!CV20 -> 0 | AE10: ='نتيجة عامة4-5-6'!DG20 -> 0 | AF10: ='نتيجة عامة4-5-6'!DP20 -> 0 | AG10: ='نتيجة عامة4-5-6'!DW20 -> 0
A11: ='نتيجة عامة4-5-6'!A21 -> 395 | B11: ='نتيجة عامة4-5-6'!B21 -> اماني خالد محمد البدري | C11: ='نتيجة عامة4-5-6'!A21 -> 395 | F11: ='نتيجة عامة4-5-6'!L21 -> 0 | I11: ='نتيجة عامة4-5-6'!U21 -> 0 | L11: ='نتيجة عامة4-5-6'!AD21 -> 0 | O11: ='نتيجة عامة4-5-6'!AM21 -> 0 | R11: ='نتيجة عامة4-5-6'!AV21 -> 0 | U11: ='نتيجة عامة4-5-6'!BG21 -> 0 | V11: ='نتيجة عامة4-5-6'!BP21 -> 0 | W11: ='نتيجة عامة4-5-6'!BY21 -> 0 | X11: ='نتيجة عامة4-5-6'!CF21 -> 0 | AA11: ='نتيجة عامة4-5-6'!CO21 -> 0 | AB11: ='نتيجة عامة4-5-6'!CV21 -> 0 | AE11: ='نتيجة عامة4-5-6'!DG21 -> 0 | AF11: ='نتيجة عامة4-5-6'!DP21 -> 0 | AG11: ='نتيجة عامة4-5-6'!DW21 -> 0
A12: ='نتيجة عامة4-5-6'!A22 -> 396 | B12: ='نتيجة عامة4-5-6'!B22 -> ايات محمد محمد ربيع | C12: ='نتيجة عامة4-5-6'!A22 -> 396 | F12: ='نتيجة عامة4-5-6'!L22 -> 0 | I12: ='نتيجة عامة4-5-6'!U22 -> 0 | L12: ='نتيجة عامة4-5-6'!AD22 -> 0 | O12: ='نتيجة عامة4-5-6'!AM22 -> 0 | R12: ='نتيجة عامة4-5-6'!AV22 -> 0 | U12: ='نتيجة عامة4-5-6'!BG22 -> 0 | V12: ='نتيجة عامة4-5-6'!BP22 -> 0 | W12: ='نتيجة عامة4-5-6'!BY22 -> 0 | X12: ='نتيجة عامة4-5-6'!CF22 -> 0 | AA12: ='نتيجة عامة4-5-6'!CO22 -> 0 | AB12: ='نتيجة عامة4-5-6'!CV22 -> 0 | AE12: ='نتيجة عامة4-5-6'!DG22 -> 0 | AF12: ='نتيجة عامة4-5-6'!DP22 -> 0 | AG12: ='نتيجة عامة4-5-6'!DW22 -> 0
A13: ='نتيجة عامة4-5-6'!A23 -> 397 | B13: ='نتيجة عامة4-5-6'!B23 -> ايه شعبان يونس حسن | C13: ='نتيجة عامة4-5-6'!A23 -> 397 | F13: ='نتيجة عامة4-5-6'!L23 -> 0 | I13: ='نتيجة عامة4-5-6'!U23 -> 0 | L13: ='نتيجة عامة4-5-6'!AD23 -> 0 | O13: ='نتيجة عامة4-5-6'!AM23 -> 0 | R13: ='نتيجة عامة4-5-6'!AV23 -> 0 | U13: ='نتيجة عامة4-5-6'!BG23 -> 0 | V13: ='نتيجة عامة4-5-6'!BP23 -> 0 | W13: ='نتيجة عامة4-5-6'!BY23 -> 0 | X13: ='نتيجة عامة4-5-6'!CF23 -> 0 | AA13: ='نتيجة عامة4-5-6'!CO23 -> 0 | AB13: ='نتيجة عامة4-5-6'!CV23 -> 0 | AE13: ='نتيجة عامة4-5-6'!DG23 -> 0 | AF13: ='نتيجة عامة4-5-6'!DP23 -> 0 | AG13: ='نتيجة عامة4-5-6'!DW23 -> 0
A14: ='نتيجة عامة4-5-6'!A24 -> 398 | B14: ='نتيجة عامة4-5-6'!B24 -> ايه مصطفى عطا خلف | C14: ='نتيجة عامة4-5-6'!A24 -> 398 | F14: ='نتيجة عامة4-5-6'!L24 -> 0 | I14: ='نتيجة عامة4-5-6'!U24 -> 0 | L14: ='نتيجة عامة4-5-6'!AD24 -> 0 | O14: ='نتيجة عامة4-5-6'!AM24 -> 0 | R14: ='نتيجة عامة4-5-6'!AV24 -> 0 | U14: ='نتيجة عامة4-5-6'!BG24 -> 0 | V14: ='نتيجة عامة4-5-6'!BP24 -> 0 | W14: ='نتيجة عامة4-5-6'!BY24 -> 0 | X14: ='نتيجة عامة4-5-6'!CF24 -> 0 | AA14: ='نتيجة عامة4-5-6'!CO24 -> 0 | AB14: ='نتيجة عامة4-5-6'!CV24 -> 0 | AE14: ='نتيجة عامة4-5-6'!DG24 -> 0 | AF14: ='نتيجة عامة4-5-6'!DP24 -> 0 | AG14: ='نتيجة عامة4-5-6'!DW24 -> 0
A15: ='نتيجة عامة4-5-6'!A25 -> 399 | B15: ='نتيجة عامة4-5-6'!B25 -> بسملة إبراهيم السيد الجنيدي | C15: ='نتيجة عامة4-5-6'!A25 -> 399 | F15: ='نتيجة عامة4-5-6'!L25 -> 0 | I15: ='نتيجة عامة4-5-6'!U25 -> 0 | L15: ='نتيجة عامة4-5-6'!AD25 -> 0 | O15: ='نتيجة عامة4-5-6'!AM25 -> 0 | R15: ='نتيجة عامة4-5-6'!AV25 -> 0 | U15: ='نتيجة عامة4-5-6'!BG25 -> 0 | V15: ='نتيجة عامة4-5-6'!BP25 -> 0 | W15: ='نتيجة عامة4-5-6'!BY25 -> 0 | X15: ='نتيجة عامة4-5-6'!CF25 -> 0 | AA15: ='نتيجة عامة4-5-6'!CO25 -> 0 | AB15: ='نتيجة عامة4-5-6'!CV25 -> 0 | AE15: ='نتيجة عامة4-5-6'!DG25 -> 0 | AF15: ='نتيجة عامة4-5-6'!DP25 -> 0 | AG15: ='نتيجة عامة4-5-6'!DW25 -> 0
A16: ='نتيجة عامة4-5-6'!A26 -> 400 | B16: ='نتيجة عامة4-5-6'!B26 -> جنى أحمد عبد الله طلب محمد | C16: ='نتيجة عامة4-5-6'!A26 -> 400 | F16: ='نتيجة عامة4-5-6'!L26 -> 0 | I16: ='نتيجة عامة4-5-6'!U26 -> 0 | L16: ='نتيجة عامة4-5-6'!AD26 -> 0 | O16: ='نتيجة عامة4-5-6'!AM26 -> 0 | R16: ='نتيجة عامة4-5-6'!AV26 -> 0 | U16: ='نتيجة عامة4-5-6'!BG26 -> 0 | V16: ='نتيجة عامة4-5-6'!BP26 -> 0 | W16: ='نتيجة عامة4-5-6'!BY26 -> 0 | X16: ='نتيجة عامة4-5-6'!CF26 -> 0 | AA16: ='نتيجة عامة4-5-6'!CO26 -> 0 | AB16: ='نتيجة عامة4-5-6'!CV26 -> 0 | AE16: ='نتيجة عامة4-5-6'!DG26 -> 0 | AF16: ='نتيجة عامة4-5-6'!DP26 -> 0 | AG16: ='نتيجة عامة4-5-6'!DW26 -> 0
A17: ='نتيجة عامة4-5-6'!A27 -> 401 | B17: ='نتيجة عامة4-5-6'!B27 -> جنى أحمد عمر محمد إبراهيم | C17: ='نتيجة عامة4-5-6'!A27 -> 401 | F17: ='نتيجة عامة4-5-6'!L27 -> 0 | I17: ='نتيجة عامة4-5-6'!U27 -> 0 | L17: ='نتيجة عامة4-5-6'!AD27 -> 0 | O17: ='نتيجة عامة4-5-6'!AM27 -> 0 | R17: ='نتيجة عامة4-5-6'!AV27 -> 0 | U17: ='نتيجة عامة4-5-6'!BG27 -> 0 | V17: ='نتيجة عامة4-5-6'!BP27 -> 0 | W17: ='نتيجة عامة4-5-6'!BY27 -> 0 | X17: ='نتيجة عامة4-5-6'!CF27 -> 0 | AA17: ='نتيجة عامة4-5-6'!CO27 -> 0 | AB17: ='نتيجة عامة4-5-6'!CV27 -> 0 | AE17: ='نتيجة عامة4-5-6'!DG27 -> 0 | AF17: ='نتيجة عامة4-5-6'!DP27 -> 0 | AG17: ='نتيجة عامة4-5-6'!DW27 -> 0
A18: ='نتيجة عامة4-5-6'!A28 -> 402 | B18: ='نتيجة عامة4-5-6'!B28 -> جنى أحمد محمد عبدالله | C18: ='نتيجة عامة4-5-6'!A28 -> 402 | F18: ='نتيجة عامة4-5-6'!L28 -> 0 | I18: ='نتيجة عامة4-5-6'!U28 -> 0 | L18: ='نتيجة عامة4-5-6'!AD28 -> 0 | O18: ='نتيجة عامة4-5-6'!AM28 -> 0 | R18: ='نتيجة عامة4-5-6'!AV28 -> 0 | U18: ='نتيجة عامة4-5-6'!BG28 -> 0 | V18: ='نتيجة عامة4-5-6'!BP28 -> 0 | W18: ='نتيجة عامة4-5-6'!BY28 -> 0 | X18: ='نتيجة عامة4-5-6'!CF28 -> 0 | AA18: ='نتيجة عامة4-5-6'!CO28 -> 0 | AB18: ='نتيجة عامة4-5-6'!CV28 -> 0 | AE18: ='نتيجة عامة4-5-6'!DG28 -> 0 | AF18: ='نتيجة عامة4-5-6'!DP28 -> 0 | AG18: ='نتيجة عامة4-5-6'!DW28 -> 0
A19: ='نتيجة عامة4-5-6'!A29 -> 403 | B19: ='نتيجة عامة4-5-6'!B29 -> جنى حسام حسن صابر | C19: ='نتيجة عامة4-5-6'!A29 -> 403 | F19: ='نتيجة عامة4-5-6'!L29 -> 0 | I19: ='نتيجة عامة4-5-6'!U29 -> 0 | L19: ='نتيجة عامة4-5-6'!AD29 -> 0 | O19: ='نتيجة عامة4-5-6'!AM29 -> 0 | R19: ='نتيجة عامة4-5-6'!AV29 -> 0 | U19: ='نتيجة عامة4-5-6'!BG29 -> 0 | V19: ='نتيجة عامة4-5-6'!BP29 -> 0 | W19: ='نتيجة عامة4-5-6'!BY29 -> 0 | X19: ='نتيجة عامة4-5-6'!CF29 -> 0 | AA19: ='نتيجة عامة4-5-6'!CO29 -> 0 | AB19: ='نتيجة عامة4-5-6'!CV29 -> 0 | AE19: ='نتيجة عامة4-5-6'!DG29 -> 0 | AF19: ='نتيجة عامة4-5-6'!DP29 -> 0 | AG19: ='نتيجة عامة4-5-6'!DW29 -> 0
A20: ='نتيجة عامة4-5-6'!A30 -> 404 | B20: ='نتيجة عامة4-5-6'!B30 -> جنى محمد عبدالعظيم محمود | C20: ='نتيجة عامة4-5-6'!A30 -> 404 | F20: ='نتيجة عامة4-5-6'!L30 -> 0 | I20: ='نتيجة عامة4-5-6'!U30 -> 0 | L20: ='نتيجة عامة4-5-6'!AD30 -> 0 | O20: ='نتيجة عامة4-5-6'!AM30 -> 0 | R20: ='نتيجة عامة4-5-6'!AV30 -> 0 | U20: ='نتيجة عامة4-5-6'!BG30 -> 0 | V20: ='نتيجة عامة4-5-6'!BP30 -> 0 | W20: ='نتيجة عامة4-5-6'!BY30 -> 0 | X20: ='نتيجة عامة4-5-6'!CF30 -> 0 | AA20: ='نتيجة عامة4-5-6'!CO30 -> 0 | AB20: ='نتيجة عامة4-5-6'!CV30 -> 0 | AE20: ='نتيجة عامة4-5-6'!DG30 -> 0 | AF20: ='نتيجة عامة4-5-6'!DP30 -> 0 | AG20: ='نتيجة عامة4-5-6'!DW30 -> 0
A21: ='نتيجة عامة4-5-6'!A31 -> 405 | B21: ='نتيجة عامة4-5-6'!B31 -> جنى مصطفى خليفه يحي محمد | C21: ='نتيجة عامة4-5-6'!A31 -> 405 | F21: ='نتيجة عامة4-5-6'!L31 -> 0 | I21: ='نتيجة عامة4-5-6'!U31 -> 0 | L21: ='نتيجة عامة4-5-6'!AD31 -> 0 | O21: ='نتيجة عامة4-5-6'!AM31 -> 0 | R21: ='نتيجة عامة4-5-6'!AV31 -> 0 | U21: ='نتيجة عامة4-5-6'!BG31 -> 0 | V21: ='نتيجة عامة4-5-6'!BP31 -> 0 | W21: ='نتيجة عامة4-5-6'!BY31 -> 0 | X21: ='نتيجة عامة4-5-6'!CF31 -> 0 | AA21: ='نتيجة عامة4-5-6'!CO31 -> 0 | AB21: ='نتيجة عامة4-5-6'!CV31 -> 0 | AE21: ='نتيجة عامة4-5-6'!DG31 -> 0 | AF21: ='نتيجة عامة4-5-6'!DP31 -> 0 | AG21: ='نتيجة عامة4-5-6'!DW31 -> 0
A22: ='نتيجة عامة4-5-6'!A32 -> 406 | B22: ='نتيجة عامة4-5-6'!B32 -> جنى يس أحمد المهدي كامل | C22: ='نتيجة عامة4-5-6'!A32 -> 406 | F22: ='نتيجة عامة4-5-6'!L32 -> 0 | I22: ='نتيجة عامة4-5-6'!U32 -> 0 | L22: ='نتيجة عامة4-5-6'!AD32 -> 0 | O22: ='نتيجة عامة4-5-6'!AM32 -> 0 | R22: ='نتيجة عامة4-5-6'!AV32 -> 0 | U22: ='نتيجة عامة4-5-6'!BG32 -> 0 | V22: ='نتيجة عامة4-5-6'!BP32 -> 0 | W22: ='نتيجة عامة4-5-6'!BY32 -> 0 | X22: ='نتيجة عامة4-5-6'!CF32 -> 0 | AA22: ='نتيجة عامة4-5-6'!CO32 -> 0 | AB22: ='نتيجة عامة4-5-6'!CV32 -> 0 | AE22: ='نتيجة عامة4-5-6'!DG32 -> 0 | AF22: ='نتيجة عامة4-5-6'!DP32 -> 0 | AG22: ='نتيجة عامة4-5-6'!DW32 -> 0
A23: ='نتيجة عامة4-5-6'!A33 -> 407 | B23: ='نتيجة عامة4-5-6'!B33 -> جودي مؤمن رزق عبدالله | C23: ='نتيجة عامة4-5-6'!A33 -> 407 | F23: ='نتيجة عامة4-5-6'!L33 -> 0 | I23: ='نتيجة عامة4-5-6'!U33 -> 0 | L23: ='نتيجة عامة4-5-6'!AD33 -> 0 | O23: ='نتيجة عامة4-5-6'!AM33 -> 0 | R23: ='نتيجة عامة4-5-6'!AV33 -> 0 | U23: ='نتيجة عامة4-5-6'!BG33 -> 0 | V23: ='نتيجة عامة4-5-6'!BP33 -> 0 | W23: ='نتيجة عامة4-5-6'!BY33 -> 0 | X23: ='نتيجة عامة4-5-6'!CF33 -> 0 | AA23: ='نتيجة عامة4-5-6'!CO33 -> 0 | AB23: ='نتيجة عامة4-5-6'!CV33 -> 0 | AE23: ='نتيجة عامة4-5-6'!DG33 -> 0 | AF23: ='نتيجة عامة4-5-6'!DP33 -> 0 | AG23: ='نتيجة عامة4-5-6'!DW33 -> 0
A24: ='نتيجة عامة4-5-6'!A34 -> 408 | B24: ='نتيجة عامة4-5-6'!B34 -> جومانه محمد سلطان عثمان | C24: ='نتيجة عامة4-5-6'!A34 -> 408 | F24: ='نتيجة عامة4-5-6'!L34 -> 0 | I24: ='نتيجة عامة4-5-6'!U34 -> 0 | L24: ='نتيجة عامة4-5-6'!AD34 -> 0 | O24: ='نتيجة عامة4-5-6'!AM34 -> 0 | R24: ='نتيجة عامة4-5-6'!AV34 -> 0 | U24: ='نتيجة عامة4-5-6'!BG34 -> 0 | V24: ='نتيجة عامة4-5-6'!BP34 -> 0 | W24: ='نتيجة عامة4-5-6'!BY34 -> 0 | X24: ='نتيجة عامة4-5-6'!CF34 -> 0 | AA24: ='نتيجة عامة4-5-6'!CO34 -> 0 | AB24: ='نتيجة عامة4-5-6'!CV34 -> 0 | AE24: ='نتيجة عامة4-5-6'!DG34 -> 0 | AF24: ='نتيجة عامة4-5-6'!DP34 -> 0 | AG24: ='نتيجة عامة4-5-6'!DW34 -> 0
A25: ='نتيجة عامة4-5-6'!A35 -> 409 | B25: ='نتيجة عامة4-5-6'!B35 -> حبيبة ربيع محمد محمد السيد | C25: ='نتيجة عامة4-5-6'!A35 -> 409 | F25: ='نتيجة عامة4-5-6'!L35 -> 0 | I25: ='نتيجة عامة4-5-6'!U35 -> 0 | L25: ='نتيجة عامة4-5-6'!AD35 -> 0 | O25: ='نتيجة عامة4-5-6'!AM35 -> 0 | R25: ='نتيجة عامة4-5-6'!AV35 -> 0 | U25: ='نتيجة عامة4-5-6'!BG35 -> 0 | V25: ='نتيجة عامة4-5-6'!BP35 -> 0 | W25: ='نتيجة عامة4-5-6'!BY35 -> 0 | X25: ='نتيجة عامة4-5-6'!CF35 -> 0 | AA25: ='نتيجة عامة4-5-6'!CO35 -> 0 | AB25: ='نتيجة عامة4-5-6'!CV35 -> 0 | AE25: ='نتيجة عامة4-5-6'!DG35 -> 0 | AF25: ='نتيجة عامة4-5-6'!DP35 -> 0 | AG25: ='نتيجة عامة4-5-6'!DW35 -> 0
A26: ='نتيجة عامة4-5-6'!A36 -> 410 | B26: ='نتيجة عامة4-5-6'!B36 -> حبيبه محمد ماضي أحمد | C26: ='نتيجة عامة4-5-6'!A36 -> 410 | F26: ='نتيجة عامة4-5-6'!L36 -> 0 | I26: ='نتيجة عامة4-5-6'!U36 -> 0 | L26: ='نتيجة عامة4-5-6'!AD36 -> 0 | O26: ='نتيجة عامة4-5-6'!AM36 -> 0 | R26: ='نتيجة عامة4-5-6'!AV36 -> 0 | U26: ='نتيجة عامة4-5-6'!BG36 -> 0 | V26: ='نتيجة عامة4-5-6'!BP36 -> 0 | W26: ='نتيجة عامة4-5-6'!BY36 -> 0 | X26: ='نتيجة عامة4-5-6'!CF36 -> 0 | AA26: ='نتيجة عامة4-5-6'!CO36 -> 0 | AB26: ='نتيجة عامة4-5-6'!CV36 -> 0 | AE26: ='نتيجة عامة4-5-6'!DG36 -> 0 | AF26: ='نتيجة عامة4-5-6'!DP36 -> 0 | AG26: ='نتيجة عامة4-5-6'!DW36 -> 0
A27: ='نتيجة عامة4-5-6'!A37 -> 411 | B27: ='نتيجة عامة4-5-6'!B37 -> حبيبه منتصر محمد علي | C27: ='نتيجة عامة4-5-6'!A37 -> 411 | F27: ='نتيجة عامة4-5-6'!L37 -> 0 | I27: ='نتيجة عامة4-5-6'!U37 -> 0 | L27: ='نتيجة عامة4-5-6'!AD37 -> 0 | O27: ='نتيجة عامة4-5-6'!AM37 -> 0 | R27: ='نتيجة عامة4-5-6'!AV37 -> 0 | U27: ='نتيجة عامة4-5-6'!BG37 -> 0 | V27: ='نتيجة عامة4-5-6'!BP37 -> 0 | W27: ='نتيجة عامة4-5-6'!BY37 -> 0 | X27: ='نتيجة عامة4-5-6'!CF37 -> 0 | AA27: ='نتيجة عامة4-5-6'!CO37 -> 0 | AB27: ='نتيجة عامة4-5-6'!CV37 -> 0 | AE27: ='نتيجة عامة4-5-6'!DG37 -> 0 | AF27: ='نتيجة عامة4-5-6'!DP37 -> 0 | AG27: ='نتيجة عامة4-5-6'!DW37 -> 0
A28: ='نتيجة عامة4-5-6'!A38 -> 412 | B28: ='نتيجة عامة4-5-6'!B38 -> حفصه حسين عبد العزيز عبد الرازق | C28: ='نتيجة عامة4-5-6'!A38 -> 412 | F28: ='نتيجة عامة4-5-6'!L38 -> 0 | I28: ='نتيجة عامة4-5-6'!U38 -> 0 | L28: ='نتيجة عامة4-5-6'!AD38 -> 0 | O28: ='نتيجة عامة4-5-6'!AM38 -> 0 | R28: ='نتيجة عامة4-5-6'!AV38 -> 0 | U28: ='نتيجة عامة4-5-6'!BG38 -> 0 | V28: ='نتيجة عامة4-5-6'!BP38 -> 0 | W28: ='نتيجة عامة4-5-6'!BY38 -> 0 | X28: ='نتيجة عامة4-5-6'!CF38 -> 0 | AA28: ='نتيجة عامة4-5-6'!CO38 -> 0 | AB28: ='نتيجة عامة4-5-6'!CV38 -> 0 | AE28: ='نتيجة عامة4-5-6'!DG38 -> 0 | AF28: ='نتيجة عامة4-5-6'!DP38 -> 0 | AG28: ='نتيجة عامة4-5-6'!DW38 -> 0
A29: ='نتيجة عامة4-5-6'!A39 -> 413 | B29: ='نتيجة عامة4-5-6'!B39 -> حنين شعبان جابر شعبان | C29: ='نتيجة عامة4-5-6'!A39 -> 413 | F29: ='نتيجة عامة4-5-6'!L39 -> 0 | I29: ='نتيجة عامة4-5-6'!U39 -> 0 | L29: ='نتيجة عامة4-5-6'!AD39 -> 0 | O29: ='نتيجة عامة4-5-6'!AM39 -> 0 | R29: ='نتيجة عامة4-5-6'!AV39 -> 0 | U29: ='نتيجة عامة4-5-6'!BG39 -> 0 | V29: ='نتيجة عامة4-5-6'!BP39 -> 0 | W29: ='نتيجة عامة4-5-6'!BY39 -> 0 | X29: ='نتيجة عامة4-5-6'!CF39 -> 0 | AA29: ='نتيجة عامة4-5-6'!CO39 -> 0 | AB29: ='نتيجة عامة4-5-6'!CV39 -> 0 | AE29: ='نتيجة عامة4-5-6'!DG39 -> 0 | AF29: ='نتيجة عامة4-5-6'!DP39 -> 0 | AG29: ='نتيجة عامة4-5-6'!DW39 -> 0
A30: ='نتيجة عامة4-5-6'!A40 -> 414 | B30: ='نتيجة عامة4-5-6'!B40 -> خديجه حسين عبد العزيز عبد الرازق | C30: ='نتيجة عامة4-5-6'!A40 -> 414 | F30: ='نتيجة عامة4-5-6'!L40 -> 0 | I30: ='نتيجة عامة4-5-6'!U40 -> 0 | L30: ='نتيجة عامة4-5-6'!AD40 -> 0 | O30: ='نتيجة عامة4-5-6'!AM40 -> 0 | R30: ='نتيجة عامة4-5-6'!AV40 -> 0 | U30: ='نتيجة عامة4-5-6'!BG40 -> 0 | V30: ='نتيجة عامة4-5-6'!BP40 -> 0 | W30: ='نتيجة عامة4-5-6'!BY40 -> 0 | X30: ='نتيجة عامة4-5-6'!CF40 -> 0 | AA30: ='نتيجة عامة4-5-6'!CO40 -> 0 | AB30: ='نتيجة عامة4-5-6'!CV40 -> 0 | AE30: ='نتيجة عامة4-5-6'!DG40 -> 0 | AF30: ='نتيجة عامة4-5-6'!DP40 -> 0 | AG30: ='نتيجة عامة4-5-6'!DW40 -> 0
A31: ='نتيجة عامة4-5-6'!A41 -> 415 | B31: ='نتيجة عامة4-5-6'!B41 -> خديجه محمد خيري زكي كامل | C31: ='نتيجة عامة4-5-6'!A41 -> 415 | F31: ='نتيجة عامة4-5-6'!L41 -> 0 | I31: ='نتيجة عامة4-5-6'!U41 -> 0 | L31: ='نتيجة عامة4-5-6'!AD41 -> 0 | O31: ='نتيجة عامة4-5-6'!AM41 -> 0 | R31: ='نتيجة عامة4-5-6'!AV41 -> 0 | U31: ='نتيجة عامة4-5-6'!BG41 -> 0 | V31: ='نتيجة عامة4-5-6'!BP41 -> 0 | W31: ='نتيجة عامة4-5-6'!BY41 -> 0 | X31: ='نتيجة عامة4-5-6'!CF41 -> 0 | AA31: ='نتيجة عامة4-5-6'!CO41 -> 0 | AB31: ='نتيجة عامة4-5-6'!CV41 -> 0 | AE31: ='نتيجة عامة4-5-6'!DG41 -> 0 | AF31: ='نتيجة عامة4-5-6'!DP41 -> 0 | AG31: ='نتيجة عامة4-5-6'!DW41 -> 0
A32: ='نتيجة عامة4-5-6'!A42 -> 416 | B32: ='نتيجة عامة4-5-6'!B42 -> دينا عبد الله جابر شعبان | C32: ='نتيجة عامة4-5-6'!A42 -> 416 | F32: ='نتيجة عامة4-5-6'!L42 -> 0 | I32: ='نتيجة عامة4-5-6'!U42 -> 0 | L32: ='نتيجة عامة4-5-6'!AD42 -> 0 | O32: ='نتيجة عامة4-5-6'!AM42 -> 0 | R32: ='نتيجة عامة4-5-6'!AV42 -> 0 | U32: ='نتيجة عامة4-5-6'!BG42 -> 0 | V32: ='نتيجة عامة4-5-6'!BP42 -> 0 | W32: ='نتيجة عامة4-5-6'!BY42 -> 0 | X32: ='نتيجة عامة4-5-6'!CF42 -> 0 | AA32: ='نتيجة عامة4-5-6'!CO42 -> 0 | AB32: ='نتيجة عامة4-5-6'!CV42 -> 0 | AE32: ='نتيجة عامة4-5-6'!DG42 -> 0 | AF32: ='نتيجة عامة4-5-6'!DP42 -> 0 | AG32: ='نتيجة عامة4-5-6'!DW42 -> 0
A33: ='نتيجة عامة4-5-6'!A43 -> 417 | B33: ='نتيجة عامة4-5-6'!B43 -> رؤى عيد عثمان عبد الحليم | C33: ='نتيجة عامة4-5-6'!A43 -> 417 | F33: ='نتيجة عامة4-5-6'!L43 -> 0 | I33: ='نتيجة عامة4-5-6'!U43 -> 0 | L33: ='نتيجة عامة4-5-6'!AD43 -> 0 | O33: ='نتيجة عامة4-5-6'!AM43 -> 0 | R33: ='نتيجة عامة4-5-6'!AV43 -> 0 | U33: ='نتيجة عامة4-5-6'!BG43 -> 0 | V33: ='نتيجة عامة4-5-6'!BP43 -> 0 | W33: ='نتيجة عامة4-5-6'!BY43 -> 0 | X33: ='نتيجة عامة4-5-6'!CF43 -> 0 | AA33: ='نتيجة عامة4-5-6'!CO43 -> 0 | AB33: ='نتيجة عامة4-5-6'!CV43 -> 0 | AE33: ='نتيجة عامة4-5-6'!DG43 -> 0 | AF33: ='نتيجة عامة4-5-6'!DP43 -> 0 | AG33: ='نتيجة عامة4-5-6'!DW43 -> 0
A34: ='نتيجة عامة4-5-6'!A44 -> 418 | B34: ='نتيجة عامة4-5-6'!B44 -> رنا محمد جمال محمد | C34: ='نتيجة عامة4-5-6'!A44 -> 418 | F34: ='نتيجة عامة4-5-6'!L44 -> 0 | I34: ='نتيجة عامة4-5-6'!U44 -> 0 | L34: ='نتيجة عامة4-5-6'!AD44 -> 0 | O34: ='نتيجة عامة4-5-6'!AM44 -> 0 | R34: ='نتيجة عامة4-5-6'!AV44 -> 0 | U34: ='نتيجة عامة4-5-6'!BG44 -> 0 | V34: ='نتيجة عامة4-5-6'!BP44 -> 0 | W34: ='نتيجة عامة4-5-6'!BY44 -> 0 | X34: ='نتيجة عامة4-5-6'!CF44 -> 0 | AA34: ='نتيجة عامة4-5-6'!CO44 -> 0 | AB34: ='نتيجة عامة4-5-6'!CV44 -> 0 | AE34: ='نتيجة عامة4-5-6'!DG44 -> 0 | AF34: ='نتيجة عامة4-5-6'!DP44 -> 0 | AG34: ='نتيجة عامة4-5-6'!DW44 -> 0
A35: ='نتيجة عامة4-5-6'!A45 -> 419 | B35: ='نتيجة عامة4-5-6'!B45 -> روان أيمن عبد المنعم محمد | C35: ='نتيجة عامة4-5-6'!A45 -> 419 | F35: ='نتيجة عامة4-5-6'!L45 -> 0 | I35: ='نتيجة عامة4-5-6'!U45 -> 0 | L35: ='نتيجة عامة4-5-6'!AD45 -> 0 | O35: ='نتيجة عامة4-5-6'!AM45 -> 0 | R35: ='نتيجة عامة4-5-6'!AV45 -> 0 | U35: ='نتيجة عامة4-5-6'!BG45 -> 0 | V35: ='نتيجة عامة4-5-6'!BP45 -> 0 | W35: ='نتيجة عامة4-5-6'!BY45 -> 0 | X35: ='نتيجة عامة4-5-6'!CF45 -> 0 | AA35: ='نتيجة عامة4-5-6'!CO45 -> 0 | AB35: ='نتيجة عامة4-5-6'!CV45 -> 0 | AE35: ='نتيجة عامة4-5-6'!DG45 -> 0 | AF35: ='نتيجة عامة4-5-6'!DP45 -> 0 | AG35: ='نتيجة عامة4-5-6'!DW45 -> 0
A36: ='نتيجة عامة4-5-6'!A46 -> 420 | B36: ='نتيجة عامة4-5-6'!B46 -> رودينه عبدالسلام أحمد عبدالسلام | C36: ='نتيجة عامة4-5-6'!A46 -> 420 | F36: ='نتيجة عامة4-5-6'!L46 -> 0 | I36: ='نتيجة عامة4-5-6'!U46 -> 0 | L36: ='نتيجة عامة4-5-6'!AD46 -> 0 | O36: ='نتيجة عامة4-5-6'!AM46 -> 0 | R36: ='نتيجة عامة4-5-6'!AV46 -> 0 | U36: ='نتيجة عامة4-5-6'!BG46 -> 0 | V36: ='نتيجة عامة4-5-6'!BP46 -> 0 | W36: ='نتيجة عامة4-5-6'!BY46 -> 0 | X36: ='نتيجة عامة4-5-6'!CF46 -> 0 | AA36: ='نتيجة عامة4-5-6'!CO46 -> 0 | AB36: ='نتيجة عامة4-5-6'!CV46 -> 0 | AE36: ='نتيجة عامة4-5-6'!DG46 -> 0 | AF36: ='نتيجة عامة4-5-6'!DP46 -> 0 | AG36: ='نتيجة عامة4-5-6'!DW46 -> 0
A37: ='نتيجة عامة4-5-6'!A47 -> 421 | B37: ='نتيجة عامة4-5-6'!B47 -> ريتاج الحسين راغب محمد | C37: ='نتيجة عامة4-5-6'!A47 -> 421 | F37: ='نتيجة عامة4-5-6'!L47 -> 0 | I37: ='نتيجة عامة4-5-6'!U47 -> 0 | L37: ='نتيجة عامة4-5-6'!AD47 -> 0 | O37: ='نتيجة عامة4-5-6'!AM47 -> 0 | R37: ='نتيجة عامة4-5-6'!AV47 -> 0 | U37: ='نتيجة عامة4-5-6'!BG47 -> 0 | V37: ='نتيجة عامة4-5-6'!BP47 -> 0 | W37: ='نتيجة عامة4-5-6'!BY47 -> 0 | X37: ='نتيجة عامة4-5-6'!CF47 -> 0 | AA37: ='نتيجة عامة4-5-6'!CO47 -> 0 | AB37: ='نتيجة عامة4-5-6'!CV47 -> 0 | AE37: ='نتيجة عامة4-5-6'!DG47 -> 0 | AF37: ='نتيجة عامة4-5-6'!DP47 -> 0 | AG37: ='نتيجة عامة4-5-6'!DW47 -> 0
A38: ='نتيجة عامة4-5-6'!A48 -> 422 | B38: ='نتيجة عامة4-5-6'!B48 -> ريتاج عبدالباسط عيسى محمد | C38: ='نتيجة عامة4-5-6'!A48 -> 422 | F38: ='نتيجة عامة4-5-6'!L48 -> 0 | I38: ='نتيجة عامة4-5-6'!U48 -> 0 | L38: ='نتيجة عامة4-5-6'!AD48 -> 0 | O38: ='نتيجة عامة4-5-6'!AM48 -> 0 | R38: ='نتيجة عامة4-5-6'!AV48 -> 0 | U38: ='نتيجة عامة4-5-6'!BG48 -> 0 | V38: ='نتيجة عامة4-5-6'!BP48 -> 0 | W38: ='نتيجة عامة4-5-6'!BY48 -> 0 | X38: ='نتيجة عامة4-5-6'!CF48 -> 0 | AA38: ='نتيجة عامة4-5-6'!CO48 -> 0 | AB38: ='نتيجة عامة4-5-6'!CV48 -> 0 | AE38: ='نتيجة عامة4-5-6'!DG48 -> 0 | AF38: ='نتيجة عامة4-5-6'!DP48 -> 0 | AG38: ='نتيجة عامة4-5-6'!DW48 -> 0
A39: ='نتيجة عامة4-5-6'!A49 -> 423 | B39: ='نتيجة عامة4-5-6'!B49 -> سارة محمود إبراهيم عبدالغني | C39: ='نتيجة عامة4-5-6'!A49 -> 423 | F39: ='نتيجة عامة4-5-6'!L49 -> 0 | I39: ='نتيجة عامة4-5-6'!U49 -> 0 | L39: ='نتيجة عامة4-5-6'!AD49 -> 0 | O39: ='نتيجة عامة4-5-6'!AM49 -> 0 | R39: ='نتيجة عامة4-5-6'!AV49 -> 0 | U39: ='نتيجة عامة4-5-6'!BG49 -> 0 | V39: ='نتيجة عامة4-5-6'!BP49 -> 0 | W39: ='نتيجة عامة4-5-6'!BY49 -> 0 | X39: ='نتيجة عامة4-5-6'!CF49 -> 0 | AA39: ='نتيجة عامة4-5-6'!CO49 -> 0 | AB39: ='نتيجة عامة4-5-6'!CV49 -> 0 | AE39: ='نتيجة عامة4-5-6'!DG49 -> 0 | AF39: ='نتيجة عامة4-5-6'!DP49 -> 0 | AG39: ='نتيجة عامة4-5-6'!DW49 -> 0
A40: ='نتيجة عامة4-5-6'!A50 -> 424 | B40: ='نتيجة عامة4-5-6'!B50 -> سجى خالد زيدان محمد | C40: ='نتيجة عامة4-5-6'!A50 -> 424 | F40: ='نتيجة عامة4-5-6'!L50 -> 0 | I40: ='نتيجة عامة4-5-6'!U50 -> 0 | L40: ='نتيجة عامة4-5-6'!AD50 -> 0 | O40: ='نتيجة عامة4-5-6'!AM50 -> 0 | R40: ='نتيجة عامة4-5-6'!AV50 -> 0 | U40: ='نتيجة عامة4-5-6'!BG50 -> 0 | V40: ='نتيجة عامة4-5-6'!BP50 -> 0 | W40: ='نتيجة عامة4-5-6'!BY50 -> 0 | X40: ='نتيجة عامة4-5-6'!CF50 -> 0 | AA40: ='نتيجة عامة4-5-6'!CO50 -> 0 | AB40: ='نتيجة عامة4-5-6'!CV50 -> 0 | AE40: ='نتيجة عامة4-5-6'!DG50 -> 0 | AF40: ='نتيجة عامة4-5-6'!DP50 -> 0 | AG40: ='نتيجة عامة4-5-6'!DW50 -> 0
A41: ='نتيجة عامة4-5-6'!A51 -> 425 | B41: ='نتيجة عامة4-5-6'!B51 -> سلمى خالد محمد كامل | C41: ='نتيجة عامة4-5-6'!A51 -> 425 | F41: ='نتيجة عامة4-5-6'!L51 -> 0 | I41: ='نتيجة عامة4-5-6'!U51 -> 0 | L41: ='نتيجة عامة4-5-6'!AD51 -> 0 | O41: ='نتيجة عامة4-5-6'!AM51 -> 0 | R41: ='نتيجة عامة4-5-6'!AV51 -> 0 | U41: ='نتيجة عامة4-5-6'!BG51 -> 0 | V41: ='نتيجة عامة4-5-6'!BP51 -> 0 | W41: ='نتيجة عامة4-5-6'!BY51 -> 0 | X41: ='نتيجة عامة4-5-6'!CF51 -> 0 | AA41: ='نتيجة عامة4-5-6'!CO51 -> 0 | AB41: ='نتيجة عامة4-5-6'!CV51 -> 0 | AE41: ='نتيجة عامة4-5-6'!DG51 -> 0 | AF41: ='نتيجة عامة4-5-6'!DP51 -> 0 | AG41: ='نتيجة عامة4-5-6'!DW51 -> 0
A42: ='نتيجة عامة4-5-6'!A52 -> 426 | B42: ='نتيجة عامة4-5-6'!B52 -> سلمى مصطفى طلبه إسماعيل | C42: ='نتيجة عامة4-5-6'!A52 -> 426 | F42: ='نتيجة عامة4-5-6'!L52 -> 0 | I42: ='نتيجة عامة4-5-6'!U52 -> 0 | L42: ='نتيجة عامة4-5-6'!AD52 -> 0 | O42: ='نتيجة عامة4-5-6'!AM52 -> 0 | R42: ='نتيجة عامة4-5-6'!AV52 -> 0 | U42: ='نتيجة عامة4-5-6'!BG52 -> 0 | V42: ='نتيجة عامة4-5-6'!BP52 -> 0 | W42: ='نتيجة عامة4-5-6'!BY52 -> 0 | X42: ='نتيجة عامة4-5-6'!CF52 -> 0 | AA42: ='نتيجة عامة4-5-6'!CO52 -> 0 | AB42: ='نتيجة عامة4-5-6'!CV52 -> 0 | AE42: ='نتيجة عامة4-5-6'!DG52 -> 0 | AF42: ='نتيجة عامة4-5-6'!DP52 -> 0 | AG42: ='نتيجة عامة4-5-6'!DW52 -> 0
A43: ='نتيجة عامة4-5-6'!A53 -> 427 | B43: ='نتيجة عامة4-5-6'!B53 -> شذى وحيد فتحي عبد العزيز | C43: ='نتيجة عامة4-5-6'!A53 -> 427 | F43: ='نتيجة عامة4-5-6'!L53 -> 0 | I43: ='نتيجة عامة4-5-6'!U53 -> 0 | L43: ='نتيجة عامة4-5-6'!AD53 -> 0 | O43: ='نتيجة عامة4-5-6'!AM53 -> 0 | R43: ='نتيجة عامة4-5-6'!AV53 -> 0 | U43: ='نتيجة عامة4-5-6'!BG53 -> 0 | V43: ='نتيجة عامة4-5-6'!BP53 -> 0 | W43: ='نتيجة عامة4-5-6'!BY53 -> 0 | X43: ='نتيجة عامة4-5-6'!CF53 -> 0 | AA43: ='نتيجة عامة4-5-6'!CO53 -> 0 | AB43: ='نتيجة عامة4-5-6'!CV53 -> 0 | AE43: ='نتيجة عامة4-5-6'!DG53 -> 0 | AF43: ='نتيجة عامة4-5-6'!DP53 -> 0 | AG43: ='نتيجة عامة4-5-6'!DW53 -> 0
A44: ='نتيجة عامة4-5-6'!A54 -> 428 | B44: ='نتيجة عامة4-5-6'!B54 -> شروق محمود محمد عبدالعظيم | C44: ='نتيجة عامة4-5-6'!A54 -> 428 | F44: ='نتيجة عامة4-5-6'!L54 -> 0 | I44: ='نتيجة عامة4-5-6'!U54 -> 0 | L44: ='نتيجة عامة4-5-6'!AD54 -> 0 | O44: ='نتيجة عامة4-5-6'!AM54 -> 0 | R44: ='نتيجة عامة4-5-6'!AV54 -> 0 | U44: ='نتيجة عامة4-5-6'!BG54 -> 0 | V44: ='نتيجة عامة4-5-6'!BP54 -> 0 | W44: ='نتيجة عامة4-5-6'!BY54 -> 0 | X44: ='نتيجة عامة4-5-6'!CF54 -> 0 | AA44: ='نتيجة عامة4-5-6'!CO54 -> 0 | AB44: ='نتيجة عامة4-5-6'!CV54 -> 0 | AE44: ='نتيجة عامة4-5-6'!DG54 -> 0 | AF44: ='نتيجة عامة4-5-6'!DP54 -> 0 | AG44: ='نتيجة عامة4-5-6'!DW54 -> 0
A45: ='نتيجة عامة4-5-6'!A55 -> 429 | B45: ='نتيجة عامة4-5-6'!B55 -> شمس عبدالعزيز أحمد محمود | C45: ='نتيجة عامة4-5-6'!A55 -> 429 | F45: ='نتيجة عامة4-5-6'!L55 -> 0 | I45: ='نتيجة عامة4-5-6'!U55 -> 0 | L45: ='نتيجة عامة4-5-6'!AD55 -> 0 | O45: ='نتيجة عامة4-5-6'!AM55 -> 0 | R45: ='نتيجة عامة4-5-6'!AV55 -> 0 | U45: ='نتيجة عامة4-5-6'!BG55 -> 0 | V45: ='نتيجة عامة4-5-6'!BP55 -> 0 | W45: ='نتيجة عامة4-5-6'!BY55 -> 0 | X45: ='نتيجة عامة4-5-6'!CF55 -> 0 | AA45: ='نتيجة عامة4-5-6'!CO55 -> 0 | AB45: ='نتيجة عامة4-5-6'!CV55 -> 0 | AE45: ='نتيجة عامة4-5-6'!DG55 -> 0 | AF45: ='نتيجة عامة4-5-6'!DP55 -> 0 | AG45: ='نتيجة عامة4-5-6'!DW55 -> 0
A46: ='نتيجة عامة4-5-6'!A56 -> 430 | B46: ='نتيجة عامة4-5-6'!B56 -> شمس قاسم فاروق محمد | C46: ='نتيجة عامة4-5-6'!A56 -> 430 | F46: ='نتيجة عامة4-5-6'!L56 -> 0 | I46: ='نتيجة عامة4-5-6'!U56 -> 0 | L46: ='نتيجة عامة4-5-6'!AD56 -> 0 | O46: ='نتيجة عامة4-5-6'!AM56 -> 0 | R46: ='نتيجة عامة4-5-6'!AV56 -> 0 | U46: ='نتيجة عامة4-5-6'!BG56 -> 0 | V46: ='نتيجة عامة4-5-6'!BP56 -> 0 | W46: ='نتيجة عامة4-5-6'!BY56 -> 0 | X46: ='نتيجة عامة4-5-6'!CF56 -> 0 | AA46: ='نتيجة عامة4-5-6'!CO56 -> 0 | AB46: ='نتيجة عامة4-5-6'!CV56 -> 0 | AE46: ='نتيجة عامة4-5-6'!DG56 -> 0 | AF46: ='نتيجة عامة4-5-6'!DP56 -> 0 | AG46: ='نتيجة عامة4-5-6'!DW56 -> 0
A47: ='نتيجة عامة4-5-6'!A57 -> 431 | B47: ='نتيجة عامة4-5-6'!B57 -> شيماء أشرف محمد أنور أمين | C47: ='نتيجة عامة4-5-6'!A57 -> 431 | F47: ='نتيجة عامة4-5-6'!L57 -> 0 | I47: ='نتيجة عامة4-5-6'!U57 -> 0 | L47: ='نتيجة عامة4-5-6'!AD57 -> 0 | O47: ='نتيجة عامة4-5-6'!AM57 -> 0 | R47: ='نتيجة عامة4-5-6'!AV57 -> 0 | U47: ='نتيجة عامة4-5-6'!BG57 -> 0 | V47: ='نتيجة عامة4-5-6'!BP57 -> 0 | W47: ='نتيجة عامة4-5-6'!BY57 -> 0 | X47: ='نتيجة عامة4-5-6'!CF57 -> 0 | AA47: ='نتيجة عامة4-5-6'!CO57 -> 0 | AB47: ='نتيجة عامة4-5-6'!CV57 -> 0 | AE47: ='نتيجة عامة4-5-6'!DG57 -> 0 | AF47: ='نتيجة عامة4-5-6'!DP57 -> 0 | AG47: ='نتيجة عامة4-5-6'!DW57 -> 0
A48: ='نتيجة عامة4-5-6'!A58 -> 432 | B48: ='نتيجة عامة4-5-6'!B58 -> فاطمة إبراهيم يحي محمد | C48: ='نتيجة عامة4-5-6'!A58 -> 432 | F48: ='نتيجة عامة4-5-6'!L58 -> 0 | I48: ='نتيجة عامة4-5-6'!U58 -> 0 | L48: ='نتيجة عامة4-5-6'!AD58 -> 0 | O48: ='نتيجة عامة4-5-6'!AM58 -> 0 | R48: ='نتيجة عامة4-5-6'!AV58 -> 0 | U48: ='نتيجة عامة4-5-6'!BG58 -> 0 | V48: ='نتيجة عامة4-5-6'!BP58 -> 0 | W48: ='نتيجة عامة4-5-6'!BY58 -> 0 | X48: ='نتيجة عامة4-5-6'!CF58 -> 0 | AA48: ='نتيجة عامة4-5-6'!CO58 -> 0 | AB48: ='نتيجة عامة4-5-6'!CV58 -> 0 | AE48: ='نتيجة عامة4-5-6'!DG58 -> 0 | AF48: ='نتيجة عامة4-5-6'!DP58 -> 0 | AG48: ='نتيجة عامة4-5-6'!DW58 -> 0
A49: ='نتيجة عامة4-5-6'!A59 -> 433 | B49: ='نتيجة عامة4-5-6'!B59 -> فاطمه عامر أبوبكر صديق | C49: ='نتيجة عامة4-5-6'!A59 -> 433 | F49: ='نتيجة عامة4-5-6'!L59 -> 0 | I49: ='نتيجة عامة4-5-6'!U59 -> 0 | L49: ='نتيجة عامة4-5-6'!AD59 -> 0 | O49: ='نتيجة عامة4-5-6'!AM59 -> 0 | R49: ='نتيجة عامة4-5-6'!AV59 -> 0 | U49: ='نتيجة عامة4-5-6'!BG59 -> 0 | V49: ='نتيجة عامة4-5-6'!BP59 -> 0 | W49: ='نتيجة عامة4-5-6'!BY59 -> 0 | X49: ='نتيجة عامة4-5-6'!CF59 -> 0 | AA49: ='نتيجة عامة4-5-6'!CO59 -> 0 | AB49: ='نتيجة عامة4-5-6'!CV59 -> 0 | AE49: ='نتيجة عامة4-5-6'!DG59 -> 0 | AF49: ='نتيجة عامة4-5-6'!DP59 -> 0 | AG49: ='نتيجة عامة4-5-6'!DW59 -> 0
A50: ='نتيجة عامة4-5-6'!A60 -> 434 | B50: ='نتيجة عامة4-5-6'!B60 -> فاطمه عبد المطلب عثمان حسين | C50: ='نتيجة عامة4-5-6'!A60 -> 434 | F50: ='نتيجة عامة4-5-6'!L60 -> 0 | I50: ='نتيجة عامة4-5-6'!U60 -> 0 | L50: ='نتيجة عامة4-5-6'!AD60 -> 0 | O50: ='نتيجة عامة4-5-6'!AM60 -> 0 | R50: ='نتيجة عامة4-5-6'!AV60 -> 0 | U50: ='نتيجة عامة4-5-6'!BG60 -> 0 | V50: ='نتيجة عامة4-5-6'!BP60 -> 0 | W50: ='نتيجة عامة4-5-6'!BY60 -> 0 | X50: ='نتيجة عامة4-5-6'!CF60 -> 0 | AA50: ='نتيجة عامة4-5-6'!CO60 -> 0 | AB50: ='نتيجة عامة4-5-6'!CV60 -> 0 | AE50: ='نتيجة عامة4-5-6'!DG60 -> 0 | AF50: ='نتيجة عامة4-5-6'!DP60 -> 0 | AG50: ='نتيجة عامة4-5-6'!DW60 -> 0
A51: ='نتيجة عامة4-5-6'!A61 -> 435 | B51: ='نتيجة عامة4-5-6'!B61 -> فاطمه محمد حمدي يحي | C51: ='نتيجة عامة4-5-6'!A61 -> 435 | F51: ='نتيجة عامة4-5-6'!L61 -> 0 | I51: ='نتيجة عامة4-5-6'!U61 -> 0 | L51: ='نتيجة عامة4-5-6'!AD61 -> 0 | O51: ='نتيجة عامة4-5-6'!AM61 -> 0 | R51: ='نتيجة عامة4-5-6'!AV61 -> 0 | U51: ='نتيجة عامة4-5-6'!BG61 -> 0 | V51: ='نتيجة عامة4-5-6'!BP61 -> 0 | W51: ='نتيجة عامة4-5-6'!BY61 -> 0 | X51: ='نتيجة عامة4-5-6'!CF61 -> 0 | AA51: ='نتيجة عامة4-5-6'!CO61 -> 0 | AB51: ='نتيجة عامة4-5-6'!CV61 -> 0 | AE51: ='نتيجة عامة4-5-6'!DG61 -> 0 | AF51: ='نتيجة عامة4-5-6'!DP61 -> 0 | AG51: ='نتيجة عامة4-5-6'!DW61 -> 0
A52: ='نتيجة عامة4-5-6'!A62 -> 436 | B52: ='نتيجة عامة4-5-6'!B62 -> مريم أحمد محمد أبوبكر | C52: ='نتيجة عامة4-5-6'!A62 -> 436 | F52: ='نتيجة عامة4-5-6'!L62 -> 0 | I52: ='نتيجة عامة4-5-6'!U62 -> 0 | L52: ='نتيجة عامة4-5-6'!AD62 -> 0 | O52: ='نتيجة عامة4-5-6'!AM62 -> 0 | R52: ='نتيجة عامة4-5-6'!AV62 -> 0 | U52: ='نتيجة عامة4-5-6'!BG62 -> 0 | V52: ='نتيجة عامة4-5-6'!BP62 -> 0 | W52: ='نتيجة عامة4-5-6'!BY62 -> 0 | X52: ='نتيجة عامة4-5-6'!CF62 -> 0 | AA52: ='نتيجة عامة4-5-6'!CO62 -> 0 | AB52: ='نتيجة عامة4-5-6'!CV62 -> 0 | AE52: ='نتيجة عامة4-5-6'!DG62 -> 0 | AF52: ='نتيجة عامة4-5-6'!DP62 -> 0 | AG52: ='نتيجة عامة4-5-6'!DW62 -> 0
A53: ='نتيجة عامة4-5-6'!A63 -> 437 | B53: ='نتيجة عامة4-5-6'!B63 -> مريم شريف محمد صادق | C53: ='نتيجة عامة4-5-6'!A63 -> 437 | F53: ='نتيجة عامة4-5-6'!L63 -> 0 | I53: ='نتيجة عامة4-5-6'!U63 -> 0 | L53: ='نتيجة عامة4-5-6'!AD63 -> 0 | O53: ='نتيجة عامة4-5-6'!AM63 -> 0 | R53: ='نتيجة عامة4-5-6'!AV63 -> 0 | U53: ='نتيجة عامة4-5-6'!BG63 -> 0 | V53: ='نتيجة عامة4-5-6'!BP63 -> 0 | W53: ='نتيجة عامة4-5-6'!BY63 -> 0 | X53: ='نتيجة عامة4-5-6'!CF63 -> 0 | AA53: ='نتيجة عامة4-5-6'!CO63 -> 0 | AB53: ='نتيجة عامة4-5-6'!CV63 -> 0 | AE53: ='نتيجة عامة4-5-6'!DG63 -> 0 | AF53: ='نتيجة عامة4-5-6'!DP63 -> 0 | AG53: ='نتيجة عامة4-5-6'!DW63 -> 0
A54: ='نتيجة عامة4-5-6'!A64 -> 438 | B54: ='نتيجة عامة4-5-6'!B64 -> ملك أحمد حسين محمد | C54: ='نتيجة عامة4-5-6'!A64 -> 438 | F54: ='نتيجة عامة4-5-6'!L64 -> 0 | I54: ='نتيجة عامة4-5-6'!U64 -> 0 | L54: ='نتيجة عامة4-5-6'!AD64 -> 0 | O54: ='نتيجة عامة4-5-6'!AM64 -> 0 | R54: ='نتيجة عامة4-5-6'!AV64 -> 0 | U54: ='نتيجة عامة4-5-6'!BG64 -> 0 | V54: ='نتيجة عامة4-5-6'!BP64 -> 0 | W54: ='نتيجة عامة4-5-6'!BY64 -> 0 | X54: ='نتيجة عامة4-5-6'!CF64 -> 0 | AA54: ='نتيجة عامة4-5-6'!CO64 -> 0 | AB54: ='نتيجة عامة4-5-6'!CV64 -> 0 | AE54: ='نتيجة عامة4-5-6'!DG64 -> 0 | AF54: ='نتيجة عامة4-5-6'!DP64 -> 0 | AG54: ='نتيجة عامة4-5-6'!DW64 -> 0
A55: ='نتيجة عامة4-5-6'!A65 -> 439 | B55: ='نتيجة عامة4-5-6'!B65 -> ملك بلال محمد رفعت محمود | C55: ='نتيجة عامة4-5-6'!A65 -> 439 | F55: ='نتيجة عامة4-5-6'!L65 -> 0 | I55: ='نتيجة عامة4-5-6'!U65 -> 0 | L55: ='نتيجة عامة4-5-6'!AD65 -> 0 | O55: ='نتيجة عامة4-5-6'!AM65 -> 0 | R55: ='نتيجة عامة4-5-6'!AV65 -> 0 | U55: ='نتيجة عامة4-5-6'!BG65 -> 0 | V55: ='نتيجة عامة4-5-6'!BP65 -> 0 | W55: ='نتيجة عامة4-5-6'!BY65 -> 0 | X55: ='نتيجة عامة4-5-6'!CF65 -> 0 | AA55: ='نتيجة عامة4-5-6'!CO65 -> 0 | AB55: ='نتيجة عامة4-5-6'!CV65 -> 0 | AE55: ='نتيجة عامة4-5-6'!DG65 -> 0 | AF55: ='نتيجة عامة4-5-6'!DP65 -> 0 | AG55: ='نتيجة عامة4-5-6'!DW65 -> 0
A56: ='نتيجة عامة4-5-6'!A66 -> 440 | B56: ='نتيجة عامة4-5-6'!B66 -> ملك جنيدي حسن أبو زيد | C56: ='نتيجة عامة4-5-6'!A66 -> 440 | F56: ='نتيجة عامة4-5-6'!L66 -> 0 | I56: ='نتيجة عامة4-5-6'!U66 -> 0 | L56: ='نتيجة عامة4-5-6'!AD66 -> 0 | O56: ='نتيجة عامة4-5-6'!AM66 -> 0 | R56: ='نتيجة عامة4-5-6'!AV66 -> 0 | U56: ='نتيجة عامة4-5-6'!BG66 -> 0 | V56: ='نتيجة عامة4-5-6'!BP66 -> 0 | W56: ='نتيجة عامة4-5-6'!BY66 -> 0 | X56: ='نتيجة عامة4-5-6'!CF66 -> 0 | AA56: ='نتيجة عامة4-5-6'!CO66 -> 0 | AB56: ='نتيجة عامة4-5-6'!CV66 -> 0 | AE56: ='نتيجة عامة4-5-6'!DG66 -> 0 | AF56: ='نتيجة عامة4-5-6'!DP66 -> 0 | AG56: ='نتيجة عامة4-5-6'!DW66 -> 0
A57: ='نتيجة عامة4-5-6'!A67 -> 441 | B57: ='نتيجة عامة4-5-6'!B67 -> ملك عربي محمود شحاته | C57: ='نتيجة عامة4-5-6'!A67 -> 441 | F57: ='نتيجة عامة4-5-6'!L67 -> 0 | I57: ='نتيجة عامة4-5-6'!U67 -> 0 | L57: ='نتيجة عامة4-5-6'!AD67 -> 0 | O57: ='نتيجة عامة4-5-6'!AM67 -> 0 | R57: ='نتيجة عامة4-5-6'!AV67 -> 0 | U57: ='نتيجة عامة4-5-6'!BG67 -> 0 | V57: ='نتيجة عامة4-5-6'!BP67 -> 0 | W57: ='نتيجة عامة4-5-6'!BY67 -> 0 | X57: ='نتيجة عامة4-5-6'!CF67 -> 0 | AA57: ='نتيجة عامة4-5-6'!CO67 -> 0 | AB57: ='نتيجة عامة4-5-6'!CV67 -> 0 | AE57: ='نتيجة عامة4-5-6'!DG67 -> 0 | AF57: ='نتيجة عامة4-5-6'!DP67 -> 0 | AG57: ='نتيجة عامة4-5-6'!DW67 -> 0
A58: ='نتيجة عامة4-5-6'!A68 -> 442 | B58: ='نتيجة عامة4-5-6'!B68 -> ملك عمر صلاح هريدي | C58: ='نتيجة عامة4-5-6'!A68 -> 442 | F58: ='نتيجة عامة4-5-6'!L68 -> 0 | I58: ='نتيجة عامة4-5-6'!U68 -> 0 | L58: ='نتيجة عامة4-5-6'!AD68 -> 0 | O58: ='نتيجة عامة4-5-6'!AM68 -> 0 | R58: ='نتيجة عامة4-5-6'!AV68 -> 0 | U58: ='نتيجة عامة4-5-6'!BG68 -> 0 | V58: ='نتيجة عامة4-5-6'!BP68 -> 0 | W58: ='نتيجة عامة4-5-6'!BY68 -> 0 | X58: ='نتيجة عامة4-5-6'!CF68 -> 0 | AA58: ='نتيجة عامة4-5-6'!CO68 -> 0 | AB58: ='نتيجة عامة4-5-6'!CV68 -> 0 | AE58: ='نتيجة عامة4-5-6'!DG68 -> 0 | AF58: ='نتيجة عامة4-5-6'!DP68 -> 0 | AG58: ='نتيجة عامة4-5-6'!DW68 -> 0
A59: ='نتيجة عامة4-5-6'!A69 -> 443 | B59: ='نتيجة عامة4-5-6'!B69 -> منه الحسيني علي حسن | C59: ='نتيجة عامة4-5-6'!A69 -> 443 | F59: ='نتيجة عامة4-5-6'!L69 -> 0 | I59: ='نتيجة عامة4-5-6'!U69 -> 0 | L59: ='نتيجة عامة4-5-6'!AD69 -> 0 | O59: ='نتيجة عامة4-5-6'!AM69 -> 0 | R59: ='نتيجة عامة4-5-6'!AV69 -> 0 | U59: ='نتيجة عامة4-5-6'!BG69 -> 0 | V59: ='نتيجة عامة4-5-6'!BP69 -> 0 | W59: ='نتيجة عامة4-5-6'!BY69 -> 0 | X59: ='نتيجة عامة4-5-6'!CF69 -> 0 | AA59: ='نتيجة عامة4-5-6'!CO69 -> 0 | AB59: ='نتيجة عامة4-5-6'!CV69 -> 0 | AE59: ='نتيجة عامة4-5-6'!DG69 -> 0 | AF59: ='نتيجة عامة4-5-6'!DP69 -> 0 | AG59: ='نتيجة عامة4-5-6'!DW69 -> 0
A60: ='نتيجة عامة4-5-6'!A70 -> 444 | B60: ='نتيجة عامة4-5-6'!B70 -> منه جنيدي حسن أبو زيد | C60: ='نتيجة عامة4-5-6'!A70 -> 444 | F60: ='نتيجة عامة4-5-6'!L70 -> 0 | I60: ='نتيجة عامة4-5-6'!U70 -> 0 | L60: ='نتيجة عامة4-5-6'!AD70 -> 0 | O60: ='نتيجة عامة4-5-6'!AM70 -> 0 | R60: ='نتيجة عامة4-5-6'!AV70 -> 0 | U60: ='نتيجة عامة4-5-6'!BG70 -> 0 | V60: ='نتيجة عامة4-5-6'!BP70 -> 0 | W60: ='نتيجة عامة4-5-6'!BY70 -> 0 | X60: ='نتيجة عامة4-5-6'!CF70 -> 0 | AA60: ='نتيجة عامة4-5-6'!CO70 -> 0 | AB60: ='نتيجة عامة4-5-6'!CV70 -> 0 | AE60: ='نتيجة عامة4-5-6'!DG70 -> 0 | AF60: ='نتيجة عامة4-5-6'!DP70 -> 0 | AG60: ='نتيجة عامة4-5-6'!DW70 -> 0
A61: ='نتيجة عامة4-5-6'!A71 -> 445 | B61: ='نتيجة عامة4-5-6'!B71 -> منه رجب محمد محمد السيد | C61: ='نتيجة عامة4-5-6'!A71 -> 445 | F61: ='نتيجة عامة4-5-6'!L71 -> 0 | I61: ='نتيجة عامة4-5-6'!U71 -> 0 | L61: ='نتيجة عامة4-5-6'!AD71 -> 0 | O61: ='نتيجة عامة4-5-6'!AM71 -> 0 | R61: ='نتيجة عامة4-5-6'!AV71 -> 0 | U61: ='نتيجة عامة4-5-6'!BG71 -> 0 | V61: ='نتيجة عامة4-5-6'!BP71 -> 0 | W61: ='نتيجة عامة4-5-6'!BY71 -> 0 | X61: ='نتيجة عامة4-5-6'!CF71 -> 0 | AA61: ='نتيجة عامة4-5-6'!CO71 -> 0 | AB61: ='نتيجة عامة4-5-6'!CV71 -> 0 | AE61: ='نتيجة عامة4-5-6'!DG71 -> 0 | AF61: ='نتيجة عامة4-5-6'!DP71 -> 0 | AG61: ='نتيجة عامة4-5-6'!DW71 -> 0
A62: ='نتيجة عامة4-5-6'!A72 -> 446 | B62: ='نتيجة عامة4-5-6'!B72 -> منه فرج إسماعيل عبدالفتاح | C62: ='نتيجة عامة4-5-6'!A72 -> 446 | F62: ='نتيجة عامة4-5-6'!L72 -> 0 | I62: ='نتيجة عامة4-5-6'!U72 -> 0 | L62: ='نتيجة عامة4-5-6'!AD72 -> 0 | O62: ='نتيجة عامة4-5-6'!AM72 -> 0 | R62: ='نتيجة عامة4-5-6'!AV72 -> 0 | U62: ='نتيجة عامة4-5-6'!BG72 -> 0 | V62: ='نتيجة عامة4-5-6'!BP72 -> 0 | W62: ='نتيجة عامة4-5-6'!BY72 -> 0 | X62: ='نتيجة عامة4-5-6'!CF72 -> 0 | AA62: ='نتيجة عامة4-5-6'!CO72 -> 0 | AB62: ='نتيجة عامة4-5-6'!CV72 -> 0 | AE62: ='نتيجة عامة4-5-6'!DG72 -> 0 | AF62: ='نتيجة عامة4-5-6'!DP72 -> 0 | AG62: ='نتيجة عامة4-5-6'!DW72 -> 0
A63: ='نتيجة عامة4-5-6'!A73 -> 447 | B63: ='نتيجة عامة4-5-6'!B73 -> مي وسام حمزة دكروري | C63: ='نتيجة عامة4-5-6'!A73 -> 447 | F63: ='نتيجة عامة4-5-6'!L73 -> 0 | I63: ='نتيجة عامة4-5-6'!U73 -> 0 | L63: ='نتيجة عامة4-5-6'!AD73 -> 0 | O63: ='نتيجة عامة4-5-6'!AM73 -> 0 | R63: ='نتيجة عامة4-5-6'!AV73 -> 0 | U63: ='نتيجة عامة4-5-6'!BG73 -> 0 | V63: ='نتيجة عامة4-5-6'!BP73 -> 0 | W63: ='نتيجة عامة4-5-6'!BY73 -> 0 | X63: ='نتيجة عامة4-5-6'!CF73 -> 0 | AA63: ='نتيجة عامة4-5-6'!CO73 -> 0 | AB63: ='نتيجة عامة4-5-6'!CV73 -> 0 | AE63: ='نتيجة عامة4-5-6'!DG73 -> 0 | AF63: ='نتيجة عامة4-5-6'!DP73 -> 0 | AG63: ='نتيجة عامة4-5-6'!DW73 -> 0
A64: ='نتيجة عامة4-5-6'!A74 -> 448 | B64: ='نتيجة عامة4-5-6'!B74 -> ندا محمد مندي عبد الحميد سيف | C64: ='نتيجة عامة4-5-6'!A74 -> 448 | F64: ='نتيجة عامة4-5-6'!L74 -> 0 | I64: ='نتيجة عامة4-5-6'!U74 -> 0 | L64: ='نتيجة عامة4-5-6'!AD74 -> 0 | O64: ='نتيجة عامة4-5-6'!AM74 -> 0 | R64: ='نتيجة عامة4-5-6'!AV74 -> 0 | U64: ='نتيجة عامة4-5-6'!BG74 -> 0 | V64: ='نتيجة عامة4-5-6'!BP74 -> 0 | W64: ='نتيجة عامة4-5-6'!BY74 -> 0 | X64: ='نتيجة عامة4-5-6'!CF74 -> 0 | AA64: ='نتيجة عامة4-5-6'!CO74 -> 0 | AB64: ='نتيجة عامة4-5-6'!CV74 -> 0 | AE64: ='نتيجة عامة4-5-6'!DG74 -> 0 | AF64: ='نتيجة عامة4-5-6'!DP74 -> 0 | AG64: ='نتيجة عامة4-5-6'!DW74 -> 0
A65: ='نتيجة عامة4-5-6'!A75 -> 449 | B65: ='نتيجة عامة4-5-6'!B75 -> ندى كمال حسني كمال | C65: ='نتيجة عامة4-5-6'!A75 -> 449 | F65: ='نتيجة عامة4-5-6'!L75 -> 0 | I65: ='نتيجة عامة4-5-6'!U75 -> 0 | L65: ='نتيجة عامة4-5-6'!AD75 -> 0 | O65: ='نتيجة عامة4-5-6'!AM75 -> 0 | R65: ='نتيجة عامة4-5-6'!AV75 -> 0 | U65: ='نتيجة عامة4-5-6'!BG75 -> 0 | V65: ='نتيجة عامة4-5-6'!BP75 -> 0 | W65: ='نتيجة عامة4-5-6'!BY75 -> 0 | X65: ='نتيجة عامة4-5-6'!CF75 -> 0 | AA65: ='نتيجة عامة4-5-6'!CO75 -> 0 | AB65: ='نتيجة عامة4-5-6'!CV75 -> 0 | AE65: ='نتيجة عامة4-5-6'!DG75 -> 0 | AF65: ='نتيجة عامة4-5-6'!DP75 -> 0 | AG65: ='نتيجة عامة4-5-6'!DW75 -> 0
A66: ='نتيجة عامة4-5-6'!A76 -> 450 | B66: ='نتيجة عامة4-5-6'!B76 -> نهال خالد محمد ربيع محمد | C66: ='نتيجة عامة4-5-6'!A76 -> 450 | F66: ='نتيجة عامة4-5-6'!L76 -> 0 | I66: ='نتيجة عامة4-5-6'!U76 -> 0 | L66: ='نتيجة عامة4-5-6'!AD76 -> 0 | O66: ='نتيجة عامة4-5-6'!AM76 -> 0 | R66: ='نتيجة عامة4-5-6'!AV76 -> 0 | U66: ='نتيجة عامة4-5-6'!BG76 -> 0 | V66: ='نتيجة عامة4-5-6'!BP76 -> 0 | W66: ='نتيجة عامة4-5-6'!BY76 -> 0 | X66: ='نتيجة عامة4-5-6'!CF76 -> 0 | AA66: ='نتيجة عامة4-5-6'!CO76 -> 0 | AB66: ='نتيجة عامة4-5-6'!CV76 -> 0 | AE66: ='نتيجة عامة4-5-6'!DG76 -> 0 | AF66: ='نتيجة عامة4-5-6'!DP76 -> 0 | AG66: ='نتيجة عامة4-5-6'!DW76 -> 0
A67: ='نتيجة عامة4-5-6'!A77 -> 451 | B67: ='نتيجة عامة4-5-6'!B77 -> نور إبراهيم معطي عبد الرازق | C67: ='نتيجة عامة4-5-6'!A77 -> 451 | F67: ='نتيجة عامة4-5-6'!L77 -> 0 | I67: ='نتيجة عامة4-5-6'!U77 -> 0 | L67: ='نتيجة عامة4-5-6'!AD77 -> 0 | O67: ='نتيجة عامة4-5-6'!AM77 -> 0 | R67: ='نتيجة عامة4-5-6'!AV77 -> 0 | U67: ='نتيجة عامة4-5-6'!BG77 -> 0 | V67: ='نتيجة عامة4-5-6'!BP77 -> 0 | W67: ='نتيجة عامة4-5-6'!BY77 -> 0 | X67: ='نتيجة عامة4-5-6'!CF77 -> 0 | AA67: ='نتيجة عامة4-5-6'!CO77 -> 0 | AB67: ='نتيجة عامة4-5-6'!CV77 -> 0 | AE67: ='نتيجة عامة4-5-6'!DG77 -> 0 | AF67: ='نتيجة عامة4-5-6'!DP77 -> 0 | AG67: ='نتيجة عامة4-5-6'!DW77 -> 0
A68: ='نتيجة عامة4-5-6'!A78 -> 452 | B68: ='نتيجة عامة4-5-6'!B78 -> نور حسن حجاج السيد عبد الحميد | C68: ='نتيجة عامة4-5-6'!A78 -> 452 | F68: ='نتيجة عامة4-5-6'!L78 -> 0 | I68: ='نتيجة عامة4-5-6'!U78 -> 0 | L68: ='نتيجة عامة4-5-6'!AD78 -> 0 | O68: ='نتيجة عامة4-5-6'!AM78 -> 0 | R68: ='نتيجة عامة4-5-6'!AV78 -> 0 | U68: ='نتيجة عامة4-5-6'!BG78 -> 0 | V68: ='نتيجة عامة4-5-6'!BP78 -> 0 | W68: ='نتيجة عامة4-5-6'!BY78 -> 0 | X68: ='نتيجة عامة4-5-6'!CF78 -> 0 | AA68: ='نتيجة عامة4-5-6'!CO78 -> 0 | AB68: ='نتيجة عامة4-5-6'!CV78 -> 0 | AE68: ='نتيجة عامة4-5-6'!DG78 -> 0 | AF68: ='نتيجة عامة4-5-6'!DP78 -> 0 | AG68: ='نتيجة عامة4-5-6'!DW78 -> 0
A69: ='نتيجة عامة4-5-6'!A79 -> 453 | B69: ='نتيجة عامة4-5-6'!B79 -> نور محمود طه سعيد | C69: ='نتيجة عامة4-5-6'!A79 -> 453 | F69: ='نتيجة عامة4-5-6'!L79 -> 0 | I69: ='نتيجة عامة4-5-6'!U79 -> 0 | L69: ='نتيجة عامة4-5-6'!AD79 -> 0 | O69: ='نتيجة عامة4-5-6'!AM79 -> 0 | R69: ='نتيجة عامة4-5-6'!AV79 -> 0 | U69: ='نتيجة عامة4-5-6'!BG79 -> 0 | V69: ='نتيجة عامة4-5-6'!BP79 -> 0 | W69: ='نتيجة عامة4-5-6'!BY79 -> 0 | X69: ='نتيجة عامة4-5-6'!CF79 -> 0 | AA69: ='نتيجة عامة4-5-6'!CO79 -> 0 | AB69: ='نتيجة عامة4-5-6'!CV79 -> 0 | AE69: ='نتيجة عامة4-5-6'!DG79 -> 0 | AF69: ='نتيجة عامة4-5-6'!DP79 -> 0 | AG69: ='نتيجة عامة4-5-6'!DW79 -> 0
A70: ='نتيجة عامة4-5-6'!A80 -> 454 | B70: ='نتيجة عامة4-5-6'!B80 -> نوران مصطفى فتحي لملوم | C70: ='نتيجة عامة4-5-6'!A80 -> 454 | F70: ='نتيجة عامة4-5-6'!L80 -> 0 | I70: ='نتيجة عامة4-5-6'!U80 -> 0 | L70: ='نتيجة عامة4-5-6'!AD80 -> 0 | O70: ='نتيجة عامة4-5-6'!AM80 -> 0 | R70: ='نتيجة عامة4-5-6'!AV80 -> 0 | U70: ='نتيجة عامة4-5-6'!BG80 -> 0 | V70: ='نتيجة عامة4-5-6'!BP80 -> 0 | W70: ='نتيجة عامة4-5-6'!BY80 -> 0 | X70: ='نتيجة عامة4-5-6'!CF80 -> 0 | AA70: ='نتيجة عامة4-5-6'!CO80 -> 0 | AB70: ='نتيجة عامة4-5-6'!CV80 -> 0 | AE70: ='نتيجة عامة4-5-6'!DG80 -> 0 | AF70: ='نتيجة عامة4-5-6'!DP80 -> 0 | AG70: ='نتيجة عامة4-5-6'!DW80 -> 0
A71: ='نتيجة عامة4-5-6'!A81 -> 455 | B71: ='نتيجة عامة4-5-6'!B81 -> هاجر عبدالغني إبراهيم عبدالغني | C71: ='نتيجة عامة4-5-6'!A81 -> 455 | F71: ='نتيجة عامة4-5-6'!L81 -> 0 | I71: ='نتيجة عامة4-5-6'!U81 -> 0 | L71: ='نتيجة عامة4-5-6'!AD81 -> 0 | O71: ='نتيجة عامة4-5-6'!AM81 -> 0 | R71: ='نتيجة عامة4-5-6'!AV81 -> 0 | U71: ='نتيجة عامة4-5-6'!BG81 -> 0 | V71: ='نتيجة عامة4-5-6'!BP81 -> 0 | W71: ='نتيجة عامة4-5-6'!BY81 -> 0 | X71: ='نتيجة عامة4-5-6'!CF81 -> 0 | AA71: ='نتيجة عامة4-5-6'!CO81 -> 0 | AB71: ='نتيجة عامة4-5-6'!CV81 -> 0 | AE71: ='نتيجة عامة4-5-6'!DG81 -> 0 | AF71: ='نتيجة عامة4-5-6'!DP81 -> 0 | AG71: ='نتيجة عامة4-5-6'!DW81 -> 0
A72: ='نتيجة عامة4-5-6'!A82 -> 456 | B72: ='نتيجة عامة4-5-6'!B82 -> هنا سلامه مصطفى محمد | C72: ='نتيجة عامة4-5-6'!A82 -> 456 | F72: ='نتيجة عامة4-5-6'!L82 -> 0 | I72: ='نتيجة عامة4-5-6'!U82 -> 0 | L72: ='نتيجة عامة4-5-6'!AD82 -> 0 | O72: ='نتيجة عامة4-5-6'!AM82 -> 0 | R72: ='نتيجة عامة4-5-6'!AV82 -> 0 | U72: ='نتيجة عامة4-5-6'!BG82 -> 0 | V72: ='نتيجة عامة4-5-6'!BP82 -> 0 | W72: ='نتيجة عامة4-5-6'!BY82 -> 0 | X72: ='نتيجة عامة4-5-6'!CF82 -> 0 | AA72: ='نتيجة عامة4-5-6'!CO82 -> 0 | AB72: ='نتيجة عامة4-5-6'!CV82 -> 0 | AE72: ='نتيجة عامة4-5-6'!DG82 -> 0 | AF72: ='نتيجة عامة4-5-6'!DP82 -> 0 | AG72: ='نتيجة عامة4-5-6'!DW82 -> 0
A73: ='نتيجة عامة4-5-6'!A83 -> 457 | B73: ='نتيجة عامة4-5-6'!B83 -> وتين محمد حسن علي حسن | C73: ='نتيجة عامة4-5-6'!A83 -> 457 | F73: ='نتيجة عامة4-5-6'!L83 -> 0 | I73: ='نتيجة عامة4-5-6'!U83 -> 0 | L73: ='نتيجة عامة4-5-6'!AD83 -> 0 | O73: ='نتيجة عامة4-5-6'!AM83 -> 0 | R73: ='نتيجة عامة4-5-6'!AV83 -> 0 | U73: ='نتيجة عامة4-5-6'!BG83 -> 0 | V73: ='نتيجة عامة4-5-6'!BP83 -> 0 | W73: ='نتيجة عامة4-5-6'!BY83 -> 0 | X73: ='نتيجة عامة4-5-6'!CF83 -> 0 | AA73: ='نتيجة عامة4-5-6'!CO83 -> 0 | AB73: ='نتيجة عامة4-5-6'!CV83 -> 0 | AE73: ='نتيجة عامة4-5-6'!DG83 -> 0 | AF73: ='نتيجة عامة4-5-6'!DP83 -> 0 | AG73: ='نتيجة عامة4-5-6'!DW83 -> 0
A74: ='نتيجة عامة4-5-6'!A84 -> 458 | B74: ='نتيجة عامة4-5-6'!B84 -> ياسمين عبد الغني صادق عبد الغني | C74: ='نتيجة عامة4-5-6'!A84 -> 458 | F74: ='نتيجة عامة4-5-6'!L84 -> 0 | I74: ='نتيجة عامة4-5-6'!U84 -> 0 | L74: ='نتيجة عامة4-5-6'!AD84 -> 0 | O74: ='نتيجة عامة4-5-6'!AM84 -> 0 | R74: ='نتيجة عامة4-5-6'!AV84 -> 0 | U74: ='نتيجة عامة4-5-6'!BG84 -> 0 | V74: ='نتيجة عامة4-5-6'!BP84 -> 0 | W74: ='نتيجة عامة4-5-6'!BY84 -> 0 | X74: ='نتيجة عامة4-5-6'!CF84 -> 0 | AA74: ='نتيجة عامة4-5-6'!CO84 -> 0 | AB74: ='نتيجة عامة4-5-6'!CV84 -> 0 | AE74: ='نتيجة عامة4-5-6'!DG84 -> 0 | AF74: ='نتيجة عامة4-5-6'!DP84 -> 0 | AG74: ='نتيجة عامة4-5-6'!DW84 -> 0
A75: ='نتيجة عامة4-5-6'!A85 -> 459 | B75: ='نتيجة عامة4-5-6'!B85 -> احمد أشرف شحاته محمد | C75: ='نتيجة عامة4-5-6'!A85 -> 459 | F75: ='نتيجة عامة4-5-6'!L85 -> 0 | I75: ='نتيجة عامة4-5-6'!U85 -> 0 | L75: ='نتيجة عامة4-5-6'!AD85 -> 0 | O75: ='نتيجة عامة4-5-6'!AM85 -> 0 | R75: ='نتيجة عامة4-5-6'!AV85 -> 0 | U75: ='نتيجة عامة4-5-6'!BG85 -> 0 | V75: ='نتيجة عامة4-5-6'!BP85 -> 0 | W75: ='نتيجة عامة4-5-6'!BY85 -> 0 | X75: ='نتيجة عامة4-5-6'!CF85 -> 0 | AA75: ='نتيجة عامة4-5-6'!CO85 -> 0 | AB75: ='نتيجة عامة4-5-6'!CV85 -> 0 | AE75: ='نتيجة عامة4-5-6'!DG85 -> 0 | AF75: ='نتيجة عامة4-5-6'!DP85 -> 0 | AG75: ='نتيجة عامة4-5-6'!DW85 -> 0
A76: ='نتيجة عامة4-5-6'!A86 -> 460 | B76: ='نتيجة عامة4-5-6'!B86 -> احمد صلاح يحي عثمان | C76: ='نتيجة عامة4-5-6'!A86 -> 460 | F76: ='نتيجة عامة4-5-6'!L86 -> 0 | I76: ='نتيجة عامة4-5-6'!U86 -> 0 | L76: ='نتيجة عامة4-5-6'!AD86 -> 0 | O76: ='نتيجة عامة4-5-6'!AM86 -> 0 | R76: ='نتيجة عامة4-5-6'!AV86 -> 0 | U76: ='نتيجة عامة4-5-6'!BG86 -> 0 | V76: ='نتيجة عامة4-5-6'!BP86 -> 0 | W76: ='نتيجة عامة4-5-6'!BY86 -> 0 | X76: ='نتيجة عامة4-5-6'!CF86 -> 0 | AA76: ='نتيجة عامة4-5-6'!CO86 -> 0 | AB76: ='نتيجة عامة4-5-6'!CV86 -> 0 | AE76: ='نتيجة عامة4-5-6'!DG86 -> 0 | AF76: ='نتيجة عامة4-5-6'!DP86 -> 0 | AG76: ='نتيجة عامة4-5-6'!DW86 -> 0
A77: ='نتيجة عامة4-5-6'!A87 -> 461 | B77: ='نتيجة عامة4-5-6'!B87 -> احمد عبد العزيز أحمد عبد العزيز | C77: ='نتيجة عامة4-5-6'!A87 -> 461 | F77: ='نتيجة عامة4-5-6'!L87 -> 0 | I77: ='نتيجة عامة4-5-6'!U87 -> 0 | L77: ='نتيجة عامة4-5-6'!AD87 -> 0 | O77: ='نتيجة عامة4-5-6'!AM87 -> 0 | R77: ='نتيجة عامة4-5-6'!AV87 -> 0 | U77: ='نتيجة عامة4-5-6'!BG87 -> 0 | V77: ='نتيجة عامة4-5-6'!BP87 -> 0 | W77: ='نتيجة عامة4-5-6'!BY87 -> 0 | X77: ='نتيجة عامة4-5-6'!CF87 -> 0 | AA77: ='نتيجة عامة4-5-6'!CO87 -> 0 | AB77: ='نتيجة عامة4-5-6'!CV87 -> 0 | AE77: ='نتيجة عامة4-5-6'!DG87 -> 0 | AF77: ='نتيجة عامة4-5-6'!DP87 -> 0 | AG77: ='نتيجة عامة4-5-6'!DW87 -> 0
A78: ='نتيجة عامة4-5-6'!A88 -> 462 | B78: ='نتيجة عامة4-5-6'!B88 -> احمد علاء خلف عبد الدايم | C78: ='نتيجة عامة4-5-6'!A88 -> 462 | F78: ='نتيجة عامة4-5-6'!L88 -> 0 | I78: ='نتيجة عامة4-5-6'!U88 -> 0 | L78: ='نتيجة عامة4-5-6'!AD88 -> 0 | O78: ='نتيجة عامة4-5-6'!AM88 -> 0 | R78: ='نتيجة عامة4-5-6'!AV88 -> 0 | U78: ='نتيجة عامة4-5-6'!BG88 -> 0 | V78: ='نتيجة عامة4-5-6'!BP88 -> 0 | W78: ='نتيجة عامة4-5-6'!BY88 -> 0 | X78: ='نتيجة عامة4-5-6'!CF88 -> 0 | AA78: ='نتيجة عامة4-5-6'!CO88 -> 0 | AB78: ='نتيجة عامة4-5-6'!CV88 -> 0 | AE78: ='نتيجة عامة4-5-6'!DG88 -> 0 | AF78: ='نتيجة عامة4-5-6'!DP88 -> 0 | AG78: ='نتيجة عامة4-5-6'!DW88 -> 0
A79: ='نتيجة عامة4-5-6'!A89 -> 463 | B79: ='نتيجة عامة4-5-6'!B89 -> احمد علي محمد محمد الجنيدي | C79: ='نتيجة عامة4-5-6'!A89 -> 463 | F79: ='نتيجة عامة4-5-6'!L89 -> 0 | I79: ='نتيجة عامة4-5-6'!U89 -> 0 | L79: ='نتيجة عامة4-5-6'!AD89 -> 0 | O79: ='نتيجة عامة4-5-6'!AM89 -> 0 | R79: ='نتيجة عامة4-5-6'!AV89 -> 0 | U79: ='نتيجة عامة4-5-6'!BG89 -> 0 | V79: ='نتيجة عامة4-5-6'!BP89 -> 0 | W79: ='نتيجة عامة4-5-6'!BY89 -> 0 | X79: ='نتيجة عامة4-5-6'!CF89 -> 0 | AA79: ='نتيجة عامة4-5-6'!CO89 -> 0 | AB79: ='نتيجة عامة4-5-6'!CV89 -> 0 | AE79: ='نتيجة عامة4-5-6'!DG89 -> 0 | AF79: ='نتيجة عامة4-5-6'!DP89 -> 0 | AG79: ='نتيجة عامة4-5-6'!DW89 -> 0
A80: ='نتيجة عامة4-5-6'!A90 -> 464 | B80: ='نتيجة عامة4-5-6'!B90 -> احمد قياتي محمد شاكر | C80: ='نتيجة عامة4-5-6'!A90 -> 464 | F80: ='نتيجة عامة4-5-6'!L90 -> 0 | I80: ='نتيجة عامة4-5-6'!U90 -> 0 | L80: ='نتيجة عامة4-5-6'!AD90 -> 0 | O80: ='نتيجة عامة4-5-6'!AM90 -> 0 | R80: ='نتيجة عامة4-5-6'!AV90 -> 0 | U80: ='نتيجة عامة4-5-6'!BG90 -> 0 | V80: ='نتيجة عامة4-5-6'!BP90 -> 0 | W80: ='نتيجة عامة4-5-6'!BY90 -> 0 | X80: ='نتيجة عامة4-5-6'!CF90 -> 0 | AA80: ='نتيجة عامة4-5-6'!CO90 -> 0 | AB80: ='نتيجة عامة4-5-6'!CV90 -> 0 | AE80: ='نتيجة عامة4-5-6'!DG90 -> 0 | AF80: ='نتيجة عامة4-5-6'!DP90 -> 0 | AG80: ='نتيجة عامة4-5-6'!DW90 -> 0
A81: ='نتيجة عامة4-5-6'!A91 -> 465 | B81: ='نتيجة عامة4-5-6'!B91 -> احمد محمد رجب عبدالعزيز | C81: ='نتيجة عامة4-5-6'!A91 -> 465 | F81: ='نتيجة عامة4-5-6'!L91 -> 0 | I81: ='نتيجة عامة4-5-6'!U91 -> 0 | L81: ='نتيجة عامة4-5-6'!AD91 -> 0 | O81: ='نتيجة عامة4-5-6'!AM91 -> 0 | R81: ='نتيجة عامة4-5-6'!AV91 -> 0 | U81: ='نتيجة عامة4-5-6'!BG91 -> 0 | V81: ='نتيجة عامة4-5-6'!BP91 -> 0 | W81: ='نتيجة عامة4-5-6'!BY91 -> 0 | X81: ='نتيجة عامة4-5-6'!CF91 -> 0 | AA81: ='نتيجة عامة4-5-6'!CO91 -> 0 | AB81: ='نتيجة عامة4-5-6'!CV91 -> 0 | AE81: ='نتيجة عامة4-5-6'!DG91 -> 0 | AF81: ='نتيجة عامة4-5-6'!DP91 -> 0 | AG81: ='نتيجة عامة4-5-6'!DW91 -> 0
A82: ='نتيجة عامة4-5-6'!A92 -> 466 | B82: ='نتيجة عامة4-5-6'!B92 -> احمد محمد رجب كامل | C82: ='نتيجة عامة4-5-6'!A92 -> 466 | F82: ='نتيجة عامة4-5-6'!L92 -> 0 | I82: ='نتيجة عامة4-5-6'!U92 -> 0 | L82: ='نتيجة عامة4-5-6'!AD92 -> 0 | O82: ='نتيجة عامة4-5-6'!AM92 -> 0 | R82: ='نتيجة عامة4-5-6'!AV92 -> 0 | U82: ='نتيجة عامة4-5-6'!BG92 -> 0 | V82: ='نتيجة عامة4-5-6'!BP92 -> 0 | W82: ='نتيجة عامة4-5-6'!BY92 -> 0 | X82: ='نتيجة عامة4-5-6'!CF92 -> 0 | AA82: ='نتيجة عامة4-5-6'!CO92 -> 0 | AB82: ='نتيجة عامة4-5-6'!CV92 -> 0 | AE82: ='نتيجة عامة4-5-6'!DG92 -> 0 | AF82: ='نتيجة عامة4-5-6'!DP92 -> 0 | AG82: ='نتيجة عامة4-5-6'!DW92 -> 0
A83: ='نتيجة عامة4-5-6'!A93 -> 467 | B83: ='نتيجة عامة4-5-6'!B93 -> احمد محمد فتحي عبد المنعم | C83: ='نتيجة عامة4-5-6'!A93 -> 467 | F83: ='نتيجة عامة4-5-6'!L93 -> 0 | I83: ='نتيجة عامة4-5-6'!U93 -> 0 | L83: ='نتيجة عامة4-5-6'!AD93 -> 0 | O83: ='نتيجة عامة4-5-6'!AM93 -> 0 | R83: ='نتيجة عامة4-5-6'!AV93 -> 0 | U83: ='نتيجة عامة4-5-6'!BG93 -> 0 | V83: ='نتيجة عامة4-5-6'!BP93 -> 0 | W83: ='نتيجة عامة4-5-6'!BY93 -> 0 | X83: ='نتيجة عامة4-5-6'!CF93 -> 0 | AA83: ='نتيجة عامة4-5-6'!CO93 -> 0 | AB83: ='نتيجة عامة4-5-6'!CV93 -> 0 | AE83: ='نتيجة عامة4-5-6'!DG93 -> 0 | AF83: ='نتيجة عامة4-5-6'!DP93 -> 0 | AG83: ='نتيجة عامة4-5-6'!DW93 -> 0
A84: ='نتيجة عامة4-5-6'!A94 -> 468 | B84: ='نتيجة عامة4-5-6'!B94 -> احمد محمود محمد محمد الشوربجي | C84: ='نتيجة عامة4-5-6'!A94 -> 468 | F84: ='نتيجة عامة4-5-6'!L94 -> 0 | I84: ='نتيجة عامة4-5-6'!U94 -> 0 | L84: ='نتيجة عامة4-5-6'!AD94 -> 0 | O84: ='نتيجة عامة4-5-6'!AM94 -> 0 | R84: ='نتيجة عامة4-5-6'!AV94 -> 0 | U84: ='نتيجة عامة4-5-6'!BG94 -> 0 | V84: ='نتيجة عامة4-5-6'!BP94 -> 0 | W84: ='نتيجة عامة4-5-6'!BY94 -> 0 | X84: ='نتيجة عامة4-5-6'!CF94 -> 0 | AA84: ='نتيجة عامة4-5-6'!CO94 -> 0 | AB84: ='نتيجة عامة4-5-6'!CV94 -> 0 | AE84: ='نتيجة عامة4-5-6'!DG94 -> 0 | AF84: ='نتيجة عامة4-5-6'!DP94 -> 0 | AG84: ='نتيجة عامة4-5-6'!DW94 -> 0
A85: ='نتيجة عامة4-5-6'!A95 -> 469 | B85: ='نتيجة عامة4-5-6'!B95 -> ادم عبدالله خليفه يحي محمد | C85: ='نتيجة عامة4-5-6'!A95 -> 469 | F85: ='نتيجة عامة4-5-6'!L95 -> 0 | I85: ='نتيجة عامة4-5-6'!U95 -> 0 | L85: ='نتيجة عامة4-5-6'!AD95 -> 0 | O85: ='نتيجة عامة4-5-6'!AM95 -> 0 | R85: ='نتيجة عامة4-5-6'!AV95 -> 0 | U85: ='نتيجة عامة4-5-6'!BG95 -> 0 | V85: ='نتيجة عامة4-5-6'!BP95 -> 0 | W85: ='نتيجة عامة4-5-6'!BY95 -> 0 | X85: ='نتيجة عامة4-5-6'!CF95 -> 0 | AA85: ='نتيجة عامة4-5-6'!CO95 -> 0 | AB85: ='نتيجة عامة4-5-6'!CV95 -> 0 | AE85: ='نتيجة عامة4-5-6'!DG95 -> 0 | AF85: ='نتيجة عامة4-5-6'!DP95 -> 0 | AG85: ='نتيجة عامة4-5-6'!DW95 -> 0
A86: ='نتيجة عامة4-5-6'!A96 -> 470 | B86: ='نتيجة عامة4-5-6'!B96 -> ادهم محمود عبدالرازق عيد | C86: ='نتيجة عامة4-5-6'!A96 -> 470 | F86: ='نتيجة عامة4-5-6'!L96 -> 0 | I86: ='نتيجة عامة4-5-6'!U96 -> 0 | L86: ='نتيجة عامة4-5-6'!AD96 -> 0 | O86: ='نتيجة عامة4-5-6'!AM96 -> 0 | R86: ='نتيجة عامة4-5-6'!AV96 -> 0 | U86: ='نتيجة عامة4-5-6'!BG96 -> 0 | V86: ='نتيجة عامة4-5-6'!BP96 -> 0 | W86: ='نتيجة عامة4-5-6'!BY96 -> 0 | X86: ='نتيجة عامة4-5-6'!CF96 -> 0 | AA86: ='نتيجة عامة4-5-6'!CO96 -> 0 | AB86: ='نتيجة عامة4-5-6'!CV96 -> 0 | AE86: ='نتيجة عامة4-5-6'!DG96 -> 0 | AF86: ='نتيجة عامة4-5-6'!DP96 -> 0 | AG86: ='نتيجة عامة4-5-6'!DW96 -> 0
A87: ='نتيجة عامة4-5-6'!A97 -> 471 | B87: ='نتيجة عامة4-5-6'!B97 -> امير أحمد مرتضى عبدالغفار | C87: ='نتيجة عامة4-5-6'!A97 -> 471 | F87: ='نتيجة عامة4-5-6'!L97 -> 0 | I87: ='نتيجة عامة4-5-6'!U97 -> 0 | L87: ='نتيجة عامة4-5-6'!AD97 -> 0 | O87: ='نتيجة عامة4-5-6'!AM97 -> 0 | R87: ='نتيجة عامة4-5-6'!AV97 -> 0 | U87: ='نتيجة عامة4-5-6'!BG97 -> 0 | V87: ='نتيجة عامة4-5-6'!BP97 -> 0 | W87: ='نتيجة عامة4-5-6'!BY97 -> 0 | X87: ='نتيجة عامة4-5-6'!CF97 -> 0 | AA87: ='نتيجة عامة4-5-6'!CO97 -> 0 | AB87: ='نتيجة عامة4-5-6'!CV97 -> 0 | AE87: ='نتيجة عامة4-5-6'!DG97 -> 0 | AF87: ='نتيجة عامة4-5-6'!DP97 -> 0 | AG87: ='نتيجة عامة4-5-6'!DW97 -> 0
A88: ='نتيجة عامة4-5-6'!A98 -> 472 | B88: ='نتيجة عامة4-5-6'!B98 -> انس طه عبدالعزيز أحمد إبراهيم | C88: ='نتيجة عامة4-5-6'!A98 -> 472 | F88: ='نتيجة عامة4-5-6'!L98 -> 0 | I88: ='نتيجة عامة4-5-6'!U98 -> 0 | L88: ='نتيجة عامة4-5-6'!AD98 -> 0 | O88: ='نتيجة عامة4-5-6'!AM98 -> 0 | R88: ='نتيجة عامة4-5-6'!AV98 -> 0 | U88: ='نتيجة عامة4-5-6'!BG98 -> 0 | V88: ='نتيجة عامة4-5-6'!BP98 -> 0 | W88: ='نتيجة عامة4-5-6'!BY98 -> 0 | X88: ='نتيجة عامة4-5-6'!CF98 -> 0 | AA88: ='نتيجة عامة4-5-6'!CO98 -> 0 | AB88: ='نتيجة عامة4-5-6'!CV98 -> 0 | AE88: ='نتيجة عامة4-5-6'!DG98 -> 0 | AF88: ='نتيجة عامة4-5-6'!DP98 -> 0 | AG88: ='نتيجة عامة4-5-6'!DW98 -> 0
A89: ='نتيجة عامة4-5-6'!A99 -> 473 | B89: ='نتيجة عامة4-5-6'!B99 -> اياد مصطفى عطيه عبدالرازق | C89: ='نتيجة عامة4-5-6'!A99 -> 473 | F89: ='نتيجة عامة4-5-6'!L99 -> 0 | I89: ='نتيجة عامة4-5-6'!U99 -> 0 | L89: ='نتيجة عامة4-5-6'!AD99 -> 0 | O89: ='نتيجة عامة4-5-6'!AM99 -> 0 | R89: ='نتيجة عامة4-5-6'!AV99 -> 0 | U89: ='نتيجة عامة4-5-6'!BG99 -> 0 | V89: ='نتيجة عامة4-5-6'!BP99 -> 0 | W89: ='نتيجة عامة4-5-6'!BY99 -> 0 | X89: ='نتيجة عامة4-5-6'!CF99 -> 0 | AA89: ='نتيجة عامة4-5-6'!CO99 -> 0 | AB89: ='نتيجة عامة4-5-6'!CV99 -> 0 | AE89: ='نتيجة عامة4-5-6'!DG99 -> 0 | AF89: ='نتيجة عامة4-5-6'!DP99 -> 0 | AG89: ='نتيجة عامة4-5-6'!DW99 -> 0
A90: ='نتيجة عامة4-5-6'!A100 -> 474 | B90: ='نتيجة عامة4-5-6'!B100 -> بلال أحمد خليفة علي | C90: ='نتيجة عامة4-5-6'!A100 -> 474 | F90: ='نتيجة عامة4-5-6'!L100 -> 0 | I90: ='نتيجة عامة4-5-6'!U100 -> 0 | L90: ='نتيجة عامة4-5-6'!AD100 -> 0 | O90: ='نتيجة عامة4-5-6'!AM100 -> 0 | R90: ='نتيجة عامة4-5-6'!AV100 -> 0 | U90: ='نتيجة عامة4-5-6'!BG100 -> 0 | V90: ='نتيجة عامة4-5-6'!BP100 -> 0 | W90: ='نتيجة عامة4-5-6'!BY100 -> 0 | X90: ='نتيجة عامة4-5-6'!CF100 -> 0 | AA90: ='نتيجة عامة4-5-6'!CO100 -> 0 | AB90: ='نتيجة عامة4-5-6'!CV100 -> 0 | AE90: ='نتيجة عامة4-5-6'!DG100 -> 0 | AF90: ='نتيجة عامة4-5-6'!DP100 -> 0 | AG90: ='نتيجة عامة4-5-6'!DW100 -> 0
A91: ='نتيجة عامة4-5-6'!A101 -> 475 | B91: ='نتيجة عامة4-5-6'!B101 -> حازم محمد خليفه يحي | C91: ='نتيجة عامة4-5-6'!A101 -> 475 | F91: ='نتيجة عامة4-5-6'!L101 -> 0 | I91: ='نتيجة عامة4-5-6'!U101 -> 0 | L91: ='نتيجة عامة4-5-6'!AD101 -> 0 | O91: ='نتيجة عامة4-5-6'!AM101 -> 0 | R91: ='نتيجة عامة4-5-6'!AV101 -> 0 | U91: ='نتيجة عامة4-5-6'!BG101 -> 0 | V91: ='نتيجة عامة4-5-6'!BP101 -> 0 | W91: ='نتيجة عامة4-5-6'!BY101 -> 0 | X91: ='نتيجة عامة4-5-6'!CF101 -> 0 | AA91: ='نتيجة عامة4-5-6'!CO101 -> 0 | AB91: ='نتيجة عامة4-5-6'!CV101 -> 0 | AE91: ='نتيجة عامة4-5-6'!DG101 -> 0 | AF91: ='نتيجة عامة4-5-6'!DP101 -> 0 | AG91: ='نتيجة عامة4-5-6'!DW101 -> 0
A92: ='نتيجة عامة4-5-6'!A102 -> 476 | B92: ='نتيجة عامة4-5-6'!B102 -> حسام مصطفى محمد راضي | C92: ='نتيجة عامة4-5-6'!A102 -> 476 | F92: ='نتيجة عامة4-5-6'!L102 -> 0 | I92: ='نتيجة عامة4-5-6'!U102 -> 0 | L92: ='نتيجة عامة4-5-6'!AD102 -> 0 | O92: ='نتيجة عامة4-5-6'!AM102 -> 0 | R92: ='نتيجة عامة4-5-6'!AV102 -> 0 | U92: ='نتيجة عامة4-5-6'!BG102 -> 0 | V92: ='نتيجة عامة4-5-6'!BP102 -> 0 | W92: ='نتيجة عامة4-5-6'!BY102 -> 0 | X92: ='نتيجة عامة4-5-6'!CF102 -> 0 | AA92: ='نتيجة عامة4-5-6'!CO102 -> 0 | AB92: ='نتيجة عامة4-5-6'!CV102 -> 0 | AE92: ='نتيجة عامة4-5-6'!DG102 -> 0 | AF92: ='نتيجة عامة4-5-6'!DP102 -> 0 | AG92: ='نتيجة عامة4-5-6'!DW102 -> 0
A93: ='نتيجة عامة4-5-6'!A103 -> 477 | B93: ='نتيجة عامة4-5-6'!B103 -> سعيد محمود محمد شريف | C93: ='نتيجة عامة4-5-6'!A103 -> 477 | F93: ='نتيجة عامة4-5-6'!L103 -> 0 | I93: ='نتيجة عامة4-5-6'!U103 -> 0 | L93: ='نتيجة عامة4-5-6'!AD103 -> 0 | O93: ='نتيجة عامة4-5-6'!AM103 -> 0 | R93: ='نتيجة عامة4-5-6'!AV103 -> 0 | U93: ='نتيجة عامة4-5-6'!BG103 -> 0 | V93: ='نتيجة عامة4-5-6'!BP103 -> 0 | W93: ='نتيجة عامة4-5-6'!BY103 -> 0 | X93: ='نتيجة عامة4-5-6'!CF103 -> 0 | AA93: ='نتيجة عامة4-5-6'!CO103 -> 0 | AB93: ='نتيجة عامة4-5-6'!CV103 -> 0 | AE93: ='نتيجة عامة4-5-6'!DG103 -> 0 | AF93: ='نتيجة عامة4-5-6'!DP103 -> 0 | AG93: ='نتيجة عامة4-5-6'!DW103 -> 0
A94: ='نتيجة عامة4-5-6'!A104 -> 478 | B94: ='نتيجة عامة4-5-6'!B104 -> سمير أحمد سمير محمود | C94: ='نتيجة عامة4-5-6'!A104 -> 478 | F94: ='نتيجة عامة4-5-6'!L104 -> 0 | I94: ='نتيجة عامة4-5-6'!U104 -> 0 | L94: ='نتيجة عامة4-5-6'!AD104 -> 0 | O94: ='نتيجة عامة4-5-6'!AM104 -> 0 | R94: ='نتيجة عامة4-5-6'!AV104 -> 0 | U94: ='نتيجة عامة4-5-6'!BG104 -> 0 | V94: ='نتيجة عامة4-5-6'!BP104 -> 0 | W94: ='نتيجة عامة4-5-6'!BY104 -> 0 | X94: ='نتيجة عامة4-5-6'!CF104 -> 0 | AA94: ='نتيجة عامة4-5-6'!CO104 -> 0 | AB94: ='نتيجة عامة4-5-6'!CV104 -> 0 | AE94: ='نتيجة عامة4-5-6'!DG104 -> 0 | AF94: ='نتيجة عامة4-5-6'!DP104 -> 0 | AG94: ='نتيجة عامة4-5-6'!DW104 -> 0
A95: ='نتيجة عامة4-5-6'!A105 -> 479 | B95: ='نتيجة عامة4-5-6'!B105 -> صموئيل عاطف صموئيل بطرس | C95: ='نتيجة عامة4-5-6'!A105 -> 479 | F95: ='نتيجة عامة4-5-6'!L105 -> 0 | I95: ='نتيجة عامة4-5-6'!U105 -> 0 | L95: ='نتيجة عامة4-5-6'!AD105 -> 0 | O95: ='نتيجة عامة4-5-6'!AM105 -> 0 | R95: ='نتيجة عامة4-5-6'!AV105 -> 0 | U95: ='نتيجة عامة4-5-6'!BG105 -> 0 | V95: ='نتيجة عامة4-5-6'!BP105 -> 0 | W95: ='نتيجة عامة4-5-6'!BY105 -> 0 | X95: ='نتيجة عامة4-5-6'!CF105 -> 0 | AA95: ='نتيجة عامة4-5-6'!CO105 -> 0 | AB95: ='نتيجة عامة4-5-6'!CV105 -> 0 | AE95: ='نتيجة عامة4-5-6'!DG105 -> 0 | AF95: ='نتيجة عامة4-5-6'!DP105 -> 0 | AG95: ='نتيجة عامة4-5-6'!DW105 -> 0
A96: ='نتيجة عامة4-5-6'!A106 -> 480 | B96: ='نتيجة عامة4-5-6'!B106 -> عاصم خالد محمد محمد إبراهيم | C96: ='نتيجة عامة4-5-6'!A106 -> 480 | F96: ='نتيجة عامة4-5-6'!L106 -> 0 | I96: ='نتيجة عامة4-5-6'!U106 -> 0 | L96: ='نتيجة عامة4-5-6'!AD106 -> 0 | O96: ='نتيجة عامة4-5-6'!AM106 -> 0 | R96: ='نتيجة عامة4-5-6'!AV106 -> 0 | U96: ='نتيجة عامة4-5-6'!BG106 -> 0 | V96: ='نتيجة عامة4-5-6'!BP106 -> 0 | W96: ='نتيجة عامة4-5-6'!BY106 -> 0 | X96: ='نتيجة عامة4-5-6'!CF106 -> 0 | AA96: ='نتيجة عامة4-5-6'!CO106 -> 0 | AB96: ='نتيجة عامة4-5-6'!CV106 -> 0 | AE96: ='نتيجة عامة4-5-6'!DG106 -> 0 | AF96: ='نتيجة عامة4-5-6'!DP106 -> 0 | AG96: ='نتيجة عامة4-5-6'!DW106 -> 0
A97: ='نتيجة عامة4-5-6'!A107 -> 481 | B97: ='نتيجة عامة4-5-6'!B107 -> عاصم عبد العزيز حماد عبد الرازق | C97: ='نتيجة عامة4-5-6'!A107 -> 481 | F97: ='نتيجة عامة4-5-6'!L107 -> 0 | I97: ='نتيجة عامة4-5-6'!U107 -> 0 | L97: ='نتيجة عامة4-5-6'!AD107 -> 0 | O97: ='نتيجة عامة4-5-6'!AM107 -> 0 | R97: ='نتيجة عامة4-5-6'!AV107 -> 0 | U97: ='نتيجة عامة4-5-6'!BG107 -> 0 | V97: ='نتيجة عامة4-5-6'!BP107 -> 0 | W97: ='نتيجة عامة4-5-6'!BY107 -> 0 | X97: ='نتيجة عامة4-5-6'!CF107 -> 0 | AA97: ='نتيجة عامة4-5-6'!CO107 -> 0 | AB97: ='نتيجة عامة4-5-6'!CV107 -> 0 | AE97: ='نتيجة عامة4-5-6'!DG107 -> 0 | AF97: ='نتيجة عامة4-5-6'!DP107 -> 0 | AG97: ='نتيجة عامة4-5-6'!DW107 -> 0
A98: ='نتيجة عامة4-5-6'!A108 -> 482 | B98: ='نتيجة عامة4-5-6'!B108 -> عبد الحليم محمود عبد الحليم محمد | C98: ='نتيجة عامة4-5-6'!A108 -> 482 | F98: ='نتيجة عامة4-5-6'!L108 -> 0 | I98: ='نتيجة عامة4-5-6'!U108 -> 0 | L98: ='نتيجة عامة4-5-6'!AD108 -> 0 | O98: ='نتيجة عامة4-5-6'!AM108 -> 0 | R98: ='نتيجة عامة4-5-6'!AV108 -> 0 | U98: ='نتيجة عامة4-5-6'!BG108 -> 0 | V98: ='نتيجة عامة4-5-6'!BP108 -> 0 | W98: ='نتيجة عامة4-5-6'!BY108 -> 0 | X98: ='نتيجة عامة4-5-6'!CF108 -> 0 | AA98: ='نتيجة عامة4-5-6'!CO108 -> 0 | AB98: ='نتيجة عامة4-5-6'!CV108 -> 0 | AE98: ='نتيجة عامة4-5-6'!DG108 -> 0 | AF98: ='نتيجة عامة4-5-6'!DP108 -> 0 | AG98: ='نتيجة عامة4-5-6'!DW108 -> 0
A99: ='نتيجة عامة4-5-6'!A109 -> 483 | B99: ='نتيجة عامة4-5-6'!B109 -> عبد الرحمن محمد عبد الله طلب | C99: ='نتيجة عامة4-5-6'!A109 -> 483 | F99: ='نتيجة عامة4-5-6'!L109 -> 0 | I99: ='نتيجة عامة4-5-6'!U109 -> 0 | L99: ='نتيجة عامة4-5-6'!AD109 -> 0 | O99: ='نتيجة عامة4-5-6'!AM109 -> 0 | R99: ='نتيجة عامة4-5-6'!AV109 -> 0 | U99: ='نتيجة عامة4-5-6'!BG109 -> 0 | V99: ='نتيجة عامة4-5-6'!BP109 -> 0 | W99: ='نتيجة عامة4-5-6'!BY109 -> 0 | X99: ='نتيجة عامة4-5-6'!CF109 -> 0 | AA99: ='نتيجة عامة4-5-6'!CO109 -> 0 | AB99: ='نتيجة عامة4-5-6'!CV109 -> 0 | AE99: ='نتيجة عامة4-5-6'!DG109 -> 0 | AF99: ='نتيجة عامة4-5-6'!DP109 -> 0 | AG99: ='نتيجة عامة4-5-6'!DW109 -> 0
A100: ='نتيجة عامة4-5-6'!A110 -> 484 | B100: ='نتيجة عامة4-5-6'!B110 -> عبد الله أحمد عبد الناصر عبد الغني | C100: ='نتيجة عامة4-5-6'!A110 -> 484 | F100: ='نتيجة عامة4-5-6'!L110 -> 0 | I100: ='نتيجة عامة4-5-6'!U110 -> 0 | L100: ='نتيجة عامة4-5-6'!AD110 -> 0 | O100: ='نتيجة عامة4-5-6'!AM110 -> 0 | R100: ='نتيجة عامة4-5-6'!AV110 -> 0 | U100: ='نتيجة عامة4-5-6'!BG110 -> 0 | V100: ='نتيجة عامة4-5-6'!BP110 -> 0 | W100: ='نتيجة عامة4-5-6'!BY110 -> 0 | X100: ='نتيجة عامة4-5-6'!CF110 -> 0 | AA100: ='نتيجة عامة4-5-6'!CO110 -> 0 | AB100: ='نتيجة عامة4-5-6'!CV110 -> 0 | AE100: ='نتيجة عامة4-5-6'!DG110 -> 0 | AF100: ='نتيجة عامة4-5-6'!DP110 -> 0 | AG100: ='نتيجة عامة4-5-6'!DW110 -> 0
A101: ='نتيجة عامة4-5-6'!A111 -> 485 | B101: ='نتيجة عامة4-5-6'!B111 -> عبد الله أحمد سيد عبد الرازق عثمان | C101: ='نتيجة عامة4-5-6'!A111 -> 485 | F101: ='نتيجة عامة4-5-6'!L111 -> 0 | I101: ='نتيجة عامة4-5-6'!U111 -> 0 | L101: ='نتيجة عامة4-5-6'!AD111 -> 0 | O101: ='نتيجة عامة4-5-6'!AM111 -> 0 | R101: ='نتيجة عامة4-5-6'!AV111 -> 0 | U101: ='نتيجة عامة4-5-6'!BG111 -> 0 | V101: ='نتيجة عامة4-5-6'!BP111 -> 0 | W101: ='نتيجة عامة4-5-6'!BY111 -> 0 | X101: ='نتيجة عامة4-5-6'!CF111 -> 0 | AA101: ='نتيجة عامة4-5-6'!CO111 -> 0 | AB101: ='نتيجة عامة4-5-6'!CV111 -> 0 | AE101: ='نتيجة عامة4-5-6'!DG111 -> 0 | AF101: ='نتيجة عامة4-5-6'!DP111 -> 0 | AG101: ='نتيجة عامة4-5-6'!DW111 -> 0
A102: ='نتيجة عامة4-5-6'!A112 -> 486 | B102: ='نتيجة عامة4-5-6'!B112 -> عبدالله أحمد عبدالغفار محمد | C102: ='نتيجة عامة4-5-6'!A112 -> 486 | F102: ='نتيجة عامة4-5-6'!L112 -> 0 | I102: ='نتيجة عامة4-5-6'!U112 -> 0 | L102: ='نتيجة عامة4-5-6'!AD112 -> 0 | O102: ='نتيجة عامة4-5-6'!AM112 -> 0 | R102: ='نتيجة عامة4-5-6'!AV112 -> 0 | U102: ='نتيجة عامة4-5-6'!BG112 -> 0 | V102: ='نتيجة عامة4-5-6'!BP112 -> 0 | W102: ='نتيجة عامة4-5-6'!BY112 -> 0 | X102: ='نتيجة عامة4-5-6'!CF112 -> 0 | AA102: ='نتيجة عامة4-5-6'!CO112 -> 0 | AB102: ='نتيجة عامة4-5-6'!CV112 -> 0 | AE102: ='نتيجة عامة4-5-6'!DG112 -> 0 | AF102: ='نتيجة عامة4-5-6'!DP112 -> 0 | AG102: ='نتيجة عامة4-5-6'!DW112 -> 0
A103: ='نتيجة عامة4-5-6'!A113 -> 487 | B103: ='نتيجة عامة4-5-6'!B113 -> عبد الله عبد العزيز محمد راضي | C103: ='نتيجة عامة4-5-6'!A113 -> 487 | F103: ='نتيجة عامة4-5-6'!L113 -> 0 | I103: ='نتيجة عامة4-5-6'!U113 -> 0 | L103: ='نتيجة عامة4-5-6'!AD113 -> 0 | O103: ='نتيجة عامة4-5-6'!AM113 -> 0 | R103: ='نتيجة عامة4-5-6'!AV113 -> 0 | U103: ='نتيجة عامة4-5-6'!BG113 -> 0 | V103: ='نتيجة عامة4-5-6'!BP113 -> 0 | W103: ='نتيجة عامة4-5-6'!BY113 -> 0 | X103: ='نتيجة عامة4-5-6'!CF113 -> 0 | AA103: ='نتيجة عامة4-5-6'!CO113 -> 0 | AB103: ='نتيجة عامة4-5-6'!CV113 -> 0 | AE103: ='نتيجة عامة4-5-6'!DG113 -> 0 | AF103: ='نتيجة عامة4-5-6'!DP113 -> 0 | AG103: ='نتيجة عامة4-5-6'!DW113 -> 0
A104: ='نتيجة عامة4-5-6'!A114 -> 488 | B104: ='نتيجة عامة4-5-6'!B114 -> عبدالمنعم محمود راضي الجنيدي | C104: ='نتيجة عامة4-5-6'!A114 -> 488 | F104: ='نتيجة عامة4-5-6'!L114 -> 0 | I104: ='نتيجة عامة4-5-6'!U114 -> 0 | L104: ='نتيجة عامة4-5-6'!AD114 -> 0 | O104: ='نتيجة عامة4-5-6'!AM114 -> 0 | R104: ='نتيجة عامة4-5-6'!AV114 -> 0 | U104: ='نتيجة عامة4-5-6'!BG114 -> 0 | V104: ='نتيجة عامة4-5-6'!BP114 -> 0 | W104: ='نتيجة عامة4-5-6'!BY114 -> 0 | X104: ='نتيجة عامة4-5-6'!CF114 -> 0 | AA104: ='نتيجة عامة4-5-6'!CO114 -> 0 | AB104: ='نتيجة عامة4-5-6'!CV114 -> 0 | AE104: ='نتيجة عامة4-5-6'!DG114 -> 0 | AF104: ='نتيجة عامة4-5-6'!DP114 -> 0 | AG104: ='نتيجة عامة4-5-6'!DW114 -> 0
A105: ='نتيجة عامة4-5-6'!A115 -> 489 | B105: ='نتيجة عامة4-5-6'!B115 -> عز الدين نزيه عبد المعز محمود | C105: ='نتيجة عامة4-5-6'!A115 -> 489 | F105: ='نتيجة عامة4-5-6'!L115 -> 0 | I105: ='نتيجة عامة4-5-6'!U115 -> 0 | L105: ='نتيجة عامة4-5-6'!AD115 -> 0 | O105: ='نتيجة عامة4-5-6'!AM115 -> 0 | R105: ='نتيجة عامة4-5-6'!AV115 -> 0 | U105: ='نتيجة عامة4-5-6'!BG115 -> 0 | V105: ='نتيجة عامة4-5-6'!BP115 -> 0 | W105: ='نتيجة عامة4-5-6'!BY115 -> 0 | X105: ='نتيجة عامة4-5-6'!CF115 -> 0 | AA105: ='نتيجة عامة4-5-6'!CO115 -> 0 | AB105: ='نتيجة عامة4-5-6'!CV115 -> 0 | AE105: ='نتيجة عامة4-5-6'!DG115 -> 0 | AF105: ='نتيجة عامة4-5-6'!DP115 -> 0 | AG105: ='نتيجة عامة4-5-6'!DW115 -> 0
A106: ='نتيجة عامة4-5-6'!A116 -> 490 | B106: ='نتيجة عامة4-5-6'!B116 -> عمار جنيدي فنجري عبدالواحد | C106: ='نتيجة عامة4-5-6'!A116 -> 490 | F106: ='نتيجة عامة4-5-6'!L116 -> 0 | I106: ='نتيجة عامة4-5-6'!U116 -> 0 | L106: ='نتيجة عامة4-5-6'!AD116 -> 0 | O106: ='نتيجة عامة4-5-6'!AM116 -> 0 | R106: ='نتيجة عامة4-5-6'!AV116 -> 0 | U106: ='نتيجة عامة4-5-6'!BG116 -> 0 | V106: ='نتيجة عامة4-5-6'!BP116 -> 0 | W106: ='نتيجة عامة4-5-6'!BY116 -> 0 | X106: ='نتيجة عامة4-5-6'!CF116 -> 0 | AA106: ='نتيجة عامة4-5-6'!CO116 -> 0 | AB106: ='نتيجة عامة4-5-6'!CV116 -> 0 | AE106: ='نتيجة عامة4-5-6'!DG116 -> 0 | AF106: ='نتيجة عامة4-5-6'!DP116 -> 0 | AG106: ='نتيجة عامة4-5-6'!DW116 -> 0
A107: ='نتيجة عامة4-5-6'!A117 -> 491 | B107: ='نتيجة عامة4-5-6'!B117 -> عمر عبد الرحمن عيد أبو بكر | C107: ='نتيجة عامة4-5-6'!A117 -> 491 | F107: ='نتيجة عامة4-5-6'!L117 -> 0 | I107: ='نتيجة عامة4-5-6'!U117 -> 0 | L107: ='نتيجة عامة4-5-6'!AD117 -> 0 | O107: ='نتيجة عامة4-5-6'!AM117 -> 0 | R107: ='نتيجة عامة4-5-6'!AV117 -> 0 | U107: ='نتيجة عامة4-5-6'!BG117 -> 0 | V107: ='نتيجة عامة4-5-6'!BP117 -> 0 | W107: ='نتيجة عامة4-5-6'!BY117 -> 0 | X107: ='نتيجة عامة4-5-6'!CF117 -> 0 | AA107: ='نتيجة عامة4-5-6'!CO117 -> 0 | AB107: ='نتيجة عامة4-5-6'!CV117 -> 0 | AE107: ='نتيجة عامة4-5-6'!DG117 -> 0 | AF107: ='نتيجة عامة4-5-6'!DP117 -> 0 | AG107: ='نتيجة عامة4-5-6'!DW117 -> 0
A108: ='نتيجة عامة4-5-6'!A118 -> 492 | B108: ='نتيجة عامة4-5-6'!B118 -> عمر عبدالعزيز ممدوح عبدالغني | C108: ='نتيجة عامة4-5-6'!A118 -> 492 | F108: ='نتيجة عامة4-5-6'!L118 -> 0 | I108: ='نتيجة عامة4-5-6'!U118 -> 0 | L108: ='نتيجة عامة4-5-6'!AD118 -> 0 | O108: ='نتيجة عامة4-5-6'!AM118 -> 0 | R108: ='نتيجة عامة4-5-6'!AV118 -> 0 | U108: ='نتيجة عامة4-5-6'!BG118 -> 0 | V108: ='نتيجة عامة4-5-6'!BP118 -> 0 | W108: ='نتيجة عامة4-5-6'!BY118 -> 0 | X108: ='نتيجة عامة4-5-6'!CF118 -> 0 | AA108: ='نتيجة عامة4-5-6'!CO118 -> 0 | AB108: ='نتيجة عامة4-5-6'!CV118 -> 0 | AE108: ='نتيجة عامة4-5-6'!DG118 -> 0 | AF108: ='نتيجة عامة4-5-6'!DP118 -> 0 | AG108: ='نتيجة عامة4-5-6'!DW118 -> 0
A109: ='نتيجة عامة4-5-6'!A119 -> 493 | B109: ='نتيجة عامة4-5-6'!B119 -> عمر محسن محمد عثمان | C109: ='نتيجة عامة4-5-6'!A119 -> 493 | F109: ='نتيجة عامة4-5-6'!L119 -> 0 | I109: ='نتيجة عامة4-5-6'!U119 -> 0 | L109: ='نتيجة عامة4-5-6'!AD119 -> 0 | O109: ='نتيجة عامة4-5-6'!AM119 -> 0 | R109: ='نتيجة عامة4-5-6'!AV119 -> 0 | U109: ='نتيجة عامة4-5-6'!BG119 -> 0 | V109: ='نتيجة عامة4-5-6'!BP119 -> 0 | W109: ='نتيجة عامة4-5-6'!BY119 -> 0 | X109: ='نتيجة عامة4-5-6'!CF119 -> 0 | AA109: ='نتيجة عامة4-5-6'!CO119 -> 0 | AB109: ='نتيجة عامة4-5-6'!CV119 -> 0 | AE109: ='نتيجة عامة4-5-6'!DG119 -> 0 | AF109: ='نتيجة عامة4-5-6'!DP119 -> 0 | AG109: ='نتيجة عامة4-5-6'!DW119 -> 0
A110: ='نتيجة عامة4-5-6'!A120 -> 494 | B110: ='نتيجة عامة4-5-6'!B120 -> كريم محمد عبد الحليم إبراهيم | C110: ='نتيجة عامة4-5-6'!A120 -> 494 | F110: ='نتيجة عامة4-5-6'!L120 -> 0 | I110: ='نتيجة عامة4-5-6'!U120 -> 0 | L110: ='نتيجة عامة4-5-6'!AD120 -> 0 | O110: ='نتيجة عامة4-5-6'!AM120 -> 0 | R110: ='نتيجة عامة4-5-6'!AV120 -> 0 | U110: ='نتيجة عامة4-5-6'!BG120 -> 0 | V110: ='نتيجة عامة4-5-6'!BP120 -> 0 | W110: ='نتيجة عامة4-5-6'!BY120 -> 0 | X110: ='نتيجة عامة4-5-6'!CF120 -> 0 | AA110: ='نتيجة عامة4-5-6'!CO120 -> 0 | AB110: ='نتيجة عامة4-5-6'!CV120 -> 0 | AE110: ='نتيجة عامة4-5-6'!DG120 -> 0 | AF110: ='نتيجة عامة4-5-6'!DP120 -> 0 | AG110: ='نتيجة عامة4-5-6'!DW120 -> 0
A111: ='نتيجة عامة4-5-6'!A121 -> 495 | B111: ='نتيجة عامة4-5-6'!B121 -> كريم مصطفى حسني عبدالونيس | C111: ='نتيجة عامة4-5-6'!A121 -> 495 | F111: ='نتيجة عامة4-5-6'!L121 -> 0 | I111: ='نتيجة عامة4-5-6'!U121 -> 0 | L111: ='نتيجة عامة4-5-6'!AD121 -> 0 | O111: ='نتيجة عامة4-5-6'!AM121 -> 0 | R111: ='نتيجة عامة4-5-6'!AV121 -> 0 | U111: ='نتيجة عامة4-5-6'!BG121 -> 0 | V111: ='نتيجة عامة4-5-6'!BP121 -> 0 | W111: ='نتيجة عامة4-5-6'!BY121 -> 0 | X111: ='نتيجة عامة4-5-6'!CF121 -> 0 | AA111: ='نتيجة عامة4-5-6'!CO121 -> 0 | AB111: ='نتيجة عامة4-5-6'!CV121 -> 0 | AE111: ='نتيجة عامة4-5-6'!DG121 -> 0 | AF111: ='نتيجة عامة4-5-6'!DP121 -> 0 | AG111: ='نتيجة عامة4-5-6'!DW121 -> 0
A112: ='نتيجة عامة4-5-6'!A122 -> 496 | B112: ='نتيجة عامة4-5-6'!B122 -> محمد أسامه إسماعيل أبو زيد | C112: ='نتيجة عامة4-5-6'!A122 -> 496 | F112: ='نتيجة عامة4-5-6'!L122 -> 0 | I112: ='نتيجة عامة4-5-6'!U122 -> 0 | L112: ='نتيجة عامة4-5-6'!AD122 -> 0 | O112: ='نتيجة عامة4-5-6'!AM122 -> 0 | R112: ='نتيجة عامة4-5-6'!AV122 -> 0 | U112: ='نتيجة عامة4-5-6'!BG122 -> 0 | V112: ='نتيجة عامة4-5-6'!BP122 -> 0 | W112: ='نتيجة عامة4-5-6'!BY122 -> 0 | X112: ='نتيجة عامة4-5-6'!CF122 -> 0 | AA112: ='نتيجة عامة4-5-6'!CO122 -> 0 | AB112: ='نتيجة عامة4-5-6'!CV122 -> 0 | AE112: ='نتيجة عامة4-5-6'!DG122 -> 0 | AF112: ='نتيجة عامة4-5-6'!DP122 -> 0 | AG112: ='نتيجة عامة4-5-6'!DW122 -> 0
A113: ='نتيجة عامة4-5-6'!A123 -> 497 | B113: ='نتيجة عامة4-5-6'!B123 -> محمد أسامه محمد صادق | C113: ='نتيجة عامة4-5-6'!A123 -> 497 | F113: ='نتيجة عامة4-5-6'!L123 -> 0 | I113: ='نتيجة عامة4-5-6'!U123 -> 0 | L113: ='نتيجة عامة4-5-6'!AD123 -> 0 | O113: ='نتيجة عامة4-5-6'!AM123 -> 0 | R113: ='نتيجة عامة4-5-6'!AV123 -> 0 | U113: ='نتيجة عامة4-5-6'!BG123 -> 0 | V113: ='نتيجة عامة4-5-6'!BP123 -> 0 | W113: ='نتيجة عامة4-5-6'!BY123 -> 0 | X113: ='نتيجة عامة4-5-6'!CF123 -> 0 | AA113: ='نتيجة عامة4-5-6'!CO123 -> 0 | AB113: ='نتيجة عامة4-5-6'!CV123 -> 0 | AE113: ='نتيجة عامة4-5-6'!DG123 -> 0 | AF113: ='نتيجة عامة4-5-6'!DP123 -> 0 | AG113: ='نتيجة عامة4-5-6'!DW123 -> 0
A114: ='نتيجة عامة4-5-6'!A124 -> 498 | B114: ='نتيجة عامة4-5-6'!B124 -> محمد خالد إبراهيم عبد الفتاح | C114: ='نتيجة عامة4-5-6'!A124 -> 498 | F114: ='نتيجة عامة4-5-6'!L124 -> 0 | I114: ='نتيجة عامة4-5-6'!U124 -> 0 | L114: ='نتيجة عامة4-5-6'!AD124 -> 0 | O114: ='نتيجة عامة4-5-6'!AM124 -> 0 | R114: ='نتيجة عامة4-5-6'!AV124 -> 0 | U114: ='نتيجة عامة4-5-6'!BG124 -> 0 | V114: ='نتيجة عامة4-5-6'!BP124 -> 0 | W114: ='نتيجة عامة4-5-6'!BY124 -> 0 | X114: ='نتيجة عامة4-5-6'!CF124 -> 0 | AA114: ='نتيجة عامة4-5-6'!CO124 -> 0 | AB114: ='نتيجة عامة4-5-6'!CV124 -> 0 | AE114: ='نتيجة عامة4-5-6'!DG124 -> 0 | AF114: ='نتيجة عامة4-5-6'!DP124 -> 0 | AG114: ='نتيجة عامة4-5-6'!DW124 -> 0
A115: ='نتيجة عامة4-5-6'!A125 -> 499 | B115: ='نتيجة عامة4-5-6'!B125 -> محمد عبدالحليم عبدالفتاح محمد | C115: ='نتيجة عامة4-5-6'!A125 -> 499 | F115: ='نتيجة عامة4-5-6'!L125 -> 0 | I115: ='نتيجة عامة4-5-6'!U125 -> 0 | L115: ='نتيجة عامة4-5-6'!AD125 -> 0 | O115: ='نتيجة عامة4-5-6'!AM125 -> 0 | R115: ='نتيجة عامة4-5-6'!AV125 -> 0 | U115: ='نتيجة عامة4-5-6'!BG125 -> 0 | V115: ='نتيجة عامة4-5-6'!BP125 -> 0 | W115: ='نتيجة عامة4-5-6'!BY125 -> 0 | X115: ='نتيجة عامة4-5-6'!CF125 -> 0 | AA115: ='نتيجة عامة4-5-6'!CO125 -> 0 | AB115: ='نتيجة عامة4-5-6'!CV125 -> 0 | AE115: ='نتيجة عامة4-5-6'!DG125 -> 0 | AF115: ='نتيجة عامة4-5-6'!DP125 -> 0 | AG115: ='نتيجة عامة4-5-6'!DW125 -> 0
A116: ='نتيجة عامة4-5-6'!A126 -> 500 | B116: ='نتيجة عامة4-5-6'!B126 -> محمد عبد الرازق عثمان محمد | C116: ='نتيجة عامة4-5-6'!A126 -> 500 | F116: ='نتيجة عامة4-5-6'!L126 -> 0 | I116: ='نتيجة عامة4-5-6'!U126 -> 0 | L116: ='نتيجة عامة4-5-6'!AD126 -> 0 | O116: ='نتيجة عامة4-5-6'!AM126 -> 0 | R116: ='نتيجة عامة4-5-6'!AV126 -> 0 | U116: ='نتيجة عامة4-5-6'!BG126 -> 0 | V116: ='نتيجة عامة4-5-6'!BP126 -> 0 | W116: ='نتيجة عامة4-5-6'!BY126 -> 0 | X116: ='نتيجة عامة4-5-6'!CF126 -> 0 | AA116: ='نتيجة عامة4-5-6'!CO126 -> 0 | AB116: ='نتيجة عامة4-5-6'!CV126 -> 0 | AE116: ='نتيجة عامة4-5-6'!DG126 -> 0 | AF116: ='نتيجة عامة4-5-6'!DP126 -> 0 | AG116: ='نتيجة عامة4-5-6'!DW126 -> 0
A117: ='نتيجة عامة4-5-6'!A127 -> 501 | B117: ='نتيجة عامة4-5-6'!B127 -> محمد عبدالقادر حماد عبدالرازق | C117: ='نتيجة عامة4-5-6'!A127 -> 501 | F117: ='نتيجة عامة4-5-6'!L127 -> 0 | I117: ='نتيجة عامة4-5-6'!U127 -> 0 | L117: ='نتيجة عامة4-5-6'!AD127 -> 0 | O117: ='نتيجة عامة4-5-6'!AM127 -> 0 | R117: ='نتيجة عامة4-5-6'!AV127 -> 0 | U117: ='نتيجة عامة4-5-6'!BG127 -> 0 | V117: ='نتيجة عامة4-5-6'!BP127 -> 0 | W117: ='نتيجة عامة4-5-6'!BY127 -> 0 | X117: ='نتيجة عامة4-5-6'!CF127 -> 0 | AA117: ='نتيجة عامة4-5-6'!CO127 -> 0 | AB117: ='نتيجة عامة4-5-6'!CV127 -> 0 | AE117: ='نتيجة عامة4-5-6'!DG127 -> 0 | AF117: ='نتيجة عامة4-5-6'!DP127 -> 0 | AG117: ='نتيجة عامة4-5-6'!DW127 -> 0
A118: ='نتيجة عامة4-5-6'!A128 -> 502 | B118: ='نتيجة عامة4-5-6'!B128 -> محمد عبد القادر محمد محمد عبد الرسول | C118: ='نتيجة عامة4-5-6'!A128 -> 502 | F118: ='نتيجة عامة4-5-6'!L128 -> 0 | I118: ='نتيجة عامة4-5-6'!U128 -> 0 | L118: ='نتيجة عامة4-5-6'!AD128 -> 0 | O118: ='نتيجة عامة4-5-6'!AM128 -> 0 | R118: ='نتيجة عامة4-5-6'!AV128 -> 0 | U118: ='نتيجة عامة4-5-6'!BG128 -> 0 | V118: ='نتيجة عامة4-5-6'!BP128 -> 0 | W118: ='نتيجة عامة4-5-6'!BY128 -> 0 | X118: ='نتيجة عامة4-5-6'!CF128 -> 0 | AA118: ='نتيجة عامة4-5-6'!CO128 -> 0 | AB118: ='نتيجة عامة4-5-6'!CV128 -> 0 | AE118: ='نتيجة عامة4-5-6'!DG128 -> 0 | AF118: ='نتيجة عامة4-5-6'!DP128 -> 0 | AG118: ='نتيجة عامة4-5-6'!DW128 -> 0
A119: ='نتيجة عامة4-5-6'!A129 -> 503 | B119: ='نتيجة عامة4-5-6'!B129 -> محمد عوض ناجح أحمد | C119: ='نتيجة عامة4-5-6'!A129 -> 503 | F119: ='نتيجة عامة4-5-6'!L129 -> 0 | I119: ='نتيجة عامة4-5-6'!U129 -> 0 | L119: ='نتيجة عامة4-5-6'!AD129 -> 0 | O119: ='نتيجة عامة4-5-6'!AM129 -> 0 | R119: ='نتيجة عامة4-5-6'!AV129 -> 0 | U119: ='نتيجة عامة4-5-6'!BG129 -> 0 | V119: ='نتيجة عامة4-5-6'!BP129 -> 0 | W119: ='نتيجة عامة4-5-6'!BY129 -> 0 | X119: ='نتيجة عامة4-5-6'!CF129 -> 0 | AA119: ='نتيجة عامة4-5-6'!CO129 -> 0 | AB119: ='نتيجة عامة4-5-6'!CV129 -> 0 | AE119: ='نتيجة عامة4-5-6'!DG129 -> 0 | AF119: ='نتيجة عامة4-5-6'!DP129 -> 0 | AG119: ='نتيجة عامة4-5-6'!DW129 -> 0
A120: ='نتيجة عامة4-5-6'!A130 -> 504 | B120: ='نتيجة عامة4-5-6'!B130 -> محمد مصطفى سعودي محمد | C120: ='نتيجة عامة4-5-6'!A130 -> 504 | F120: ='نتيجة عامة4-5-6'!L130 -> 0 | I120: ='نتيجة عامة4-5-6'!U130 -> 0 | L120: ='نتيجة عامة4-5-6'!AD130 -> 0 | O120: ='نتيجة عامة4-5-6'!AM130 -> 0 | R120: ='نتيجة عامة4-5-6'!AV130 -> 0 | U120: ='نتيجة عامة4-5-6'!BG130 -> 0 | V120: ='نتيجة عامة4-5-6'!BP130 -> 0 | W120: ='نتيجة عامة4-5-6'!BY130 -> 0 | X120: ='نتيجة عامة4-5-6'!CF130 -> 0 | AA120: ='نتيجة عامة4-5-6'!CO130 -> 0 | AB120: ='نتيجة عامة4-5-6'!CV130 -> 0 | AE120: ='نتيجة عامة4-5-6'!DG130 -> 0 | AF120: ='نتيجة عامة4-5-6'!DP130 -> 0 | AG120: ='نتيجة عامة4-5-6'!DW130 -> 0
A121: ='نتيجة عامة4-5-6'!A131 -> 505 | B121: ='نتيجة عامة4-5-6'!B131 -> محمود أحمد عبدالحليم محمد | C121: ='نتيجة عامة4-5-6'!A131 -> 505 | F121: ='نتيجة عامة4-5-6'!L131 -> 0 | I121: ='نتيجة عامة4-5-6'!U131 -> 0 | L121: ='نتيجة عامة4-5-6'!AD131 -> 0 | O121: ='نتيجة عامة4-5-6'!AM131 -> 0 | R121: ='نتيجة عامة4-5-6'!AV131 -> 0 | U121: ='نتيجة عامة4-5-6'!BG131 -> 0 | V121: ='نتيجة عامة4-5-6'!BP131 -> 0 | W121: ='نتيجة عامة4-5-6'!BY131 -> 0 | X121: ='نتيجة عامة4-5-6'!CF131 -> 0 | AA121: ='نتيجة عامة4-5-6'!CO131 -> 0 | AB121: ='نتيجة عامة4-5-6'!CV131 -> 0 | AE121: ='نتيجة عامة4-5-6'!DG131 -> 0 | AF121: ='نتيجة عامة4-5-6'!DP131 -> 0 | AG121: ='نتيجة عامة4-5-6'!DW131 -> 0
A122: ='نتيجة عامة4-5-6'!A132 -> 506 | B122: ='نتيجة عامة4-5-6'!B132 -> محمود بدوي محمد محمود | C122: ='نتيجة عامة4-5-6'!A132 -> 506 | F122: ='نتيجة عامة4-5-6'!L132 -> 0 | I122: ='نتيجة عامة4-5-6'!U132 -> 0 | L122: ='نتيجة عامة4-5-6'!AD132 -> 0 | O122: ='نتيجة عامة4-5-6'!AM132 -> 0 | R122: ='نتيجة عامة4-5-6'!AV132 -> 0 | U122: ='نتيجة عامة4-5-6'!BG132 -> 0 | V122: ='نتيجة عامة4-5-6'!BP132 -> 0 | W122: ='نتيجة عامة4-5-6'!BY132 -> 0 | X122: ='نتيجة عامة4-5-6'!CF132 -> 0 | AA122: ='نتيجة عامة4-5-6'!CO132 -> 0 | AB122: ='نتيجة عامة4-5-6'!CV132 -> 0 | AE122: ='نتيجة عامة4-5-6'!DG132 -> 0 | AF122: ='نتيجة عامة4-5-6'!DP132 -> 0 | AG122: ='نتيجة عامة4-5-6'!DW132 -> 0
A123: ='نتيجة عامة4-5-6'!A133 -> 507 | B123: ='نتيجة عامة4-5-6'!B133 -> مروان ربيع محمد حافظ | C123: ='نتيجة عامة4-5-6'!A133 -> 507 | F123: ='نتيجة عامة4-5-6'!L133 -> 0 | I123: ='نتيجة عامة4-5-6'!U133 -> 0 | L123: ='نتيجة عامة4-5-6'!AD133 -> 0 | O123: ='نتيجة عامة4-5-6'!AM133 -> 0 | R123: ='نتيجة عامة4-5-6'!AV133 -> 0 | U123: ='نتيجة عامة4-5-6'!BG133 -> 0 | V123: ='نتيجة عامة4-5-6'!BP133 -> 0 | W123: ='نتيجة عامة4-5-6'!BY133 -> 0 | X123: ='نتيجة عامة4-5-6'!CF133 -> 0 | AA123: ='نتيجة عامة4-5-6'!CO133 -> 0 | AB123: ='نتيجة عامة4-5-6'!CV133 -> 0 | AE123: ='نتيجة عامة4-5-6'!DG133 -> 0 | AF123: ='نتيجة عامة4-5-6'!DP133 -> 0 | AG123: ='نتيجة عامة4-5-6'!DW133 -> 0
A124: ='نتيجة عامة4-5-6'!A134 -> 508 | B124: ='نتيجة عامة4-5-6'!B134 -> مروان محمد قياتي علي | C124: ='نتيجة عامة4-5-6'!A134 -> 508 | F124: ='نتيجة عامة4-5-6'!L134 -> 0 | I124: ='نتيجة عامة4-5-6'!U134 -> 0 | L124: ='نتيجة عامة4-5-6'!AD134 -> 0 | O124: ='نتيجة عامة4-5-6'!AM134 -> 0 | R124: ='نتيجة عامة4-5-6'!AV134 -> 0 | U124: ='نتيجة عامة4-5-6'!BG134 -> 0 | V124: ='نتيجة عامة4-5-6'!BP134 -> 0 | W124: ='نتيجة عامة4-5-6'!BY134 -> 0 | X124: ='نتيجة عامة4-5-6'!CF134 -> 0 | AA124: ='نتيجة عامة4-5-6'!CO134 -> 0 | AB124: ='نتيجة عامة4-5-6'!CV134 -> 0 | AE124: ='نتيجة عامة4-5-6'!DG134 -> 0 | AF124: ='نتيجة عامة4-5-6'!DP134 -> 0 | AG124: ='نتيجة عامة4-5-6'!DW134 -> 0
A125: ='نتيجة عامة4-5-6'!A135 -> 509 | B125: ='نتيجة عامة4-5-6'!B135 -> مصطفى عامر محمود راضي | C125: ='نتيجة عامة4-5-6'!A135 -> 509 | F125: ='نتيجة عامة4-5-6'!L135 -> 0 | I125: ='نتيجة عامة4-5-6'!U135 -> 0 | L125: ='نتيجة عامة4-5-6'!AD135 -> 0 | O125: ='نتيجة عامة4-5-6'!AM135 -> 0 | R125: ='نتيجة عامة4-5-6'!AV135 -> 0 | U125: ='نتيجة عامة4-5-6'!BG135 -> 0 | V125: ='نتيجة عامة4-5-6'!BP135 -> 0 | W125: ='نتيجة عامة4-5-6'!BY135 -> 0 | X125: ='نتيجة عامة4-5-6'!CF135 -> 0 | AA125: ='نتيجة عامة4-5-6'!CO135 -> 0 | AB125: ='نتيجة عامة4-5-6'!CV135 -> 0 | AE125: ='نتيجة عامة4-5-6'!DG135 -> 0 | AF125: ='نتيجة عامة4-5-6'!DP135 -> 0 | AG125: ='نتيجة عامة4-5-6'!DW135 -> 0
A126: ='نتيجة عامة4-5-6'!A136 -> 510 | B126: ='نتيجة عامة4-5-6'!B136 -> معاذ مصطفى محمد سعيد | C126: ='نتيجة عامة4-5-6'!A136 -> 510 | F126: ='نتيجة عامة4-5-6'!L136 -> 0 | I126: ='نتيجة عامة4-5-6'!U136 -> 0 | L126: ='نتيجة عامة4-5-6'!AD136 -> 0 | O126: ='نتيجة عامة4-5-6'!AM136 -> 0 | R126: ='نتيجة عامة4-5-6'!AV136 -> 0 | U126: ='نتيجة عامة4-5-6'!BG136 -> 0 | V126: ='نتيجة عامة4-5-6'!BP136 -> 0 | W126: ='نتيجة عامة4-5-6'!BY136 -> 0 | X126: ='نتيجة عامة4-5-6'!CF136 -> 0 | AA126: ='نتيجة عامة4-5-6'!CO136 -> 0 | AB126: ='نتيجة عامة4-5-6'!CV136 -> 0 | AE126: ='نتيجة عامة4-5-6'!DG136 -> 0 | AF126: ='نتيجة عامة4-5-6'!DP136 -> 0 | AG126: ='نتيجة عامة4-5-6'!DW136 -> 0
A127: ='نتيجة عامة4-5-6'!A137 -> 511 | B127: ='نتيجة عامة4-5-6'!B137 -> معتز هاني عبد المعز محمود | C127: ='نتيجة عامة4-5-6'!A137 -> 511 | F127: ='نتيجة عامة4-5-6'!L137 -> 0 | I127: ='نتيجة عامة4-5-6'!U137 -> 0 | L127: ='نتيجة عامة4-5-6'!AD137 -> 0 | O127: ='نتيجة عامة4-5-6'!AM137 -> 0 | R127: ='نتيجة عامة4-5-6'!AV137 -> 0 | U127: ='نتيجة عامة4-5-6'!BG137 -> 0 | V127: ='نتيجة عامة4-5-6'!BP137 -> 0 | W127: ='نتيجة عامة4-5-6'!BY137 -> 0 | X127: ='نتيجة عامة4-5-6'!CF137 -> 0 | AA127: ='نتيجة عامة4-5-6'!CO137 -> 0 | AB127: ='نتيجة عامة4-5-6'!CV137 -> 0 | AE127: ='نتيجة عامة4-5-6'!DG137 -> 0 | AF127: ='نتيجة عامة4-5-6'!DP137 -> 0 | AG127: ='نتيجة عامة4-5-6'!DW137 -> 0
A128: ='نتيجة عامة4-5-6'!A138 -> 512 | B128: ='نتيجة عامة4-5-6'!B138 -> مهند أسامة محمد حسيب | C128: ='نتيجة عامة4-5-6'!A138 -> 512 | F128: ='نتيجة عامة4-5-6'!L138 -> 0 | I128: ='نتيجة عامة4-5-6'!U138 -> 0 | L128: ='نتيجة عامة4-5-6'!AD138 -> 0 | O128: ='نتيجة عامة4-5-6'!AM138 -> 0 | R128: ='نتيجة عامة4-5-6'!AV138 -> 0 | U128: ='نتيجة عامة4-5-6'!BG138 -> 0 | V128: ='نتيجة عامة4-5-6'!BP138 -> 0 | W128: ='نتيجة عامة4-5-6'!BY138 -> 0 | X128: ='نتيجة عامة4-5-6'!CF138 -> 0 | AA128: ='نتيجة عامة4-5-6'!CO138 -> 0 | AB128: ='نتيجة عامة4-5-6'!CV138 -> 0 | AE128: ='نتيجة عامة4-5-6'!DG138 -> 0 | AF128: ='نتيجة عامة4-5-6'!DP138 -> 0 | AG128: ='نتيجة عامة4-5-6'!DW138 -> 0
A129: ='نتيجة عامة4-5-6'!A139 -> 513 | B129: ='نتيجة عامة4-5-6'!B139 -> ياسين محمود محمد محمود عثمان | C129: ='نتيجة عامة4-5-6'!A139 -> 513 | F129: ='نتيجة عامة4-5-6'!L139 -> 0 | I129: ='نتيجة عامة4-5-6'!U139 -> 0 | L129: ='نتيجة عامة4-5-6'!AD139 -> 0 | O129: ='نتيجة عامة4-5-6'!AM139 -> 0 | R129: ='نتيجة عامة4-5-6'!AV139 -> 0 | U129: ='نتيجة عامة4-5-6'!BG139 -> 0 | V129: ='نتيجة عامة4-5-6'!BP139 -> 0 | W129: ='نتيجة عامة4-5-6'!BY139 -> 0 | X129: ='نتيجة عامة4-5-6'!CF139 -> 0 | AA129: ='نتيجة عامة4-5-6'!CO139 -> 0 | AB129: ='نتيجة عامة4-5-6'!CV139 -> 0 | AE129: ='نتيجة عامة4-5-6'!DG139 -> 0 | AF129: ='نتيجة عامة4-5-6'!DP139 -> 0 | AG129: ='نتيجة عامة4-5-6'!DW139 -> 0
A130: ='نتيجة عامة4-5-6'!A140 -> 514 | B130: ='نتيجة عامة4-5-6'!B140 -> يوسف أحمد فتحي بهجات | C130: ='نتيجة عامة4-5-6'!A140 -> 514 | F130: ='نتيجة عامة4-5-6'!L140 -> 0 | I130: ='نتيجة عامة4-5-6'!U140 -> 0 | L130: ='نتيجة عامة4-5-6'!AD140 -> 0 | O130: ='نتيجة عامة4-5-6'!AM140 -> 0 | R130: ='نتيجة عامة4-5-6'!AV140 -> 0 | U130: ='نتيجة عامة4-5-6'!BG140 -> 0 | V130: ='نتيجة عامة4-5-6'!BP140 -> 0 | W130: ='نتيجة عامة4-5-6'!BY140 -> 0 | X130: ='نتيجة عامة4-5-6'!CF140 -> 0 | AA130: ='نتيجة عامة4-5-6'!CO140 -> 0 | AB130: ='نتيجة عامة4-5-6'!CV140 -> 0 | AE130: ='نتيجة عامة4-5-6'!DG140 -> 0 | AF130: ='نتيجة عامة4-5-6'!DP140 -> 0 | AG130: ='نتيجة عامة4-5-6'!DW140 -> 0
A131: ='نتيجة عامة4-5-6'!A141 -> 515 | B131: ='نتيجة عامة4-5-6'!B141 -> يوسف ربيع صبحي محمد محمد | C131: ='نتيجة عامة4-5-6'!A141 -> 515 | F131: ='نتيجة عامة4-5-6'!L141 -> 0 | I131: ='نتيجة عامة4-5-6'!U141 -> 0 | L131: ='نتيجة عامة4-5-6'!AD141 -> 0 | O131: ='نتيجة عامة4-5-6'!AM141 -> 0 | R131: ='نتيجة عامة4-5-6'!AV141 -> 0 | U131: ='نتيجة عامة4-5-6'!BG141 -> 0 | V131: ='نتيجة عامة4-5-6'!BP141 -> 0 | W131: ='نتيجة عامة4-5-6'!BY141 -> 0 | X131: ='نتيجة عامة4-5-6'!CF141 -> 0 | AA131: ='نتيجة عامة4-5-6'!CO141 -> 0 | AB131: ='نتيجة عامة4-5-6'!CV141 -> 0 | AE131: ='نتيجة عامة4-5-6'!DG141 -> 0 | AF131: ='نتيجة عامة4-5-6'!DP141 -> 0 | AG131: ='نتيجة عامة4-5-6'!DW141 -> 0
A132: ='نتيجة عامة4-5-6'!A142 -> 516 | B132: ='نتيجة عامة4-5-6'!B142 -> يوسف عبدالحليم أحمد عبدالحليم | C132: ='نتيجة عامة4-5-6'!A142 -> 516 | F132: ='نتيجة عامة4-5-6'!L142 -> 0 | I132: ='نتيجة عامة4-5-6'!U142 -> 0 | L132: ='نتيجة عامة4-5-6'!AD142 -> 0 | O132: ='نتيجة عامة4-5-6'!AM142 -> 0 | R132: ='نتيجة عامة4-5-6'!AV142 -> 0 | U132: ='نتيجة عامة4-5-6'!BG142 -> 0 | V132: ='نتيجة عامة4-5-6'!BP142 -> 0 | W132: ='نتيجة عامة4-5-6'!BY142 -> 0 | X132: ='نتيجة عامة4-5-6'!CF142 -> 0 | AA132: ='نتيجة عامة4-5-6'!CO142 -> 0 | AB132: ='نتيجة عامة4-5-6'!CV142 -> 0 | AE132: ='نتيجة عامة4-5-6'!DG142 -> 0 | AF132: ='نتيجة عامة4-5-6'!DP142 -> 0 | AG132: ='نتيجة عامة4-5-6'!DW142 -> 0
A133: ='نتيجة عامة4-5-6'!A143 -> 517 | B133: ='نتيجة عامة4-5-6'!B143 -> يوسف علي محمد ربيع علي | C133: ='نتيجة عامة4-5-6'!A143 -> 517 | F133: ='نتيجة عامة4-5-6'!L143 -> 0 | I133: ='نتيجة عامة4-5-6'!U143 -> 0 | L133: ='نتيجة عامة4-5-6'!AD143 -> 0 | O133: ='نتيجة عامة4-5-6'!AM143 -> 0 | R133: ='نتيجة عامة4-5-6'!AV143 -> 0 | U133: ='نتيجة عامة4-5-6'!BG143 -> 0 | V133: ='نتيجة عامة4-5-6'!BP143 -> 0 | W133: ='نتيجة عامة4-5-6'!BY143 -> 0 | X133: ='نتيجة عامة4-5-6'!CF143 -> 0 | AA133: ='نتيجة عامة4-5-6'!CO143 -> 0 | AB133: ='نتيجة عامة4-5-6'!CV143 -> 0 | AE133: ='نتيجة عامة4-5-6'!DG143 -> 0 | AF133: ='نتيجة عامة4-5-6'!DP143 -> 0 | AG133: ='نتيجة عامة4-5-6'!DW143 -> 0
A134: ='نتيجة عامة4-5-6'!A144 -> 518 | B134: ='نتيجة عامة4-5-6'!B144 -> يوسف محمد محمود شحاته | C134: ='نتيجة عامة4-5-6'!A144 -> 518 | F134: ='نتيجة عامة4-5-6'!L144 -> 0 | I134: ='نتيجة عامة4-5-6'!U144 -> 0 | L134: ='نتيجة عامة4-5-6'!AD144 -> 0 | O134: ='نتيجة عامة4-5-6'!AM144 -> 0 | R134: ='نتيجة عامة4-5-6'!AV144 -> 0 | U134: ='نتيجة عامة4-5-6'!BG144 -> 0 | V134: ='نتيجة عامة4-5-6'!BP144 -> 0 | W134: ='نتيجة عامة4-5-6'!BY144 -> 0 | X134: ='نتيجة عامة4-5-6'!CF144 -> 0 | AA134: ='نتيجة عامة4-5-6'!CO144 -> 0 | AB134: ='نتيجة عامة4-5-6'!CV144 -> 0 | AE134: ='نتيجة عامة4-5-6'!DG144 -> 0 | AF134: ='نتيجة عامة4-5-6'!DP144 -> 0 | AG134: ='نتيجة عامة4-5-6'!DW144 -> 0
A135: ='نتيجة عامة4-5-6'!A145 -> 519 | B135: ='نتيجة عامة4-5-6'!B145 -> يوسف مصطفى فتحي كامل | C135: ='نتيجة عامة4-5-6'!A145 -> 519 | F135: ='نتيجة عامة4-5-6'!L145 -> 0 | I135: ='نتيجة عامة4-5-6'!U145 -> 0 | L135: ='نتيجة عامة4-5-6'!AD145 -> 0 | O135: ='نتيجة عامة4-5-6'!AM145 -> 0 | R135: ='نتيجة عامة4-5-6'!AV145 -> 0 | U135: ='نتيجة عامة4-5-6'!BG145 -> 0 | V135: ='نتيجة عامة4-5-6'!BP145 -> 0 | W135: ='نتيجة عامة4-5-6'!BY145 -> 0 | X135: ='نتيجة عامة4-5-6'!CF145 -> 0 | AA135: ='نتيجة عامة4-5-6'!CO145 -> 0 | AB135: ='نتيجة عامة4-5-6'!CV145 -> 0 | AE135: ='نتيجة عامة4-5-6'!DG145 -> 0 | AF135: ='نتيجة عامة4-5-6'!DP145 -> 0 | AG135: ='نتيجة عامة4-5-6'!DW145 -> 0
A136: ='نتيجة عامة4-5-6'!A146 -> 520 | B136: ='نتيجة عامة4-5-6'!B146 -> اروى سعيد قياتي عبد الفتاح | C136: ='نتيجة عامة4-5-6'!A146 -> 520 | F136: ='نتيجة عامة4-5-6'!L146 -> 0 | I136: ='نتيجة عامة4-5-6'!U146 -> 0 | L136: ='نتيجة عامة4-5-6'!AD146 -> 0 | O136: ='نتيجة عامة4-5-6'!AM146 -> 0 | R136: ='نتيجة عامة4-5-6'!AV146 -> 0 | U136: ='نتيجة عامة4-5-6'!BG146 -> 0 | V136: ='نتيجة عامة4-5-6'!BP146 -> 0 | W136: ='نتيجة عامة4-5-6'!BY146 -> 0 | X136: ='نتيجة عامة4-5-6'!CF146 -> 0 | AA136: ='نتيجة عامة4-5-6'!CO146 -> 0 | AB136: ='نتيجة عامة4-5-6'!CV146 -> 0 | AE136: ='نتيجة عامة4-5-6'!DG146 -> 0 | AF136: ='نتيجة عامة4-5-6'!DP146 -> 0 | AG136: ='نتيجة عامة4-5-6'!DW146 -> 0
A137: ='نتيجة عامة4-5-6'!A147 -> 521 | B137: ='نتيجة عامة4-5-6'!B147 -> اسراء عبد القادر كامل عبد اللطيف | C137: ='نتيجة عامة4-5-6'!A147 -> 521 | F137: ='نتيجة عامة4-5-6'!L147 -> 0 | I137: ='نتيجة عامة4-5-6'!U147 -> 0 | L137: ='نتيجة عامة4-5-6'!AD147 -> 0 | O137: ='نتيجة عامة4-5-6'!AM147 -> 0 | R137: ='نتيجة عامة4-5-6'!AV147 -> 0 | U137: ='نتيجة عامة4-5-6'!BG147 -> 0 | V137: ='نتيجة عامة4-5-6'!BP147 -> 0 | W137: ='نتيجة عامة4-5-6'!BY147 -> 0 | X137: ='نتيجة عامة4-5-6'!CF147 -> 0 | AA137: ='نتيجة عامة4-5-6'!CO147 -> 0 | AB137: ='نتيجة عامة4-5-6'!CV147 -> 0 | AE137: ='نتيجة عامة4-5-6'!DG147 -> 0 | AF137: ='نتيجة عامة4-5-6'!DP147 -> 0 | AG137: ='نتيجة عامة4-5-6'!DW147 -> 0
A138: ='نتيجة عامة4-5-6'!A148 -> 522 | B138: ='نتيجة عامة4-5-6'!B148 -> اسماء ناصر عبد القادر أمين أمين | C138: ='نتيجة عامة4-5-6'!A148 -> 522 | F138: ='نتيجة عامة4-5-6'!L148 -> 0 | I138: ='نتيجة عامة4-5-6'!U148 -> 0 | L138: ='نتيجة عامة4-5-6'!AD148 -> 0 | O138: ='نتيجة عامة4-5-6'!AM148 -> 0 | R138: ='نتيجة عامة4-5-6'!AV148 -> 0 | U138: ='نتيجة عامة4-5-6'!BG148 -> 0 | V138: ='نتيجة عامة4-5-6'!BP148 -> 0 | W138: ='نتيجة عامة4-5-6'!BY148 -> 0 | X138: ='نتيجة عامة4-5-6'!CF148 -> 0 | AA138: ='نتيجة عامة4-5-6'!CO148 -> 0 | AB138: ='نتيجة عامة4-5-6'!CV148 -> 0 | AE138: ='نتيجة عامة4-5-6'!DG148 -> 0 | AF138: ='نتيجة عامة4-5-6'!DP148 -> 0 | AG138: ='نتيجة عامة4-5-6'!DW148 -> 0
A139: ='نتيجة عامة4-5-6'!A149 -> 523 | B139: ='نتيجة عامة4-5-6'!B149 -> التقوى حسين خليفة محمد | C139: ='نتيجة عامة4-5-6'!A149 -> 523 | F139: ='نتيجة عامة4-5-6'!L149 -> 0 | I139: ='نتيجة عامة4-5-6'!U149 -> 0 | L139: ='نتيجة عامة4-5-6'!AD149 -> 0 | O139: ='نتيجة عامة4-5-6'!AM149 -> 0 | R139: ='نتيجة عامة4-5-6'!AV149 -> 0 | U139: ='نتيجة عامة4-5-6'!BG149 -> 0 | V139: ='نتيجة عامة4-5-6'!BP149 -> 0 | W139: ='نتيجة عامة4-5-6'!BY149 -> 0 | X139: ='نتيجة عامة4-5-6'!CF149 -> 0 | AA139: ='نتيجة عامة4-5-6'!CO149 -> 0 | AB139: ='نتيجة عامة4-5-6'!CV149 -> 0 | AE139: ='نتيجة عامة4-5-6'!DG149 -> 0 | AF139: ='نتيجة عامة4-5-6'!DP149 -> 0 | AG139: ='نتيجة عامة4-5-6'!DW149 -> 0
A140: ='نتيجة عامة4-5-6'!A150 -> 524 | B140: ='نتيجة عامة4-5-6'!B150 -> الزهراء صابر محمد عبد الصابر | C140: ='نتيجة عامة4-5-6'!A150 -> 524 | F140: ='نتيجة عامة4-5-6'!L150 -> 0 | I140: ='نتيجة عامة4-5-6'!U150 -> 0 | L140: ='نتيجة عامة4-5-6'!AD150 -> 0 | O140: ='نتيجة عامة4-5-6'!AM150 -> 0 | R140: ='نتيجة عامة4-5-6'!AV150 -> 0 | U140: ='نتيجة عامة4-5-6'!BG150 -> 0 | V140: ='نتيجة عامة4-5-6'!BP150 -> 0 | W140: ='نتيجة عامة4-5-6'!BY150 -> 0 | X140: ='نتيجة عامة4-5-6'!CF150 -> 0 | AA140: ='نتيجة عامة4-5-6'!CO150 -> 0 | AB140: ='نتيجة عامة4-5-6'!CV150 -> 0 | AE140: ='نتيجة عامة4-5-6'!DG150 -> 0 | AF140: ='نتيجة عامة4-5-6'!DP150 -> 0 | AG140: ='نتيجة عامة4-5-6'!DW150 -> 0
A141: ='نتيجة عامة4-5-6'!A151 -> 525 | B141: ='نتيجة عامة4-5-6'!B151 -> الزهراء محمد السيد حسانين | C141: ='نتيجة عامة4-5-6'!A151 -> 525 | F141: ='نتيجة عامة4-5-6'!L151 -> 0 | I141: ='نتيجة عامة4-5-6'!U151 -> 0 | L141: ='نتيجة عامة4-5-6'!AD151 -> 0 | O141: ='نتيجة عامة4-5-6'!AM151 -> 0 | R141: ='نتيجة عامة4-5-6'!AV151 -> 0 | U141: ='نتيجة عامة4-5-6'!BG151 -> 0 | V141: ='نتيجة عامة4-5-6'!BP151 -> 0 | W141: ='نتيجة عامة4-5-6'!BY151 -> 0 | X141: ='نتيجة عامة4-5-6'!CF151 -> 0 | AA141: ='نتيجة عامة4-5-6'!CO151 -> 0 | AB141: ='نتيجة عامة4-5-6'!CV151 -> 0 | AE141: ='نتيجة عامة4-5-6'!DG151 -> 0 | AF141: ='نتيجة عامة4-5-6'!DP151 -> 0 | AG141: ='نتيجة عامة4-5-6'!DW151 -> 0
A142: ='نتيجة عامة4-5-6'!A152 -> 526 | B142: ='نتيجة عامة4-5-6'!B152 -> امنه رمضان أحمد إبراهيم | C142: ='نتيجة عامة4-5-6'!A152 -> 526 | F142: ='نتيجة عامة4-5-6'!L152 -> 0 | I142: ='نتيجة عامة4-5-6'!U152 -> 0 | L142: ='نتيجة عامة4-5-6'!AD152 -> 0 | O142: ='نتيجة عامة4-5-6'!AM152 -> 0 | R142: ='نتيجة عامة4-5-6'!AV152 -> 0 | U142: ='نتيجة عامة4-5-6'!BG152 -> 0 | V142: ='نتيجة عامة4-5-6'!BP152 -> 0 | W142: ='نتيجة عامة4-5-6'!BY152 -> 0 | X142: ='نتيجة عامة4-5-6'!CF152 -> 0 | AA142: ='نتيجة عامة4-5-6'!CO152 -> 0 | AB142: ='نتيجة عامة4-5-6'!CV152 -> 0 | AE142: ='نتيجة عامة4-5-6'!DG152 -> 0 | AF142: ='نتيجة عامة4-5-6'!DP152 -> 0 | AG142: ='نتيجة عامة4-5-6'!DW152 -> 0
A143: ='نتيجة عامة4-5-6'!A153 -> 527 | B143: ='نتيجة عامة4-5-6'!B153 -> اسينات محمد حسني كمال | C143: ='نتيجة عامة4-5-6'!A153 -> 527 | F143: ='نتيجة عامة4-5-6'!L153 -> 0 | I143: ='نتيجة عامة4-5-6'!U153 -> 0 | L143: ='نتيجة عامة4-5-6'!AD153 -> 0 | O143: ='نتيجة عامة4-5-6'!AM153 -> 0 | R143: ='نتيجة عامة4-5-6'!AV153 -> 0 | U143: ='نتيجة عامة4-5-6'!BG153 -> 0 | V143: ='نتيجة عامة4-5-6'!BP153 -> 0 | W143: ='نتيجة عامة4-5-6'!BY153 -> 0 | X143: ='نتيجة عامة4-5-6'!CF153 -> 0 | AA143: ='نتيجة عامة4-5-6'!CO153 -> 0 | AB143: ='نتيجة عامة4-5-6'!CV153 -> 0 | AE143: ='نتيجة عامة4-5-6'!DG153 -> 0 | AF143: ='نتيجة عامة4-5-6'!DP153 -> 0 | AG143: ='نتيجة عامة4-5-6'!DW153 -> 0
A144: ='نتيجة عامة4-5-6'!A154 -> 528 | B144: ='نتيجة عامة4-5-6'!B154 -> اسينات محمد عبد المنعم محمد حسن | C144: ='نتيجة عامة4-5-6'!A154 -> 528 | F144: ='نتيجة عامة4-5-6'!L154 -> 0 | I144: ='نتيجة عامة4-5-6'!U154 -> 0 | L144: ='نتيجة عامة4-5-6'!AD154 -> 0 | O144: ='نتيجة عامة4-5-6'!AM154 -> 0 | R144: ='نتيجة عامة4-5-6'!AV154 -> 0 | U144: ='نتيجة عامة4-5-6'!BG154 -> 0 | V144: ='نتيجة عامة4-5-6'!BP154 -> 0 | W144: ='نتيجة عامة4-5-6'!BY154 -> 0 | X144: ='نتيجة عامة4-5-6'!CF154 -> 0 | AA144: ='نتيجة عامة4-5-6'!CO154 -> 0 | AB144: ='نتيجة عامة4-5-6'!CV154 -> 0 | AE144: ='نتيجة عامة4-5-6'!DG154 -> 0 | AF144: ='نتيجة عامة4-5-6'!DP154 -> 0 | AG144: ='نتيجة عامة4-5-6'!DW154 -> 0
A145: ='نتيجة عامة4-5-6'!A155 -> 529 | B145: ='نتيجة عامة4-5-6'!B155 -> اميرة محمد محمود عبد اللطيف | C145: ='نتيجة عامة4-5-6'!A155 -> 529 | F145: ='نتيجة عامة4-5-6'!L155 -> 0 | I145: ='نتيجة عامة4-5-6'!U155 -> 0 | L145: ='نتيجة عامة4-5-6'!AD155 -> 0 | O145: ='نتيجة عامة4-5-6'!AM155 -> 0 | R145: ='نتيجة عامة4-5-6'!AV155 -> 0 | U145: ='نتيجة عامة4-5-6'!BG155 -> 0 | V145: ='نتيجة عامة4-5-6'!BP155 -> 0 | W145: ='نتيجة عامة4-5-6'!BY155 -> 0 | X145: ='نتيجة عامة4-5-6'!CF155 -> 0 | AA145: ='نتيجة عامة4-5-6'!CO155 -> 0 | AB145: ='نتيجة عامة4-5-6'!CV155 -> 0 | AE145: ='نتيجة عامة4-5-6'!DG155 -> 0 | AF145: ='نتيجة عامة4-5-6'!DP155 -> 0 | AG145: ='نتيجة عامة4-5-6'!DW155 -> 0
